Workbook

Sheet DATA (hidden)
A1: Code de produit | B1: Nouveau Produit | C1: Marque | D1: Catégorie | E1: Description | F1: CUP/unité | G1: Format | H1: Sélection | I1: EMB. | J1: B | K1: C | L1: V | M1: SG | N1: SO | O1: H | P1: FC | Q1: CC | R1: PC | S1: Jours garantis | T1: Entreposage | U1: Prix | V1: Promo mensuelle | W1: Rabais promo | X1: PDS | Y1: Classement des produits
A2: AC0459 | B2: Nouveau Produit! | C2: ACROPOLIS ORGANICS | D2: Huile d'olive extra vierge | E2: HOEV avec mandarines fraîches bio | F2: 185782000452 | G2: 250ML | H2: CS | I2: 6 | J2: O | K2: O | N2: O | Q2: O | S2: 90 | T2: SEC | U2: 46,68$ | X2: 0 | Y2: 42
A3: AC0255 | B3: Nouveau Produit! | C3: ACROPOLIS ORGANICS | D3: Huile d'olive extra vierge bioharvest | E3: Huile d'olive extra vierge - Bioharvest | F3: 185782000018 | G3: 500ML | H3: CS | I3: 6 | J3: O | K3: O | N3: O | Q3: O | S3: 135 | T3: SEC | U3: 171,34$ | X3: 0
A4: SN5045 | B4: Nouveau Produit! | C4: ALT-PRO ADVANTAGE | D4: Nourriture pour chiens | E4: Nourriture sèche bien-être complet riche en nutriments | F4: 628942605048 | G4: 1.58KG | H4: CS | I4: 4 | P4: O | Q4: O | S4: 164 | T4: SEC | U4: 81,17$ | X4: 28.99
A5: SN0072 | B5: Nouveau Produit! | C5: ALT-PRO ADVANTAGE | D5: Collations pour chiens | E5: Gâteries Peau et pelage en santé | F5: 628942070075 | G5: 130G | H5: CS | I5: 6 | P5: O | Q5: O | S5: 164 | T5: SEC | U5: 47,15$ | X5: 9.99
A6: SN0065 | B6: Nouveau Produit! | C6: ALT-PRO ADVANTAGE | D6: Collations pour chiens | E6: Gâteries boost oméga | F6: 628942070068 | G6: 130G | H6: CS | I6: 6 | P6: O | Q6: O | S6: 164 | T6: SEC | U6: 47,15$ | X6: 9.99
A7: SN0058 | B7: Nouveau Produit! | C7: ALT-PRO ADVANTAGE | D7: Collations pour chiens | E7: Gâteries boost prébiotique | F7: 628942070051 | G7: 130G | H7: CS | I7: 6 | P7: O | Q7: O | S7: 164 | T7: SEC | U7: 47,15$ | X7: 9.99
A8: SN0089 | B8: Nouveau Produit! | C8: ALT-PRO ADVANTAGE | D8: Collations pour chiens | E8: Gâteries mélange bien-être | F8: 628942070082 | G8: 130G | H8: CS | I8: 6 | P8: O | Q8: O | S8: 164 | T8: SEC | U8: 47,15$ | X8: 9.99
A9: SN5052 | B9: Nouveau Produit! | C9: ALT-PRO ADVANTAGE | D9: Collations pour chiens | E9: Gâteries soin apaisant | F9: 628942605055 | G9: 130G | H9: CS | I9: 6 | P9: O | Q9: O | S9: 164 | T9: SEC | U9: 47,15$ | X9: 9.99
A10: ART0116 | B10: Nouveau Produit! | C10: ARTISANA | D10: Beurre de noix | E10: Beurre aux noix de Grenoble | F10: 870001000664 | G10: 227G | H10: CS | I10: 6 | J10: O | K10: O | L10: O | N10: O | S10: 137 | T10: SEC | U10: 90,00$ | X10: 21.99 | Y10: 3
A11: ART0112 | B11: Nouveau Produit! | C11: ARTISANA | D11: Beurre de noix | E11: Beurre aux noix de cajou | F11: 870001000220 | G11: 227G | H11: CS | I11: 6 | J11: O | K11: O | L11: O | N11: O | S11: 137 | T11: SEC | U11: 64,25$ | X11: 15.99 | Y11: 2
A12: ART0114 | B12: Nouveau Produit! | C12: ARTISANA | D12: Beurre de noix | E12: Beurre aux pacanes | F12: 870001000565 | G12: 227G | H12: CS | I12: 6 | J12: O | K12: O | L12: O | N12: O | S12: 137 | T12: SEC | U12: 81,00$ | X12: 19.99 | Y12: 6
A13: ART0117 | B13: Nouveau Produit! | C13: ARTISANA | D13: Beurre de noix | E13: Tartinade de cacao et noix de cajou | F13: 870001000930 | G13: 227G | H13: CS | I13: 6 | J13: O | K13: O | L13: O | N13: O | S13: 137 | T13: SEC | U13: 58,25$ | X13: 14.49 | Y13: 9
A14: ART0208 | B14: Nouveau Produit! | C14: ARTISANA | D14: Beurre de noix en contenant souple | E14: Beurre de coco dans un contenant souple (Anglais seul.) | F14: 870001000091 | G14: 31G | H14: UN | I14: 10 | J14: O | K14: O | L14: O | N14: O | S14: 164 | T14: SEC | U14: 20,00$ | X14: 2.99 | Y14: 12
A15: ART0111 | B15: Nouveau Produit! | C15: ARTISANA | D15: Beurre de noix | E15: Beurre d'amande | F15: 870001002866 | G15: 397G | H15: CS | I15: 6 | J15: O | K15: O | L15: O | N15: O | S15: 164 | T15: SEC | U15: 114,73$ | V15: Offre de janvier | W15: ÉCONOMISEZ 15% | X15: 28.99 | Y15: 7
A16: ART0113 | B16: Nouveau Produit! | C16: ARTISANA | D16: Beurre de noix | E16: Beurre de coco | F16: 870001002880 | G16: 397G | H16: CS | I16: 6 | J16: O | K16: O | L16: O | N16: O | S16: 137 | T16: SEC | U16: 59,80$ | X16: 14.99 | Y16: 1
A17: ART0115 | B17: Nouveau Produit! | C17: ARTISANA | D17: Beurre de noix | E17: Tahini cru | F17: 870001002897 | G17: 397G | H17: CS | I17: 6 | J17: O | K17: O | L17: O | N17: O | S17: 110 | T17: SEC | U17: 64,49$ | X17: 14.79 | Y17: 5
A18: BY1759 | B18: Nouveau Produit! | C18: BENNY | D18: Énergie nourissante | E18: Framboise et hibiscus | F18: 628942441752 | G18: 355ML | H18: CS | I18: 12 | P18: O | Q18: O | R18: O | S18: 95 | T18: SEC | U18: 39,17$ | V18: Offre de janvier | W18: ÉCONOMISEZ 20% | X18: 4.99
A19: BY1766 | B19: Nouveau Produit! | C19: BENNY | D19: Énergie nourissante | E19: Pêche et litchi | F19: 628942441769 | G19: 355ML | H19: CS | I19: 12 | P19: O | Q19: O | R19: O | S19: 95 | T19: SEC | U19: 39,17$ | V19: Offre de janvier | W19: ÉCONOMISEZ 20% | X19: 4.99
A20: BY1780 | B20: Nouveau Produit! | C20: BENNY | D20: Énergie nourissante | E20: Yuzu et sureau | F20: 628942441783 | G20: 355ML | H20: CS | I20: 12 | P20: O | Q20: O | R20: O | S20: 95 | T20: SEC | U20: 39,17$ | V20: Offre de janvier | W20: ÉCONOMISEZ 20% | X20: 4.99
A21: BY1810 | B21: Nouveau Produit! | C21: BENNY | D21: Énergie nourissante | E21: Framboise et hibiscus | F21: 628942441813 | G21: 4x355ML | H21: CS | I21: 6 | J21: O | L21: O | M21: O | N21: O | P21: O | Q21: O | R21: O | S21: 109 | T21: SEC | U21: 83,34$ | V21: Offre de janvier | W21: ÉCONOMISEZ 20% | X21: 18.99
A22: BY1773 | B22: Nouveau Produit! | C22: BENNY | D22: Énergie nourissante | E22: Pêche et litchi | F22: 628942441776 | G22: 4x355ML | H22: CS | I22: 6 | J22: O | L22: O | M22: O | N22: O | P22: O | Q22: O | R22: O | S22: 109 | T22: SEC | U22: 83,34$ | V22: Offre de janvier | W22: ÉCONOMISEZ 20% | X22: 18.99
A23: BY1803 | B23: Nouveau Produit! | C23: BENNY | D23: Énergie nourissante | E23: Yuzu et sureau | F23: 628942441806 | G23: 4x355ML | H23: CS | I23: 6 | J23: O | L23: O | M23: O | N23: O | P23: O | Q23: O | R23: O | S23: 109 | T23: SEC | U23: 83,34$ | V23: Offre de janvier | W23: ÉCONOMISEZ 20% | X23: 18.99
A24: BS5396 | B24: Nouveau Produit! | C24: BIERE SANS ALCOOL | D24: Bière artisanale sans alcool | E24: Bière de microbrasserie, Blanche orange | F24: 627987335392 | G24: 473ML | H24: CS | I24: 12 | P24: O | Q24: O | S24: 219 | T24: SEC | U24: 30,71$ | V24: Offre de janvier | W24: ÉCONOMISEZ 10% | X24: 3.99 | Y24: 5
A25: BS5372 | B25: Nouveau Produit! | C25: BIERE SANS ALCOOL | D25: Bière artisanale sans alcool | E25: Bière de microbrasserie, Blonde pilsner | F25: 627987335378 | G25: 473ML | H25: CS | I25: 12 | P25: O | Q25: O | S25: 200 | T25: SEC | U25: 30,71$ | V25: Offre de janvier | W25: ÉCONOMISEZ 10% | X25: 3.99 | Y25: 4
A26: BS5341 | B26: Nouveau Produit! | C26: BIERE SANS ALCOOL | D26: Bière artisanale sans alcool | E26: Bière de microbrasserie, Ipa douce | F26: 627987335347 | G26: 473ML | H26: CS | I26: 12 | P26: O | Q26: O | S26: 200 | T26: SEC | U26: 30,71$ | V26: Offre de janvier | W26: ÉCONOMISEZ 10% | X26: 3.99 | Y26: 3
A27: BS5365 | B27: Nouveau Produit! | C27: BIERE SANS ALCOOL | D27: Bière artisanale sans alcool | E27: Bière de microbrasserie, Sûre framboise | F27: 627987335361 | G27: 473ML | H27: CS | I27: 12 | P27: O | Q27: O | S27: 200 | T27: SEC | U27: 30,71$ | V27: Offre de janvier | W27: ÉCONOMISEZ 10% | X27: 3.99 | Y27: 1
A28: BS5358 | B28: Nouveau Produit! | C28: BIERE SANS ALCOOL | D28: Bière artisanale sans alcool | E28: Bière de microbrasserie, Sûre tropicale | F28: 627987335354 | G28: 473ML | H28: CS | I28: 12 | P28: O | Q28: O | S28: 200 | T28: SEC | U28: 30,71$ | V28: Offre de janvier | W28: ÉCONOMISEZ 10% | X28: 3.99 | Y28: 2
A29: UF0870 | B29: Nouveau Produit! | C29: BOTTICELLI | D29: Sauces pour pâtes de première qualité | E29: Sauce blanche pour pâte de première qualité, Alfredo | F29: 810095660566 | G29: 370ML | H29: CS | I29: 6 | M29: O | S29: 328 | T29: SEC | U29: 42,83$ | X29: 11.99 | Y29: 1
A30: UF0696 | B30: Nouveau Produit! | C30: BOTTICELLI | D30: Sauces pour pâtes de première qualité | E30: Sauce pour pâte de première qualité, Ail rôti | F30: 810095660542 | G30: 710ML | H30: CS | I30: 6 | M30: O | S30: 328 | T30: SEC | U30: 42,83$ | X30: 11.99 | Y30: 3
A31: UF0719 | B31: Nouveau Produit! | C31: BOTTICELLI | D31: Sauces pour pâtes de première qualité | E31: Sauce pour pâte de première qualité, Marinara | F31: 810095660528 | G31: 710ML | H31: CS | I31: 6 | M31: O | S31: 328 | T31: SEC | U31: 42,83$ | X31: 11.99 | Y31: 2
A32: UF0689 | B32: Nouveau Produit! | C32: BOTTICELLI | D32: Sauces pour pâtes de première qualité | E32: Sauce pour pâte de première qualité, Tomate et basilic | F32: 810095660535 | G32: 710ML | H32: CS | I32: 6 | M32: O | S32: 328 | T32: SEC | U32: 42,83$ | X32: 11.99 | Y32: 1
A33: UF0702 | B33: Nouveau Produit! | C33: BOTTICELLI | D33: Sauces pour pâtes de première qualité | E33: Sauce pour pâte de première qualité, Tradionnelle | F33: 810095660559 | G33: 710ML | H33: CS | I33: 6 | M33: O | S33: 328 | T33: SEC | U33: 42,83$ | X33: 11.99 | Y33: 4
A34: BO0059 | B34: Nouveau Produit! | C34: BRIGHTSIDE ORGANICS | E34: Natura Fibre | F34: 839266000055 | G34: 750G | H34: CS | I34: 6 | J34: O | M34: O | S34: 46 | T34: SEC | U34: 151,33$ | V34: Offre de janvier | W34: ÉCONOMISEZ 20% | X34: 36.99
A35: BUF0109 | B35: Nouveau Produit! | C35: BUFF | D35: Collation de bison | E35: Bâtonnets de bison - Fermentés et fumés à froid Emb. de 5 | F35: 627987353587 | G35: 125G | H35: UN | I35: 6 | M35: O | P35: O | Q35: O | R35: O | S35: 109 | T35: SEC | U35: 59,31$ | X35: 12.99
A36: BUF0110 | B36: Nouveau Produit! | C36: BUFF | D36: Collation de bison | E36: Bâtonnets de bison chipotle - Fermenté et fumé à froid Emb. de 5 | F36: 627987353624 | G36: 125G | H36: UN | I36: 6 | M36: O | P36: O | Q36: O | R36: O | S36: 109 | T36: SEC | U36: 59,31$ | X36: 12.99
A37: BUF0107 | B37: Nouveau Produit! | C37: BUFF | D37: Collation de bison | E37: Bâtonnets de bison - Fermentés et fumés à froid Emb. de 2 | F37: 627987353556 | G37: 50G | H37: UN | I37: 12 | M37: O | P37: O | Q37: O | R37: O | S37: 109 | T37: SEC | U37: 52,50$ | X37: 5.99
A38: BUF0108 | B38: Nouveau Produit! | C38: BUFF | D38: Collation de bison | E38: Bâtonnets de bison chipotle - Fermenté et fumé à froid Emb. de 2 | F38: 627987353617 | G38: 50G | H38: UN | I38: 12 | M38: O | P38: O | Q38: O | R38: O | S38: 109 | T38: SEC | U38: 52,50$ | X38: 5.99
A39: BA1847 | B39: Nouveau Produit! | C39: BALZAC'S | D39: Dosettes de café 100% compostable | E39: Dosettes Déca (eau suisse) 100% compostable | F39: 628614001840 | G39: 189G | H39: CS | I39: 6 | K39: O | Q39: O | S39: 109 | T39: SEC | U39: 82,45$ | X39: 16.99 | Y39: 14
A40: BA1816 | B40: Nouveau Produit! | C40: BALZAC'S | D40: Dosettes de café 100% compostable | E40: Dosettes Mélange Balzac's, 100% compostable | F40: 628614001819 | G40: 189G | H40: CS | I40: 6 | K40: O | Q40: O | S40: 109 | T40: SEC | U40: 78,50$ | X40: 15.99 | Y40: 6
A41: BA8418 | B41: Nouveau Produit! | C41: BALZAC'S | D41: Dosettes de café 100% compostable | E41: Dosettes Mélange Bards (bio et équitable et 100% compostable) | F41: 628614018411 | G41: 189G | H41: CS | I41: 6 | J41: O | K41: O | Q41: O | S41: 109 | T41: SEC | U41: 82,45$ | X41: 16.99 | Y41: 15
A42: BA1878 | B42: Nouveau Produit! | C42: BALZAC'S | D42: Dosettes de café 100% compostable | E42: Dosettes Mélange Dark Affair, 100% compostable | F42: 628614001871 | G42: 189G | H42: CS | I42: 6 | K42: O | Q42: O | S42: 109 | T42: SEC | U42: 78,50$ | X42: 15.99 | Y42: 10
A43: BA1823 | B43: Nouveau Produit! | C43: BALZAC'S | D43: Dosettes de café 100% compostable | E43: Dosettes Mélange Farmers (bio et équitable et 100% compostable) | F43: 628614001826 | G43: 189G | H43: CS | I43: 6 | J43: O | K43: O | Q43: O | S43: 109 | T43: SEC | U43: 82,45$ | X43: 16.99 | Y43: 11
A44: BA0307 | B44: Nouveau Produit! | C44: BALZAC'S | D44: Café moulu (boîtier) | E44: Café moulu - Espresso (boîtier) | F44: 628614000300 | G44: 300G | H44: CS | I44: 12 | J44: O | K44: O | Q44: O | S44: 109 | T44: SEC | U44: 167,44$ | X44: 15.99 | Y44: 19
A45: BA4008 | B45: Nouveau Produit! | C45: BALZAC'S | D45: Café moulu (boîtier) | E45: Café moulu Las Rosas | F45: 628614004001 | G45: 300G | H45: CS | I45: 12 | K45: O | Q45: O | S45: 109 | T45: SEC | U45: 149,12$ | X45: 16.99 | Y45: 21
A46: BA0703 | B46: Nouveau Produit! | C46: BALZAC'S | D46: Café moulu (boîtier) | E46: Café moulu - Mélange Dark Affair | F46: 628614000706 | G46: 330G | H46: CS | I46: 12 | K46: O | Q46: O | S46: 109 | T46: SEC | U46: 141,22$ | X46: 14.99 | Y46: 16
A47: BA1007 | B47: Nouveau Produit! | C47: BALZAC'S | D47: Café moulu (boîtier) | E47: Café moulu - Mélange Balzac's | F47: 628614001000 | G47: 330G | H47: CS | I47: 12 | K47: O | Q47: O | S47: 109 | T47: SEC | U47: 141,22$ | X47: 14.99 | Y47: 7
A48: BA0008 | B48: Nouveau Produit! | C48: BALZAC'S | D48: Café moulu (boîtier) | E48: Café moulu Déca (eau suisse) | F48: 628614400001 | G48: 330G | H48: CS | I48: 12 | K48: O | P48: O | Q48: O | S48: 109 | T48: SEC | U48: 149,12$ | X48: 16.99 | Y48: 17
A49: BA0208 | B49: Nouveau Produit! | C49: BALZAC'S | D49: Café moulu (boîtier) | E49: Café moulu bio - Mélange Farmers | F49: 628614000201 | G49: 330G | H49: CS | I49: 12 | J49: O | K49: O | Q49: O | S49: 109 | T49: SEC | U49: 149,12$ | X49: 15.99 | Y49: 12
A50: BA0604 | B50: Nouveau Produit! | C50: BALZAC'S | D50: Café moulu (boîtier) | E50: Café moulu bio Mélange Atwood | F50: 628614000607 | G50: 330G | H50: CS | I50: 12 | J50: O | K50: O | Q50: O | S50: 109 | T50: SEC | U50: 149,12$ | X50: 16.99 | Y50: 22
A51: BA005 | B51: Nouveau Produit! | C51: BALZAC'S | D51: Café en grains entiers | E51: Café bio en grains entiers - Mélange Atwood | F51: 628614000157 | G51: 340G | H51: CS | I51: 6 | J51: O | K51: O | P51: O | Q51: O | S51: 109 | T51: SEC | U51: 74,56$ | X51: 16.99 | Y51: 5
A52: BA012 | B52: Nouveau Produit! | C52: BALZAC'S | D52: Café en grains entiers | E52: Café bio et équitable en grains entiers - Mélange Espresso | F52: 628614000126 | G52: 340G | H52: CS | I52: 6 | J52: O | K52: O | P52: O | Q52: O | S52: 109 | T52: SEC | U52: 74,56$ | X52: 16.99 | Y52: 1
A53: BA011 | B53: Nouveau Produit! | C53: BALZAC'S | D53: Café en grains entiers | E53: Café bio et équitable en grains entiers - Mélange Farmers | F53: 628614000119 | G53: 340G | H53: CS | I53: 6 | J53: O | K53: O | P53: O | Q53: O | S53: 109 | T53: SEC | U53: 74,56$ | X53: 16.99 | Y53: 4
A54: BA013 | B54: Nouveau Produit! | C54: BALZAC'S | D54: Café en grains entiers | E54: Café déca en grains entiers (eau suisse) | F54: 628614000133 | G54: 340G | H54: CS | I54: 6 | K54: O | Q54: O | S54: 109 | T54: SEC | U54: 74,56$ | X54: 16.99 | Y54: 9
A55: BA010 | B55: Nouveau Produit! | C55: BALZAC'S | D55: Café en grains entiers | E55: Café en grains entiers - Mélange Balzac's | F55: 628614000102 | G55: 340G | H55: CS | I55: 6 | K55: O | P55: O | Q55: O | S55: 109 | T55: SEC | U55: 70,61$ | X55: 15.99 | Y55: 2
A56: BA0413 | B56: Nouveau Produit! | C56: BALZAC'S | D56: Café en grains entiers | E56: Café en grains entiers - Mélange Bards | F56: 628614000416 | G56: 340G | H56: CS | I56: 6 | J56: O | K56: O | Q56: O | S56: 109 | T56: SEC | U56: 74,56$ | X56: 16.99 | Y56: 8
A57: BA0164 | B57: Nouveau Produit! | C57: BALZAC'S | D57: Café en grains entiers | E57: Café en grains entiers - Mélange Dark Affair | F57: 628614000164 | G57: 340G | H57: CS | I57: 6 | K57: O | Q57: O | S57: 109 | T57: SEC | U57: 70,61$ | X57: 15.99 | Y57: 3
A58: BA0406 | B58: Nouveau Produit! | C58: BALZAC'S | D58: Café en grains entiers | E58: Café en grains entiers - Mélange Las Rosas | F58: 628614000409 | G58: 340G | H58: CS | I58: 6 | K58: O | Q58: O | S58: 109 | T58: SEC | U58: 74,56$ | X58: 16.99 | Y58: 13
A59: BR7200 | B59: Nouveau Produit! | C59: BROYA | E59: Bouillon Au Chocolat | F59: 628451797203 | G59: 237ML | H59: CS | I59: 6 | Q59: O | R59: O | S59: 109 | T59: SEC | U59: 40,08$ | V59: Offre de janvier | W59: ÉCONOMISEZ 15% | X59: 9.99
A60: BR7187 | B60: Nouveau Produit! | C60: BROYA | D60: Bouillon d'os | E60: Bouillon d'os de bœuf classique | F60: 628451797180 | G60: 237ML | H60: CS | I60: 6 | P60: O | Q60: O | R60: O | S60: 100 | T60: SEC | U60: 30,24$ | V60: Offre de janvier | W60: ÉCONOMISEZ 15% | X60: 7.99
A61: BR7170 | B61: Nouveau Produit! | C61: BROYA | D61: Bouillon d'os | E61: Bouillon d'os de poulet classique | F61: 628451797173 | G61: 237ML | H61: CS | I61: 6 | J61: O | P61: O | Q61: O | R61: O | S61: 100 | T61: SEC | U61: 30,24$ | V61: Offre de janvier | W61: ÉCONOMISEZ 15% | X61: 7.99
A62: BR7149 | B62: Nouveau Produit! | C62: BROYA | D62: Bouillon d'os (en sachet) | E62: Bouillon d'os de bœuf, persil et cumin | F62: 628451797142 | G62: 500ML | H62: CS | I62: 8 | M62: O | N62: O | P62: O | Q62: O | R62: O | S62: 100 | T62: SEC | U62: 71,78$ | V62: Offre de janvier | W62: ÉCONOMISEZ 15% | X62: 11.99 | Y62: 2
A63: BR7163 | B63: Nouveau Produit! | C63: BROYA | D63: Bouillon d'os (en sachet) | E63: Bouillon d'os de bœuf, tomate et paprika | F63: 628451797166 | G63: 500ML | H63: CS | I63: 8 | J63: O | M63: O | N63: O | P63: O | Q63: O | R63: O | S63: 100 | T63: SEC | U63: 71,78$ | V63: Offre de janvier | W63: ÉCONOMISEZ 15% | X63: 11.99 | Y63: 3
A64: BR7132 | B64: Nouveau Produit! | C64: BROYA | D64: Bouillon d'os (en sachet) | E64: Bouillon d'os de poulet, curcuma et gingembre | F64: 628451797135 | G64: 500ML | H64: CS | I64: 8 | J64: O | M64: O | N64: O | P64: O | Q64: O | R64: O | S64: 100 | T64: SEC | U64: 71,78$ | V64: Offre de janvier | W64: ÉCONOMISEZ 15% | X64: 11.99 | Y64: 1
A65: BR7156 | B65: Nouveau Produit! | C65: BROYA | D65: Bouillon d'os (en sachet) | E65: Bouillon d'os de poulet, sriracha et piment chili | F65: 628451797159 | G65: 500ML | H65: CS | I65: 8 | J65: O | M65: O | N65: O | P65: O | Q65: O | R65: O | S65: 100 | T65: SEC | U65: 71,78$ | V65: Offre de janvier | W65: ÉCONOMISEZ 15% | X65: 11.99 | Y65: 4
A66: BR7507 | B66: Nouveau Produit! | C66: BROYA | D66: Baume de suif | E66: Beaume de suif de première qualité | F66: 628451797500 | G66: 56G | H66: CS | I66: 6 | P66: O | Q66: O | R66: O | S66: 210 | T66: SEC | U66: 166,96$ | V66: Offre de janvier | W66: ÉCONOMISEZ 15% | X66: 44.99
A67: CHS0707 | B67: Nouveau Produit! | C67: CAPE HERB & SPICE | D67: Épices à badigeonner | E67: Assaisonnement Herbes et citron à la grecque | F67: 6006507007454 | G67: 100G | H67: CS | I67: 6 | K67: O | S67: 72 | T67: SEC | U67: 40,41$ | X67: 9.19 | Y67: 26
A68: CHS0704 | B68: Nouveau Produit! | C68: CAPE HERB & SPICE | D68: Épices à badigeonner | E68: Assaisonnement à badigeonner Cajun de Louisiane | F68: 670071002618 | G68: 100G | H68: CS | I68: 6 | K68: O | S68: 72 | T68: SEC | U68: 40,23$ | X68: 9.19 | Y68: 12
A69: CHS0706 | B69: Nouveau Produit! | C69: CAPE HERB & SPICE | D69: Épices à badigeonner | E69: Assaisonnement à badigeonner Jerk des Antilles | F69: 670071003776 | G69: 100G | H69: CS | I69: 6 | K69: O | S69: 72 | T69: SEC | U69: 40,38$ | X69: 9.19 | Y69: 19
A70: CHS0702 | B70: Nouveau Produit! | C70: CAPE HERB & SPICE | D70: Épices à badigeonner | E70: Assaisonnement à badigeonner Peri Peri du Portugal | F70: 670071002595 | G70: 100G | H70: CS | I70: 6 | K70: O | S70: 72 | T70: SEC | U70: 40,27$ | X70: 9.19 | Y70: 13
A71: CHS0701 | B71: Nouveau Produit! | C71: CAPE HERB & SPICE | D71: Épices à badigeonner | E71: Assaisonnement à badigeonner Rôti méditérranéen | F71: 670071002588 | G71: 100G | H71: CS | I71: 6 | K71: O | S71: 72 | T71: SEC | U71: 40,27$ | X71: 9.19 | Y71: 17
A72: CHS0703 | B72: Nouveau Produit! | C72: CAPE HERB & SPICE | D72: Épices à badigeonner | E72: Assaisonnement à badigeonner Texan | F72: 670071002601 | G72: 100G | H72: CS | I72: 6 | K72: O | S72: 72 | T72: SEC | U72: 40,28$ | X72: 9.19 | Y72: 8
A73: CHS0201 | B73: Nouveau Produit! | C73: CAPE HERB & SPICE | D73: Mélange d'épices | E73: Cari madras | F73: 670071003783 | G73: 100G | H73: CS | I73: 6 | K73: O | S73: 72 | T73: SEC | U73: 40,36$ | X73: 9.19 | Y73: 33
A74: CHS0203 | B74: Nouveau Produit! | C74: CAPE HERB & SPICE | D74: Mélange d'épices | E74: Tikka Tandoori | F74: 670071003806 | G74: 100G | H74: CS | I74: 6 | K74: O | S74: 72 | T74: SEC | U74: 40,41$ | X74: 9.19 | Y74: 35
A75: CHS0804 | B75: Nouveau Produit! | C75: CAPE HERB & SPICE | D75: Moulin régulier | E75: Moulin sel marin de l'Atlantique | F75: 670071001826 | G75: 105G | H75: CS | I75: 6 | K75: O | S75: 72 | T75: SEC | U75: 29,43$ | X75: 7.29 | Y75: 5
A76: CHS0813 | B76: Nouveau Produit! | C76: CAPE HERB & SPICE | D76: Moulin régulier | E76: Moulin sel de l'Himalaya | F76: 670071002434 | G76: 130G | H76: CS | I76: 6 | K76: O | S76: 72 | T76: SEC | U76: 29,43$ | X76: 7.29 | Y76: 1
A77: CHS0309 | B77: Nouveau Produit! | C77: CAPE HERB & SPICE | D77: Moulin géant | E77: Moulin géant grains de poivre arc-en-ciel | F77: 670071002410 | G77: 175G | H77: CS | I77: 6 | K77: O | S77: 72 | T77: SEC | U77: 71,87$ | X77: 17.89 | Y77: 14
A78: CHS0313 | B78: Nouveau Produit! | C78: CAPE HERB & SPICE | D78: Moulin géant | E78: Moulin géant grains de poivre noir | F78: 670071002144 | G78: 180G | H78: CS | I78: 6 | K78: O | S78: 72 | T78: SEC | U78: 71,87$ | X78: 17.89 | Y78: 7
A79: CHS0311 | B79: Nouveau Produit! | C79: CAPE HERB & SPICE | D79: Moulin géant | E79: Moulin géant sel assaisonné | F79: 670071003479 | G79: 240G | H79: CS | I79: 6 | K79: O | S79: 72 | T79: SEC | U79: 47,70$ | X79: 11.89 | Y79: 20
A80: CHS0310 | B80: Nouveau Produit! | C80: CAPE HERB & SPICE | D80: Moulin géant | E80: Moulin géant sel de mer de l'Atlantique | F80: 670071002137 | G80: 360G | H80: CS | I80: 6 | K80: O | S80: 72 | T80: SEC | U80: 47,70$ | X80: 11.89 | Y80: 6
A81: CHS0312 | B81: Nouveau Produit! | C81: CAPE HERB & SPICE | D81: Moulin géant | E81: Moulin géant sel rose de l'Himalaya | F81: 670071002403 | G81: 390G | H81: CS | I81: 6 | K81: O | S81: 72 | T81: SEC | U81: 47,70$ | X81: 11.89 | Y81: 2
A82: CHS0817 | B82: Nouveau Produit! | C82: CAPE HERB & SPICE | D82: Moulin régulier | E82: Moulin assaisonnement italien | F82: 670071001871 | G82: 46G | H82: CS | I82: 6 | K82: O | S82: 72 | T82: SEC | U82: 31,67$ | X82: 7.29 | Y82: 21
A83: CHS0802 | B83: Nouveau Produit! | C83: CAPE HERB & SPICE | D83: Moulin régulier | E83: Moulin assaisonnement tout usage | F83: 670071001857 | G83: 55G | H83: CS | I83: 6 | K83: O | S83: 72 | T83: SEC | U83: 31,98$ | X83: 7.29 | Y83: 15
A84: CHS0801 | B84: Nouveau Produit! | C84: CAPE HERB & SPICE | D84: Moulin régulier | E84: Moulin poivre noir extra puissant | F84: 670071001772 | G84: 55G | H84: CS | I84: 6 | K84: O | S84: 72 | T84: SEC | U84: 29,43$ | X84: 7.29 | Y84: 3
A85: CHS0805 | B85: Nouveau Produit! | C85: CAPE HERB & SPICE | D85: Moulin régulier | E85: Moulin grains de poivre arc-en-ciel | F85: 670071001901 | G85: 56G | H85: CS | I85: 6 | K85: O | S85: 72 | T85: SEC | U85: 29,43$ | X85: 7.29 | Y85: 4
A86: CHS8021 | B86: Nouveau Produit! | C86: CAPE HERB & SPICE | D86: Moulin avec recharge | E86: Sel de mer avec moulin en céramique et recharge | F86: 6006507008024 | G86: 605G | H86: CS | I86: 6 | K86: O | N86: O | O86: O | S86: 72 | T86: SEC | U86: 38,19$ | X86: 9.99
A87: CHS0806 | B87: Nouveau Produit! | C87: CAPE HERB & SPICE | D87: Moulin régulier | E87: Moulin assaissonnement pour poisson | F87: 670071001802 | G87: 60G | H87: CS | I87: 6 | K87: O | S87: 72 | T87: SEC | U87: 31,67$ | X87: 7.29 | Y87: 11
A88: CHS0808 | B88: Nouveau Produit! | C88: CAPE HERB & SPICE | D88: Moulin régulier | E88: Moulin assaissonnement pour poulet | F88: 670071001796 | G88: 61G | H88: CS | I88: 6 | K88: O | S88: 72 | T88: SEC | U88: 29,43$ | X88: 7.29 | Y88: 16
A89: CHS0809 | B89: Nouveau Produit! | C89: CAPE HERB & SPICE | D89: Moulin régulier | E89: Moulin assaisonnement au poivre et citron | F89: 670071001758 | G89: 64G | H89: CS | I89: 6 | K89: O | S89: 72 | T89: SEC | U89: 31,69$ | X89: 7.29 | Y89: 9
A90: CHS0811 | B90: Nouveau Produit! | C90: CAPE HERB & SPICE | D90: Moulin régulier | E90: Moulin assaisonnement ail et herbes | F90: 670071002533 | G90: 65G | H90: CS | I90: 6 | K90: O | S90: 72 | T90: SEC | U90: 31,70$ | X90: 7.29 | Y90: 10
A91: CHS0101 | B91: Nouveau Produit! | C91: CAPE HERB & SPICE | D91: Mélange d'épices | E91: Boîtier Esprit chili | F91: 670071003851 | G91: 75G | H91: CS | I91: 6 | K91: O | S91: 72 | T91: SEC | U91: 40,14$ | X91: 9.19 | Y91: 24
A92: CHS0103 | B92: Nouveau Produit! | C92: CAPE HERB & SPICE | D92: Mélange d'épices | E92: Boîtier Piment chipolte | F92: 670071003875 | G92: 80G | H92: CS | I92: 6 | K92: O | S92: 72 | T92: SEC | U92: 40,14$ | X92: 9.19 | Y92: 25
A93: CHS0104 | B93: Nouveau Produit! | C93: CAPE HERB & SPICE | D93: Mélange d'épices | E93: Boîtier Piment pili-pili | F93: 670071003882 | G93: 80G | H93: CS | I93: 6 | K93: O | S93: 72 | T93: SEC | U93: 40,14$ | X93: 9.19 | Y93: 26
A94: CHS0807 | B94: Nouveau Produit! | C94: CAPE HERB & SPICE | D94: Moulin régulier | E94: Moulin assaisonnement aux herbes salées | F94: 670071001918 | G94: 80G | H94: CS | I94: 6 | K94: O | S94: 72 | T94: SEC | U94: 31,67$ | X94: 7.29 | Y94: 18
A95: CAS0301 | B95: Nouveau Produit! | C95: CASA BONITA | D95: Tajin | E95: Tajin, Lime | F95: 633148100013 | G95: 142G | H95: CS | I95: 12 | K95: O | L95: O | Q95: O | S95: 168 | T95: SEC | U95: 65,00$ | X95: 5.99 | Y95: 2
A96: CAS0207 | B96: Nouveau Produit! | C96: CASA BONITA | E96: Tortilla de maïs bleu de | F96: 627843861065 | G96: 250G | H96: CS | I96: 18 | J96: O | N96: O | Q96: O | R96: O | S96: 54 | T96: SEC | U96: 68,60$ | X96: 5
A97: CAS0204 | B97: Nouveau Produit! | C97: CASA BONITA | D97: Tortillas souples | E97: Tortillas souples au maïs bleu | F97: 627843861065 | G97: 250G | H97: CS | I97: 18 | L97: O | P97: O | Q97: O | R97: O | S97: 55 | T97: SEC | U97: 68,39$ | X97: 5.29 | Y97: 7
A98: CAS0104 | B98: Nouveau Produit! | C98: CASA BONITA | D98: Croustilles de maïs | E98: Croustille au chipotle fumé | F98: 627843861089 | G98: 300G | H98: CS | I98: 6 | Q98: O | S98: 55 | T98: SEC | U98: 26,57$ | X98: 6.29 | Y98: 8
A99: CAS0103 | B99: Nouveau Produit! | C99: CASA BONITA | D99: Croustilles de maïs | E99: Croustilles de tortilla avec Tajin | F99: 627843861096 | G99: 300G | H99: CS | I99: 6 | L99: O | P99: O | Q99: O | R99: O | S99: 55 | T99: SEC | U99: 26,57$ | X99: 6.29 | Y99: 3
A100: CAS0101 | B100: Nouveau Produit! | C100: CASA BONITA | D100: Croustilles de maïs | E100: Tortillas de maïs style Cantina | F100: 627843861058 | G100: 300G | H100: CS | I100: 6 | J100: O | L100: O | M100: O | P100: O | Q100: O | R100: O | S100: 55 | T100: SEC | U100: 23,57$ | X100: 5.29 | Y100: 1
A101: CAS0403 | B101: Nouveau Produit! | C101: CASA BONITA | D101: Salsa | E101: Salsa aux piments chipotles rôtis sur le feu | F101: 627843861119 | G101: 300ML | H101: CS | I101: 6 | L101: O | Q101: O | S101: 216 | T101: SEC | U101: 25,90$ | X101: 5.99 | Y101: 12
A102: CAS0401 | B102: Nouveau Produit! | C102: CASA BONITA | D102: Salsa | E102: Salsa aux piments habaneros rôtis sur le feu | F102: 627843861126 | G102: 300ML | H102: CS | I102: 6 | L102: O | Q102: O | S102: 216 | T102: SEC | U102: 25,90$ | X102: 5.99 | Y102: 14
A103: CAS0402 | B103: Nouveau Produit! | C103: CASA BONITA | D103: Salsa | E103: Salsa aux piments jalapenos rôtis sur le feu | F103: 627843861133 | G103: 300ML | H103: CS | I103: 6 | L103: O | Q103: O | S103: 216 | T103: SEC | U103: 25,90$ | X103: 5.99 | Y103: 13
A104: CAS0303 | B104: Nouveau Produit! | C104: CASA BONITA | D104: Assaissonements | E104: Assaisonnements Al Pastor pour tacos | F104: 628250868043 | G104: 30G | H104: CS | I104: 12 | L104: O | M104: O | N104: O | S104: 720 | T104: SEC | U104: 17,14$ | X104: 2.35
A105: CAS0306 | B105: Nouveau Produit! | C105: CASA BONITA | D105: Assaissonements | E105: Assaisonnements Barbacoa pour tacos | F105: 628250868036 | G105: 30G | H105: CS | I105: 12 | L105: O | M105: O | N105: O | S105: 720 | T105: SEC | U105: 17,14$ | X105: 2.35
A106: CAS0304 | B106: Nouveau Produit! | C106: CASA BONITA | D106: Assaissonements | E106: Assaisonnements Carne asada pour tacos | F106: 628250868081 | G106: 30G | H106: CS | I106: 12 | L106: O | M106: O | N106: O | S106: 720 | T106: SEC | U106: 17,14$ | X106: 2.35
A107: CAS0307 | B107: Nouveau Produit! | C107: CASA BONITA | D107: Assaissonements | E107: Assaisonnements Carnitas pour tacos | F107: 628250868067 | G107: 30G | H107: CS | I107: 12 | L107: O | M107: O | N107: O | S107: 720 | T107: SEC | U107: 17,14$ | X107: 2.35
A108: CAS0308 | B108: Nouveau Produit! | C108: CASA BONITA | D108: Assaissonements | E108: Assaisonnements Poulet tinga pour tacos | F108: 628250868074 | G108: 30G | H108: CS | I108: 12 | L108: O | M108: O | N108: O | S108: 720 | T108: SEC | U108: 17,14$ | X108: 2.35
A109: CAS0305 | B109: Nouveau Produit! | C109: CASA BONITA | D109: Assaissonements | E109: Assaisonnements pour tacos | F109: 628250868050 | G109: 30G | H109: CS | I109: 12 | L109: O | M109: O | N109: O | S109: 720 | T109: SEC | U109: 17,14$ | X109: 2.35
A110: CAS0107 | B110: Nouveau Produit! | C110: CASA BONITA | D110: Salsa | E110: Salsa au fromage blanc et aux jalapeno | F110: 628250868012 | G110: 425G | H110: CS | I110: 6 | M110: O | Q110: O | S110: 164 | T110: SEC | U110: 36,40$ | X110: 9.29
A111: CAS0106 | B111: Nouveau Produit! | C111: CASA BONITA | D111: Salsa | E111: Salsa au fromage jaune et aux piments chipolte | F111: 628250868005 | G111: 425G | H111: CS | I111: 6 | M111: O | Q111: O | S111: 164 | T111: SEC | U111: 36,40$ | X111: 9.29
A112: CAS0205 | B112: Nouveau Produit! | C112: CASA BONITA | E112: Tortilla de maïs blanc Casa Bonita | F112: 627843861041 | G112: 450G | H112: CS | I112: 12 | J112: O | N112: O | Q112: O | R112: O | S112: 54 | T112: SEC | U112: 46,04$ | X112: 5.29
A113: CAS0206 | B113: Nouveau Produit! | C113: CASA BONITA | E113: Tortilla de maïs jaune | F113: 627843861072 | G113: 450G | H113: CS | I113: 12 | J113: O | N113: O | Q113: O | R113: O | S113: 54 | T113: SEC | U113: 46,04$ | X113: 5.29
A114: CAS0202 | B114: Nouveau Produit! | C114: CASA BONITA | D114: Tortillas souples | E114: Tortillas souples au maïs blanc | F114: 627843861041 | G114: 450G | H114: CS | I114: 18 | L114: O | P114: O | Q114: O | R114: O | S114: 55 | T114: SEC | U114: 68,39$ | X114: 5.29 | Y114: 5
A115: CAS0203 | B115: Nouveau Produit! | C115: CASA BONITA | D115: Tortillas souples | E115: Tortillas souples au maïs jaune | F115: 627843861072 | G115: 450G | H115: CS | I115: 18 | L115: O | P115: O | Q115: O | R115: O | S115: 55 | T115: SEC | U115: 68,39$ | X115: 5.29 | Y115: 4
A116: CAS0504 | B116: Nouveau Produit! | C116: CASA BONITA | D116: Tajin | E116: Tajin Liquide Chamoy | F116: 633148104028 | G116: 455ML | H116: CS | I116: 12 | K116: O | L116: O | Q116: O | S116: 108 | T116: SEC | U116: 79,12$ | X116: 7.29 | Y116: 9
A117: CAS0503 | B117: Nouveau Produit! | C117: CASA BONITA | D117: Tajin | E117: Tajin Liquide Classique | F117: 633148104035 | G117: 455ML | H117: CS | I117: 12 | K117: O | L117: O | Q117: O | S117: 108 | T117: SEC | U117: 79,12$ | X117: 7.29 | Y117: 10
A118: CAS0302 | B118: Nouveau Produit! | C118: CASA BONITA | D118: Tajin | E118: Tajin, Habenero | F118: 633148104547 | G118: 45G | H118: CS | I118: 24 | K118: O | L118: O | Q118: O | S118: 168 | T118: SEC | U118: 124,60$ | X118: 5.69 | Y118: 11
A119: CAS0109 | B119: Nouveau Produit! | C119: CASA BONITA | D119: Croustilles de tortillas | E119: Croustilles de tortillas, chili et citron vert | F119: 628250868111 | G119: 63G | H119: CS | I119: 20 | M119: O | N119: O | P119: O | S119: 108 | T119: SEC | U119: 24,84$ | X119: 1.91
A120: CAS0108 | B120: Nouveau Produit! | C120: CASA BONITA | D120: Croustilles de tortillas | E120: Croustilles de tortillas, jalapeno et fromage | F120: 628250868104 | G120: 63G | H120: CS | I120: 20 | M120: O | N120: O | P120: O | S120: 108 | T120: SEC | U120: 24,84$ | X120: 1.91
A121: CA5115 | B121: Nouveau Produit! | C121: CATHERINE'S PRESERVES | D121: Condiments gourmets | E121: Gelée au porto | F121: 63026445118 | G121: 125ML | H121: CS | I121: 12 | P121: O | Q121: O | R121: O | S121: 219 | T121: SEC | U121: 57,57$ | X121: 0
A122: CA5016 | B122: Nouveau Produit! | C122: CATHERINE'S PRESERVES | D122: Condiments gourmets | E122: Antipasto - Original | F122: 63026445019 | G122: 250ML | H122: CS | I122: 12 | P122: O | Q122: O | R122: O | S122: 219 | T122: SEC | U122: 64,66$ | X122: 0
A123: CA5030 | B123: Nouveau Produit! | C123: CATHERINE'S PRESERVES | D123: Condiments gourmets | E123: Antipasto - Épicé | F123: 63026445033 | G123: 250ML | H123: CS | I123: 12 | P123: O | Q123: O | R123: O | S123: 219 | T123: SEC | U123: 64,66$ | X123: 0
A124: CA5160 | B124: Nouveau Produit! | C124: CATHERINE'S PRESERVES | D124: Condiments gourmets | E124: Antipasto végétarien savoureux | F124: 63026445163 | G124: 250ML | H124: CS | I124: 12 | P124: O | Q124: O | R124: O | S124: 219 | T124: SEC | U124: 64,66$ | X124: 0
A125: CA5146 | B125: Nouveau Produit! | C125: CATHERINE'S PRESERVES | D125: Condiments gourmets | E125: Gelée aux jalapenos | F125: 63026445149 | G125: 250ML | H125: CS | I125: 12 | P125: O | Q125: O | R125: O | S125: 219 | T125: SEC | U125: 60,13$ | X125: 0
A126: CA5122 | B126: Nouveau Produit! | C126: CATHERINE'S PRESERVES | D126: Condiments gourmets | E126: Gelée aux poivrons rouges | F126: 63026445125 | G126: 250ML | H126: CS | I126: 12 | P126: O | Q126: O | R126: O | S126: 219 | T126: SEC | U126: 60,13$ | X126: 0
A127: CA5184 | B127: Nouveau Produit! | C127: CATHERINE'S PRESERVES | D127: Condiments gourmets | E127: Gelée aux poivrons rouges - Épicée | F127: 63026445187 | G127: 250ML | H127: CS | I127: 12 | P127: O | Q127: O | R127: O | S127: 219 | T127: SEC | U127: 60,13$ | X127: 0
A128: CA5092 | B128: Nouveau Produit! | C128: CATHERINE'S PRESERVES | D128: Condiments gourmets | E128: Sauce aux canneberges | F128: 63026445095 | G128: 250ML | H128: CS | I128: 12 | P128: O | Q128: O | R128: O | S128: 219 | T128: SEC | U128: 61,90$ | X128: 0
A129: CA5023 | B129: Nouveau Produit! | C129: CATHERINE'S PRESERVES | D129: Condiments gourmets | E129: Antipasto - Original | F129: 63026445026 | G129: 375ML | H129: CS | I129: 12 | P129: O | Q129: O | R129: O | S129: 219 | T129: SEC | U129: 81,61$ | X129: 0
A130: CA5047 | B130: Nouveau Produit! | C130: CATHERINE'S PRESERVES | D130: Condiments gourmets | E130: Antipasto - Épicé | F130: 63026445040 | G130: 375ML | H130: CS | I130: 12 | P130: O | Q130: O | R130: O | S130: 219 | T130: SEC | U130: 81,61$ | X130: 0
A131: CC1295 | B131: Nouveau Produit! | C131: CHATA | D131: Viande de porc éffiloché | E131: Porc éffiloché mijoté carnitas | F131: 889445001298 | G131: 227G | H131: CS | I131: 12 | S131: 146 | T131: SEC | U131: 79,72$ | X131: 9.99
A132: CC1622 | B132: Nouveau Produit! | C132: CHATA | D132: Viande de porc éffiloché | E132: Viande de porc al pastor | F132: 889445001625 | G132: 227G | H132: CS | I132: 12 | S132: 146 | T132: SEC | U132: 79,72$ | X132: 9.99
A133: CC5049 | B133: Nouveau Produit! | C133: CHATA | D133: Viande de porc éffiloché | E133: Cochinita Pibil, porc éffiloché et assaisonné | F133: 7501023535041 | G133: 250G | H133: CS | I133: 12 | S133: 146 | T133: SEC | U133: 69,39$ | X133: 8.99
A134: CC5025 | B134: Nouveau Produit! | C134: CHATA | D134: Viande de porc éffiloché | E134: Porc éffiloché et assaisonné chilorio | F134: 7501023535027 | G134: 250G | H134: CS | I134: 12 | S134: 146 | T134: SEC | U134: 69,39$ | X134: 8.99
A135: CC4485 | B135: Nouveau Produit! | C135: CHATA | D135: Légumineuses | E135: Haricots pinto frits | F135: 7501023504481 | G135: 430G | H135: CS | I135: 12 | S135: 146 | T135: SEC | U135: 32,58$ | X135: 3.99
A136: CC1530 | B136: Nouveau Produit! | C136: CHATA | D136: Soupe de porc | E136: Pozole - Soupe au maïs hominy et au porc | F136: 889445001533 | G136: 709G | H136: CS | I136: 8 | S136: 146 | T136: SEC | U136: 60,00$ | X136: 8.49
A137: ETK8665 | B137: Nouveau Produit! | C137: CHICKAPEA | D137: Repas de pâtes | E137: Plat tout-en-un, Jalapeno et cheddar | F137: 628451868668 | G137: 198G | H137: CS | I137: 6 | K137: O | M137: O | Q137: O | S137: 72 | T137: SEC | U137: 31,33$ | X137: 7.49 | Y137: 11
A138: ETK8658 | B138: Nouveau Produit! | C138: CHICKAPEA | D138: Repas de pâtes | E138: Plat tout-en-un, Crème et ail | F138: 628451868651 | G138: 198G | H138: CS | I138: 6 | K138: O | M138: O | Q138: O | S138: 72 | T138: SEC | U138: 31,33$ | X138: 7.49 | Y138: 9
A139: ETK8689 | B139: Nouveau Produit! | C139: CHICKAPEA | D139: Repas de pâtes | E139: Plat tout-en-un, Poivre et parmesan | F139: 628451868682 | G139: 198G | H139: CS | I139: 6 | K139: O | M139: O | Q139: O | S139: 72 | T139: SEC | U139: 31,33$ | X139: 7.49 | Y139: 10
A140: ETK8672 | B140: Nouveau Produit! | C140: CHICKAPEA | D140: Repas de pâtes | E140: Plat tout-en-un, Tomate et cari | F140: 628451868675 | G140: 198G | H140: CS | I140: 6 | K140: O | M140: O | Q140: O | S140: 72 | T140: SEC | U140: 31,33$ | X140: 7.49 | Y140: 12
A141: ETK0211 | B141: Nouveau Produit! | C141: CHICKAPEA | D141: Pâtes de pois chiches | E141: Pates Chickapea coudes | F141: 628451868736 | G141: 227G | H141: CS | I141: 6 | J141: O | K141: O | M141: O | N141: O | Q141: O | S141: 146 | T141: SEC | U141: 26,31$ | X141: 6.29
A142: ETK0209 | B142: Nouveau Produit! | C142: CHICKAPEA | D142: Pâtes de pois chiches | E142: Pâtes Chickapea coquilles | F142: 628451868712 | G142: 227G | H142: CS | I142: 6 | J142: O | K142: O | M142: O | N142: O | Q142: O | S142: 146 | T142: SEC | U142: 26,31$ | X142: 6.29
A143: ETK0210 | B143: Nouveau Produit! | C143: CHICKAPEA | D143: Pâtes de pois chiches | E143: Pâtes Chickapea pennes | F143: 628451868729 | G143: 227G | H143: CS | I143: 6 | J143: O | K143: O | M143: O | N143: O | Q143: O | S143: 146 | T143: SEC | U143: 26,31$ | X143: 6.29
A144: ETK0212 | B144: Nouveau Produit! | C144: CHICKAPEA | D144: Pâtes de pois chiches | E144: Pâtes Chickapea spaghetti | F144: 628451868743 | G144: 227G | H144: CS | I144: 6 | J144: O | K144: O | M144: O | N144: O | Q144: O | S144: 146 | T144: SEC | U144: 26,31$ | X144: 6.29
A145: ETK0208 | B145: Nouveau Produit! | C145: CHICKAPEA | D145: Pâtes de pois chiches | E145: Pâtes Chickapea torsades | F145: 628451868705 | G145: 227G | H145: CS | I145: 6 | J145: O | K145: O | M145: O | N145: O | Q145: O | S145: 146 | T145: SEC | U145: 26,31$ | X145: 6.29
A146: CBS0108 | B146: Nouveau Produit! | C146: COMEBACK SNACKS | D146: Maïs soufflé | E146: Double caramel | F146: 628719575017 | G146: 200G | H146: CS | I146: 12 | P146: O | Q146: O | S146: 81 | T146: SEC | U146: 54,13$ | V146: Offre de janvier | W146: ÉCONOMISEZ 15% | X146: 6.99
A147: CBS0109 | B147: Nouveau Produit! | C147: COMEBACK SNACKS | D147: Maïs soufflé | E147: Caramel et chocolat au sel | F147: 628719575000 | G147: 225G | H147: CS | I147: 12 | P147: O | Q147: O | S147: 81 | T147: SEC | U147: 54,13$ | V147: Offre de janvier | W147: ÉCONOMISEZ 15% | X147: 6.99
A148: CBS0107 | B148: Nouveau Produit! | C148: COMEBACK SNACKS | D148: Maïs soufflé | E148: Caramel et meringue au citron | F148: 628719575031 | G148: 225G | H148: CS | I148: 12 | P148: O | Q148: O | S148: 81 | T148: SEC | U148: 54,13$ | V148: Offre de janvier | W148: ÉCONOMISEZ 15% | X148: 6.99
A149: CBS0106 | B149: Nouveau Produit! | C149: COMEBACK SNACKS | D149: Maïs soufflé | E149: Caramel, chocolat et beurre d’arachide | F149: 628719575024 | G149: 225G | H149: CS | I149: 12 | P149: O | Q149: O | S149: 81 | T149: SEC | U149: 54,13$ | V149: Offre de janvier | W149: ÉCONOMISEZ 15% | X149: 6.99
A150: CI4501 | B150: Nouveau Produit! | C150: COOKIE IT UP | D150: Biscuits gourmets faits à la main | E150: Biscuits, Caramel salé | F150: 68261154504 | G150: 140G | H150: CS | I150: 12 | K150: O | P150: O | Q150: O | R150: O | S150: 90 | T150: SEC | U150: 58,33$ | X150: 5.99 | Y150: 12
A151: CI0306 | B151: Nouveau Produit! | C151: COOKIE IT UP | D151: Biscuits gourmets faits à la main | E151: Biscuits, Shorts au citron | F151: 68261140309 | G151: 140G | H151: CS | I151: 6 | P151: O | Q151: O | R151: O | S151: 109 | T151: SEC | U151: 25,83$ | X151: 5.99
A152: CI0320 | B152: Nouveau Produit! | C152: COOKIE IT UP | D152: Biscuits gourmets faits à la main | E152: Biscuits, Shorts caramel écossais | F152: 68261140323 | G152: 140G | H152: CS | I152: 6 | K152: O | P152: O | Q152: O | R152: O | S152: 120 | T152: SEC | U152: 25,83$ | X152: 4.99 | Y152: 2
A153: CI0238 | B153: Nouveau Produit! | C153: COOKIE IT UP | D153: Biscuits gourmets faits à la main | E153: Biscuits, Shorts chocolat au lait | F153: 68261140231 | G153: 140G | H153: CS | I153: 6 | K153: O | P153: O | Q153: O | R153: O | S153: 120 | T153: SEC | U153: 25,83$ | X153: 4.99 | Y153: 1
A154: CI0269 | B154: Nouveau Produit! | C154: COOKIE IT UP | D154: Biscuits gourmets faits à la main | E154: Biscuits, Shorts chocolat blanc et canneberges | F154: 68261140262 | G154: 140G | H154: CS | I154: 6 | K154: O | P154: O | Q154: O | R154: O | S154: 120 | T154: SEC | U154: 25,83$ | X154: 4.99 | Y154: 4
A155: CI0252 | B155: Nouveau Produit! | C155: COOKIE IT UP | D155: Biscuits gourmets faits à la main | E155: Biscuits, Shorts moka double chocolat | F155: 68261140255 | G155: 140G | H155: CS | I155: 6 | K155: O | P155: O | Q155: O | R155: O | S155: 120 | T155: SEC | U155: 25,83$ | X155: 4.99 | Y155: 3
A156: CI0495 | B156: Nouveau Produit! | C156: COOKIE IT UP | D156: Biscuits gourmets faits à la main | E156: Biscuits, Caramel écossais sans gluten | F156: 68261170498 | G156: 170G | H156: CS | I156: 12 | K156: O | M156: O | P156: O | Q156: O | R156: O | S156: 90 | T156: SEC | U156: 65,83$ | X156: 6.49 | Y156: 11
A157: CI0433 | B157: Nouveau Produit! | C157: COOKIE IT UP | D157: Biscuits gourmets faits à la main | E157: Biscuits, Pépites de chocolat sans gluten | F157: 68261170436 | G157: 170G | H157: CS | I157: 12 | K157: O | M157: O | P157: O | Q157: O | R157: O | S157: 90 | T157: SEC | U157: 65,83$ | X157: 6.49 | Y157: 7
A158: CI0211 | B158: Nouveau Produit! | C158: COOKIE IT UP | D158: Biscuits gourmets faits à la main | E158: Biscuits, Sablés au chocolat | F158: 68261170214 | G158: 170G | H158: CS | I158: 12 | K158: O | P158: O | Q158: O | R158: O | S158: 90 | T158: SEC | U158: 65,83$ | X158: 6.49 | Y158: 5
A159: CI0235 | B159: Nouveau Produit! | C159: COOKIE IT UP | D159: Biscuits gourmets faits à la main | E159: Shorts chocolat au lait | F159: 68261170238 | G159: 170G | H159: CS | I159: 12 | K159: O | P159: O | Q159: O | R159: O | S159: 90 | T159: SEC | U159: 60,00$ | X159: 5.99 | Y159: 6
A160: CI0266 | B160: Nouveau Produit! | C160: COOKIE IT UP | D160: Biscuits gourmets faits à la main | E160: Shorts chocolat blanc et canneberges | F160: 68261170269 | G160: 170G | H160: CS | I160: 12 | K160: O | P160: O | Q160: O | R160: O | S160: 90 | T160: SEC | U160: 60,00$ | X160: 5.99 | Y160: 9
A161: YE8215 | B161: Nouveau Produit! | C161: COOLER CO. | D161: Boissons | E161: Yerba mate, Baie active | F161: 850071748154 | G161: 473ML | H161: CS | I161: 12 | Q161: O | S161: 337 | T161: SEC | U161: 37,71$ | X161: 4.49
A162: YE8192 | B162: Nouveau Produit! | C162: COOLER CO. | D162: Boissons | E162: Yerba mate, Menthe puissante | F162: 850071748130 | G162: 473ML | H162: CS | I162: 12 | Q162: O | S162: 337 | T162: SEC | U162: 37,71$ | X162: 4.49
A163: YE8185 | B163: Nouveau Produit! | C163: COOLER CO. | D163: Boissons | E163: Yerba mate, Original | F163: 850071748123 | G163: 473ML | H163: CS | I163: 12 | Q163: O | S163: 337 | T163: SEC | U163: 37,71$ | X163: 4.49
A164: YE8222 | B164: Nouveau Produit! | C164: COOLER CO. | D164: Boissons | E164: Yerba mate, Pêche puissante | F164: 850071748161 | G164: 473ML | H164: CS | I164: 12 | Q164: O | S164: 337 | T164: SEC | U164: 37,71$ | X164: 4.49
A165: YE8239 | B165: Nouveau Produit! | C165: COOLER CO. | D165: Boissons | E165: Yerba mate, sans sucre ajouté | F165: 850071748178 | G165: 473ML | H165: CS | I165: 12 | Q165: O | S165: 337 | T165: SEC | U165: 37,71$ | X165: 4.49
A166: YE8208 | B166: Nouveau Produit! | C166: COOLER CO. | D166: Boissons | E166: Yerba mate, Équilibre bleu | F166: 850071748147 | G166: 473ML | H166: CS | I166: 12 | Q166: O | S166: 337 | T166: SEC | U166: 37,71$ | X166: 4.49
A167: CRK0101 | B167: Nouveau Produit! | C167: CRANK COFFEE | D167: Café | E167: Crank It Up - torréfaction foncée | F167: 56932910016 | G167: 340G | H167: CS | I167: 6 | J167: O | P167: O | Q167: O | S167: 109 | T167: SEC | U167: 74,90$ | V167: Offre de janvier | W167: ÉCONOMISEZ 10% | X167: 15.99 | Y167: 4
A168: CRK0102 | B168: Nouveau Produit! | C168: CRANK COFFEE | D168: Café | E168: Cranky Pants - torréfaction foncée | F168: 56932910023 | G168: 340G | H168: CS | I168: 6 | J168: O | P168: O | Q168: O | S168: 109 | T168: SEC | U168: 74,90$ | V168: Offre de janvier | W168: ÉCONOMISEZ 10% | X168: 15.99 | Y168: 1
A169: CRK0105 | B169: Nouveau Produit! | C169: CRANK COFFEE | D169: Café | E169: Fifth Gear - torréfaction espresso | F169: 56932910054 | G169: 340G | H169: CS | I169: 6 | J169: O | P169: O | Q169: O | S169: 109 | T169: SEC | U169: 74,90$ | V169: Offre de janvier | W169: ÉCONOMISEZ 10% | X169: 15.99 | Y169: 2
A170: CRK0103 | B170: Nouveau Produit! | C170: CRANK COFFEE | D170: Café | E170: Get Cranked - torréfaction foncée | F170: 56932910030 | G170: 340G | H170: CS | I170: 6 | J170: O | P170: O | Q170: O | S170: 109 | T170: SEC | U170: 74,90$ | V170: Offre de janvier | W170: ÉCONOMISEZ 10% | X170: 15.99 | Y170: 5
A171: CRK0107 | B171: Nouveau Produit! | C171: CRANK COFFEE | D171: Café | E171: Gran Fondo - torréfaction légère | F171: 56932910078 | G171: 340G | H171: CS | I171: 6 | J171: O | K171: O | P171: O | Q171: O | S171: 109 | T171: SEC | U171: 74,90$ | V171: Offre de janvier | W171: ÉCONOMISEZ 10% | X171: 15.99
A172: CRK0104 | B172: Nouveau Produit! | C172: CRANK COFFEE | D172: Café | E172: Morning Glory - torréfaction mi-noire | F172: 56932910047 | G172: 340G | H172: CS | I172: 6 | J172: O | P172: O | Q172: O | S172: 109 | T172: SEC | U172: 74,90$ | V172: Offre de janvier | W172: ÉCONOMISEZ 10% | X172: 15.99 | Y172: 3
A173: CUL0103 | B173: Nouveau Produit! | C173: CULLEN'S FOODS | D173: Légumineuses | E173: Haricots blancs biologiques | F173: 627987057621 | G173: 540ML | H173: CS | I173: 12 | J173: O | K173: O | L173: O | P173: O | Q173: O | R173: O | S173: 219 | T173: SEC | U173: 33,90$ | V173: Offre de janvier | W173: ÉCONOMISEZ 15% | X173: 3.89 | Y173: 5
A174: CUL0101 | B174: Nouveau Produit! | C174: CULLEN'S FOODS | D174: Légumineuses | E174: Haricots noirs biologiques | F174: 627987057614 | G174: 540ML | H174: CS | I174: 12 | J174: O | K174: O | L174: O | P174: O | Q174: O | R174: O | S174: 219 | T174: SEC | U174: 33,90$ | V174: Offre de janvier | W174: ÉCONOMISEZ 15% | X174: 3.89 | Y174: 2
A175: CUL0102 | B175: Nouveau Produit! | C175: CULLEN'S FOODS | D175: Légumineuses | E175: Haricots rouges biologiques | F175: 627987057638 | G175: 540ML | H175: CS | I175: 12 | J175: O | K175: O | L175: O | P175: O | Q175: O | R175: O | S175: 219 | T175: SEC | U175: 33,90$ | V175: Offre de janvier | W175: ÉCONOMISEZ 15% | X175: 3.89 | Y175: 3
A176: CUL0106 | B176: Nouveau Produit! | C176: CULLEN'S FOODS | D176: Légumineuses | E176: Lentilles vertes biologiques | F176: 628011877024 | G176: 540ML | H176: CS | I176: 12 | J176: O | K176: O | L176: O | P176: O | Q176: O | R176: O | S176: 219 | T176: SEC | U176: 33,90$ | V176: Offre de janvier | W176: ÉCONOMISEZ 15% | X176: 3.89 | Y176: 4
A177: CUL0105 | B177: Nouveau Produit! | C177: CULLEN'S FOODS | D177: Légumineuses | E177: Pois chiches biologiques | F177: 628011877017 | G177: 540ML | H177: CS | I177: 12 | J177: O | K177: O | L177: O | P177: O | Q177: O | R177: O | S177: 219 | T177: SEC | U177: 33,90$ | V177: Offre de janvier | W177: ÉCONOMISEZ 15% | X177: 3.89 | Y177: 1
A178: LAP8102 | B178: Nouveau Produit! | C178: DARE FOODS LIMITED | D178: Craquelins sans gluten | E178: Craquelins - Ail et fines herbes | F178: 55653688105 | G178: 135G | H178: CS | I178: 12 | K178: O | M178: O | S178: 36 | T178: SEC | U178: 37,51$ | X178: 3.99-4.29 | Y178: 3
A179: LAP7906 | B179: Nouveau Produit! | C179: DARE FOODS LIMITED | D179: Craquelins sans gluten | E179: Craquelins - Légumes du jardin | F179: 55653697909 | G179: 135G | H179: CS | I179: 12 | K179: O | M179: O | S179: 36 | T179: SEC | U179: 37,51$ | X179: 3.99-4.29 | Y179: 2
A180: LAP8003 | B180: Nouveau Produit! | C180: DARE FOODS LIMITED | D180: Craquelins sans gluten | E180: Craquelins - Original, graines de lin | F180: 55653688006 | G180: 135G | H180: CS | I180: 12 | K180: O | M180: O | S180: 36 | T180: SEC | U180: 37,51$ | X180: 3.99-4.29 | Y180: 1
A181: LAP4758 | B181: Nouveau Produit! | C181: DARE FOODS LIMITED | E181: Croutons Style Classique Cesar Cremeux | F181: 56951454751 | G181: 135G | H181: CS | I181: 12 | Q181: O | R181: O | S181: 109 | T181: SEC | U181: 24,13$ | X181: 3.19
A182: LAP5656 | B182: Nouveau Produit! | C182: DARE FOODS LIMITED | E182: Croutons Style Restaurant Cesar | F182: 56951455659 | G182: 135G | H182: CS | I182: 12 | Q182: O | R182: O | S182: 82 | T182: SEC | U182: 24,13$ | X182: 3.19
A183: LAP4901 | B183: Nouveau Produit! | C183: DARE FOODS LIMITED | E183: Croutons style Classique Herbes Du Jardin | F183: 56951454904 | G183: 135G | H183: CS | I183: 12 | Q183: O | R183: O | S183: 109 | T183: SEC | U183: 24,13$ | X183: 3.19
A184: LAP5403 | B184: Nouveau Produit! | C184: DARE FOODS LIMITED | E184: Croutons style Restaurant Ail Et Herbes | F184: 56951455406 | G184: 135G | H184: CS | I184: 12 | Q184: O | R184: O | S184: 82 | T184: SEC | U184: 24,13$ | X184: 3.19
A185: DR9216 | B185: Nouveau Produit! | C185: DR. NATURAL | D185: Revitalisant | E185: Revitalisant et démêlant sans rinçage pour enfants | F185: 855548009219 | G185: 198ML | H185: UN | I185: 12 | T185: SEC | U185: 4,41$ | X185: 6.78
A186: DR2576 | B186: Nouveau Produit! | C186: DR. NATURAL | D186: Savon | E186: Savon de Castille en pain - Amande | F186: 855548002579 | G186: 2x113G | H186: UN | I186: 18 | T186: SEC | U186: 4,84$ | X186: 7.99 | Y186: 1
A187: DR2583 | B187: Nouveau Produit! | C187: DR. NATURAL | D187: Savon | E187: Savon de Castille en pain - Lavande | F187: 855548002586 | G187: 2x113G | H187: UN | I187: 18 | T187: SEC | U187: 4,84$ | X187: 7.99 | Y187: 2
A188: DR2590 | B188: Nouveau Produit! | C188: DR. NATURAL | D188: Savon | E188: Savon de Castille en pain - Menthe poivrée | F188: 855548002593 | G188: 2x113G | H188: UN | I188: 18 | T188: SEC | U188: 4,84$ | X188: 7.99 | Y188: 5
A189: DR9018 | B189: Nouveau Produit! | C189: DR. NATURAL | D189: Savon | E189: Savon de Castille en pain avec charbon actif | F189: 855548009011 | G189: 2x113G | H189: UN | I189: 18 | T189: SEC | U189: 4,84$ | X189: 7.99 | Y189: 3
A190: DR2644 | B190: Nouveau Produit! | C190: DR. NATURAL | D190: Savon | E190: Savon noir en pain | F190: 855548002647 | G190: 2x113G | H190: UN | I190: 18 | T190: SEC | U190: 4,84$ | X190: 7.99 | Y190: 4
A191: DR9424 | B191: Nouveau Produit! | C191: DR. NATURAL | E191: Pour Bébé Sans Talc | F191: 855548009424 | G191: 424G | H191: UN | I191: 12 | S191: 108 | T191: SEC | U191: 2,85$ | X191: 4.29
A192: DR2224 | B192: Nouveau Produit! | C192: DR. NATURAL | D192: Lotion pour le corps | E192: Lotion de Castille pour le corps - Amande | F192: 855548002227 | G192: 473ML | H192: UN | I192: 6 | T192: SEC | U192: 6,07$ | V192: Offre de janvier | W192: ÉCONOMISEZ 10% | X192: 9.99 | Y192: 2
A193: DR2231 | B193: Nouveau Produit! | C193: DR. NATURAL | D193: Lotion pour le corps | E193: Lotion de Castille pour le corps - Beurre de karité | F193: 855548002234 | G193: 473ML | H193: UN | I193: 6 | T193: SEC | U193: 6,07$ | V193: Offre de janvier | W193: ÉCONOMISEZ 10% | X193: 9.99 | Y193: 1
A194: DR2217 | B194: Nouveau Produit! | C194: DR. NATURAL | D194: Lotion pour le corps | E194: Lotion de Castille pour le corps - Lavande | F194: 855548002210 | G194: 473ML | H194: UN | I194: 6 | T194: SEC | U194: 6,07$ | V194: Offre de janvier | W194: ÉCONOMISEZ 10% | X194: 9.99 | Y194: 3
A195: DR9226 | B195: Nouveau Produit! | C195: DR. NATURAL | D195: Santé et beauté | E195: Savon 3 en 1 pour bébés et enfants (sans larmes) - Agrumes | F195: 855548009226 | G195: 473ML | H195: UN | I195: 12 | S195: 144 | T195: SEC | U195: 5,73$ | X195: 9.48 | Y195: 3
A196: DR9233 | B196: Nouveau Produit! | C196: DR. NATURAL | D196: Santé et beauté | E196: Savon 3 en 1 pour bébés et enfants (sans larmes) - Eau de rose | F196: 855548009233 | G196: 473ML | H196: UN | I196: 12 | S196: 144 | T196: SEC | U196: 5,73$ | X196: 9.48 | Y196: 2
A197: DR9240 | B197: Nouveau Produit! | C197: DR. NATURAL | D197: Santé et beauté | E197: Savon 3 en 1 pour bébés et enfants (sans larmes) - Lavande | F197: 855548009240 | G197: 473ML | H197: UN | I197: 12 | S197: 144 | T197: SEC | U197: 5,73$ | X197: 9.48 | Y197: 1
A198: DR9155 | B198: Nouveau Produit! | C198: DR. NATURAL | D198: Savon | E198: Savon tout usage pour bébés et enfants - Amande | F198: 855548009158 | G198: 473ML | H198: UN | I198: 12 | T198: SEC | U198: 6,00$ | X198: 9.48
A199: DR9186 | B199: Nouveau Produit! | C199: DR. NATURAL | D199: Savon | E199: Savon tout usage pour bébés et enfants - Lavande | F199: 855548009189 | G199: 473ML | H199: UN | I199: 12 | T199: SEC | U199: 6,00$ | X199: 9.48
A200: DR9193 | B200: Nouveau Produit! | C200: DR. NATURAL | D200: Savon | E200: Savon tout usage pour bébés et enfants - Sans parfum | F200: 855548009196 | G200: 473ML | H200: UN | I200: 12 | T200: SEC | U200: 6,00$ | X200: 9.48
... 753 more rows

Sheet Sheet1 (hidden)
A1: Code de produit | B1: JN Code | C1: JANUARY DEAL
A2: AC0459 | B2: ART0111 | C2: 0.15 | D2: =VLOOKUP(A:A,B:C,2,FALSE) -> 
A3: AC0255 | B3: BY1759 | C3: 0.2 | D3: =VLOOKUP(A:A,B:C,2,FALSE) -> 
A4: SN5045 | B4: BY1766 | C4: 0.2
A5: SN0072 | B5: BY1773 | C5: 0.2
A6: SN0065 | B6: BY1780 | C6: 0.2
A7: SN0058 | B7: BY1803 | C7: 0.2
A8: SN0089 | B8: BY1810 | C8: 0.2
A9: SN5052 | B9: BS5341 | C9: 0.1
A10: ART0116 | B10: BS5358 | C10: 0.1
A11: ART0112 | B11: BS5365 | C11: 0.1
A12: ART0114 | B12: BS5372 | C12: 0.1
A13: ART0117 | B13: BS5396 | C13: 0.1
A14: ART0208 | B14: BO0059 | C14: 0.2
A15: ART0111 | B15: BR7132 | C15: 0.15 | D15: 0.15
A16: ART0113 | B16: BR7149 | C16: 0.15
A17: ART0115 | B17: BR7156 | C17: 0.15
A18: BY1759 | B18: BR7163 | C18: 0.15 | D18: 0.2
A19: BY1766 | B19: BR7170 | C19: 0.15 | D19: 0.2
A20: BY1780 | B20: BR7187 | C20: 0.15 | D20: 0.2
A21: BY1810 | B21: BR7507 | C21: 0.15 | D21: 0.2
A22: BY1773 | B22: BR7200 | C22: 0.15 | D22: 0.2
A23: BY1803 | B23: CBS0106 | C23: 0.15 | D23: 0.2
A24: BS5396 | B24: CBS0107 | C24: 0.15 | D24: 0.1
A25: BS5372 | B25: CBS0108 | C25: 0.15 | D25: 0.1 | H25: ÉCONOMISEZ
A26: BS5341 | B26: CBS0109 | C26: 0.15 | D26: 0.1
A27: BS5365 | B27: CRK0101 | C27: 0.1 | D27: 0.1
A28: BS5358 | B28: CRK0102 | C28: 0.1 | D28: 0.1
A29: UF0870 | B29: CRK0103 | C29: 0.1
A30: UF0696 | B30: CRK0104 | C30: 0.1
A31: UF0719 | B31: CRK0105 | C31: 0.1
A32: UF0689 | B32: CRK0106 | C32: 0.1
A33: UF0702 | B33: CRK0107 | C33: 0.1
A34: BO0059 | B34: CUL0101 | C34: 0.15 | D34: 0.2
A35: BUF0109 | B35: CUL0102 | C35: 0.15
A36: BUF0110 | B36: CUL0103 | C36: 0.15
A37: BUF0107 | B37: CUL0105 | C37: 0.15
A38: BUF0108 | B38: CUL0106 | C38: 0.15
A39: BA1847 | B39: DR2217 | C39: 0.1
A40: BA1816 | B40: DR2224 | C40: 0.1
A41: BA8418 | B41: DR2231 | C41: 0.1
A42: BA1878 | B42: DR2361 | C42: 0.1
A43: BA1823 | B43: DR2378 | C43: 0.1
A44: BA0307 | B44: DR2385 | C44: 0.1
A45: BA4008 | B45: DR2395 | C45: 0.1
A46: BA0703 | B46: DR2705 | C46: 0.1
A47: BA1007 | B47: DR2941 | C47: 0.1
A48: BA0008 | B48: DR2965 | C48: 0.1
A49: BA0208 | B49: DR2999 | C49: 0.1
A50: BA0604 | B50: EH0079 | C50: 0.15
A51: BA005 | B51: EH0117 | C51: 0.15
A52: BA012 | B52: EH0124 | C52: 0.15
A53: BA011 | B53: EH0216 | C53: 0.15
A54: BA013 | B54: EH0223 | C54: 0.1
A55: BA010 | B55: EH0315 | C55: 0.1
A56: BA0413 | B56: EH5075 | C56: 0.15
A57: BA0164 | B57: EH6027 | C57: 0.1
A58: BA0406 | B58: EH6034 | C58: 0.1
A59: BR7200 | B59: EH6041 | C59: 0.1 | D59: 0.15
A60: BR7187 | B60: EH6072 | C60: 0.1 | D60: 0.15
A61: BR7170 | B61: EH6096 | C61: 0.2 | D61: 0.15
A62: BR7149 | B62: FLO0101 | C62: 0.1 | D62: 0.15
A63: BR7163 | B63: FLO0103 | C63: 0.1 | D63: 0.15
A64: BR7132 | B64: FLO0105 | C64: 0.1 | D64: 0.15
A65: BR7156 | B65: FLO0106 | C65: 0.1 | D65: 0.15
A66: BR7507 | B66: FLO0108 | C66: 0.1 | D66: 0.15
A67: CHS0707 | B67: FLO0116 | C67: 0.1 | D67: =VLOOKUP(A:A,B:C,2,FALSE) -> 
A68: CHS0704 | B68: FLO0117 | C68: 0.1
A69: CHS0706 | B69: FLO0119 | C69: 0.1
A70: CHS0702 | B70: FLO0120 | C70: 0.1
A71: CHS0701 | B71: FLO1375 | C71: 0.1
A72: CHS0703 | B72: GV1184 | C72: 0.15
A73: CHS0201 | B73: GV1197 | C73: 0.15
A74: CHS0203 | B74: GV1279 | C74: 0.15
A75: CHS0804 | B75: GV1293 | C75: 0.15
A76: CHS0813 | B76: HIP0601 | C76: 0.15
A77: CHS0309 | B77: HIP0602 | C77: 0.15
A78: CHS0313 | B78: HIP0701 | C78: 0.15
A79: CHS0311 | B79: HIP0702 | C79: 0.15
A80: CHS0310 | B80: HIP0703 | C80: 0.15
A81: CHS0312 | B81: HIP0801 | C81: 0.15
A82: CHS0817 | B82: HIP0802 | C82: 0.15
A83: CHS0802 | B83: HIP0803 | C83: 0.15
A84: CHS0801 | B84: HIP1001 | C84: 0.15
A85: CHS0805 | B85: HIP1002 | C85: 0.15
A86: CHS8021 | B86: HIP1003 | C86: 0.15
A87: CHS0806 | B87: HO8212 | C87: 0.1
A88: CHS0808 | B88: HO8229 | C88: 0.1
A89: CHS0809 | B89: HO8243 | C89: 0.1
A90: CHS0811 | B90: HO8250 | C90: 0.1
A91: CHS0101 | B91: HO8267 | C91: 0.1
A92: CHS0103 | B92: HO8274 | C92: 0.1
A93: CHS0104 | B93: LM0071 | C93: 0.15
A94: CHS0807 | B94: LM0255 | C94: 0.15
A95: CAS0301 | B95: LM0590 | C95: 0.15
A96: CAS0207 | B96: LM0606 | C96: 0.15
A97: CAS0204 | B97: LM0620 | C97: 0.15
A98: CAS0104 | B98: LM0644 | C98: 0.15
A99: CAS0103 | B99: LM0682 | C99: 0.15
A100: CAS0101 | B100: LM0699 | C100: 0.15
A101: CAS0403 | B101: LM2059 | C101: 0.15
A102: CAS0401 | B102: LM2073 | C102: 0.15
A103: CAS0402 | B103: LM2097 | C103: 0.15
A104: CAS0303 | B104: LM2103 | C104: 0.15
A105: CAS0306 | B105: LM2141 | C105: 0.15
A106: CAS0304 | B106: LM2158 | C106: 0.15
A107: CAS0307 | B107: LG0002 | C107: 0.1
A108: CAS0308 | B108: LG0003 | C108: 0.1
A109: CAS0305 | B109: LG0155 | C109: 0.1
A110: CAS0107 | B110: LG2004 | C110: 0.1
A111: CAS0106 | B111: LG2152 | C111: 0.1
A112: CAS0205 | B112: LG2509 | C112: 0.1
A113: CAS0206 | B113: LG3729 | C113: 0.1
A114: CAS0202 | B114: LG3736 | C114: 0.1
A115: CAS0203 | B115: LG3743 | C115: 0.1
A116: CAS0504 | B116: LG3750 | C116: 0.1
A117: CAS0503 | B117: LG3767 | C117: 0.1
A118: CAS0302 | B118: LG4008 | C118: 0.1
A119: CAS0109 | B119: LG4503 | C119: 0.1
A120: CAS0108 | B120: LG5007 | C120: 0.1
A121: CA5115 | B121: LG5008 | C121: 0.1
A122: CA5016 | B122: LV2009 | C122: 0.15
A123: CA5030 | B123: LV2016 | C123: 0.15
A124: CA5160 | B124: LV2023 | C124: 0.15
A125: CA5146 | B125: LV2030 | C125: 0.15
A126: CA5122 | B126: LV2047 | C126: 0.15
A127: CA5184 | B127: LV2054 | C127: 0.15
A128: CA5092 | B128: LV2207 | C128: 0.15
A129: CA5023 | B129: LV2214 | C129: 0.15
A130: CA5047 | B130: LV2221 | C130: 0.15
A131: CC1295 | B131: LV2405 | C131: 0.15 | D131: =VLOOKUP(A:A,B:C,2,FALSE) -> 
A132: CC1622 | B132: LV2412 | C132: 0.15
A133: CC5049 | B133: LV2429 | C133: 0.15
A134: CC5025 | B134: LV2535 | C134: 0.15
A135: CC4485 | B135: LV2542 | C135: 0.15
A136: CC1530 | B136: LV2566 | C136: 0.15
A137: ETK8665 | B137: LV2580 | C137: 0.15
A138: ETK8658 | B138: LV2436 | C138: 0.15
A139: ETK8689 | B139: LV2443 | C139: 0.15
A140: ETK8672 | B140: NEB0101 | C140: 0.1
A141: ETK0211 | B141: NEB0102 | C141: 0.1
A142: ETK0209 | B142: NEB0103 | C142: 0.1
A143: ETK0210 | B143: NEB0106 | C143: 0.1
A144: ETK0212 | B144: NEB0107 | C144: 0.1
A145: ETK0208 | B145: NEB0401 | C145: 0.1
A146: CBS0108 | B146: NEB0402 | C146: 0.1 | D146: 0.15
A147: CBS0109 | B147: NEB0403 | C147: 0.1 | D147: 0.15
A148: CBS0107 | B148: NEB0404 | C148: 0.1 | D148: 0.15
A149: CBS0106 | B149: NEB0407 | C149: 0.1 | D149: 0.15
A150: CI4501 | B150: NEB0801 | C150: 0.1
A151: CI0306 | B151: NEB0802 | C151: 0.1
A152: CI0320 | B152: NEB0806 | C152: 0.1
A153: CI0238 | B153: NEB0907 | C153: 0.1
A154: CI0269 | B154: NEB0908 | C154: 0.1
A155: CI0252 | B155: NEB0909 | C155: 0.1
A156: CI0495 | B156: NEB0910 | C156: 0.1
A157: CI0433 | B157: NEB0911 | C157: 0.1
A158: CI0211 | B158: NEB1001 | C158: 0.1
A159: CI0235 | B159: NEB1002 | C159: 0.1
A160: CI0266 | B160: NEB1003 | C160: 0.1
A161: YE8215 | B161: NEB1004 | C161: 0.1
A162: YE8192 | B162: NEB1008 | C162: 0.1
A163: YE8185 | B163: NEB1048 | C163: 0.1
A164: YE8222 | B164: NEB1055 | C164: 0.1
A165: YE8239 | B165: NEB1101 | C165: 0.1
A166: YE8208 | B166: NEB1102 | C166: 0.1
A167: CRK0101 | B167: NEB1103 | C167: 0.1 | D167: 0.1
A168: CRK0102 | B168: NEB1301 | C168: 0.1 | D168: 0.1
A169: CRK0105 | B169: NEB1302 | C169: 0.1 | D169: 0.1
A170: CRK0103 | B170: NEB1303 | C170: 0.1 | D170: 0.1
A171: CRK0107 | B171: NO6014 | C171: 0.15 | D171: 0.1
A172: CRK0104 | B172: NO6021 | C172: 0.15 | D172: 0.1
A173: CUL0103 | B173: NO6038 | C173: 0.15 | D173: 0.15
A174: CUL0101 | B174: NO6045 | C174: 0.15 | D174: 0.15
A175: CUL0102 | B175: NO9828 | C175: 0.1 | D175: 0.15
A176: CUL0106 | B176: NO9835 | C176: 0.1 | D176: 0.15
A177: CUL0105 | B177: NO9842 | C177: 0.15 | D177: 0.15
A178: LAP8102 | B178: NO9859 | C178: 0.15
A179: LAP7906 | B179: NOR0102 | C179: 0.1
A180: LAP8003 | B180: NOR6222 | C180: 0.1
A181: LAP4758 | B181: NOR6239 | C181: 0.1
A182: LAP5656 | B182: NOR6246 | C182: 0.1
A183: LAP4901 | B183: OH0910 | C183: 0.15
A184: LAP5403 | B184: OH0927 | C184: 0.15
A185: DR9216 | B185: OH0934 | C185: 0.15
A186: DR2576 | B186: OH0958 | C186: 0.15
A187: DR2583 | B187: OH0965 | C187: 0.15
A188: DR2590 | B188: OH0989 | C188: 0.15
A189: DR9018 | B189: PAC0802 | C189: 0.1095
A190: DR2644 | B190: PAC0806 | C190: 0.1095
A191: DR9424 | B191: PAC0807 | C191: 0.1095
A192: DR2224 | B192: PAC7125 | C192: 0.092 | D192: 0.1
A193: DR2231 | B193: PAC7132 | C193: 0.092 | D193: 0.1
A194: DR2217 | B194: PAC7149 | C194: 0.092 | D194: 0.1
A195: DR9226 | B195: PRK0101 | C195: 0.15 | D195: =VLOOKUP(A:A,B:C,2,FALSE) -> 
A196: DR9233 | B196: PRK0104 | C196: 0.15
A197: DR9240 | B197: PRK0105 | C197: 0.15
A198: DR9155 | B198: PRK0201 | C198: 0.15
A199: DR9186 | B199: PRK0202 | C199: 0.15
A200: DR9193 | B200: PRK0205 | C200: 0.15
... 753 more rows

Sheet OG
B1: Guide des commandes du Québec
C3: TOUTES LES COMMANDES DOIVENT ÊTRE REÇUES AVANT 14H orders1@jonluca.ca | credits@jonluca.ca | ar@jonluca.ca Le ramassage de commandes ou d’échantillons se fait du lundi au vendredi de 10 h 00 à 16 h 00 HNE | D3: LES PRIX ET LES PRODUITS SONT SUJETS À CHANGEMENT SANS PRÉAVIS
C4: Veuillez vérifier votre commande à la réception et, si nécessaire, demander un crédit dans les 24 heures suivant la livraison | D4: Tous les prix ci-dessous ne comprennent pas les taxes applicables
C5: Biologique : B | Casher : C | Végétalien : V | Sans gluten : SG | Sans OGM : SO| Halal : H | Fait au Canada : FC | Compagnie canadienne : CC | Produit du Canada : PC
A6: Lorsque vous faite une commande, veuillez faire attention à la façon dont les produits sont sélectionnés ; la colonne F est la colonne SÉLECTION et CS indique CAISSE et UN indique UNITÉ. Si un article est sélectionné par CAISSE et que vous voulez 1 caisse, veuillez entrer 1 dans la colonne Commande
A7: Code de produit | B7: Commande QTÉ | C7: Description | D7: CUP/unité | E7: Format | F7: Sélection | G7: EMB. | H7: B | I7: C | J7: V | K7: SG | L7: SO | M7: H | N7: FC | O7: CC | P7: PC | Q7: Jours garantis | R7: Entreposage | S7: Prix | T7: Promo mensuelle | U7: Rabais promo | V7: PDS | W7: Classement des produits
A8: ACROPOLIS ORGANICS | C8: =_xlfn.XLOOKUP(A8,DATA[Code de produit],DATA[Description],"") ->  | D8: =_xlfn.XLOOKUP(A8,DATA[Code de produit],DATA[CUP/unité],"") ->  | E8: =_xlfn.XLOOKUP(A8,DATA[Code de produit],DATA[Format],"") ->  | F8: =_xlfn.XLOOKUP(A8,DATA[Code de produit],DATA[Sélection],"") ->  | G8: =_xlfn.XLOOKUP(A8,DATA[Code de produit],DATA[EMB.],"") ->  | H8: =_xlfn.XLOOKUP(A8,DATA[Code de produit],DATA[B],"") ->  | I8: =_xlfn.XLOOKUP(A8,DATA[Code de produit],DATA[C],"") ->  | J8: =_xlfn.XLOOKUP(A8,DATA[Code de produit],DATA[V],"") ->  | K8: =_xlfn.XLOOKUP(A8,DATA[Code de produit],DATA[SG],"") ->  | L8: =_xlfn.XLOOKUP(A8,DATA[Code de produit],DATA[SO],"") ->  | M8: =_xlfn.XLOOKUP(A8,DATA[Code de produit],DATA[H],"") ->  | N8: =_xlfn.XLOOKUP(A8,DATA[Code de produit],DATA[FC],"") ->  | O8: =_xlfn.XLOOKUP(A8,DATA[Code de produit],DATA[CC],"") ->  | P8: =_xlfn.XLOOKUP(A8,DATA[Code de produit],DATA[PC],"") ->  | Q8: =_xlfn.XLOOKUP(A8,DATA[Code de produit],DATA[Jours garantis],"") ->  | R8: =_xlfn.XLOOKUP(A8,DATA[Code de produit],DATA[Entreposage],"") ->  | S8: =_xlfn.XLOOKUP(A8,DATA[Code de produit],DATA[Prix],"") ->  | T8: =_xlfn.XLOOKUP(A8,DATA[Code de produit],DATA[Promo mensuelle],"") ->  | U8: =_xlfn.XLOOKUP(A8,DATA[Code de produit],DATA[Rabais promo],"") ->  | V8: =_xlfn.XLOOKUP(A8,DATA[Code de produit],DATA[PDS],"") ->  | W8: =_xlfn.XLOOKUP(A8,DATA[Code de produit],DATA[Classement des produits],"") -> 
A9: Huile d'olive extra vierge bioharvest | C9: =_xlfn.XLOOKUP(A9,DATA[Code de produit],DATA[Description],"") ->  | D9: =_xlfn.XLOOKUP(A9,DATA[Code de produit],DATA[CUP/unité],"") ->  | E9: =_xlfn.XLOOKUP(A9,DATA[Code de produit],DATA[Format],"") ->  | F9: =_xlfn.XLOOKUP(A9,DATA[Code de produit],DATA[Sélection],"") ->  | G9: =_xlfn.XLOOKUP(A9,DATA[Code de produit],DATA[EMB.],"") ->  | H9: =_xlfn.XLOOKUP(A9,DATA[Code de produit],DATA[B],"") ->  | I9: =_xlfn.XLOOKUP(A9,DATA[Code de produit],DATA[C],"") ->  | J9: =_xlfn.XLOOKUP(A9,DATA[Code de produit],DATA[V],"") ->  | K9: =_xlfn.XLOOKUP(A9,DATA[Code de produit],DATA[SG],"") ->  | L9: =_xlfn.XLOOKUP(A9,DATA[Code de produit],DATA[SO],"") ->  | M9: =_xlfn.XLOOKUP(A9,DATA[Code de produit],DATA[H],"") ->  | N9: =_xlfn.XLOOKUP(A9,DATA[Code de produit],DATA[FC],"") ->  | O9: =_xlfn.XLOOKUP(A9,DATA[Code de produit],DATA[CC],"") ->  | P9: =_xlfn.XLOOKUP(A9,DATA[Code de produit],DATA[PC],"") ->  | Q9: =_xlfn.XLOOKUP(A9,DATA[Code de produit],DATA[Jours garantis],"") ->  | R9: =_xlfn.XLOOKUP(A9,DATA[Code de produit],DATA[Entreposage],"") ->  | S9: =_xlfn.XLOOKUP(A9,DATA[Code de produit],DATA[Prix],"") ->  | T9: =_xlfn.XLOOKUP(A9,DATA[Code de produit],DATA[Promo mensuelle],"") ->  | U9: =_xlfn.XLOOKUP(A9,DATA[Code de produit],DATA[Rabais promo],"") ->  | V9: =_xlfn.XLOOKUP(A9,DATA[Code de produit],DATA[PDS],"") ->  | W9: =_xlfn.XLOOKUP(A9,DATA[Code de produit],DATA[Classement des produits],"") -> 
A10: AC0255 | C10: =_xlfn.XLOOKUP(A10,DATA[Code de produit],DATA[Description],"") -> Huile d'olive extra vierge - Bioharvest | D10: =_xlfn.XLOOKUP(A10,DATA[Code de produit],DATA[CUP/unité],"") -> 185782000018 | E10: =_xlfn.XLOOKUP(A10,DATA[Code de produit],DATA[Format],"") -> 500ML | F10: =_xlfn.XLOOKUP(A10,DATA[Code de produit],DATA[Sélection],"") -> CS | G10: =_xlfn.XLOOKUP(A10,DATA[Code de produit],DATA[EMB.],"") -> 6 | H10: =_xlfn.XLOOKUP(A10,DATA[Code de produit],DATA[B],"") -> O | I10: =_xlfn.XLOOKUP(A10,DATA[Code de produit],DATA[C],"") -> O | J10: =_xlfn.XLOOKUP(A10,DATA[Code de produit],DATA[V],"") -> 0 | K10: =_xlfn.XLOOKUP(A10,DATA[Code de produit],DATA[SG],"") -> 0 | L10: =_xlfn.XLOOKUP(A10,DATA[Code de produit],DATA[SO],"") -> O | M10: =_xlfn.XLOOKUP(A10,DATA[Code de produit],DATA[H],"") -> 0 | N10: =_xlfn.XLOOKUP(A10,DATA[Code de produit],DATA[FC],"") -> 0 | O10: =_xlfn.XLOOKUP(A10,DATA[Code de produit],DATA[CC],"") -> O | P10: =_xlfn.XLOOKUP(A10,DATA[Code de produit],DATA[PC],"") -> 0 | Q10: =_xlfn.XLOOKUP(A10,DATA[Code de produit],DATA[Jours garantis],"") -> 135 | R10: =_xlfn.XLOOKUP(A10,DATA[Code de produit],DATA[Entreposage],"") -> SEC | S10: =_xlfn.XLOOKUP(A10,DATA[Code de produit],DATA[Prix],"") -> 171,34$ | T10: =_xlfn.XLOOKUP(A10,DATA[Code de produit],DATA[Promo mensuelle],"") -> 0 | U10: =_xlfn.XLOOKUP(A10,DATA[Code de produit],DATA[Rabais promo],"") -> 0 | V10: =_xlfn.XLOOKUP(A10,DATA[Code de produit],DATA[PDS],"") -> 0 | W10: =_xlfn.XLOOKUP(A10,DATA[Code de produit],DATA[Classement des produits],"") -> 0
A11: Huile d'olive extra vierge | C11: =_xlfn.XLOOKUP(A11,DATA[Code de produit],DATA[Description],"") ->  | D11: =_xlfn.XLOOKUP(A11,DATA[Code de produit],DATA[CUP/unité],"") ->  | E11: =_xlfn.XLOOKUP(A11,DATA[Code de produit],DATA[Format],"") ->  | F11: =_xlfn.XLOOKUP(A11,DATA[Code de produit],DATA[Sélection],"") ->  | G11: =_xlfn.XLOOKUP(A11,DATA[Code de produit],DATA[EMB.],"") ->  | H11: =_xlfn.XLOOKUP(A11,DATA[Code de produit],DATA[B],"") ->  | I11: =_xlfn.XLOOKUP(A11,DATA[Code de produit],DATA[C],"") ->  | J11: =_xlfn.XLOOKUP(A11,DATA[Code de produit],DATA[V],"") ->  | K11: =_xlfn.XLOOKUP(A11,DATA[Code de produit],DATA[SG],"") ->  | L11: =_xlfn.XLOOKUP(A11,DATA[Code de produit],DATA[SO],"") ->  | M11: =_xlfn.XLOOKUP(A11,DATA[Code de produit],DATA[H],"") ->  | N11: =_xlfn.XLOOKUP(A11,DATA[Code de produit],DATA[FC],"") ->  | O11: =_xlfn.XLOOKUP(A11,DATA[Code de produit],DATA[CC],"") ->  | P11: =_xlfn.XLOOKUP(A11,DATA[Code de produit],DATA[PC],"") ->  | Q11: =_xlfn.XLOOKUP(A11,DATA[Code de produit],DATA[Jours garantis],"") ->  | R11: =_xlfn.XLOOKUP(A11,DATA[Code de produit],DATA[Entreposage],"") ->  | S11: =_xlfn.XLOOKUP(A11,DATA[Code de produit],DATA[Prix],"") ->  | T11: =_xlfn.XLOOKUP(A11,DATA[Code de produit],DATA[Promo mensuelle],"") ->  | U11: =_xlfn.XLOOKUP(A11,DATA[Code de produit],DATA[Rabais promo],"") ->  | V11: =_xlfn.XLOOKUP(A11,DATA[Code de produit],DATA[PDS],"") ->  | W11: =_xlfn.XLOOKUP(A11,DATA[Code de produit],DATA[Classement des produits],"") -> 
A12: AC0459 | C12: =_xlfn.XLOOKUP(A12,DATA[Code de produit],DATA[Description],"") -> HOEV avec mandarines fraîches bio | D12: =_xlfn.XLOOKUP(A12,DATA[Code de produit],DATA[CUP/unité],"") -> 185782000452 | E12: =_xlfn.XLOOKUP(A12,DATA[Code de produit],DATA[Format],"") -> 250ML | F12: =_xlfn.XLOOKUP(A12,DATA[Code de produit],DATA[Sélection],"") -> CS | G12: =_xlfn.XLOOKUP(A12,DATA[Code de produit],DATA[EMB.],"") -> 6 | H12: =_xlfn.XLOOKUP(A12,DATA[Code de produit],DATA[B],"") -> O | I12: =_xlfn.XLOOKUP(A12,DATA[Code de produit],DATA[C],"") -> O | J12: =_xlfn.XLOOKUP(A12,DATA[Code de produit],DATA[V],"") -> 0 | K12: =_xlfn.XLOOKUP(A12,DATA[Code de produit],DATA[SG],"") -> 0 | L12: =_xlfn.XLOOKUP(A12,DATA[Code de produit],DATA[SO],"") -> O | M12: =_xlfn.XLOOKUP(A12,DATA[Code de produit],DATA[H],"") -> 0 | N12: =_xlfn.XLOOKUP(A12,DATA[Code de produit],DATA[FC],"") -> 0 | O12: =_xlfn.XLOOKUP(A12,DATA[Code de produit],DATA[CC],"") -> O | P12: =_xlfn.XLOOKUP(A12,DATA[Code de produit],DATA[PC],"") -> 0 | Q12: =_xlfn.XLOOKUP(A12,DATA[Code de produit],DATA[Jours garantis],"") -> 90 | R12: =_xlfn.XLOOKUP(A12,DATA[Code de produit],DATA[Entreposage],"") -> SEC | S12: =_xlfn.XLOOKUP(A12,DATA[Code de produit],DATA[Prix],"") -> 46,68$ | T12: =_xlfn.XLOOKUP(A12,DATA[Code de produit],DATA[Promo mensuelle],"") -> 0 | U12: =_xlfn.XLOOKUP(A12,DATA[Code de produit],DATA[Rabais promo],"") -> 0 | V12: =_xlfn.XLOOKUP(A12,DATA[Code de produit],DATA[PDS],"") -> 0 | W12: =_xlfn.XLOOKUP(A12,DATA[Code de produit],DATA[Classement des produits],"") -> 42
A13: ALT-PRO ADVANTAGE | C13: =_xlfn.XLOOKUP(A13,DATA[Code de produit],DATA[Description],"") ->  | D13: =_xlfn.XLOOKUP(A13,DATA[Code de produit],DATA[CUP/unité],"") ->  | E13: =_xlfn.XLOOKUP(A13,DATA[Code de produit],DATA[Format],"") ->  | F13: =_xlfn.XLOOKUP(A13,DATA[Code de produit],DATA[Sélection],"") ->  | G13: =_xlfn.XLOOKUP(A13,DATA[Code de produit],DATA[EMB.],"") ->  | H13: =_xlfn.XLOOKUP(A13,DATA[Code de produit],DATA[B],"") ->  | I13: =_xlfn.XLOOKUP(A13,DATA[Code de produit],DATA[C],"") ->  | J13: =_xlfn.XLOOKUP(A13,DATA[Code de produit],DATA[V],"") ->  | K13: =_xlfn.XLOOKUP(A13,DATA[Code de produit],DATA[SG],"") ->  | L13: =_xlfn.XLOOKUP(A13,DATA[Code de produit],DATA[SO],"") ->  | M13: =_xlfn.XLOOKUP(A13,DATA[Code de produit],DATA[H],"") ->  | N13: =_xlfn.XLOOKUP(A13,DATA[Code de produit],DATA[FC],"") ->  | O13: =_xlfn.XLOOKUP(A13,DATA[Code de produit],DATA[CC],"") ->  | P13: =_xlfn.XLOOKUP(A13,DATA[Code de produit],DATA[PC],"") ->  | Q13: =_xlfn.XLOOKUP(A13,DATA[Code de produit],DATA[Jours garantis],"") ->  | R13: =_xlfn.XLOOKUP(A13,DATA[Code de produit],DATA[Entreposage],"") ->  | S13: =_xlfn.XLOOKUP(A13,DATA[Code de produit],DATA[Prix],"") ->  | T13: =_xlfn.XLOOKUP(A13,DATA[Code de produit],DATA[Promo mensuelle],"") ->  | U13: =_xlfn.XLOOKUP(A13,DATA[Code de produit],DATA[Rabais promo],"") ->  | V13: =_xlfn.XLOOKUP(A13,DATA[Code de produit],DATA[PDS],"") ->  | W13: =_xlfn.XLOOKUP(A13,DATA[Code de produit],DATA[Classement des produits],"") -> 
A14: Nourriture pour chiens | C14: =_xlfn.XLOOKUP(A14,DATA[Code de produit],DATA[Description],"") ->  | D14: =_xlfn.XLOOKUP(A14,DATA[Code de produit],DATA[CUP/unité],"") ->  | E14: =_xlfn.XLOOKUP(A14,DATA[Code de produit],DATA[Format],"") ->  | F14: =_xlfn.XLOOKUP(A14,DATA[Code de produit],DATA[Sélection],"") ->  | G14: =_xlfn.XLOOKUP(A14,DATA[Code de produit],DATA[EMB.],"") ->  | H14: =_xlfn.XLOOKUP(A14,DATA[Code de produit],DATA[B],"") ->  | I14: =_xlfn.XLOOKUP(A14,DATA[Code de produit],DATA[C],"") ->  | J14: =_xlfn.XLOOKUP(A14,DATA[Code de produit],DATA[V],"") ->  | K14: =_xlfn.XLOOKUP(A14,DATA[Code de produit],DATA[SG],"") ->  | L14: =_xlfn.XLOOKUP(A14,DATA[Code de produit],DATA[SO],"") ->  | M14: =_xlfn.XLOOKUP(A14,DATA[Code de produit],DATA[H],"") ->  | N14: =_xlfn.XLOOKUP(A14,DATA[Code de produit],DATA[FC],"") ->  | O14: =_xlfn.XLOOKUP(A14,DATA[Code de produit],DATA[CC],"") ->  | P14: =_xlfn.XLOOKUP(A14,DATA[Code de produit],DATA[PC],"") ->  | Q14: =_xlfn.XLOOKUP(A14,DATA[Code de produit],DATA[Jours garantis],"") ->  | R14: =_xlfn.XLOOKUP(A14,DATA[Code de produit],DATA[Entreposage],"") ->  | S14: =_xlfn.XLOOKUP(A14,DATA[Code de produit],DATA[Prix],"") ->  | T14: =_xlfn.XLOOKUP(A14,DATA[Code de produit],DATA[Promo mensuelle],"") ->  | U14: =_xlfn.XLOOKUP(A14,DATA[Code de produit],DATA[Rabais promo],"") ->  | V14: =_xlfn.XLOOKUP(A14,DATA[Code de produit],DATA[PDS],"") ->  | W14: =_xlfn.XLOOKUP(A14,DATA[Code de produit],DATA[Classement des produits],"") -> 
A15: SN5045 | C15: =_xlfn.XLOOKUP(A15,DATA[Code de produit],DATA[Description],"") -> Nourriture sèche bien-être complet riche en nutriments | D15: =_xlfn.XLOOKUP(A15,DATA[Code de produit],DATA[CUP/unité],"") -> 628942605048 | E15: =_xlfn.XLOOKUP(A15,DATA[Code de produit],DATA[Format],"") -> 1.58KG | F15: =_xlfn.XLOOKUP(A15,DATA[Code de produit],DATA[Sélection],"") -> CS | G15: =_xlfn.XLOOKUP(A15,DATA[Code de produit],DATA[EMB.],"") -> 4 | H15: =_xlfn.XLOOKUP(A15,DATA[Code de produit],DATA[B],"") -> 0 | I15: =_xlfn.XLOOKUP(A15,DATA[Code de produit],DATA[C],"") -> 0 | J15: =_xlfn.XLOOKUP(A15,DATA[Code de produit],DATA[V],"") -> 0 | K15: =_xlfn.XLOOKUP(A15,DATA[Code de produit],DATA[SG],"") -> 0 | L15: =_xlfn.XLOOKUP(A15,DATA[Code de produit],DATA[SO],"") -> 0 | M15: =_xlfn.XLOOKUP(A15,DATA[Code de produit],DATA[H],"") -> 0 | N15: =_xlfn.XLOOKUP(A15,DATA[Code de produit],DATA[FC],"") -> O | O15: =_xlfn.XLOOKUP(A15,DATA[Code de produit],DATA[CC],"") -> O | P15: =_xlfn.XLOOKUP(A15,DATA[Code de produit],DATA[PC],"") -> 0 | Q15: =_xlfn.XLOOKUP(A15,DATA[Code de produit],DATA[Jours garantis],"") -> 164 | R15: =_xlfn.XLOOKUP(A15,DATA[Code de produit],DATA[Entreposage],"") -> SEC | S15: =_xlfn.XLOOKUP(A15,DATA[Code de produit],DATA[Prix],"") -> 81,17$ | T15: =_xlfn.XLOOKUP(A15,DATA[Code de produit],DATA[Promo mensuelle],"") -> 0 | U15: =_xlfn.XLOOKUP(A15,DATA[Code de produit],DATA[Rabais promo],"") -> 0 | V15: =_xlfn.XLOOKUP(A15,DATA[Code de produit],DATA[PDS],"") -> 28.99 | W15: =_xlfn.XLOOKUP(A15,DATA[Code de produit],DATA[Classement des produits],"") -> 0
A16: Collations pour chiens | C16: =_xlfn.XLOOKUP(A16,DATA[Code de produit],DATA[Description],"") ->  | D16: =_xlfn.XLOOKUP(A16,DATA[Code de produit],DATA[CUP/unité],"") ->  | E16: =_xlfn.XLOOKUP(A16,DATA[Code de produit],DATA[Format],"") ->  | F16: =_xlfn.XLOOKUP(A16,DATA[Code de produit],DATA[Sélection],"") ->  | G16: =_xlfn.XLOOKUP(A16,DATA[Code de produit],DATA[EMB.],"") ->  | H16: =_xlfn.XLOOKUP(A16,DATA[Code de produit],DATA[B],"") ->  | I16: =_xlfn.XLOOKUP(A16,DATA[Code de produit],DATA[C],"") ->  | J16: =_xlfn.XLOOKUP(A16,DATA[Code de produit],DATA[V],"") ->  | K16: =_xlfn.XLOOKUP(A16,DATA[Code de produit],DATA[SG],"") ->  | L16: =_xlfn.XLOOKUP(A16,DATA[Code de produit],DATA[SO],"") ->  | M16: =_xlfn.XLOOKUP(A16,DATA[Code de produit],DATA[H],"") ->  | N16: =_xlfn.XLOOKUP(A16,DATA[Code de produit],DATA[FC],"") ->  | O16: =_xlfn.XLOOKUP(A16,DATA[Code de produit],DATA[CC],"") ->  | P16: =_xlfn.XLOOKUP(A16,DATA[Code de produit],DATA[PC],"") ->  | Q16: =_xlfn.XLOOKUP(A16,DATA[Code de produit],DATA[Jours garantis],"") ->  | R16: =_xlfn.XLOOKUP(A16,DATA[Code de produit],DATA[Entreposage],"") ->  | S16: =_xlfn.XLOOKUP(A16,DATA[Code de produit],DATA[Prix],"") ->  | T16: =_xlfn.XLOOKUP(A16,DATA[Code de produit],DATA[Promo mensuelle],"") ->  | U16: =_xlfn.XLOOKUP(A16,DATA[Code de produit],DATA[Rabais promo],"") ->  | V16: =_xlfn.XLOOKUP(A16,DATA[Code de produit],DATA[PDS],"") ->  | W16: =_xlfn.XLOOKUP(A16,DATA[Code de produit],DATA[Classement des produits],"") -> 
A17: SN0072 | C17: =_xlfn.XLOOKUP(A17,DATA[Code de produit],DATA[Description],"") -> Gâteries Peau et pelage en santé | D17: =_xlfn.XLOOKUP(A17,DATA[Code de produit],DATA[CUP/unité],"") -> 628942070075 | E17: =_xlfn.XLOOKUP(A17,DATA[Code de produit],DATA[Format],"") -> 130G | F17: =_xlfn.XLOOKUP(A17,DATA[Code de produit],DATA[Sélection],"") -> CS | G17: =_xlfn.XLOOKUP(A17,DATA[Code de produit],DATA[EMB.],"") -> 6 | H17: =_xlfn.XLOOKUP(A17,DATA[Code de produit],DATA[B],"") -> 0 | I17: =_xlfn.XLOOKUP(A17,DATA[Code de produit],DATA[C],"") -> 0 | J17: =_xlfn.XLOOKUP(A17,DATA[Code de produit],DATA[V],"") -> 0 | K17: =_xlfn.XLOOKUP(A17,DATA[Code de produit],DATA[SG],"") -> 0 | L17: =_xlfn.XLOOKUP(A17,DATA[Code de produit],DATA[SO],"") -> 0 | M17: =_xlfn.XLOOKUP(A17,DATA[Code de produit],DATA[H],"") -> 0 | N17: =_xlfn.XLOOKUP(A17,DATA[Code de produit],DATA[FC],"") -> O | O17: =_xlfn.XLOOKUP(A17,DATA[Code de produit],DATA[CC],"") -> O | P17: =_xlfn.XLOOKUP(A17,DATA[Code de produit],DATA[PC],"") -> 0 | Q17: =_xlfn.XLOOKUP(A17,DATA[Code de produit],DATA[Jours garantis],"") -> 164 | R17: =_xlfn.XLOOKUP(A17,DATA[Code de produit],DATA[Entreposage],"") -> SEC | S17: =_xlfn.XLOOKUP(A17,DATA[Code de produit],DATA[Prix],"") -> 47,15$ | T17: =_xlfn.XLOOKUP(A17,DATA[Code de produit],DATA[Promo mensuelle],"") -> 0 | U17: =_xlfn.XLOOKUP(A17,DATA[Code de produit],DATA[Rabais promo],"") -> 0 | V17: =_xlfn.XLOOKUP(A17,DATA[Code de produit],DATA[PDS],"") -> 9.99 | W17: =_xlfn.XLOOKUP(A17,DATA[Code de produit],DATA[Classement des produits],"") -> 0
A18: SN0065 | C18: =_xlfn.XLOOKUP(A18,DATA[Code de produit],DATA[Description],"") -> Gâteries boost oméga | D18: =_xlfn.XLOOKUP(A18,DATA[Code de produit],DATA[CUP/unité],"") -> 628942070068 | E18: =_xlfn.XLOOKUP(A18,DATA[Code de produit],DATA[Format],"") -> 130G | F18: =_xlfn.XLOOKUP(A18,DATA[Code de produit],DATA[Sélection],"") -> CS | G18: =_xlfn.XLOOKUP(A18,DATA[Code de produit],DATA[EMB.],"") -> 6 | H18: =_xlfn.XLOOKUP(A18,DATA[Code de produit],DATA[B],"") -> 0 | I18: =_xlfn.XLOOKUP(A18,DATA[Code de produit],DATA[C],"") -> 0 | J18: =_xlfn.XLOOKUP(A18,DATA[Code de produit],DATA[V],"") -> 0 | K18: =_xlfn.XLOOKUP(A18,DATA[Code de produit],DATA[SG],"") -> 0 | L18: =_xlfn.XLOOKUP(A18,DATA[Code de produit],DATA[SO],"") -> 0 | M18: =_xlfn.XLOOKUP(A18,DATA[Code de produit],DATA[H],"") -> 0 | N18: =_xlfn.XLOOKUP(A18,DATA[Code de produit],DATA[FC],"") -> O | O18: =_xlfn.XLOOKUP(A18,DATA[Code de produit],DATA[CC],"") -> O | P18: =_xlfn.XLOOKUP(A18,DATA[Code de produit],DATA[PC],"") -> 0 | Q18: =_xlfn.XLOOKUP(A18,DATA[Code de produit],DATA[Jours garantis],"") -> 164 | R18: =_xlfn.XLOOKUP(A18,DATA[Code de produit],DATA[Entreposage],"") -> SEC | S18: =_xlfn.XLOOKUP(A18,DATA[Code de produit],DATA[Prix],"") -> 47,15$ | T18: =_xlfn.XLOOKUP(A18,DATA[Code de produit],DATA[Promo mensuelle],"") -> 0 | U18: =_xlfn.XLOOKUP(A18,DATA[Code de produit],DATA[Rabais promo],"") -> 0 | V18: =_xlfn.XLOOKUP(A18,DATA[Code de produit],DATA[PDS],"") -> 9.99 | W18: =_xlfn.XLOOKUP(A18,DATA[Code de produit],DATA[Classement des produits],"") -> 0
A19: SN0058 | C19: =_xlfn.XLOOKUP(A19,DATA[Code de produit],DATA[Description],"") -> Gâteries boost prébiotique | D19: =_xlfn.XLOOKUP(A19,DATA[Code de produit],DATA[CUP/unité],"") -> 628942070051 | E19: =_xlfn.XLOOKUP(A19,DATA[Code de produit],DATA[Format],"") -> 130G | F19: =_xlfn.XLOOKUP(A19,DATA[Code de produit],DATA[Sélection],"") -> CS | G19: =_xlfn.XLOOKUP(A19,DATA[Code de produit],DATA[EMB.],"") -> 6 | H19: =_xlfn.XLOOKUP(A19,DATA[Code de produit],DATA[B],"") -> 0 | I19: =_xlfn.XLOOKUP(A19,DATA[Code de produit],DATA[C],"") -> 0 | J19: =_xlfn.XLOOKUP(A19,DATA[Code de produit],DATA[V],"") -> 0 | K19: =_xlfn.XLOOKUP(A19,DATA[Code de produit],DATA[SG],"") -> 0 | L19: =_xlfn.XLOOKUP(A19,DATA[Code de produit],DATA[SO],"") -> 0 | M19: =_xlfn.XLOOKUP(A19,DATA[Code de produit],DATA[H],"") -> 0 | N19: =_xlfn.XLOOKUP(A19,DATA[Code de produit],DATA[FC],"") -> O | O19: =_xlfn.XLOOKUP(A19,DATA[Code de produit],DATA[CC],"") -> O | P19: =_xlfn.XLOOKUP(A19,DATA[Code de produit],DATA[PC],"") -> 0 | Q19: =_xlfn.XLOOKUP(A19,DATA[Code de produit],DATA[Jours garantis],"") -> 164 | R19: =_xlfn.XLOOKUP(A19,DATA[Code de produit],DATA[Entreposage],"") -> SEC | S19: =_xlfn.XLOOKUP(A19,DATA[Code de produit],DATA[Prix],"") -> 47,15$ | T19: =_xlfn.XLOOKUP(A19,DATA[Code de produit],DATA[Promo mensuelle],"") -> 0 | U19: =_xlfn.XLOOKUP(A19,DATA[Code de produit],DATA[Rabais promo],"") -> 0 | V19: =_xlfn.XLOOKUP(A19,DATA[Code de produit],DATA[PDS],"") -> 9.99 | W19: =_xlfn.XLOOKUP(A19,DATA[Code de produit],DATA[Classement des produits],"") -> 0
A20: SN0089 | C20: =_xlfn.XLOOKUP(A20,DATA[Code de produit],DATA[Description],"") -> Gâteries mélange bien-être | D20: =_xlfn.XLOOKUP(A20,DATA[Code de produit],DATA[CUP/unité],"") -> 628942070082 | E20: =_xlfn.XLOOKUP(A20,DATA[Code de produit],DATA[Format],"") -> 130G | F20: =_xlfn.XLOOKUP(A20,DATA[Code de produit],DATA[Sélection],"") -> CS | G20: =_xlfn.XLOOKUP(A20,DATA[Code de produit],DATA[EMB.],"") -> 6 | H20: =_xlfn.XLOOKUP(A20,DATA[Code de produit],DATA[B],"") -> 0 | I20: =_xlfn.XLOOKUP(A20,DATA[Code de produit],DATA[C],"") -> 0 | J20: =_xlfn.XLOOKUP(A20,DATA[Code de produit],DATA[V],"") -> 0 | K20: =_xlfn.XLOOKUP(A20,DATA[Code de produit],DATA[SG],"") -> 0 | L20: =_xlfn.XLOOKUP(A20,DATA[Code de produit],DATA[SO],"") -> 0 | M20: =_xlfn.XLOOKUP(A20,DATA[Code de produit],DATA[H],"") -> 0 | N20: =_xlfn.XLOOKUP(A20,DATA[Code de produit],DATA[FC],"") -> O | O20: =_xlfn.XLOOKUP(A20,DATA[Code de produit],DATA[CC],"") -> O | P20: =_xlfn.XLOOKUP(A20,DATA[Code de produit],DATA[PC],"") -> 0 | Q20: =_xlfn.XLOOKUP(A20,DATA[Code de produit],DATA[Jours garantis],"") -> 164 | R20: =_xlfn.XLOOKUP(A20,DATA[Code de produit],DATA[Entreposage],"") -> SEC | S20: =_xlfn.XLOOKUP(A20,DATA[Code de produit],DATA[Prix],"") -> 47,15$ | T20: =_xlfn.XLOOKUP(A20,DATA[Code de produit],DATA[Promo mensuelle],"") -> 0 | U20: =_xlfn.XLOOKUP(A20,DATA[Code de produit],DATA[Rabais promo],"") -> 0 | V20: =_xlfn.XLOOKUP(A20,DATA[Code de produit],DATA[PDS],"") -> 9.99 | W20: =_xlfn.XLOOKUP(A20,DATA[Code de produit],DATA[Classement des produits],"") -> 0
A21: SN5052 | C21: =_xlfn.XLOOKUP(A21,DATA[Code de produit],DATA[Description],"") -> Gâteries soin apaisant | D21: =_xlfn.XLOOKUP(A21,DATA[Code de produit],DATA[CUP/unité],"") -> 628942605055 | E21: =_xlfn.XLOOKUP(A21,DATA[Code de produit],DATA[Format],"") -> 130G | F21: =_xlfn.XLOOKUP(A21,DATA[Code de produit],DATA[Sélection],"") -> CS | G21: =_xlfn.XLOOKUP(A21,DATA[Code de produit],DATA[EMB.],"") -> 6 | H21: =_xlfn.XLOOKUP(A21,DATA[Code de produit],DATA[B],"") -> 0 | I21: =_xlfn.XLOOKUP(A21,DATA[Code de produit],DATA[C],"") -> 0 | J21: =_xlfn.XLOOKUP(A21,DATA[Code de produit],DATA[V],"") -> 0 | K21: =_xlfn.XLOOKUP(A21,DATA[Code de produit],DATA[SG],"") -> 0 | L21: =_xlfn.XLOOKUP(A21,DATA[Code de produit],DATA[SO],"") -> 0 | M21: =_xlfn.XLOOKUP(A21,DATA[Code de produit],DATA[H],"") -> 0 | N21: =_xlfn.XLOOKUP(A21,DATA[Code de produit],DATA[FC],"") -> O | O21: =_xlfn.XLOOKUP(A21,DATA[Code de produit],DATA[CC],"") -> O | P21: =_xlfn.XLOOKUP(A21,DATA[Code de produit],DATA[PC],"") -> 0 | Q21: =_xlfn.XLOOKUP(A21,DATA[Code de produit],DATA[Jours garantis],"") -> 164 | R21: =_xlfn.XLOOKUP(A21,DATA[Code de produit],DATA[Entreposage],"") -> SEC | S21: =_xlfn.XLOOKUP(A21,DATA[Code de produit],DATA[Prix],"") -> 47,15$ | T21: =_xlfn.XLOOKUP(A21,DATA[Code de produit],DATA[Promo mensuelle],"") -> 0 | U21: =_xlfn.XLOOKUP(A21,DATA[Code de produit],DATA[Rabais promo],"") -> 0 | V21: =_xlfn.XLOOKUP(A21,DATA[Code de produit],DATA[PDS],"") -> 9.99 | W21: =_xlfn.XLOOKUP(A21,DATA[Code de produit],DATA[Classement des produits],"") -> 0
A22: ARTISANA | C22: =_xlfn.XLOOKUP(A22,DATA[Code de produit],DATA[Description],"") ->  | D22: =_xlfn.XLOOKUP(A22,DATA[Code de produit],DATA[CUP/unité],"") ->  | E22: =_xlfn.XLOOKUP(A22,DATA[Code de produit],DATA[Format],"") ->  | F22: =_xlfn.XLOOKUP(A22,DATA[Code de produit],DATA[Sélection],"") ->  | G22: =_xlfn.XLOOKUP(A22,DATA[Code de produit],DATA[EMB.],"") ->  | H22: =_xlfn.XLOOKUP(A22,DATA[Code de produit],DATA[B],"") ->  | I22: =_xlfn.XLOOKUP(A22,DATA[Code de produit],DATA[C],"") ->  | J22: =_xlfn.XLOOKUP(A22,DATA[Code de produit],DATA[V],"") ->  | K22: =_xlfn.XLOOKUP(A22,DATA[Code de produit],DATA[SG],"") ->  | L22: =_xlfn.XLOOKUP(A22,DATA[Code de produit],DATA[SO],"") ->  | M22: =_xlfn.XLOOKUP(A22,DATA[Code de produit],DATA[H],"") ->  | N22: =_xlfn.XLOOKUP(A22,DATA[Code de produit],DATA[FC],"") ->  | O22: =_xlfn.XLOOKUP(A22,DATA[Code de produit],DATA[CC],"") ->  | P22: =_xlfn.XLOOKUP(A22,DATA[Code de produit],DATA[PC],"") ->  | Q22: =_xlfn.XLOOKUP(A22,DATA[Code de produit],DATA[Jours garantis],"") ->  | R22: =_xlfn.XLOOKUP(A22,DATA[Code de produit],DATA[Entreposage],"") ->  | S22: =_xlfn.XLOOKUP(A22,DATA[Code de produit],DATA[Prix],"") ->  | T22: =_xlfn.XLOOKUP(A22,DATA[Code de produit],DATA[Promo mensuelle],"") ->  | U22: =_xlfn.XLOOKUP(A22,DATA[Code de produit],DATA[Rabais promo],"") ->  | V22: =_xlfn.XLOOKUP(A22,DATA[Code de produit],DATA[PDS],"") ->  | W22: =_xlfn.XLOOKUP(A22,DATA[Code de produit],DATA[Classement des produits],"") -> 
A23: Beurre de noix | C23: =_xlfn.XLOOKUP(A23,DATA[Code de produit],DATA[Description],"") ->  | D23: =_xlfn.XLOOKUP(A23,DATA[Code de produit],DATA[CUP/unité],"") ->  | E23: =_xlfn.XLOOKUP(A23,DATA[Code de produit],DATA[Format],"") ->  | F23: =_xlfn.XLOOKUP(A23,DATA[Code de produit],DATA[Sélection],"") ->  | G23: =_xlfn.XLOOKUP(A23,DATA[Code de produit],DATA[EMB.],"") ->  | H23: =_xlfn.XLOOKUP(A23,DATA[Code de produit],DATA[B],"") ->  | I23: =_xlfn.XLOOKUP(A23,DATA[Code de produit],DATA[C],"") ->  | J23: =_xlfn.XLOOKUP(A23,DATA[Code de produit],DATA[V],"") ->  | K23: =_xlfn.XLOOKUP(A23,DATA[Code de produit],DATA[SG],"") ->  | L23: =_xlfn.XLOOKUP(A23,DATA[Code de produit],DATA[SO],"") ->  | M23: =_xlfn.XLOOKUP(A23,DATA[Code de produit],DATA[H],"") ->  | N23: =_xlfn.XLOOKUP(A23,DATA[Code de produit],DATA[FC],"") ->  | O23: =_xlfn.XLOOKUP(A23,DATA[Code de produit],DATA[CC],"") ->  | P23: =_xlfn.XLOOKUP(A23,DATA[Code de produit],DATA[PC],"") ->  | Q23: =_xlfn.XLOOKUP(A23,DATA[Code de produit],DATA[Jours garantis],"") ->  | R23: =_xlfn.XLOOKUP(A23,DATA[Code de produit],DATA[Entreposage],"") ->  | S23: =_xlfn.XLOOKUP(A23,DATA[Code de produit],DATA[Prix],"") ->  | T23: =_xlfn.XLOOKUP(A23,DATA[Code de produit],DATA[Promo mensuelle],"") ->  | U23: =_xlfn.XLOOKUP(A23,DATA[Code de produit],DATA[Rabais promo],"") ->  | V23: =_xlfn.XLOOKUP(A23,DATA[Code de produit],DATA[PDS],"") ->  | W23: =_xlfn.XLOOKUP(A23,DATA[Code de produit],DATA[Classement des produits],"") -> 
A24: ART0116 | C24: =_xlfn.XLOOKUP(A24,DATA[Code de produit],DATA[Description],"") -> Beurre aux noix de Grenoble | D24: =_xlfn.XLOOKUP(A24,DATA[Code de produit],DATA[CUP/unité],"") -> 870001000664 | E24: =_xlfn.XLOOKUP(A24,DATA[Code de produit],DATA[Format],"") -> 227G | F24: =_xlfn.XLOOKUP(A24,DATA[Code de produit],DATA[Sélection],"") -> CS | G24: =_xlfn.XLOOKUP(A24,DATA[Code de produit],DATA[EMB.],"") -> 6 | H24: =_xlfn.XLOOKUP(A24,DATA[Code de produit],DATA[B],"") -> O | I24: =_xlfn.XLOOKUP(A24,DATA[Code de produit],DATA[C],"") -> O | J24: =_xlfn.XLOOKUP(A24,DATA[Code de produit],DATA[V],"") -> O | K24: =_xlfn.XLOOKUP(A24,DATA[Code de produit],DATA[SG],"") -> 0 | L24: =_xlfn.XLOOKUP(A24,DATA[Code de produit],DATA[SO],"") -> O | M24: =_xlfn.XLOOKUP(A24,DATA[Code de produit],DATA[H],"") -> 0 | N24: =_xlfn.XLOOKUP(A24,DATA[Code de produit],DATA[FC],"") -> 0 | O24: =_xlfn.XLOOKUP(A24,DATA[Code de produit],DATA[CC],"") -> 0 | P24: =_xlfn.XLOOKUP(A24,DATA[Code de produit],DATA[PC],"") -> 0 | Q24: =_xlfn.XLOOKUP(A24,DATA[Code de produit],DATA[Jours garantis],"") -> 137 | R24: =_xlfn.XLOOKUP(A24,DATA[Code de produit],DATA[Entreposage],"") -> SEC | S24: =_xlfn.XLOOKUP(A24,DATA[Code de produit],DATA[Prix],"") -> 90,00$ | T24: =_xlfn.XLOOKUP(A24,DATA[Code de produit],DATA[Promo mensuelle],"") -> 0 | U24: =_xlfn.XLOOKUP(A24,DATA[Code de produit],DATA[Rabais promo],"") -> 0 | V24: =_xlfn.XLOOKUP(A24,DATA[Code de produit],DATA[PDS],"") -> 21.99 | W24: =_xlfn.XLOOKUP(A24,DATA[Code de produit],DATA[Classement des produits],"") -> 3
A25: ART0112 | C25: =_xlfn.XLOOKUP(A25,DATA[Code de produit],DATA[Description],"") -> Beurre aux noix de cajou | D25: =_xlfn.XLOOKUP(A25,DATA[Code de produit],DATA[CUP/unité],"") -> 870001000220 | E25: =_xlfn.XLOOKUP(A25,DATA[Code de produit],DATA[Format],"") -> 227G | F25: =_xlfn.XLOOKUP(A25,DATA[Code de produit],DATA[Sélection],"") -> CS | G25: =_xlfn.XLOOKUP(A25,DATA[Code de produit],DATA[EMB.],"") -> 6 | H25: =_xlfn.XLOOKUP(A25,DATA[Code de produit],DATA[B],"") -> O | I25: =_xlfn.XLOOKUP(A25,DATA[Code de produit],DATA[C],"") -> O | J25: =_xlfn.XLOOKUP(A25,DATA[Code de produit],DATA[V],"") -> O | K25: =_xlfn.XLOOKUP(A25,DATA[Code de produit],DATA[SG],"") -> 0 | L25: =_xlfn.XLOOKUP(A25,DATA[Code de produit],DATA[SO],"") -> O | M25: =_xlfn.XLOOKUP(A25,DATA[Code de produit],DATA[H],"") -> 0 | N25: =_xlfn.XLOOKUP(A25,DATA[Code de produit],DATA[FC],"") -> 0 | O25: =_xlfn.XLOOKUP(A25,DATA[Code de produit],DATA[CC],"") -> 0 | P25: =_xlfn.XLOOKUP(A25,DATA[Code de produit],DATA[PC],"") -> 0 | Q25: =_xlfn.XLOOKUP(A25,DATA[Code de produit],DATA[Jours garantis],"") -> 137 | R25: =_xlfn.XLOOKUP(A25,DATA[Code de produit],DATA[Entreposage],"") -> SEC | S25: =_xlfn.XLOOKUP(A25,DATA[Code de produit],DATA[Prix],"") -> 64,25$ | T25: =_xlfn.XLOOKUP(A25,DATA[Code de produit],DATA[Promo mensuelle],"") -> 0 | U25: =_xlfn.XLOOKUP(A25,DATA[Code de produit],DATA[Rabais promo],"") -> 0 | V25: =_xlfn.XLOOKUP(A25,DATA[Code de produit],DATA[PDS],"") -> 15.99 | W25: =_xlfn.XLOOKUP(A25,DATA[Code de produit],DATA[Classement des produits],"") -> 2
A26: ART0114 | C26: =_xlfn.XLOOKUP(A26,DATA[Code de produit],DATA[Description],"") -> Beurre aux pacanes | D26: =_xlfn.XLOOKUP(A26,DATA[Code de produit],DATA[CUP/unité],"") -> 870001000565 | E26: =_xlfn.XLOOKUP(A26,DATA[Code de produit],DATA[Format],"") -> 227G | F26: =_xlfn.XLOOKUP(A26,DATA[Code de produit],DATA[Sélection],"") -> CS | G26: =_xlfn.XLOOKUP(A26,DATA[Code de produit],DATA[EMB.],"") -> 6 | H26: =_xlfn.XLOOKUP(A26,DATA[Code de produit],DATA[B],"") -> O | I26: =_xlfn.XLOOKUP(A26,DATA[Code de produit],DATA[C],"") -> O | J26: =_xlfn.XLOOKUP(A26,DATA[Code de produit],DATA[V],"") -> O | K26: =_xlfn.XLOOKUP(A26,DATA[Code de produit],DATA[SG],"") -> 0 | L26: =_xlfn.XLOOKUP(A26,DATA[Code de produit],DATA[SO],"") -> O | M26: =_xlfn.XLOOKUP(A26,DATA[Code de produit],DATA[H],"") -> 0 | N26: =_xlfn.XLOOKUP(A26,DATA[Code de produit],DATA[FC],"") -> 0 | O26: =_xlfn.XLOOKUP(A26,DATA[Code de produit],DATA[CC],"") -> 0 | P26: =_xlfn.XLOOKUP(A26,DATA[Code de produit],DATA[PC],"") -> 0 | Q26: =_xlfn.XLOOKUP(A26,DATA[Code de produit],DATA[Jours garantis],"") -> 137 | R26: =_xlfn.XLOOKUP(A26,DATA[Code de produit],DATA[Entreposage],"") -> SEC | S26: =_xlfn.XLOOKUP(A26,DATA[Code de produit],DATA[Prix],"") -> 81,00$ | T26: =_xlfn.XLOOKUP(A26,DATA[Code de produit],DATA[Promo mensuelle],"") -> 0 | U26: =_xlfn.XLOOKUP(A26,DATA[Code de produit],DATA[Rabais promo],"") -> 0 | V26: =_xlfn.XLOOKUP(A26,DATA[Code de produit],DATA[PDS],"") -> 19.99 | W26: =_xlfn.XLOOKUP(A26,DATA[Code de produit],DATA[Classement des produits],"") -> 6
A27: ART0117 | C27: =_xlfn.XLOOKUP(A27,DATA[Code de produit],DATA[Description],"") -> Tartinade de cacao et noix de cajou | D27: =_xlfn.XLOOKUP(A27,DATA[Code de produit],DATA[CUP/unité],"") -> 870001000930 | E27: =_xlfn.XLOOKUP(A27,DATA[Code de produit],DATA[Format],"") -> 227G | F27: =_xlfn.XLOOKUP(A27,DATA[Code de produit],DATA[Sélection],"") -> CS | G27: =_xlfn.XLOOKUP(A27,DATA[Code de produit],DATA[EMB.],"") -> 6 | H27: =_xlfn.XLOOKUP(A27,DATA[Code de produit],DATA[B],"") -> O | I27: =_xlfn.XLOOKUP(A27,DATA[Code de produit],DATA[C],"") -> O | J27: =_xlfn.XLOOKUP(A27,DATA[Code de produit],DATA[V],"") -> O | K27: =_xlfn.XLOOKUP(A27,DATA[Code de produit],DATA[SG],"") -> 0 | L27: =_xlfn.XLOOKUP(A27,DATA[Code de produit],DATA[SO],"") -> O | M27: =_xlfn.XLOOKUP(A27,DATA[Code de produit],DATA[H],"") -> 0 | N27: =_xlfn.XLOOKUP(A27,DATA[Code de produit],DATA[FC],"") -> 0 | O27: =_xlfn.XLOOKUP(A27,DATA[Code de produit],DATA[CC],"") -> 0 | P27: =_xlfn.XLOOKUP(A27,DATA[Code de produit],DATA[PC],"") -> 0 | Q27: =_xlfn.XLOOKUP(A27,DATA[Code de produit],DATA[Jours garantis],"") -> 137 | R27: =_xlfn.XLOOKUP(A27,DATA[Code de produit],DATA[Entreposage],"") -> SEC | S27: =_xlfn.XLOOKUP(A27,DATA[Code de produit],DATA[Prix],"") -> 58,25$ | T27: =_xlfn.XLOOKUP(A27,DATA[Code de produit],DATA[Promo mensuelle],"") -> 0 | U27: =_xlfn.XLOOKUP(A27,DATA[Code de produit],DATA[Rabais promo],"") -> 0 | V27: =_xlfn.XLOOKUP(A27,DATA[Code de produit],DATA[PDS],"") -> 14.49 | W27: =_xlfn.XLOOKUP(A27,DATA[Code de produit],DATA[Classement des produits],"") -> 9
A28: ART0111 | C28: =_xlfn.XLOOKUP(A28,DATA[Code de produit],DATA[Description],"") -> Beurre d'amande | D28: =_xlfn.XLOOKUP(A28,DATA[Code de produit],DATA[CUP/unité],"") -> 870001002866 | E28: =_xlfn.XLOOKUP(A28,DATA[Code de produit],DATA[Format],"") -> 397G | F28: =_xlfn.XLOOKUP(A28,DATA[Code de produit],DATA[Sélection],"") -> CS | G28: =_xlfn.XLOOKUP(A28,DATA[Code de produit],DATA[EMB.],"") -> 6 | H28: =_xlfn.XLOOKUP(A28,DATA[Code de produit],DATA[B],"") -> O | I28: =_xlfn.XLOOKUP(A28,DATA[Code de produit],DATA[C],"") -> O | J28: =_xlfn.XLOOKUP(A28,DATA[Code de produit],DATA[V],"") -> O | K28: =_xlfn.XLOOKUP(A28,DATA[Code de produit],DATA[SG],"") -> 0 | L28: =_xlfn.XLOOKUP(A28,DATA[Code de produit],DATA[SO],"") -> O | M28: =_xlfn.XLOOKUP(A28,DATA[Code de produit],DATA[H],"") -> 0 | N28: =_xlfn.XLOOKUP(A28,DATA[Code de produit],DATA[FC],"") -> 0 | O28: =_xlfn.XLOOKUP(A28,DATA[Code de produit],DATA[CC],"") -> 0 | P28: =_xlfn.XLOOKUP(A28,DATA[Code de produit],DATA[PC],"") -> 0 | Q28: =_xlfn.XLOOKUP(A28,DATA[Code de produit],DATA[Jours garantis],"") -> 164 | R28: =_xlfn.XLOOKUP(A28,DATA[Code de produit],DATA[Entreposage],"") -> SEC | S28: =_xlfn.XLOOKUP(A28,DATA[Code de produit],DATA[Prix],"") -> 114,73$ | T28: =_xlfn.XLOOKUP(A28,DATA[Code de produit],DATA[Promo mensuelle],"") -> Offre de janvier | U28: =_xlfn.XLOOKUP(A28,DATA[Code de produit],DATA[Rabais promo],"") -> ÉCONOMISEZ 15% | V28: =_xlfn.XLOOKUP(A28,DATA[Code de produit],DATA[PDS],"") -> 28.99 | W28: =_xlfn.XLOOKUP(A28,DATA[Code de produit],DATA[Classement des produits],"") -> 7
A29: ART0113 | C29: =_xlfn.XLOOKUP(A29,DATA[Code de produit],DATA[Description],"") -> Beurre de coco | D29: =_xlfn.XLOOKUP(A29,DATA[Code de produit],DATA[CUP/unité],"") -> 870001002880 | E29: =_xlfn.XLOOKUP(A29,DATA[Code de produit],DATA[Format],"") -> 397G | F29: =_xlfn.XLOOKUP(A29,DATA[Code de produit],DATA[Sélection],"") -> CS | G29: =_xlfn.XLOOKUP(A29,DATA[Code de produit],DATA[EMB.],"") -> 6 | H29: =_xlfn.XLOOKUP(A29,DATA[Code de produit],DATA[B],"") -> O | I29: =_xlfn.XLOOKUP(A29,DATA[Code de produit],DATA[C],"") -> O | J29: =_xlfn.XLOOKUP(A29,DATA[Code de produit],DATA[V],"") -> O | K29: =_xlfn.XLOOKUP(A29,DATA[Code de produit],DATA[SG],"") -> 0 | L29: =_xlfn.XLOOKUP(A29,DATA[Code de produit],DATA[SO],"") -> O | M29: =_xlfn.XLOOKUP(A29,DATA[Code de produit],DATA[H],"") -> 0 | N29: =_xlfn.XLOOKUP(A29,DATA[Code de produit],DATA[FC],"") -> 0 | O29: =_xlfn.XLOOKUP(A29,DATA[Code de produit],DATA[CC],"") -> 0 | P29: =_xlfn.XLOOKUP(A29,DATA[Code de produit],DATA[PC],"") -> 0 | Q29: =_xlfn.XLOOKUP(A29,DATA[Code de produit],DATA[Jours garantis],"") -> 137 | R29: =_xlfn.XLOOKUP(A29,DATA[Code de produit],DATA[Entreposage],"") -> SEC | S29: =_xlfn.XLOOKUP(A29,DATA[Code de produit],DATA[Prix],"") -> 59,80$ | T29: =_xlfn.XLOOKUP(A29,DATA[Code de produit],DATA[Promo mensuelle],"") -> 0 | U29: =_xlfn.XLOOKUP(A29,DATA[Code de produit],DATA[Rabais promo],"") -> 0 | V29: =_xlfn.XLOOKUP(A29,DATA[Code de produit],DATA[PDS],"") -> 14.99 | W29: =_xlfn.XLOOKUP(A29,DATA[Code de produit],DATA[Classement des produits],"") -> 1
A30: ART0115 | C30: =_xlfn.XLOOKUP(A30,DATA[Code de produit],DATA[Description],"") -> Tahini cru | D30: =_xlfn.XLOOKUP(A30,DATA[Code de produit],DATA[CUP/unité],"") -> 870001002897 | E30: =_xlfn.XLOOKUP(A30,DATA[Code de produit],DATA[Format],"") -> 397G | F30: =_xlfn.XLOOKUP(A30,DATA[Code de produit],DATA[Sélection],"") -> CS | G30: =_xlfn.XLOOKUP(A30,DATA[Code de produit],DATA[EMB.],"") -> 6 | H30: =_xlfn.XLOOKUP(A30,DATA[Code de produit],DATA[B],"") -> O | I30: =_xlfn.XLOOKUP(A30,DATA[Code de produit],DATA[C],"") -> O | J30: =_xlfn.XLOOKUP(A30,DATA[Code de produit],DATA[V],"") -> O | K30: =_xlfn.XLOOKUP(A30,DATA[Code de produit],DATA[SG],"") -> 0 | L30: =_xlfn.XLOOKUP(A30,DATA[Code de produit],DATA[SO],"") -> O | M30: =_xlfn.XLOOKUP(A30,DATA[Code de produit],DATA[H],"") -> 0 | N30: =_xlfn.XLOOKUP(A30,DATA[Code de produit],DATA[FC],"") -> 0 | O30: =_xlfn.XLOOKUP(A30,DATA[Code de produit],DATA[CC],"") -> 0 | P30: =_xlfn.XLOOKUP(A30,DATA[Code de produit],DATA[PC],"") -> 0 | Q30: =_xlfn.XLOOKUP(A30,DATA[Code de produit],DATA[Jours garantis],"") -> 110 | R30: =_xlfn.XLOOKUP(A30,DATA[Code de produit],DATA[Entreposage],"") -> SEC | S30: =_xlfn.XLOOKUP(A30,DATA[Code de produit],DATA[Prix],"") -> 64,49$ | T30: =_xlfn.XLOOKUP(A30,DATA[Code de produit],DATA[Promo mensuelle],"") -> 0 | U30: =_xlfn.XLOOKUP(A30,DATA[Code de produit],DATA[Rabais promo],"") -> 0 | V30: =_xlfn.XLOOKUP(A30,DATA[Code de produit],DATA[PDS],"") -> 14.79 | W30: =_xlfn.XLOOKUP(A30,DATA[Code de produit],DATA[Classement des produits],"") -> 5
A31: Beurre de noix en contenant souple | C31: =_xlfn.XLOOKUP(A31,DATA[Code de produit],DATA[Description],"") ->  | D31: =_xlfn.XLOOKUP(A31,DATA[Code de produit],DATA[CUP/unité],"") ->  | E31: =_xlfn.XLOOKUP(A31,DATA[Code de produit],DATA[Format],"") ->  | F31: =_xlfn.XLOOKUP(A31,DATA[Code de produit],DATA[Sélection],"") ->  | G31: =_xlfn.XLOOKUP(A31,DATA[Code de produit],DATA[EMB.],"") ->  | H31: =_xlfn.XLOOKUP(A31,DATA[Code de produit],DATA[B],"") ->  | I31: =_xlfn.XLOOKUP(A31,DATA[Code de produit],DATA[C],"") ->  | J31: =_xlfn.XLOOKUP(A31,DATA[Code de produit],DATA[V],"") ->  | K31: =_xlfn.XLOOKUP(A31,DATA[Code de produit],DATA[SG],"") ->  | L31: =_xlfn.XLOOKUP(A31,DATA[Code de produit],DATA[SO],"") ->  | M31: =_xlfn.XLOOKUP(A31,DATA[Code de produit],DATA[H],"") ->  | N31: =_xlfn.XLOOKUP(A31,DATA[Code de produit],DATA[FC],"") ->  | O31: =_xlfn.XLOOKUP(A31,DATA[Code de produit],DATA[CC],"") ->  | P31: =_xlfn.XLOOKUP(A31,DATA[Code de produit],DATA[PC],"") ->  | Q31: =_xlfn.XLOOKUP(A31,DATA[Code de produit],DATA[Jours garantis],"") ->  | R31: =_xlfn.XLOOKUP(A31,DATA[Code de produit],DATA[Entreposage],"") ->  | S31: =_xlfn.XLOOKUP(A31,DATA[Code de produit],DATA[Prix],"") ->  | T31: =_xlfn.XLOOKUP(A31,DATA[Code de produit],DATA[Promo mensuelle],"") ->  | U31: =_xlfn.XLOOKUP(A31,DATA[Code de produit],DATA[Rabais promo],"") ->  | V31: =_xlfn.XLOOKUP(A31,DATA[Code de produit],DATA[PDS],"") ->  | W31: =_xlfn.XLOOKUP(A31,DATA[Code de produit],DATA[Classement des produits],"") -> 
A32: ART0208 | C32: =_xlfn.XLOOKUP(A32,DATA[Code de produit],DATA[Description],"") -> Beurre de coco dans un contenant souple (Anglais seul.) | D32: =_xlfn.XLOOKUP(A32,DATA[Code de produit],DATA[CUP/unité],"") -> 870001000091 | E32: =_xlfn.XLOOKUP(A32,DATA[Code de produit],DATA[Format],"") -> 31G | F32: =_xlfn.XLOOKUP(A32,DATA[Code de produit],DATA[Sélection],"") -> UN | G32: =_xlfn.XLOOKUP(A32,DATA[Code de produit],DATA[EMB.],"") -> 10 | H32: =_xlfn.XLOOKUP(A32,DATA[Code de produit],DATA[B],"") -> O | I32: =_xlfn.XLOOKUP(A32,DATA[Code de produit],DATA[C],"") -> O | J32: =_xlfn.XLOOKUP(A32,DATA[Code de produit],DATA[V],"") -> O | K32: =_xlfn.XLOOKUP(A32,DATA[Code de produit],DATA[SG],"") -> 0 | L32: =_xlfn.XLOOKUP(A32,DATA[Code de produit],DATA[SO],"") -> O | M32: =_xlfn.XLOOKUP(A32,DATA[Code de produit],DATA[H],"") -> 0 | N32: =_xlfn.XLOOKUP(A32,DATA[Code de produit],DATA[FC],"") -> 0 | O32: =_xlfn.XLOOKUP(A32,DATA[Code de produit],DATA[CC],"") -> 0 | P32: =_xlfn.XLOOKUP(A32,DATA[Code de produit],DATA[PC],"") -> 0 | Q32: =_xlfn.XLOOKUP(A32,DATA[Code de produit],DATA[Jours garantis],"") -> 164 | R32: =_xlfn.XLOOKUP(A32,DATA[Code de produit],DATA[Entreposage],"") -> SEC | S32: =_xlfn.XLOOKUP(A32,DATA[Code de produit],DATA[Prix],"") -> 20,00$ | T32: =_xlfn.XLOOKUP(A32,DATA[Code de produit],DATA[Promo mensuelle],"") -> 0 | U32: =_xlfn.XLOOKUP(A32,DATA[Code de produit],DATA[Rabais promo],"") -> 0 | V32: =_xlfn.XLOOKUP(A32,DATA[Code de produit],DATA[PDS],"") -> 2.99 | W32: =_xlfn.XLOOKUP(A32,DATA[Code de produit],DATA[Classement des produits],"") -> 12
A33: BALZAC'S | C33: =_xlfn.XLOOKUP(A33,DATA[Code de produit],DATA[Description],"") ->  | D33: =_xlfn.XLOOKUP(A33,DATA[Code de produit],DATA[CUP/unité],"") ->  | E33: =_xlfn.XLOOKUP(A33,DATA[Code de produit],DATA[Format],"") ->  | F33: =_xlfn.XLOOKUP(A33,DATA[Code de produit],DATA[Sélection],"") ->  | G33: =_xlfn.XLOOKUP(A33,DATA[Code de produit],DATA[EMB.],"") ->  | H33: =_xlfn.XLOOKUP(A33,DATA[Code de produit],DATA[B],"") ->  | I33: =_xlfn.XLOOKUP(A33,DATA[Code de produit],DATA[C],"") ->  | J33: =_xlfn.XLOOKUP(A33,DATA[Code de produit],DATA[V],"") ->  | K33: =_xlfn.XLOOKUP(A33,DATA[Code de produit],DATA[SG],"") ->  | L33: =_xlfn.XLOOKUP(A33,DATA[Code de produit],DATA[SO],"") ->  | M33: =_xlfn.XLOOKUP(A33,DATA[Code de produit],DATA[H],"") ->  | N33: =_xlfn.XLOOKUP(A33,DATA[Code de produit],DATA[FC],"") ->  | O33: =_xlfn.XLOOKUP(A33,DATA[Code de produit],DATA[CC],"") ->  | P33: =_xlfn.XLOOKUP(A33,DATA[Code de produit],DATA[PC],"") ->  | Q33: =_xlfn.XLOOKUP(A33,DATA[Code de produit],DATA[Jours garantis],"") ->  | R33: =_xlfn.XLOOKUP(A33,DATA[Code de produit],DATA[Entreposage],"") ->  | S33: =_xlfn.XLOOKUP(A33,DATA[Code de produit],DATA[Prix],"") ->  | T33: =_xlfn.XLOOKUP(A33,DATA[Code de produit],DATA[Promo mensuelle],"") ->  | U33: =_xlfn.XLOOKUP(A33,DATA[Code de produit],DATA[Rabais promo],"") ->  | V33: =_xlfn.XLOOKUP(A33,DATA[Code de produit],DATA[PDS],"") ->  | W33: =_xlfn.XLOOKUP(A33,DATA[Code de produit],DATA[Classement des produits],"") -> 
A34: Dosettes de café 100% compostable | C34: =_xlfn.XLOOKUP(A34,DATA[Code de produit],DATA[Description],"") ->  | D34: =_xlfn.XLOOKUP(A34,DATA[Code de produit],DATA[CUP/unité],"") ->  | E34: =_xlfn.XLOOKUP(A34,DATA[Code de produit],DATA[Format],"") ->  | F34: =_xlfn.XLOOKUP(A34,DATA[Code de produit],DATA[Sélection],"") ->  | G34: =_xlfn.XLOOKUP(A34,DATA[Code de produit],DATA[EMB.],"") ->  | H34: =_xlfn.XLOOKUP(A34,DATA[Code de produit],DATA[B],"") ->  | I34: =_xlfn.XLOOKUP(A34,DATA[Code de produit],DATA[C],"") ->  | J34: =_xlfn.XLOOKUP(A34,DATA[Code de produit],DATA[V],"") ->  | K34: =_xlfn.XLOOKUP(A34,DATA[Code de produit],DATA[SG],"") ->  | L34: =_xlfn.XLOOKUP(A34,DATA[Code de produit],DATA[SO],"") ->  | M34: =_xlfn.XLOOKUP(A34,DATA[Code de produit],DATA[H],"") ->  | N34: =_xlfn.XLOOKUP(A34,DATA[Code de produit],DATA[FC],"") ->  | O34: =_xlfn.XLOOKUP(A34,DATA[Code de produit],DATA[CC],"") ->  | P34: =_xlfn.XLOOKUP(A34,DATA[Code de produit],DATA[PC],"") ->  | Q34: =_xlfn.XLOOKUP(A34,DATA[Code de produit],DATA[Jours garantis],"") ->  | R34: =_xlfn.XLOOKUP(A34,DATA[Code de produit],DATA[Entreposage],"") ->  | S34: =_xlfn.XLOOKUP(A34,DATA[Code de produit],DATA[Prix],"") ->  | T34: =_xlfn.XLOOKUP(A34,DATA[Code de produit],DATA[Promo mensuelle],"") ->  | U34: =_xlfn.XLOOKUP(A34,DATA[Code de produit],DATA[Rabais promo],"") ->  | V34: =_xlfn.XLOOKUP(A34,DATA[Code de produit],DATA[PDS],"") ->  | W34: =_xlfn.XLOOKUP(A34,DATA[Code de produit],DATA[Classement des produits],"") -> 
A35: BA1847 | C35: =_xlfn.XLOOKUP(A35,DATA[Code de produit],DATA[Description],"") -> Dosettes Déca (eau suisse) 100% compostable | D35: =_xlfn.XLOOKUP(A35,DATA[Code de produit],DATA[CUP/unité],"") -> 628614001840 | E35: =_xlfn.XLOOKUP(A35,DATA[Code de produit],DATA[Format],"") -> 189G | F35: =_xlfn.XLOOKUP(A35,DATA[Code de produit],DATA[Sélection],"") -> CS | G35: =_xlfn.XLOOKUP(A35,DATA[Code de produit],DATA[EMB.],"") -> 6 | H35: =_xlfn.XLOOKUP(A35,DATA[Code de produit],DATA[B],"") -> 0 | I35: =_xlfn.XLOOKUP(A35,DATA[Code de produit],DATA[C],"") -> O | J35: =_xlfn.XLOOKUP(A35,DATA[Code de produit],DATA[V],"") -> 0 | K35: =_xlfn.XLOOKUP(A35,DATA[Code de produit],DATA[SG],"") -> 0 | L35: =_xlfn.XLOOKUP(A35,DATA[Code de produit],DATA[SO],"") -> 0 | M35: =_xlfn.XLOOKUP(A35,DATA[Code de produit],DATA[H],"") -> 0 | N35: =_xlfn.XLOOKUP(A35,DATA[Code de produit],DATA[FC],"") -> 0 | O35: =_xlfn.XLOOKUP(A35,DATA[Code de produit],DATA[CC],"") -> O | P35: =_xlfn.XLOOKUP(A35,DATA[Code de produit],DATA[PC],"") -> 0 | Q35: =_xlfn.XLOOKUP(A35,DATA[Code de produit],DATA[Jours garantis],"") -> 109 | R35: =_xlfn.XLOOKUP(A35,DATA[Code de produit],DATA[Entreposage],"") -> SEC | S35: =_xlfn.XLOOKUP(A35,DATA[Code de produit],DATA[Prix],"") -> 82,45$ | T35: =_xlfn.XLOOKUP(A35,DATA[Code de produit],DATA[Promo mensuelle],"") -> 0 | U35: =_xlfn.XLOOKUP(A35,DATA[Code de produit],DATA[Rabais promo],"") -> 0 | V35: =_xlfn.XLOOKUP(A35,DATA[Code de produit],DATA[PDS],"") -> 16.99 | W35: =_xlfn.XLOOKUP(A35,DATA[Code de produit],DATA[Classement des produits],"") -> 14
A36: BA1816 | C36: =_xlfn.XLOOKUP(A36,DATA[Code de produit],DATA[Description],"") -> Dosettes Mélange Balzac's, 100% compostable | D36: =_xlfn.XLOOKUP(A36,DATA[Code de produit],DATA[CUP/unité],"") -> 628614001819 | E36: =_xlfn.XLOOKUP(A36,DATA[Code de produit],DATA[Format],"") -> 189G | F36: =_xlfn.XLOOKUP(A36,DATA[Code de produit],DATA[Sélection],"") -> CS | G36: =_xlfn.XLOOKUP(A36,DATA[Code de produit],DATA[EMB.],"") -> 6 | H36: =_xlfn.XLOOKUP(A36,DATA[Code de produit],DATA[B],"") -> 0 | I36: =_xlfn.XLOOKUP(A36,DATA[Code de produit],DATA[C],"") -> O | J36: =_xlfn.XLOOKUP(A36,DATA[Code de produit],DATA[V],"") -> 0 | K36: =_xlfn.XLOOKUP(A36,DATA[Code de produit],DATA[SG],"") -> 0 | L36: =_xlfn.XLOOKUP(A36,DATA[Code de produit],DATA[SO],"") -> 0 | M36: =_xlfn.XLOOKUP(A36,DATA[Code de produit],DATA[H],"") -> 0 | N36: =_xlfn.XLOOKUP(A36,DATA[Code de produit],DATA[FC],"") -> 0 | O36: =_xlfn.XLOOKUP(A36,DATA[Code de produit],DATA[CC],"") -> O | P36: =_xlfn.XLOOKUP(A36,DATA[Code de produit],DATA[PC],"") -> 0 | Q36: =_xlfn.XLOOKUP(A36,DATA[Code de produit],DATA[Jours garantis],"") -> 109 | R36: =_xlfn.XLOOKUP(A36,DATA[Code de produit],DATA[Entreposage],"") -> SEC | S36: =_xlfn.XLOOKUP(A36,DATA[Code de produit],DATA[Prix],"") -> 78,50$ | T36: =_xlfn.XLOOKUP(A36,DATA[Code de produit],DATA[Promo mensuelle],"") -> 0 | U36: =_xlfn.XLOOKUP(A36,DATA[Code de produit],DATA[Rabais promo],"") -> 0 | V36: =_xlfn.XLOOKUP(A36,DATA[Code de produit],DATA[PDS],"") -> 15.99 | W36: =_xlfn.XLOOKUP(A36,DATA[Code de produit],DATA[Classement des produits],"") -> 6
A37: BA8418 | C37: =_xlfn.XLOOKUP(A37,DATA[Code de produit],DATA[Description],"") -> Dosettes Mélange Bards (bio et équitable et 100% compostable) | D37: =_xlfn.XLOOKUP(A37,DATA[Code de produit],DATA[CUP/unité],"") -> 628614018411 | E37: =_xlfn.XLOOKUP(A37,DATA[Code de produit],DATA[Format],"") -> 189G | F37: =_xlfn.XLOOKUP(A37,DATA[Code de produit],DATA[Sélection],"") -> CS | G37: =_xlfn.XLOOKUP(A37,DATA[Code de produit],DATA[EMB.],"") -> 6 | H37: =_xlfn.XLOOKUP(A37,DATA[Code de produit],DATA[B],"") -> O | I37: =_xlfn.XLOOKUP(A37,DATA[Code de produit],DATA[C],"") -> O | J37: =_xlfn.XLOOKUP(A37,DATA[Code de produit],DATA[V],"") -> 0 | K37: =_xlfn.XLOOKUP(A37,DATA[Code de produit],DATA[SG],"") -> 0 | L37: =_xlfn.XLOOKUP(A37,DATA[Code de produit],DATA[SO],"") -> 0 | M37: =_xlfn.XLOOKUP(A37,DATA[Code de produit],DATA[H],"") -> 0 | N37: =_xlfn.XLOOKUP(A37,DATA[Code de produit],DATA[FC],"") -> 0 | O37: =_xlfn.XLOOKUP(A37,DATA[Code de produit],DATA[CC],"") -> O | P37: =_xlfn.XLOOKUP(A37,DATA[Code de produit],DATA[PC],"") -> 0 | Q37: =_xlfn.XLOOKUP(A37,DATA[Code de produit],DATA[Jours garantis],"") -> 109 | R37: =_xlfn.XLOOKUP(A37,DATA[Code de produit],DATA[Entreposage],"") -> SEC | S37: =_xlfn.XLOOKUP(A37,DATA[Code de produit],DATA[Prix],"") -> 82,45$ | T37: =_xlfn.XLOOKUP(A37,DATA[Code de produit],DATA[Promo mensuelle],"") -> 0 | U37: =_xlfn.XLOOKUP(A37,DATA[Code de produit],DATA[Rabais promo],"") -> 0 | V37: =_xlfn.XLOOKUP(A37,DATA[Code de produit],DATA[PDS],"") -> 16.99 | W37: =_xlfn.XLOOKUP(A37,DATA[Code de produit],DATA[Classement des produits],"") -> 15
A38: BA1878 | C38: =_xlfn.XLOOKUP(A38,DATA[Code de produit],DATA[Description],"") -> Dosettes Mélange Dark Affair, 100% compostable | D38: =_xlfn.XLOOKUP(A38,DATA[Code de produit],DATA[CUP/unité],"") -> 628614001871 | E38: =_xlfn.XLOOKUP(A38,DATA[Code de produit],DATA[Format],"") -> 189G | F38: =_xlfn.XLOOKUP(A38,DATA[Code de produit],DATA[Sélection],"") -> CS | G38: =_xlfn.XLOOKUP(A38,DATA[Code de produit],DATA[EMB.],"") -> 6 | H38: =_xlfn.XLOOKUP(A38,DATA[Code de produit],DATA[B],"") -> 0 | I38: =_xlfn.XLOOKUP(A38,DATA[Code de produit],DATA[C],"") -> O | J38: =_xlfn.XLOOKUP(A38,DATA[Code de produit],DATA[V],"") -> 0 | K38: =_xlfn.XLOOKUP(A38,DATA[Code de produit],DATA[SG],"") -> 0 | L38: =_xlfn.XLOOKUP(A38,DATA[Code de produit],DATA[SO],"") -> 0 | M38: =_xlfn.XLOOKUP(A38,DATA[Code de produit],DATA[H],"") -> 0 | N38: =_xlfn.XLOOKUP(A38,DATA[Code de produit],DATA[FC],"") -> 0 | O38: =_xlfn.XLOOKUP(A38,DATA[Code de produit],DATA[CC],"") -> O | P38: =_xlfn.XLOOKUP(A38,DATA[Code de produit],DATA[PC],"") -> 0 | Q38: =_xlfn.XLOOKUP(A38,DATA[Code de produit],DATA[Jours garantis],"") -> 109 | R38: =_xlfn.XLOOKUP(A38,DATA[Code de produit],DATA[Entreposage],"") -> SEC | S38: =_xlfn.XLOOKUP(A38,DATA[Code de produit],DATA[Prix],"") -> 78,50$ | T38: =_xlfn.XLOOKUP(A38,DATA[Code de produit],DATA[Promo mensuelle],"") -> 0 | U38: =_xlfn.XLOOKUP(A38,DATA[Code de produit],DATA[Rabais promo],"") -> 0 | V38: =_xlfn.XLOOKUP(A38,DATA[Code de produit],DATA[PDS],"") -> 15.99 | W38: =_xlfn.XLOOKUP(A38,DATA[Code de produit],DATA[Classement des produits],"") -> 10
A39: BA1823 | C39: =_xlfn.XLOOKUP(A39,DATA[Code de produit],DATA[Description],"") -> Dosettes Mélange Farmers (bio et équitable et 100% compostable) | D39: =_xlfn.XLOOKUP(A39,DATA[Code de produit],DATA[CUP/unité],"") -> 628614001826 | E39: =_xlfn.XLOOKUP(A39,DATA[Code de produit],DATA[Format],"") -> 189G | F39: =_xlfn.XLOOKUP(A39,DATA[Code de produit],DATA[Sélection],"") -> CS | G39: =_xlfn.XLOOKUP(A39,DATA[Code de produit],DATA[EMB.],"") -> 6 | H39: =_xlfn.XLOOKUP(A39,DATA[Code de produit],DATA[B],"") -> O | I39: =_xlfn.XLOOKUP(A39,DATA[Code de produit],DATA[C],"") -> O | J39: =_xlfn.XLOOKUP(A39,DATA[Code de produit],DATA[V],"") -> 0 | K39: =_xlfn.XLOOKUP(A39,DATA[Code de produit],DATA[SG],"") -> 0 | L39: =_xlfn.XLOOKUP(A39,DATA[Code de produit],DATA[SO],"") -> 0 | M39: =_xlfn.XLOOKUP(A39,DATA[Code de produit],DATA[H],"") -> 0 | N39: =_xlfn.XLOOKUP(A39,DATA[Code de produit],DATA[FC],"") -> 0 | O39: =_xlfn.XLOOKUP(A39,DATA[Code de produit],DATA[CC],"") -> O | P39: =_xlfn.XLOOKUP(A39,DATA[Code de produit],DATA[PC],"") -> 0 | Q39: =_xlfn.XLOOKUP(A39,DATA[Code de produit],DATA[Jours garantis],"") -> 109 | R39: =_xlfn.XLOOKUP(A39,DATA[Code de produit],DATA[Entreposage],"") -> SEC | S39: =_xlfn.XLOOKUP(A39,DATA[Code de produit],DATA[Prix],"") -> 82,45$ | T39: =_xlfn.XLOOKUP(A39,DATA[Code de produit],DATA[Promo mensuelle],"") -> 0 | U39: =_xlfn.XLOOKUP(A39,DATA[Code de produit],DATA[Rabais promo],"") -> 0 | V39: =_xlfn.XLOOKUP(A39,DATA[Code de produit],DATA[PDS],"") -> 16.99 | W39: =_xlfn.XLOOKUP(A39,DATA[Code de produit],DATA[Classement des produits],"") -> 11
A40: Café moulu (boîtier) | C40: =_xlfn.XLOOKUP(A40,DATA[Code de produit],DATA[Description],"") ->  | D40: =_xlfn.XLOOKUP(A40,DATA[Code de produit],DATA[CUP/unité],"") ->  | E40: =_xlfn.XLOOKUP(A40,DATA[Code de produit],DATA[Format],"") ->  | F40: =_xlfn.XLOOKUP(A40,DATA[Code de produit],DATA[Sélection],"") ->  | G40: =_xlfn.XLOOKUP(A40,DATA[Code de produit],DATA[EMB.],"") ->  | H40: =_xlfn.XLOOKUP(A40,DATA[Code de produit],DATA[B],"") ->  | I40: =_xlfn.XLOOKUP(A40,DATA[Code de produit],DATA[C],"") ->  | J40: =_xlfn.XLOOKUP(A40,DATA[Code de produit],DATA[V],"") ->  | K40: =_xlfn.XLOOKUP(A40,DATA[Code de produit],DATA[SG],"") ->  | L40: =_xlfn.XLOOKUP(A40,DATA[Code de produit],DATA[SO],"") ->  | M40: =_xlfn.XLOOKUP(A40,DATA[Code de produit],DATA[H],"") ->  | N40: =_xlfn.XLOOKUP(A40,DATA[Code de produit],DATA[FC],"") ->  | O40: =_xlfn.XLOOKUP(A40,DATA[Code de produit],DATA[CC],"") ->  | P40: =_xlfn.XLOOKUP(A40,DATA[Code de produit],DATA[PC],"") ->  | Q40: =_xlfn.XLOOKUP(A40,DATA[Code de produit],DATA[Jours garantis],"") ->  | R40: =_xlfn.XLOOKUP(A40,DATA[Code de produit],DATA[Entreposage],"") ->  | S40: =_xlfn.XLOOKUP(A40,DATA[Code de produit],DATA[Prix],"") ->  | T40: =_xlfn.XLOOKUP(A40,DATA[Code de produit],DATA[Promo mensuelle],"") ->  | U40: =_xlfn.XLOOKUP(A40,DATA[Code de produit],DATA[Rabais promo],"") ->  | V40: =_xlfn.XLOOKUP(A40,DATA[Code de produit],DATA[PDS],"") ->  | W40: =_xlfn.XLOOKUP(A40,DATA[Code de produit],DATA[Classement des produits],"") -> 
A41: BA0307 | C41: =_xlfn.XLOOKUP(A41,DATA[Code de produit],DATA[Description],"") -> Café moulu - Espresso (boîtier) | D41: =_xlfn.XLOOKUP(A41,DATA[Code de produit],DATA[CUP/unité],"") -> 628614000300 | E41: =_xlfn.XLOOKUP(A41,DATA[Code de produit],DATA[Format],"") -> 300G | F41: =_xlfn.XLOOKUP(A41,DATA[Code de produit],DATA[Sélection],"") -> CS | G41: =_xlfn.XLOOKUP(A41,DATA[Code de produit],DATA[EMB.],"") -> 12 | H41: =_xlfn.XLOOKUP(A41,DATA[Code de produit],DATA[B],"") -> O | I41: =_xlfn.XLOOKUP(A41,DATA[Code de produit],DATA[C],"") -> O | J41: =_xlfn.XLOOKUP(A41,DATA[Code de produit],DATA[V],"") -> 0 | K41: =_xlfn.XLOOKUP(A41,DATA[Code de produit],DATA[SG],"") -> 0 | L41: =_xlfn.XLOOKUP(A41,DATA[Code de produit],DATA[SO],"") -> 0 | M41: =_xlfn.XLOOKUP(A41,DATA[Code de produit],DATA[H],"") -> 0 | N41: =_xlfn.XLOOKUP(A41,DATA[Code de produit],DATA[FC],"") -> 0 | O41: =_xlfn.XLOOKUP(A41,DATA[Code de produit],DATA[CC],"") -> O | P41: =_xlfn.XLOOKUP(A41,DATA[Code de produit],DATA[PC],"") -> 0 | Q41: =_xlfn.XLOOKUP(A41,DATA[Code de produit],DATA[Jours garantis],"") -> 109 | R41: =_xlfn.XLOOKUP(A41,DATA[Code de produit],DATA[Entreposage],"") -> SEC | S41: =_xlfn.XLOOKUP(A41,DATA[Code de produit],DATA[Prix],"") -> 167,44$ | T41: =_xlfn.XLOOKUP(A41,DATA[Code de produit],DATA[Promo mensuelle],"") -> 0 | U41: =_xlfn.XLOOKUP(A41,DATA[Code de produit],DATA[Rabais promo],"") -> 0 | V41: =_xlfn.XLOOKUP(A41,DATA[Code de produit],DATA[PDS],"") -> 15.99 | W41: =_xlfn.XLOOKUP(A41,DATA[Code de produit],DATA[Classement des produits],"") -> 19
A42: BA4008 | C42: =_xlfn.XLOOKUP(A42,DATA[Code de produit],DATA[Description],"") -> Café moulu Las Rosas | D42: =_xlfn.XLOOKUP(A42,DATA[Code de produit],DATA[CUP/unité],"") -> 628614004001 | E42: =_xlfn.XLOOKUP(A42,DATA[Code de produit],DATA[Format],"") -> 300G | F42: =_xlfn.XLOOKUP(A42,DATA[Code de produit],DATA[Sélection],"") -> CS | G42: =_xlfn.XLOOKUP(A42,DATA[Code de produit],DATA[EMB.],"") -> 12 | H42: =_xlfn.XLOOKUP(A42,DATA[Code de produit],DATA[B],"") -> 0 | I42: =_xlfn.XLOOKUP(A42,DATA[Code de produit],DATA[C],"") -> O | J42: =_xlfn.XLOOKUP(A42,DATA[Code de produit],DATA[V],"") -> 0 | K42: =_xlfn.XLOOKUP(A42,DATA[Code de produit],DATA[SG],"") -> 0 | L42: =_xlfn.XLOOKUP(A42,DATA[Code de produit],DATA[SO],"") -> 0 | M42: =_xlfn.XLOOKUP(A42,DATA[Code de produit],DATA[H],"") -> 0 | N42: =_xlfn.XLOOKUP(A42,DATA[Code de produit],DATA[FC],"") -> 0 | O42: =_xlfn.XLOOKUP(A42,DATA[Code de produit],DATA[CC],"") -> O | P42: =_xlfn.XLOOKUP(A42,DATA[Code de produit],DATA[PC],"") -> 0 | Q42: =_xlfn.XLOOKUP(A42,DATA[Code de produit],DATA[Jours garantis],"") -> 109 | R42: =_xlfn.XLOOKUP(A42,DATA[Code de produit],DATA[Entreposage],"") -> SEC | S42: =_xlfn.XLOOKUP(A42,DATA[Code de produit],DATA[Prix],"") -> 149,12$ | T42: =_xlfn.XLOOKUP(A42,DATA[Code de produit],DATA[Promo mensuelle],"") -> 0 | U42: =_xlfn.XLOOKUP(A42,DATA[Code de produit],DATA[Rabais promo],"") -> 0 | V42: =_xlfn.XLOOKUP(A42,DATA[Code de produit],DATA[PDS],"") -> 16.99 | W42: =_xlfn.XLOOKUP(A42,DATA[Code de produit],DATA[Classement des produits],"") -> 21
A43: BA0703 | C43: =_xlfn.XLOOKUP(A43,DATA[Code de produit],DATA[Description],"") -> Café moulu - Mélange Dark Affair | D43: =_xlfn.XLOOKUP(A43,DATA[Code de produit],DATA[CUP/unité],"") -> 628614000706 | E43: =_xlfn.XLOOKUP(A43,DATA[Code de produit],DATA[Format],"") -> 330G | F43: =_xlfn.XLOOKUP(A43,DATA[Code de produit],DATA[Sélection],"") -> CS | G43: =_xlfn.XLOOKUP(A43,DATA[Code de produit],DATA[EMB.],"") -> 12 | H43: =_xlfn.XLOOKUP(A43,DATA[Code de produit],DATA[B],"") -> 0 | I43: =_xlfn.XLOOKUP(A43,DATA[Code de produit],DATA[C],"") -> O | J43: =_xlfn.XLOOKUP(A43,DATA[Code de produit],DATA[V],"") -> 0 | K43: =_xlfn.XLOOKUP(A43,DATA[Code de produit],DATA[SG],"") -> 0 | L43: =_xlfn.XLOOKUP(A43,DATA[Code de produit],DATA[SO],"") -> 0 | M43: =_xlfn.XLOOKUP(A43,DATA[Code de produit],DATA[H],"") -> 0 | N43: =_xlfn.XLOOKUP(A43,DATA[Code de produit],DATA[FC],"") -> 0 | O43: =_xlfn.XLOOKUP(A43,DATA[Code de produit],DATA[CC],"") -> O | P43: =_xlfn.XLOOKUP(A43,DATA[Code de produit],DATA[PC],"") -> 0 | Q43: =_xlfn.XLOOKUP(A43,DATA[Code de produit],DATA[Jours garantis],"") -> 109 | R43: =_xlfn.XLOOKUP(A43,DATA[Code de produit],DATA[Entreposage],"") -> SEC | S43: =_xlfn.XLOOKUP(A43,DATA[Code de produit],DATA[Prix],"") -> 141,22$ | T43: =_xlfn.XLOOKUP(A43,DATA[Code de produit],DATA[Promo mensuelle],"") -> 0 | U43: =_xlfn.XLOOKUP(A43,DATA[Code de produit],DATA[Rabais promo],"") -> 0 | V43: =_xlfn.XLOOKUP(A43,DATA[Code de produit],DATA[PDS],"") -> 14.99 | W43: =_xlfn.XLOOKUP(A43,DATA[Code de produit],DATA[Classement des produits],"") -> 16
A44: BA1007 | C44: =_xlfn.XLOOKUP(A44,DATA[Code de produit],DATA[Description],"") -> Café moulu - Mélange Balzac's | D44: =_xlfn.XLOOKUP(A44,DATA[Code de produit],DATA[CUP/unité],"") -> 628614001000 | E44: =_xlfn.XLOOKUP(A44,DATA[Code de produit],DATA[Format],"") -> 330G | F44: =_xlfn.XLOOKUP(A44,DATA[Code de produit],DATA[Sélection],"") -> CS | G44: =_xlfn.XLOOKUP(A44,DATA[Code de produit],DATA[EMB.],"") -> 12 | H44: =_xlfn.XLOOKUP(A44,DATA[Code de produit],DATA[B],"") -> 0 | I44: =_xlfn.XLOOKUP(A44,DATA[Code de produit],DATA[C],"") -> O | J44: =_xlfn.XLOOKUP(A44,DATA[Code de produit],DATA[V],"") -> 0 | K44: =_xlfn.XLOOKUP(A44,DATA[Code de produit],DATA[SG],"") -> 0 | L44: =_xlfn.XLOOKUP(A44,DATA[Code de produit],DATA[SO],"") -> 0 | M44: =_xlfn.XLOOKUP(A44,DATA[Code de produit],DATA[H],"") -> 0 | N44: =_xlfn.XLOOKUP(A44,DATA[Code de produit],DATA[FC],"") -> 0 | O44: =_xlfn.XLOOKUP(A44,DATA[Code de produit],DATA[CC],"") -> O | P44: =_xlfn.XLOOKUP(A44,DATA[Code de produit],DATA[PC],"") -> 0 | Q44: =_xlfn.XLOOKUP(A44,DATA[Code de produit],DATA[Jours garantis],"") -> 109 | R44: =_xlfn.XLOOKUP(A44,DATA[Code de produit],DATA[Entreposage],"") -> SEC | S44: =_xlfn.XLOOKUP(A44,DATA[Code de produit],DATA[Prix],"") -> 141,22$ | T44: =_xlfn.XLOOKUP(A44,DATA[Code de produit],DATA[Promo mensuelle],"") -> 0 | U44: =_xlfn.XLOOKUP(A44,DATA[Code de produit],DATA[Rabais promo],"") -> 0 | V44: =_xlfn.XLOOKUP(A44,DATA[Code de produit],DATA[PDS],"") -> 14.99 | W44: =_xlfn.XLOOKUP(A44,DATA[Code de produit],DATA[Classement des produits],"") -> 7
A45: BA0008 | C45: =_xlfn.XLOOKUP(A45,DATA[Code de produit],DATA[Description],"") -> Café moulu Déca (eau suisse) | D45: =_xlfn.XLOOKUP(A45,DATA[Code de produit],DATA[CUP/unité],"") -> 628614400001 | E45: =_xlfn.XLOOKUP(A45,DATA[Code de produit],DATA[Format],"") -> 330G | F45: =_xlfn.XLOOKUP(A45,DATA[Code de produit],DATA[Sélection],"") -> CS | G45: =_xlfn.XLOOKUP(A45,DATA[Code de produit],DATA[EMB.],"") -> 12 | H45: =_xlfn.XLOOKUP(A45,DATA[Code de produit],DATA[B],"") -> 0 | I45: =_xlfn.XLOOKUP(A45,DATA[Code de produit],DATA[C],"") -> O | J45: =_xlfn.XLOOKUP(A45,DATA[Code de produit],DATA[V],"") -> 0 | K45: =_xlfn.XLOOKUP(A45,DATA[Code de produit],DATA[SG],"") -> 0 | L45: =_xlfn.XLOOKUP(A45,DATA[Code de produit],DATA[SO],"") -> 0 | M45: =_xlfn.XLOOKUP(A45,DATA[Code de produit],DATA[H],"") -> 0 | N45: =_xlfn.XLOOKUP(A45,DATA[Code de produit],DATA[FC],"") -> O | O45: =_xlfn.XLOOKUP(A45,DATA[Code de produit],DATA[CC],"") -> O | P45: =_xlfn.XLOOKUP(A45,DATA[Code de produit],DATA[PC],"") -> 0 | Q45: =_xlfn.XLOOKUP(A45,DATA[Code de produit],DATA[Jours garantis],"") -> 109 | R45: =_xlfn.XLOOKUP(A45,DATA[Code de produit],DATA[Entreposage],"") -> SEC | S45: =_xlfn.XLOOKUP(A45,DATA[Code de produit],DATA[Prix],"") -> 149,12$ | T45: =_xlfn.XLOOKUP(A45,DATA[Code de produit],DATA[Promo mensuelle],"") -> 0 | U45: =_xlfn.XLOOKUP(A45,DATA[Code de produit],DATA[Rabais promo],"") -> 0 | V45: =_xlfn.XLOOKUP(A45,DATA[Code de produit],DATA[PDS],"") -> 16.99 | W45: =_xlfn.XLOOKUP(A45,DATA[Code de produit],DATA[Classement des produits],"") -> 17
A46: BA0208 | C46: =_xlfn.XLOOKUP(A46,DATA[Code de produit],DATA[Description],"") -> Café moulu bio - Mélange Farmers | D46: =_xlfn.XLOOKUP(A46,DATA[Code de produit],DATA[CUP/unité],"") -> 628614000201 | E46: =_xlfn.XLOOKUP(A46,DATA[Code de produit],DATA[Format],"") -> 330G | F46: =_xlfn.XLOOKUP(A46,DATA[Code de produit],DATA[Sélection],"") -> CS | G46: =_xlfn.XLOOKUP(A46,DATA[Code de produit],DATA[EMB.],"") -> 12 | H46: =_xlfn.XLOOKUP(A46,DATA[Code de produit],DATA[B],"") -> O | I46: =_xlfn.XLOOKUP(A46,DATA[Code de produit],DATA[C],"") -> O | J46: =_xlfn.XLOOKUP(A46,DATA[Code de produit],DATA[V],"") -> 0 | K46: =_xlfn.XLOOKUP(A46,DATA[Code de produit],DATA[SG],"") -> 0 | L46: =_xlfn.XLOOKUP(A46,DATA[Code de produit],DATA[SO],"") -> 0 | M46: =_xlfn.XLOOKUP(A46,DATA[Code de produit],DATA[H],"") -> 0 | N46: =_xlfn.XLOOKUP(A46,DATA[Code de produit],DATA[FC],"") -> 0 | O46: =_xlfn.XLOOKUP(A46,DATA[Code de produit],DATA[CC],"") -> O | P46: =_xlfn.XLOOKUP(A46,DATA[Code de produit],DATA[PC],"") -> 0 | Q46: =_xlfn.XLOOKUP(A46,DATA[Code de produit],DATA[Jours garantis],"") -> 109 | R46: =_xlfn.XLOOKUP(A46,DATA[Code de produit],DATA[Entreposage],"") -> SEC | S46: =_xlfn.XLOOKUP(A46,DATA[Code de produit],DATA[Prix],"") -> 149,12$ | T46: =_xlfn.XLOOKUP(A46,DATA[Code de produit],DATA[Promo mensuelle],"") -> 0 | U46: =_xlfn.XLOOKUP(A46,DATA[Code de produit],DATA[Rabais promo],"") -> 0 | V46: =_xlfn.XLOOKUP(A46,DATA[Code de produit],DATA[PDS],"") -> 15.99 | W46: =_xlfn.XLOOKUP(A46,DATA[Code de produit],DATA[Classement des produits],"") -> 12
A47: BA0604 | C47: =_xlfn.XLOOKUP(A47,DATA[Code de produit],DATA[Description],"") -> Café moulu bio Mélange Atwood | D47: =_xlfn.XLOOKUP(A47,DATA[Code de produit],DATA[CUP/unité],"") -> 628614000607 | E47: =_xlfn.XLOOKUP(A47,DATA[Code de produit],DATA[Format],"") -> 330G | F47: =_xlfn.XLOOKUP(A47,DATA[Code de produit],DATA[Sélection],"") -> CS | G47: =_xlfn.XLOOKUP(A47,DATA[Code de produit],DATA[EMB.],"") -> 12 | H47: =_xlfn.XLOOKUP(A47,DATA[Code de produit],DATA[B],"") -> O | I47: =_xlfn.XLOOKUP(A47,DATA[Code de produit],DATA[C],"") -> O | J47: =_xlfn.XLOOKUP(A47,DATA[Code de produit],DATA[V],"") -> 0 | K47: =_xlfn.XLOOKUP(A47,DATA[Code de produit],DATA[SG],"") -> 0 | L47: =_xlfn.XLOOKUP(A47,DATA[Code de produit],DATA[SO],"") -> 0 | M47: =_xlfn.XLOOKUP(A47,DATA[Code de produit],DATA[H],"") -> 0 | N47: =_xlfn.XLOOKUP(A47,DATA[Code de produit],DATA[FC],"") -> 0 | O47: =_xlfn.XLOOKUP(A47,DATA[Code de produit],DATA[CC],"") -> O | P47: =_xlfn.XLOOKUP(A47,DATA[Code de produit],DATA[PC],"") -> 0 | Q47: =_xlfn.XLOOKUP(A47,DATA[Code de produit],DATA[Jours garantis],"") -> 109 | R47: =_xlfn.XLOOKUP(A47,DATA[Code de produit],DATA[Entreposage],"") -> SEC | S47: =_xlfn.XLOOKUP(A47,DATA[Code de produit],DATA[Prix],"") -> 149,12$ | T47: =_xlfn.XLOOKUP(A47,DATA[Code de produit],DATA[Promo mensuelle],"") -> 0 | U47: =_xlfn.XLOOKUP(A47,DATA[Code de produit],DATA[Rabais promo],"") -> 0 | V47: =_xlfn.XLOOKUP(A47,DATA[Code de produit],DATA[PDS],"") -> 16.99 | W47: =_xlfn.XLOOKUP(A47,DATA[Code de produit],DATA[Classement des produits],"") -> 22
A48: Café en grains entiers | C48: =_xlfn.XLOOKUP(A48,DATA[Code de produit],DATA[Description],"") ->  | D48: =_xlfn.XLOOKUP(A48,DATA[Code de produit],DATA[CUP/unité],"") ->  | E48: =_xlfn.XLOOKUP(A48,DATA[Code de produit],DATA[Format],"") ->  | F48: =_xlfn.XLOOKUP(A48,DATA[Code de produit],DATA[Sélection],"") ->  | G48: =_xlfn.XLOOKUP(A48,DATA[Code de produit],DATA[EMB.],"") ->  | H48: =_xlfn.XLOOKUP(A48,DATA[Code de produit],DATA[B],"") ->  | I48: =_xlfn.XLOOKUP(A48,DATA[Code de produit],DATA[C],"") ->  | J48: =_xlfn.XLOOKUP(A48,DATA[Code de produit],DATA[V],"") ->  | K48: =_xlfn.XLOOKUP(A48,DATA[Code de produit],DATA[SG],"") ->  | L48: =_xlfn.XLOOKUP(A48,DATA[Code de produit],DATA[SO],"") ->  | M48: =_xlfn.XLOOKUP(A48,DATA[Code de produit],DATA[H],"") ->  | N48: =_xlfn.XLOOKUP(A48,DATA[Code de produit],DATA[FC],"") ->  | O48: =_xlfn.XLOOKUP(A48,DATA[Code de produit],DATA[CC],"") ->  | P48: =_xlfn.XLOOKUP(A48,DATA[Code de produit],DATA[PC],"") ->  | Q48: =_xlfn.XLOOKUP(A48,DATA[Code de produit],DATA[Jours garantis],"") ->  | R48: =_xlfn.XLOOKUP(A48,DATA[Code de produit],DATA[Entreposage],"") ->  | S48: =_xlfn.XLOOKUP(A48,DATA[Code de produit],DATA[Prix],"") ->  | T48: =_xlfn.XLOOKUP(A48,DATA[Code de produit],DATA[Promo mensuelle],"") ->  | U48: =_xlfn.XLOOKUP(A48,DATA[Code de produit],DATA[Rabais promo],"") ->  | V48: =_xlfn.XLOOKUP(A48,DATA[Code de produit],DATA[PDS],"") ->  | W48: =_xlfn.XLOOKUP(A48,DATA[Code de produit],DATA[Classement des produits],"") -> 
A49: BA005 | C49: =_xlfn.XLOOKUP(A49,DATA[Code de produit],DATA[Description],"") -> Café bio en grains entiers - Mélange Atwood | D49: =_xlfn.XLOOKUP(A49,DATA[Code de produit],DATA[CUP/unité],"") -> 628614000157 | E49: =_xlfn.XLOOKUP(A49,DATA[Code de produit],DATA[Format],"") -> 340G | F49: =_xlfn.XLOOKUP(A49,DATA[Code de produit],DATA[Sélection],"") -> CS | G49: =_xlfn.XLOOKUP(A49,DATA[Code de produit],DATA[EMB.],"") -> 6 | H49: =_xlfn.XLOOKUP(A49,DATA[Code de produit],DATA[B],"") -> O | I49: =_xlfn.XLOOKUP(A49,DATA[Code de produit],DATA[C],"") -> O | J49: =_xlfn.XLOOKUP(A49,DATA[Code de produit],DATA[V],"") -> 0 | K49: =_xlfn.XLOOKUP(A49,DATA[Code de produit],DATA[SG],"") -> 0 | L49: =_xlfn.XLOOKUP(A49,DATA[Code de produit],DATA[SO],"") -> 0 | M49: =_xlfn.XLOOKUP(A49,DATA[Code de produit],DATA[H],"") -> 0 | N49: =_xlfn.XLOOKUP(A49,DATA[Code de produit],DATA[FC],"") -> O | O49: =_xlfn.XLOOKUP(A49,DATA[Code de produit],DATA[CC],"") -> O | P49: =_xlfn.XLOOKUP(A49,DATA[Code de produit],DATA[PC],"") -> 0 | Q49: =_xlfn.XLOOKUP(A49,DATA[Code de produit],DATA[Jours garantis],"") -> 109 | R49: =_xlfn.XLOOKUP(A49,DATA[Code de produit],DATA[Entreposage],"") -> SEC | S49: =_xlfn.XLOOKUP(A49,DATA[Code de produit],DATA[Prix],"") -> 74,56$ | T49: =_xlfn.XLOOKUP(A49,DATA[Code de produit],DATA[Promo mensuelle],"") -> 0 | U49: =_xlfn.XLOOKUP(A49,DATA[Code de produit],DATA[Rabais promo],"") -> 0 | V49: =_xlfn.XLOOKUP(A49,DATA[Code de produit],DATA[PDS],"") -> 16.99 | W49: =_xlfn.XLOOKUP(A49,DATA[Code de produit],DATA[Classement des produits],"") -> 5
A50: BA012 | C50: =_xlfn.XLOOKUP(A50,DATA[Code de produit],DATA[Description],"") -> Café bio et équitable en grains entiers - Mélange Espresso | D50: =_xlfn.XLOOKUP(A50,DATA[Code de produit],DATA[CUP/unité],"") -> 628614000126 | E50: =_xlfn.XLOOKUP(A50,DATA[Code de produit],DATA[Format],"") -> 340G | F50: =_xlfn.XLOOKUP(A50,DATA[Code de produit],DATA[Sélection],"") -> CS | G50: =_xlfn.XLOOKUP(A50,DATA[Code de produit],DATA[EMB.],"") -> 6 | H50: =_xlfn.XLOOKUP(A50,DATA[Code de produit],DATA[B],"") -> O | I50: =_xlfn.XLOOKUP(A50,DATA[Code de produit],DATA[C],"") -> O | J50: =_xlfn.XLOOKUP(A50,DATA[Code de produit],DATA[V],"") -> 0 | K50: =_xlfn.XLOOKUP(A50,DATA[Code de produit],DATA[SG],"") -> 0 | L50: =_xlfn.XLOOKUP(A50,DATA[Code de produit],DATA[SO],"") -> 0 | M50: =_xlfn.XLOOKUP(A50,DATA[Code de produit],DATA[H],"") -> 0 | N50: =_xlfn.XLOOKUP(A50,DATA[Code de produit],DATA[FC],"") -> O | O50: =_xlfn.XLOOKUP(A50,DATA[Code de produit],DATA[CC],"") -> O | P50: =_xlfn.XLOOKUP(A50,DATA[Code de produit],DATA[PC],"") -> 0 | Q50: =_xlfn.XLOOKUP(A50,DATA[Code de produit],DATA[Jours garantis],"") -> 109 | R50: =_xlfn.XLOOKUP(A50,DATA[Code de produit],DATA[Entreposage],"") -> SEC | S50: =_xlfn.XLOOKUP(A50,DATA[Code de produit],DATA[Prix],"") -> 74,56$ | T50: =_xlfn.XLOOKUP(A50,DATA[Code de produit],DATA[Promo mensuelle],"") -> 0 | U50: =_xlfn.XLOOKUP(A50,DATA[Code de produit],DATA[Rabais promo],"") -> 0 | V50: =_xlfn.XLOOKUP(A50,DATA[Code de produit],DATA[PDS],"") -> 16.99 | W50: =_xlfn.XLOOKUP(A50,DATA[Code de produit],DATA[Classement des produits],"") -> 1
A51: BA011 | C51: =_xlfn.XLOOKUP(A51,DATA[Code de produit],DATA[Description],"") -> Café bio et équitable en grains entiers - Mélange Farmers | D51: =_xlfn.XLOOKUP(A51,DATA[Code de produit],DATA[CUP/unité],"") -> 628614000119 | E51: =_xlfn.XLOOKUP(A51,DATA[Code de produit],DATA[Format],"") -> 340G | F51: =_xlfn.XLOOKUP(A51,DATA[Code de produit],DATA[Sélection],"") -> CS | G51: =_xlfn.XLOOKUP(A51,DATA[Code de produit],DATA[EMB.],"") -> 6 | H51: =_xlfn.XLOOKUP(A51,DATA[Code de produit],DATA[B],"") -> O | I51: =_xlfn.XLOOKUP(A51,DATA[Code de produit],DATA[C],"") -> O | J51: =_xlfn.XLOOKUP(A51,DATA[Code de produit],DATA[V],"") -> 0 | K51: =_xlfn.XLOOKUP(A51,DATA[Code de produit],DATA[SG],"") -> 0 | L51: =_xlfn.XLOOKUP(A51,DATA[Code de produit],DATA[SO],"") -> 0 | M51: =_xlfn.XLOOKUP(A51,DATA[Code de produit],DATA[H],"") -> 0 | N51: =_xlfn.XLOOKUP(A51,DATA[Code de produit],DATA[FC],"") -> O | O51: =_xlfn.XLOOKUP(A51,DATA[Code de produit],DATA[CC],"") -> O | P51: =_xlfn.XLOOKUP(A51,DATA[Code de produit],DATA[PC],"") -> 0 | Q51: =_xlfn.XLOOKUP(A51,DATA[Code de produit],DATA[Jours garantis],"") -> 109 | R51: =_xlfn.XLOOKUP(A51,DATA[Code de produit],DATA[Entreposage],"") -> SEC | S51: =_xlfn.XLOOKUP(A51,DATA[Code de produit],DATA[Prix],"") -> 74,56$ | T51: =_xlfn.XLOOKUP(A51,DATA[Code de produit],DATA[Promo mensuelle],"") -> 0 | U51: =_xlfn.XLOOKUP(A51,DATA[Code de produit],DATA[Rabais promo],"") -> 0 | V51: =_xlfn.XLOOKUP(A51,DATA[Code de produit],DATA[PDS],"") -> 16.99 | W51: =_xlfn.XLOOKUP(A51,DATA[Code de produit],DATA[Classement des produits],"") -> 4
A52: BA013 | C52: =_xlfn.XLOOKUP(A52,DATA[Code de produit],DATA[Description],"") -> Café déca en grains entiers (eau suisse) | D52: =_xlfn.XLOOKUP(A52,DATA[Code de produit],DATA[CUP/unité],"") -> 628614000133 | E52: =_xlfn.XLOOKUP(A52,DATA[Code de produit],DATA[Format],"") -> 340G | F52: =_xlfn.XLOOKUP(A52,DATA[Code de produit],DATA[Sélection],"") -> CS | G52: =_xlfn.XLOOKUP(A52,DATA[Code de produit],DATA[EMB.],"") -> 6 | H52: =_xlfn.XLOOKUP(A52,DATA[Code de produit],DATA[B],"") -> 0 | I52: =_xlfn.XLOOKUP(A52,DATA[Code de produit],DATA[C],"") -> O | J52: =_xlfn.XLOOKUP(A52,DATA[Code de produit],DATA[V],"") -> 0 | K52: =_xlfn.XLOOKUP(A52,DATA[Code de produit],DATA[SG],"") -> 0 | L52: =_xlfn.XLOOKUP(A52,DATA[Code de produit],DATA[SO],"") -> 0 | M52: =_xlfn.XLOOKUP(A52,DATA[Code de produit],DATA[H],"") -> 0 | N52: =_xlfn.XLOOKUP(A52,DATA[Code de produit],DATA[FC],"") -> 0 | O52: =_xlfn.XLOOKUP(A52,DATA[Code de produit],DATA[CC],"") -> O | P52: =_xlfn.XLOOKUP(A52,DATA[Code de produit],DATA[PC],"") -> 0 | Q52: =_xlfn.XLOOKUP(A52,DATA[Code de produit],DATA[Jours garantis],"") -> 109 | R52: =_xlfn.XLOOKUP(A52,DATA[Code de produit],DATA[Entreposage],"") -> SEC | S52: =_xlfn.XLOOKUP(A52,DATA[Code de produit],DATA[Prix],"") -> 74,56$ | T52: =_xlfn.XLOOKUP(A52,DATA[Code de produit],DATA[Promo mensuelle],"") -> 0 | U52: =_xlfn.XLOOKUP(A52,DATA[Code de produit],DATA[Rabais promo],"") -> 0 | V52: =_xlfn.XLOOKUP(A52,DATA[Code de produit],DATA[PDS],"") -> 16.99 | W52: =_xlfn.XLOOKUP(A52,DATA[Code de produit],DATA[Classement des produits],"") -> 9
A53: BA010 | C53: =_xlfn.XLOOKUP(A53,DATA[Code de produit],DATA[Description],"") -> Café en grains entiers - Mélange Balzac's | D53: =_xlfn.XLOOKUP(A53,DATA[Code de produit],DATA[CUP/unité],"") -> 628614000102 | E53: =_xlfn.XLOOKUP(A53,DATA[Code de produit],DATA[Format],"") -> 340G | F53: =_xlfn.XLOOKUP(A53,DATA[Code de produit],DATA[Sélection],"") -> CS | G53: =_xlfn.XLOOKUP(A53,DATA[Code de produit],DATA[EMB.],"") -> 6 | H53: =_xlfn.XLOOKUP(A53,DATA[Code de produit],DATA[B],"") -> 0 | I53: =_xlfn.XLOOKUP(A53,DATA[Code de produit],DATA[C],"") -> O | J53: =_xlfn.XLOOKUP(A53,DATA[Code de produit],DATA[V],"") -> 0 | K53: =_xlfn.XLOOKUP(A53,DATA[Code de produit],DATA[SG],"") -> 0 | L53: =_xlfn.XLOOKUP(A53,DATA[Code de produit],DATA[SO],"") -> 0 | M53: =_xlfn.XLOOKUP(A53,DATA[Code de produit],DATA[H],"") -> 0 | N53: =_xlfn.XLOOKUP(A53,DATA[Code de produit],DATA[FC],"") -> O | O53: =_xlfn.XLOOKUP(A53,DATA[Code de produit],DATA[CC],"") -> O | P53: =_xlfn.XLOOKUP(A53,DATA[Code de produit],DATA[PC],"") -> 0 | Q53: =_xlfn.XLOOKUP(A53,DATA[Code de produit],DATA[Jours garantis],"") -> 109 | R53: =_xlfn.XLOOKUP(A53,DATA[Code de produit],DATA[Entreposage],"") -> SEC | S53: =_xlfn.XLOOKUP(A53,DATA[Code de produit],DATA[Prix],"") -> 70,61$ | T53: =_xlfn.XLOOKUP(A53,DATA[Code de produit],DATA[Promo mensuelle],"") -> 0 | U53: =_xlfn.XLOOKUP(A53,DATA[Code de produit],DATA[Rabais promo],"") -> 0 | V53: =_xlfn.XLOOKUP(A53,DATA[Code de produit],DATA[PDS],"") -> 15.99 | W53: =_xlfn.XLOOKUP(A53,DATA[Code de produit],DATA[Classement des produits],"") -> 2
A54: BA0413 | C54: =_xlfn.XLOOKUP(A54,DATA[Code de produit],DATA[Description],"") -> Café en grains entiers - Mélange Bards | D54: =_xlfn.XLOOKUP(A54,DATA[Code de produit],DATA[CUP/unité],"") -> 628614000416 | E54: =_xlfn.XLOOKUP(A54,DATA[Code de produit],DATA[Format],"") -> 340G | F54: =_xlfn.XLOOKUP(A54,DATA[Code de produit],DATA[Sélection],"") -> CS | G54: =_xlfn.XLOOKUP(A54,DATA[Code de produit],DATA[EMB.],"") -> 6 | H54: =_xlfn.XLOOKUP(A54,DATA[Code de produit],DATA[B],"") -> O | I54: =_xlfn.XLOOKUP(A54,DATA[Code de produit],DATA[C],"") -> O | J54: =_xlfn.XLOOKUP(A54,DATA[Code de produit],DATA[V],"") -> 0 | K54: =_xlfn.XLOOKUP(A54,DATA[Code de produit],DATA[SG],"") -> 0 | L54: =_xlfn.XLOOKUP(A54,DATA[Code de produit],DATA[SO],"") -> 0 | M54: =_xlfn.XLOOKUP(A54,DATA[Code de produit],DATA[H],"") -> 0 | N54: =_xlfn.XLOOKUP(A54,DATA[Code de produit],DATA[FC],"") -> 0 | O54: =_xlfn.XLOOKUP(A54,DATA[Code de produit],DATA[CC],"") -> O | P54: =_xlfn.XLOOKUP(A54,DATA[Code de produit],DATA[PC],"") -> 0 | Q54: =_xlfn.XLOOKUP(A54,DATA[Code de produit],DATA[Jours garantis],"") -> 109 | R54: =_xlfn.XLOOKUP(A54,DATA[Code de produit],DATA[Entreposage],"") -> SEC | S54: =_xlfn.XLOOKUP(A54,DATA[Code de produit],DATA[Prix],"") -> 74,56$ | T54: =_xlfn.XLOOKUP(A54,DATA[Code de produit],DATA[Promo mensuelle],"") -> 0 | U54: =_xlfn.XLOOKUP(A54,DATA[Code de produit],DATA[Rabais promo],"") -> 0 | V54: =_xlfn.XLOOKUP(A54,DATA[Code de produit],DATA[PDS],"") -> 16.99 | W54: =_xlfn.XLOOKUP(A54,DATA[Code de produit],DATA[Classement des produits],"") -> 8
A55: BA0164 | C55: =_xlfn.XLOOKUP(A55,DATA[Code de produit],DATA[Description],"") -> Café en grains entiers - Mélange Dark Affair | D55: =_xlfn.XLOOKUP(A55,DATA[Code de produit],DATA[CUP/unité],"") -> 628614000164 | E55: =_xlfn.XLOOKUP(A55,DATA[Code de produit],DATA[Format],"") -> 340G | F55: =_xlfn.XLOOKUP(A55,DATA[Code de produit],DATA[Sélection],"") -> CS | G55: =_xlfn.XLOOKUP(A55,DATA[Code de produit],DATA[EMB.],"") -> 6 | H55: =_xlfn.XLOOKUP(A55,DATA[Code de produit],DATA[B],"") -> 0 | I55: =_xlfn.XLOOKUP(A55,DATA[Code de produit],DATA[C],"") -> O | J55: =_xlfn.XLOOKUP(A55,DATA[Code de produit],DATA[V],"") -> 0 | K55: =_xlfn.XLOOKUP(A55,DATA[Code de produit],DATA[SG],"") -> 0 | L55: =_xlfn.XLOOKUP(A55,DATA[Code de produit],DATA[SO],"") -> 0 | M55: =_xlfn.XLOOKUP(A55,DATA[Code de produit],DATA[H],"") -> 0 | N55: =_xlfn.XLOOKUP(A55,DATA[Code de produit],DATA[FC],"") -> 0 | O55: =_xlfn.XLOOKUP(A55,DATA[Code de produit],DATA[CC],"") -> O | P55: =_xlfn.XLOOKUP(A55,DATA[Code de produit],DATA[PC],"") -> 0 | Q55: =_xlfn.XLOOKUP(A55,DATA[Code de produit],DATA[Jours garantis],"") -> 109 | R55: =_xlfn.XLOOKUP(A55,DATA[Code de produit],DATA[Entreposage],"") -> SEC | S55: =_xlfn.XLOOKUP(A55,DATA[Code de produit],DATA[Prix],"") -> 70,61$ | T55: =_xlfn.XLOOKUP(A55,DATA[Code de produit],DATA[Promo mensuelle],"") -> 0 | U55: =_xlfn.XLOOKUP(A55,DATA[Code de produit],DATA[Rabais promo],"") -> 0 | V55: =_xlfn.XLOOKUP(A55,DATA[Code de produit],DATA[PDS],"") -> 15.99 | W55: =_xlfn.XLOOKUP(A55,DATA[Code de produit],DATA[Classement des produits],"") -> 3
A56: BA0406 | C56: =_xlfn.XLOOKUP(A56,DATA[Code de produit],DATA[Description],"") -> Café en grains entiers - Mélange Las Rosas | D56: =_xlfn.XLOOKUP(A56,DATA[Code de produit],DATA[CUP/unité],"") -> 628614000409 | E56: =_xlfn.XLOOKUP(A56,DATA[Code de produit],DATA[Format],"") -> 340G | F56: =_xlfn.XLOOKUP(A56,DATA[Code de produit],DATA[Sélection],"") -> CS | G56: =_xlfn.XLOOKUP(A56,DATA[Code de produit],DATA[EMB.],"") -> 6 | H56: =_xlfn.XLOOKUP(A56,DATA[Code de produit],DATA[B],"") -> 0 | I56: =_xlfn.XLOOKUP(A56,DATA[Code de produit],DATA[C],"") -> O | J56: =_xlfn.XLOOKUP(A56,DATA[Code de produit],DATA[V],"") -> 0 | K56: =_xlfn.XLOOKUP(A56,DATA[Code de produit],DATA[SG],"") -> 0 | L56: =_xlfn.XLOOKUP(A56,DATA[Code de produit],DATA[SO],"") -> 0 | M56: =_xlfn.XLOOKUP(A56,DATA[Code de produit],DATA[H],"") -> 0 | N56: =_xlfn.XLOOKUP(A56,DATA[Code de produit],DATA[FC],"") -> 0 | O56: =_xlfn.XLOOKUP(A56,DATA[Code de produit],DATA[CC],"") -> O | P56: =_xlfn.XLOOKUP(A56,DATA[Code de produit],DATA[PC],"") -> 0 | Q56: =_xlfn.XLOOKUP(A56,DATA[Code de produit],DATA[Jours garantis],"") -> 109 | R56: =_xlfn.XLOOKUP(A56,DATA[Code de produit],DATA[Entreposage],"") -> SEC | S56: =_xlfn.XLOOKUP(A56,DATA[Code de produit],DATA[Prix],"") -> 74,56$ | T56: =_xlfn.XLOOKUP(A56,DATA[Code de produit],DATA[Promo mensuelle],"") -> 0 | U56: =_xlfn.XLOOKUP(A56,DATA[Code de produit],DATA[Rabais promo],"") -> 0 | V56: =_xlfn.XLOOKUP(A56,DATA[Code de produit],DATA[PDS],"") -> 16.99 | W56: =_xlfn.XLOOKUP(A56,DATA[Code de produit],DATA[Classement des produits],"") -> 13
A57: BENNY | C57: =_xlfn.XLOOKUP(A57,DATA[Code de produit],DATA[Description],"") ->  | D57: =_xlfn.XLOOKUP(A57,DATA[Code de produit],DATA[CUP/unité],"") ->  | E57: =_xlfn.XLOOKUP(A57,DATA[Code de produit],DATA[Format],"") ->  | F57: =_xlfn.XLOOKUP(A57,DATA[Code de produit],DATA[Sélection],"") ->  | G57: =_xlfn.XLOOKUP(A57,DATA[Code de produit],DATA[EMB.],"") ->  | H57: =_xlfn.XLOOKUP(A57,DATA[Code de produit],DATA[B],"") ->  | I57: =_xlfn.XLOOKUP(A57,DATA[Code de produit],DATA[C],"") ->  | J57: =_xlfn.XLOOKUP(A57,DATA[Code de produit],DATA[V],"") ->  | K57: =_xlfn.XLOOKUP(A57,DATA[Code de produit],DATA[SG],"") ->  | L57: =_xlfn.XLOOKUP(A57,DATA[Code de produit],DATA[SO],"") ->  | M57: =_xlfn.XLOOKUP(A57,DATA[Code de produit],DATA[H],"") ->  | N57: =_xlfn.XLOOKUP(A57,DATA[Code de produit],DATA[FC],"") ->  | O57: =_xlfn.XLOOKUP(A57,DATA[Code de produit],DATA[CC],"") ->  | P57: =_xlfn.XLOOKUP(A57,DATA[Code de produit],DATA[PC],"") ->  | Q57: =_xlfn.XLOOKUP(A57,DATA[Code de produit],DATA[Jours garantis],"") ->  | R57: =_xlfn.XLOOKUP(A57,DATA[Code de produit],DATA[Entreposage],"") ->  | S57: =_xlfn.XLOOKUP(A57,DATA[Code de produit],DATA[Prix],"") ->  | T57: =_xlfn.XLOOKUP(A57,DATA[Code de produit],DATA[Promo mensuelle],"") ->  | U57: =_xlfn.XLOOKUP(A57,DATA[Code de produit],DATA[Rabais promo],"") ->  | V57: =_xlfn.XLOOKUP(A57,DATA[Code de produit],DATA[PDS],"") ->  | W57: =_xlfn.XLOOKUP(A57,DATA[Code de produit],DATA[Classement des produits],"") -> 
A58: Énergie nourissante | C58: =_xlfn.XLOOKUP(A58,DATA[Code de produit],DATA[Description],"") ->  | D58: =_xlfn.XLOOKUP(A58,DATA[Code de produit],DATA[CUP/unité],"") ->  | E58: =_xlfn.XLOOKUP(A58,DATA[Code de produit],DATA[Format],"") ->  | F58: =_xlfn.XLOOKUP(A58,DATA[Code de produit],DATA[Sélection],"") ->  | G58: =_xlfn.XLOOKUP(A58,DATA[Code de produit],DATA[EMB.],"") ->  | H58: =_xlfn.XLOOKUP(A58,DATA[Code de produit],DATA[B],"") ->  | I58: =_xlfn.XLOOKUP(A58,DATA[Code de produit],DATA[C],"") ->  | J58: =_xlfn.XLOOKUP(A58,DATA[Code de produit],DATA[V],"") ->  | K58: =_xlfn.XLOOKUP(A58,DATA[Code de produit],DATA[SG],"") ->  | L58: =_xlfn.XLOOKUP(A58,DATA[Code de produit],DATA[SO],"") ->  | M58: =_xlfn.XLOOKUP(A58,DATA[Code de produit],DATA[H],"") ->  | N58: =_xlfn.XLOOKUP(A58,DATA[Code de produit],DATA[FC],"") ->  | O58: =_xlfn.XLOOKUP(A58,DATA[Code de produit],DATA[CC],"") ->  | P58: =_xlfn.XLOOKUP(A58,DATA[Code de produit],DATA[PC],"") ->  | Q58: =_xlfn.XLOOKUP(A58,DATA[Code de produit],DATA[Jours garantis],"") ->  | R58: =_xlfn.XLOOKUP(A58,DATA[Code de produit],DATA[Entreposage],"") ->  | S58: =_xlfn.XLOOKUP(A58,DATA[Code de produit],DATA[Prix],"") ->  | T58: =_xlfn.XLOOKUP(A58,DATA[Code de produit],DATA[Promo mensuelle],"") ->  | U58: =_xlfn.XLOOKUP(A58,DATA[Code de produit],DATA[Rabais promo],"") ->  | V58: =_xlfn.XLOOKUP(A58,DATA[Code de produit],DATA[PDS],"") ->  | W58: =_xlfn.XLOOKUP(A58,DATA[Code de produit],DATA[Classement des produits],"") -> 
A59: BY1759 | C59: =_xlfn.XLOOKUP(A59,DATA[Code de produit],DATA[Description],"") -> Framboise et hibiscus | D59: =_xlfn.XLOOKUP(A59,DATA[Code de produit],DATA[CUP/unité],"") -> 628942441752 | E59: =_xlfn.XLOOKUP(A59,DATA[Code de produit],DATA[Format],"") -> 355ML | F59: =_xlfn.XLOOKUP(A59,DATA[Code de produit],DATA[Sélection],"") -> CS | G59: =_xlfn.XLOOKUP(A59,DATA[Code de produit],DATA[EMB.],"") -> 12 | H59: =_xlfn.XLOOKUP(A59,DATA[Code de produit],DATA[B],"") -> 0 | I59: =_xlfn.XLOOKUP(A59,DATA[Code de produit],DATA[C],"") -> 0 | J59: =_xlfn.XLOOKUP(A59,DATA[Code de produit],DATA[V],"") -> 0 | K59: =_xlfn.XLOOKUP(A59,DATA[Code de produit],DATA[SG],"") -> 0 | L59: =_xlfn.XLOOKUP(A59,DATA[Code de produit],DATA[SO],"") -> 0 | M59: =_xlfn.XLOOKUP(A59,DATA[Code de produit],DATA[H],"") -> 0 | N59: =_xlfn.XLOOKUP(A59,DATA[Code de produit],DATA[FC],"") -> O | O59: =_xlfn.XLOOKUP(A59,DATA[Code de produit],DATA[CC],"") -> O | P59: =_xlfn.XLOOKUP(A59,DATA[Code de produit],DATA[PC],"") -> O | Q59: =_xlfn.XLOOKUP(A59,DATA[Code de produit],DATA[Jours garantis],"") -> 95 | R59: =_xlfn.XLOOKUP(A59,DATA[Code de produit],DATA[Entreposage],"") -> SEC | S59: =_xlfn.XLOOKUP(A59,DATA[Code de produit],DATA[Prix],"") -> 39,17$ | T59: =_xlfn.XLOOKUP(A59,DATA[Code de produit],DATA[Promo mensuelle],"") -> Offre de janvier | U59: =_xlfn.XLOOKUP(A59,DATA[Code de produit],DATA[Rabais promo],"") -> ÉCONOMISEZ 20% | V59: =_xlfn.XLOOKUP(A59,DATA[Code de produit],DATA[PDS],"") -> 4.99 | W59: =_xlfn.XLOOKUP(A59,DATA[Code de produit],DATA[Classement des produits],"") -> 0
A60: BY1766 | C60: =_xlfn.XLOOKUP(A60,DATA[Code de produit],DATA[Description],"") -> Pêche et litchi | D60: =_xlfn.XLOOKUP(A60,DATA[Code de produit],DATA[CUP/unité],"") -> 628942441769 | E60: =_xlfn.XLOOKUP(A60,DATA[Code de produit],DATA[Format],"") -> 355ML | F60: =_xlfn.XLOOKUP(A60,DATA[Code de produit],DATA[Sélection],"") -> CS | G60: =_xlfn.XLOOKUP(A60,DATA[Code de produit],DATA[EMB.],"") -> 12 | H60: =_xlfn.XLOOKUP(A60,DATA[Code de produit],DATA[B],"") -> 0 | I60: =_xlfn.XLOOKUP(A60,DATA[Code de produit],DATA[C],"") -> 0 | J60: =_xlfn.XLOOKUP(A60,DATA[Code de produit],DATA[V],"") -> 0 | K60: =_xlfn.XLOOKUP(A60,DATA[Code de produit],DATA[SG],"") -> 0 | L60: =_xlfn.XLOOKUP(A60,DATA[Code de produit],DATA[SO],"") -> 0 | M60: =_xlfn.XLOOKUP(A60,DATA[Code de produit],DATA[H],"") -> 0 | N60: =_xlfn.XLOOKUP(A60,DATA[Code de produit],DATA[FC],"") -> O | O60: =_xlfn.XLOOKUP(A60,DATA[Code de produit],DATA[CC],"") -> O | P60: =_xlfn.XLOOKUP(A60,DATA[Code de produit],DATA[PC],"") -> O | Q60: =_xlfn.XLOOKUP(A60,DATA[Code de produit],DATA[Jours garantis],"") -> 95 | R60: =_xlfn.XLOOKUP(A60,DATA[Code de produit],DATA[Entreposage],"") -> SEC | S60: =_xlfn.XLOOKUP(A60,DATA[Code de produit],DATA[Prix],"") -> 39,17$ | T60: =_xlfn.XLOOKUP(A60,DATA[Code de produit],DATA[Promo mensuelle],"") -> Offre de janvier | U60: =_xlfn.XLOOKUP(A60,DATA[Code de produit],DATA[Rabais promo],"") -> ÉCONOMISEZ 20% | V60: =_xlfn.XLOOKUP(A60,DATA[Code de produit],DATA[PDS],"") -> 4.99 | W60: =_xlfn.XLOOKUP(A60,DATA[Code de produit],DATA[Classement des produits],"") -> 0
A61: BY1780 | C61: =_xlfn.XLOOKUP(A61,DATA[Code de produit],DATA[Description],"") -> Yuzu et sureau | D61: =_xlfn.XLOOKUP(A61,DATA[Code de produit],DATA[CUP/unité],"") -> 628942441783 | E61: =_xlfn.XLOOKUP(A61,DATA[Code de produit],DATA[Format],"") -> 355ML | F61: =_xlfn.XLOOKUP(A61,DATA[Code de produit],DATA[Sélection],"") -> CS | G61: =_xlfn.XLOOKUP(A61,DATA[Code de produit],DATA[EMB.],"") -> 12 | H61: =_xlfn.XLOOKUP(A61,DATA[Code de produit],DATA[B],"") -> 0 | I61: =_xlfn.XLOOKUP(A61,DATA[Code de produit],DATA[C],"") -> 0 | J61: =_xlfn.XLOOKUP(A61,DATA[Code de produit],DATA[V],"") -> 0 | K61: =_xlfn.XLOOKUP(A61,DATA[Code de produit],DATA[SG],"") -> 0 | L61: =_xlfn.XLOOKUP(A61,DATA[Code de produit],DATA[SO],"") -> 0 | M61: =_xlfn.XLOOKUP(A61,DATA[Code de produit],DATA[H],"") -> 0 | N61: =_xlfn.XLOOKUP(A61,DATA[Code de produit],DATA[FC],"") -> O | O61: =_xlfn.XLOOKUP(A61,DATA[Code de produit],DATA[CC],"") -> O | P61: =_xlfn.XLOOKUP(A61,DATA[Code de produit],DATA[PC],"") -> O | Q61: =_xlfn.XLOOKUP(A61,DATA[Code de produit],DATA[Jours garantis],"") -> 95 | R61: =_xlfn.XLOOKUP(A61,DATA[Code de produit],DATA[Entreposage],"") -> SEC | S61: =_xlfn.XLOOKUP(A61,DATA[Code de produit],DATA[Prix],"") -> 39,17$ | T61: =_xlfn.XLOOKUP(A61,DATA[Code de produit],DATA[Promo mensuelle],"") -> Offre de janvier | U61: =_xlfn.XLOOKUP(A61,DATA[Code de produit],DATA[Rabais promo],"") -> ÉCONOMISEZ 20% | V61: =_xlfn.XLOOKUP(A61,DATA[Code de produit],DATA[PDS],"") -> 4.99 | W61: =_xlfn.XLOOKUP(A61,DATA[Code de produit],DATA[Classement des produits],"") -> 0
A62: BY1810 | C62: =_xlfn.XLOOKUP(A62,DATA[Code de produit],DATA[Description],"") -> Framboise et hibiscus | D62: =_xlfn.XLOOKUP(A62,DATA[Code de produit],DATA[CUP/unité],"") -> 628942441813 | E62: =_xlfn.XLOOKUP(A62,DATA[Code de produit],DATA[Format],"") -> 4x355ML | F62: =_xlfn.XLOOKUP(A62,DATA[Code de produit],DATA[Sélection],"") -> CS | G62: =_xlfn.XLOOKUP(A62,DATA[Code de produit],DATA[EMB.],"") -> 6 | H62: =_xlfn.XLOOKUP(A62,DATA[Code de produit],DATA[B],"") -> O | I62: =_xlfn.XLOOKUP(A62,DATA[Code de produit],DATA[C],"") -> 0 | J62: =_xlfn.XLOOKUP(A62,DATA[Code de produit],DATA[V],"") -> O | K62: =_xlfn.XLOOKUP(A62,DATA[Code de produit],DATA[SG],"") -> O | L62: =_xlfn.XLOOKUP(A62,DATA[Code de produit],DATA[SO],"") -> O | M62: =_xlfn.XLOOKUP(A62,DATA[Code de produit],DATA[H],"") -> 0 | N62: =_xlfn.XLOOKUP(A62,DATA[Code de produit],DATA[FC],"") -> O | O62: =_xlfn.XLOOKUP(A62,DATA[Code de produit],DATA[CC],"") -> O | P62: =_xlfn.XLOOKUP(A62,DATA[Code de produit],DATA[PC],"") -> O | Q62: =_xlfn.XLOOKUP(A62,DATA[Code de produit],DATA[Jours garantis],"") -> 109 | R62: =_xlfn.XLOOKUP(A62,DATA[Code de produit],DATA[Entreposage],"") -> SEC | S62: =_xlfn.XLOOKUP(A62,DATA[Code de produit],DATA[Prix],"") -> 83,34$ | T62: =_xlfn.XLOOKUP(A62,DATA[Code de produit],DATA[Promo mensuelle],"") -> Offre de janvier | U62: =_xlfn.XLOOKUP(A62,DATA[Code de produit],DATA[Rabais promo],"") -> ÉCONOMISEZ 20% | V62: =_xlfn.XLOOKUP(A62,DATA[Code de produit],DATA[PDS],"") -> 18.99 | W62: =_xlfn.XLOOKUP(A62,DATA[Code de produit],DATA[Classement des produits],"") -> 0
A63: BY1773 | C63: =_xlfn.XLOOKUP(A63,DATA[Code de produit],DATA[Description],"") -> Pêche et litchi | D63: =_xlfn.XLOOKUP(A63,DATA[Code de produit],DATA[CUP/unité],"") -> 628942441776 | E63: =_xlfn.XLOOKUP(A63,DATA[Code de produit],DATA[Format],"") -> 4x355ML | F63: =_xlfn.XLOOKUP(A63,DATA[Code de produit],DATA[Sélection],"") -> CS | G63: =_xlfn.XLOOKUP(A63,DATA[Code de produit],DATA[EMB.],"") -> 6 | H63: =_xlfn.XLOOKUP(A63,DATA[Code de produit],DATA[B],"") -> O | I63: =_xlfn.XLOOKUP(A63,DATA[Code de produit],DATA[C],"") -> 0 | J63: =_xlfn.XLOOKUP(A63,DATA[Code de produit],DATA[V],"") -> O | K63: =_xlfn.XLOOKUP(A63,DATA[Code de produit],DATA[SG],"") -> O | L63: =_xlfn.XLOOKUP(A63,DATA[Code de produit],DATA[SO],"") -> O | M63: =_xlfn.XLOOKUP(A63,DATA[Code de produit],DATA[H],"") -> 0 | N63: =_xlfn.XLOOKUP(A63,DATA[Code de produit],DATA[FC],"") -> O | O63: =_xlfn.XLOOKUP(A63,DATA[Code de produit],DATA[CC],"") -> O | P63: =_xlfn.XLOOKUP(A63,DATA[Code de produit],DATA[PC],"") -> O | Q63: =_xlfn.XLOOKUP(A63,DATA[Code de produit],DATA[Jours garantis],"") -> 109 | R63: =_xlfn.XLOOKUP(A63,DATA[Code de produit],DATA[Entreposage],"") -> SEC | S63: =_xlfn.XLOOKUP(A63,DATA[Code de produit],DATA[Prix],"") -> 83,34$ | T63: =_xlfn.XLOOKUP(A63,DATA[Code de produit],DATA[Promo mensuelle],"") -> Offre de janvier | U63: =_xlfn.XLOOKUP(A63,DATA[Code de produit],DATA[Rabais promo],"") -> ÉCONOMISEZ 20% | V63: =_xlfn.XLOOKUP(A63,DATA[Code de produit],DATA[PDS],"") -> 18.99 | W63: =_xlfn.XLOOKUP(A63,DATA[Code de produit],DATA[Classement des produits],"") -> 0
A64: BY1803 | C64: =_xlfn.XLOOKUP(A64,DATA[Code de produit],DATA[Description],"") -> Yuzu et sureau | D64: =_xlfn.XLOOKUP(A64,DATA[Code de produit],DATA[CUP/unité],"") -> 628942441806 | E64: =_xlfn.XLOOKUP(A64,DATA[Code de produit],DATA[Format],"") -> 4x355ML | F64: =_xlfn.XLOOKUP(A64,DATA[Code de produit],DATA[Sélection],"") -> CS | G64: =_xlfn.XLOOKUP(A64,DATA[Code de produit],DATA[EMB.],"") -> 6 | H64: =_xlfn.XLOOKUP(A64,DATA[Code de produit],DATA[B],"") -> O | I64: =_xlfn.XLOOKUP(A64,DATA[Code de produit],DATA[C],"") -> 0 | J64: =_xlfn.XLOOKUP(A64,DATA[Code de produit],DATA[V],"") -> O | K64: =_xlfn.XLOOKUP(A64,DATA[Code de produit],DATA[SG],"") -> O | L64: =_xlfn.XLOOKUP(A64,DATA[Code de produit],DATA[SO],"") -> O | M64: =_xlfn.XLOOKUP(A64,DATA[Code de produit],DATA[H],"") -> 0 | N64: =_xlfn.XLOOKUP(A64,DATA[Code de produit],DATA[FC],"") -> O | O64: =_xlfn.XLOOKUP(A64,DATA[Code de produit],DATA[CC],"") -> O | P64: =_xlfn.XLOOKUP(A64,DATA[Code de produit],DATA[PC],"") -> O | Q64: =_xlfn.XLOOKUP(A64,DATA[Code de produit],DATA[Jours garantis],"") -> 109 | R64: =_xlfn.XLOOKUP(A64,DATA[Code de produit],DATA[Entreposage],"") -> SEC | S64: =_xlfn.XLOOKUP(A64,DATA[Code de produit],DATA[Prix],"") -> 83,34$ | T64: =_xlfn.XLOOKUP(A64,DATA[Code de produit],DATA[Promo mensuelle],"") -> Offre de janvier | U64: =_xlfn.XLOOKUP(A64,DATA[Code de produit],DATA[Rabais promo],"") -> ÉCONOMISEZ 20% | V64: =_xlfn.XLOOKUP(A64,DATA[Code de produit],DATA[PDS],"") -> 18.99 | W64: =_xlfn.XLOOKUP(A64,DATA[Code de produit],DATA[Classement des produits],"") -> 0
A65: BIERE SANS ALCOOL | C65: =_xlfn.XLOOKUP(A65,DATA[Code de produit],DATA[Description],"") ->  | D65: =_xlfn.XLOOKUP(A65,DATA[Code de produit],DATA[CUP/unité],"") ->  | E65: =_xlfn.XLOOKUP(A65,DATA[Code de produit],DATA[Format],"") ->  | F65: =_xlfn.XLOOKUP(A65,DATA[Code de produit],DATA[Sélection],"") ->  | G65: =_xlfn.XLOOKUP(A65,DATA[Code de produit],DATA[EMB.],"") ->  | H65: =_xlfn.XLOOKUP(A65,DATA[Code de produit],DATA[B],"") ->  | I65: =_xlfn.XLOOKUP(A65,DATA[Code de produit],DATA[C],"") ->  | J65: =_xlfn.XLOOKUP(A65,DATA[Code de produit],DATA[V],"") ->  | K65: =_xlfn.XLOOKUP(A65,DATA[Code de produit],DATA[SG],"") ->  | L65: =_xlfn.XLOOKUP(A65,DATA[Code de produit],DATA[SO],"") ->  | M65: =_xlfn.XLOOKUP(A65,DATA[Code de produit],DATA[H],"") ->  | N65: =_xlfn.XLOOKUP(A65,DATA[Code de produit],DATA[FC],"") ->  | O65: =_xlfn.XLOOKUP(A65,DATA[Code de produit],DATA[CC],"") ->  | P65: =_xlfn.XLOOKUP(A65,DATA[Code de produit],DATA[PC],"") ->  | Q65: =_xlfn.XLOOKUP(A65,DATA[Code de produit],DATA[Jours garantis],"") ->  | R65: =_xlfn.XLOOKUP(A65,DATA[Code de produit],DATA[Entreposage],"") ->  | S65: =_xlfn.XLOOKUP(A65,DATA[Code de produit],DATA[Prix],"") ->  | T65: =_xlfn.XLOOKUP(A65,DATA[Code de produit],DATA[Promo mensuelle],"") ->  | U65: =_xlfn.XLOOKUP(A65,DATA[Code de produit],DATA[Rabais promo],"") ->  | V65: =_xlfn.XLOOKUP(A65,DATA[Code de produit],DATA[PDS],"") ->  | W65: =_xlfn.XLOOKUP(A65,DATA[Code de produit],DATA[Classement des produits],"") -> 
A66: Bière artisanale sans alcool | C66: =_xlfn.XLOOKUP(A66,DATA[Code de produit],DATA[Description],"") ->  | D66: =_xlfn.XLOOKUP(A66,DATA[Code de produit],DATA[CUP/unité],"") ->  | E66: =_xlfn.XLOOKUP(A66,DATA[Code de produit],DATA[Format],"") ->  | F66: =_xlfn.XLOOKUP(A66,DATA[Code de produit],DATA[Sélection],"") ->  | G66: =_xlfn.XLOOKUP(A66,DATA[Code de produit],DATA[EMB.],"") ->  | H66: =_xlfn.XLOOKUP(A66,DATA[Code de produit],DATA[B],"") ->  | I66: =_xlfn.XLOOKUP(A66,DATA[Code de produit],DATA[C],"") ->  | J66: =_xlfn.XLOOKUP(A66,DATA[Code de produit],DATA[V],"") ->  | K66: =_xlfn.XLOOKUP(A66,DATA[Code de produit],DATA[SG],"") ->  | L66: =_xlfn.XLOOKUP(A66,DATA[Code de produit],DATA[SO],"") ->  | M66: =_xlfn.XLOOKUP(A66,DATA[Code de produit],DATA[H],"") ->  | N66: =_xlfn.XLOOKUP(A66,DATA[Code de produit],DATA[FC],"") ->  | O66: =_xlfn.XLOOKUP(A66,DATA[Code de produit],DATA[CC],"") ->  | P66: =_xlfn.XLOOKUP(A66,DATA[Code de produit],DATA[PC],"") ->  | Q66: =_xlfn.XLOOKUP(A66,DATA[Code de produit],DATA[Jours garantis],"") ->  | R66: =_xlfn.XLOOKUP(A66,DATA[Code de produit],DATA[Entreposage],"") ->  | S66: =_xlfn.XLOOKUP(A66,DATA[Code de produit],DATA[Prix],"") ->  | T66: =_xlfn.XLOOKUP(A66,DATA[Code de produit],DATA[Promo mensuelle],"") ->  | U66: =_xlfn.XLOOKUP(A66,DATA[Code de produit],DATA[Rabais promo],"") ->  | V66: =_xlfn.XLOOKUP(A66,DATA[Code de produit],DATA[PDS],"") ->  | W66: =_xlfn.XLOOKUP(A66,DATA[Code de produit],DATA[Classement des produits],"") -> 
A67: BS5396 | C67: =_xlfn.XLOOKUP(A67,DATA[Code de produit],DATA[Description],"") -> Bière de microbrasserie, Blanche orange | D67: =_xlfn.XLOOKUP(A67,DATA[Code de produit],DATA[CUP/unité],"") -> 627987335392 | E67: =_xlfn.XLOOKUP(A67,DATA[Code de produit],DATA[Format],"") -> 473ML | F67: =_xlfn.XLOOKUP(A67,DATA[Code de produit],DATA[Sélection],"") -> CS | G67: =_xlfn.XLOOKUP(A67,DATA[Code de produit],DATA[EMB.],"") -> 12 | H67: =_xlfn.XLOOKUP(A67,DATA[Code de produit],DATA[B],"") -> 0 | I67: =_xlfn.XLOOKUP(A67,DATA[Code de produit],DATA[C],"") -> 0 | J67: =_xlfn.XLOOKUP(A67,DATA[Code de produit],DATA[V],"") -> 0 | K67: =_xlfn.XLOOKUP(A67,DATA[Code de produit],DATA[SG],"") -> 0 | L67: =_xlfn.XLOOKUP(A67,DATA[Code de produit],DATA[SO],"") -> 0 | M67: =_xlfn.XLOOKUP(A67,DATA[Code de produit],DATA[H],"") -> 0 | N67: =_xlfn.XLOOKUP(A67,DATA[Code de produit],DATA[FC],"") -> O | O67: =_xlfn.XLOOKUP(A67,DATA[Code de produit],DATA[CC],"") -> O | P67: =_xlfn.XLOOKUP(A67,DATA[Code de produit],DATA[PC],"") -> 0 | Q67: =_xlfn.XLOOKUP(A67,DATA[Code de produit],DATA[Jours garantis],"") -> 219 | R67: =_xlfn.XLOOKUP(A67,DATA[Code de produit],DATA[Entreposage],"") -> SEC | S67: =_xlfn.XLOOKUP(A67,DATA[Code de produit],DATA[Prix],"") -> 30,71$ | T67: =_xlfn.XLOOKUP(A67,DATA[Code de produit],DATA[Promo mensuelle],"") -> Offre de janvier | U67: =_xlfn.XLOOKUP(A67,DATA[Code de produit],DATA[Rabais promo],"") -> ÉCONOMISEZ 10% | V67: =_xlfn.XLOOKUP(A67,DATA[Code de produit],DATA[PDS],"") -> 3.99 | W67: =_xlfn.XLOOKUP(A67,DATA[Code de produit],DATA[Classement des produits],"") -> 5
A68: BS5372 | C68: =_xlfn.XLOOKUP(A68,DATA[Code de produit],DATA[Description],"") -> Bière de microbrasserie, Blonde pilsner | D68: =_xlfn.XLOOKUP(A68,DATA[Code de produit],DATA[CUP/unité],"") -> 627987335378 | E68: =_xlfn.XLOOKUP(A68,DATA[Code de produit],DATA[Format],"") -> 473ML | F68: =_xlfn.XLOOKUP(A68,DATA[Code de produit],DATA[Sélection],"") -> CS | G68: =_xlfn.XLOOKUP(A68,DATA[Code de produit],DATA[EMB.],"") -> 12 | H68: =_xlfn.XLOOKUP(A68,DATA[Code de produit],DATA[B],"") -> 0 | I68: =_xlfn.XLOOKUP(A68,DATA[Code de produit],DATA[C],"") -> 0 | J68: =_xlfn.XLOOKUP(A68,DATA[Code de produit],DATA[V],"") -> 0 | K68: =_xlfn.XLOOKUP(A68,DATA[Code de produit],DATA[SG],"") -> 0 | L68: =_xlfn.XLOOKUP(A68,DATA[Code de produit],DATA[SO],"") -> 0 | M68: =_xlfn.XLOOKUP(A68,DATA[Code de produit],DATA[H],"") -> 0 | N68: =_xlfn.XLOOKUP(A68,DATA[Code de produit],DATA[FC],"") -> O | O68: =_xlfn.XLOOKUP(A68,DATA[Code de produit],DATA[CC],"") -> O | P68: =_xlfn.XLOOKUP(A68,DATA[Code de produit],DATA[PC],"") -> 0 | Q68: =_xlfn.XLOOKUP(A68,DATA[Code de produit],DATA[Jours garantis],"") -> 200 | R68: =_xlfn.XLOOKUP(A68,DATA[Code de produit],DATA[Entreposage],"") -> SEC | S68: =_xlfn.XLOOKUP(A68,DATA[Code de produit],DATA[Prix],"") -> 30,71$ | T68: =_xlfn.XLOOKUP(A68,DATA[Code de produit],DATA[Promo mensuelle],"") -> Offre de janvier | U68: =_xlfn.XLOOKUP(A68,DATA[Code de produit],DATA[Rabais promo],"") -> ÉCONOMISEZ 10% | V68: =_xlfn.XLOOKUP(A68,DATA[Code de produit],DATA[PDS],"") -> 3.99 | W68: =_xlfn.XLOOKUP(A68,DATA[Code de produit],DATA[Classement des produits],"") -> 4
A69: BS5341 | C69: =_xlfn.XLOOKUP(A69,DATA[Code de produit],DATA[Description],"") -> Bière de microbrasserie, Ipa douce | D69: =_xlfn.XLOOKUP(A69,DATA[Code de produit],DATA[CUP/unité],"") -> 627987335347 | E69: =_xlfn.XLOOKUP(A69,DATA[Code de produit],DATA[Format],"") -> 473ML | F69: =_xlfn.XLOOKUP(A69,DATA[Code de produit],DATA[Sélection],"") -> CS | G69: =_xlfn.XLOOKUP(A69,DATA[Code de produit],DATA[EMB.],"") -> 12 | H69: =_xlfn.XLOOKUP(A69,DATA[Code de produit],DATA[B],"") -> 0 | I69: =_xlfn.XLOOKUP(A69,DATA[Code de produit],DATA[C],"") -> 0 | J69: =_xlfn.XLOOKUP(A69,DATA[Code de produit],DATA[V],"") -> 0 | K69: =_xlfn.XLOOKUP(A69,DATA[Code de produit],DATA[SG],"") -> 0 | L69: =_xlfn.XLOOKUP(A69,DATA[Code de produit],DATA[SO],"") -> 0 | M69: =_xlfn.XLOOKUP(A69,DATA[Code de produit],DATA[H],"") -> 0 | N69: =_xlfn.XLOOKUP(A69,DATA[Code de produit],DATA[FC],"") -> O | O69: =_xlfn.XLOOKUP(A69,DATA[Code de produit],DATA[CC],"") -> O | P69: =_xlfn.XLOOKUP(A69,DATA[Code de produit],DATA[PC],"") -> 0 | Q69: =_xlfn.XLOOKUP(A69,DATA[Code de produit],DATA[Jours garantis],"") -> 200 | R69: =_xlfn.XLOOKUP(A69,DATA[Code de produit],DATA[Entreposage],"") -> SEC | S69: =_xlfn.XLOOKUP(A69,DATA[Code de produit],DATA[Prix],"") -> 30,71$ | T69: =_xlfn.XLOOKUP(A69,DATA[Code de produit],DATA[Promo mensuelle],"") -> Offre de janvier | U69: =_xlfn.XLOOKUP(A69,DATA[Code de produit],DATA[Rabais promo],"") -> ÉCONOMISEZ 10% | V69: =_xlfn.XLOOKUP(A69,DATA[Code de produit],DATA[PDS],"") -> 3.99 | W69: =_xlfn.XLOOKUP(A69,DATA[Code de produit],DATA[Classement des produits],"") -> 3
A70: BS5365 | C70: =_xlfn.XLOOKUP(A70,DATA[Code de produit],DATA[Description],"") -> Bière de microbrasserie, Sûre framboise | D70: =_xlfn.XLOOKUP(A70,DATA[Code de produit],DATA[CUP/unité],"") -> 627987335361 | E70: =_xlfn.XLOOKUP(A70,DATA[Code de produit],DATA[Format],"") -> 473ML | F70: =_xlfn.XLOOKUP(A70,DATA[Code de produit],DATA[Sélection],"") -> CS | G70: =_xlfn.XLOOKUP(A70,DATA[Code de produit],DATA[EMB.],"") -> 12 | H70: =_xlfn.XLOOKUP(A70,DATA[Code de produit],DATA[B],"") -> 0 | I70: =_xlfn.XLOOKUP(A70,DATA[Code de produit],DATA[C],"") -> 0 | J70: =_xlfn.XLOOKUP(A70,DATA[Code de produit],DATA[V],"") -> 0 | K70: =_xlfn.XLOOKUP(A70,DATA[Code de produit],DATA[SG],"") -> 0 | L70: =_xlfn.XLOOKUP(A70,DATA[Code de produit],DATA[SO],"") -> 0 | M70: =_xlfn.XLOOKUP(A70,DATA[Code de produit],DATA[H],"") -> 0 | N70: =_xlfn.XLOOKUP(A70,DATA[Code de produit],DATA[FC],"") -> O | O70: =_xlfn.XLOOKUP(A70,DATA[Code de produit],DATA[CC],"") -> O | P70: =_xlfn.XLOOKUP(A70,DATA[Code de produit],DATA[PC],"") -> 0 | Q70: =_xlfn.XLOOKUP(A70,DATA[Code de produit],DATA[Jours garantis],"") -> 200 | R70: =_xlfn.XLOOKUP(A70,DATA[Code de produit],DATA[Entreposage],"") -> SEC | S70: =_xlfn.XLOOKUP(A70,DATA[Code de produit],DATA[Prix],"") -> 30,71$ | T70: =_xlfn.XLOOKUP(A70,DATA[Code de produit],DATA[Promo mensuelle],"") -> Offre de janvier | U70: =_xlfn.XLOOKUP(A70,DATA[Code de produit],DATA[Rabais promo],"") -> ÉCONOMISEZ 10% | V70: =_xlfn.XLOOKUP(A70,DATA[Code de produit],DATA[PDS],"") -> 3.99 | W70: =_xlfn.XLOOKUP(A70,DATA[Code de produit],DATA[Classement des produits],"") -> 1
A71: BS5358 | C71: =_xlfn.XLOOKUP(A71,DATA[Code de produit],DATA[Description],"") -> Bière de microbrasserie, Sûre tropicale | D71: =_xlfn.XLOOKUP(A71,DATA[Code de produit],DATA[CUP/unité],"") -> 627987335354 | E71: =_xlfn.XLOOKUP(A71,DATA[Code de produit],DATA[Format],"") -> 473ML | F71: =_xlfn.XLOOKUP(A71,DATA[Code de produit],DATA[Sélection],"") -> CS | G71: =_xlfn.XLOOKUP(A71,DATA[Code de produit],DATA[EMB.],"") -> 12 | H71: =_xlfn.XLOOKUP(A71,DATA[Code de produit],DATA[B],"") -> 0 | I71: =_xlfn.XLOOKUP(A71,DATA[Code de produit],DATA[C],"") -> 0 | J71: =_xlfn.XLOOKUP(A71,DATA[Code de produit],DATA[V],"") -> 0 | K71: =_xlfn.XLOOKUP(A71,DATA[Code de produit],DATA[SG],"") -> 0 | L71: =_xlfn.XLOOKUP(A71,DATA[Code de produit],DATA[SO],"") -> 0 | M71: =_xlfn.XLOOKUP(A71,DATA[Code de produit],DATA[H],"") -> 0 | N71: =_xlfn.XLOOKUP(A71,DATA[Code de produit],DATA[FC],"") -> O | O71: =_xlfn.XLOOKUP(A71,DATA[Code de produit],DATA[CC],"") -> O | P71: =_xlfn.XLOOKUP(A71,DATA[Code de produit],DATA[PC],"") -> 0 | Q71: =_xlfn.XLOOKUP(A71,DATA[Code de produit],DATA[Jours garantis],"") -> 200 | R71: =_xlfn.XLOOKUP(A71,DATA[Code de produit],DATA[Entreposage],"") -> SEC | S71: =_xlfn.XLOOKUP(A71,DATA[Code de produit],DATA[Prix],"") -> 30,71$ | T71: =_xlfn.XLOOKUP(A71,DATA[Code de produit],DATA[Promo mensuelle],"") -> Offre de janvier | U71: =_xlfn.XLOOKUP(A71,DATA[Code de produit],DATA[Rabais promo],"") -> ÉCONOMISEZ 10% | V71: =_xlfn.XLOOKUP(A71,DATA[Code de produit],DATA[PDS],"") -> 3.99 | W71: =_xlfn.XLOOKUP(A71,DATA[Code de produit],DATA[Classement des produits],"") -> 2
A72: BOTTICELLI | C72: =_xlfn.XLOOKUP(A72,DATA[Code de produit],DATA[Description],"") ->  | D72: =_xlfn.XLOOKUP(A72,DATA[Code de produit],DATA[CUP/unité],"") ->  | E72: =_xlfn.XLOOKUP(A72,DATA[Code de produit],DATA[Format],"") ->  | F72: =_xlfn.XLOOKUP(A72,DATA[Code de produit],DATA[Sélection],"") ->  | G72: =_xlfn.XLOOKUP(A72,DATA[Code de produit],DATA[EMB.],"") ->  | H72: =_xlfn.XLOOKUP(A72,DATA[Code de produit],DATA[B],"") ->  | I72: =_xlfn.XLOOKUP(A72,DATA[Code de produit],DATA[C],"") ->  | J72: =_xlfn.XLOOKUP(A72,DATA[Code de produit],DATA[V],"") ->  | K72: =_xlfn.XLOOKUP(A72,DATA[Code de produit],DATA[SG],"") ->  | L72: =_xlfn.XLOOKUP(A72,DATA[Code de produit],DATA[SO],"") ->  | M72: =_xlfn.XLOOKUP(A72,DATA[Code de produit],DATA[H],"") ->  | N72: =_xlfn.XLOOKUP(A72,DATA[Code de produit],DATA[FC],"") ->  | O72: =_xlfn.XLOOKUP(A72,DATA[Code de produit],DATA[CC],"") ->  | P72: =_xlfn.XLOOKUP(A72,DATA[Code de produit],DATA[PC],"") ->  | Q72: =_xlfn.XLOOKUP(A72,DATA[Code de produit],DATA[Jours garantis],"") ->  | R72: =_xlfn.XLOOKUP(A72,DATA[Code de produit],DATA[Entreposage],"") ->  | S72: =_xlfn.XLOOKUP(A72,DATA[Code de produit],DATA[Prix],"") ->  | T72: =_xlfn.XLOOKUP(A72,DATA[Code de produit],DATA[Promo mensuelle],"") ->  | U72: =_xlfn.XLOOKUP(A72,DATA[Code de produit],DATA[Rabais promo],"") ->  | V72: =_xlfn.XLOOKUP(A72,DATA[Code de produit],DATA[PDS],"") ->  | W72: =_xlfn.XLOOKUP(A72,DATA[Code de produit],DATA[Classement des produits],"") -> 
A73: Sauces pour pâtes de première qualité | C73: =_xlfn.XLOOKUP(A73,DATA[Code de produit],DATA[Description],"") ->  | D73: =_xlfn.XLOOKUP(A73,DATA[Code de produit],DATA[CUP/unité],"") ->  | E73: =_xlfn.XLOOKUP(A73,DATA[Code de produit],DATA[Format],"") ->  | F73: =_xlfn.XLOOKUP(A73,DATA[Code de produit],DATA[Sélection],"") ->  | G73: =_xlfn.XLOOKUP(A73,DATA[Code de produit],DATA[EMB.],"") ->  | H73: =_xlfn.XLOOKUP(A73,DATA[Code de produit],DATA[B],"") ->  | I73: =_xlfn.XLOOKUP(A73,DATA[Code de produit],DATA[C],"") ->  | J73: =_xlfn.XLOOKUP(A73,DATA[Code de produit],DATA[V],"") ->  | K73: =_xlfn.XLOOKUP(A73,DATA[Code de produit],DATA[SG],"") ->  | L73: =_xlfn.XLOOKUP(A73,DATA[Code de produit],DATA[SO],"") ->  | M73: =_xlfn.XLOOKUP(A73,DATA[Code de produit],DATA[H],"") ->  | N73: =_xlfn.XLOOKUP(A73,DATA[Code de produit],DATA[FC],"") ->  | O73: =_xlfn.XLOOKUP(A73,DATA[Code de produit],DATA[CC],"") ->  | P73: =_xlfn.XLOOKUP(A73,DATA[Code de produit],DATA[PC],"") ->  | Q73: =_xlfn.XLOOKUP(A73,DATA[Code de produit],DATA[Jours garantis],"") ->  | R73: =_xlfn.XLOOKUP(A73,DATA[Code de produit],DATA[Entreposage],"") ->  | S73: =_xlfn.XLOOKUP(A73,DATA[Code de produit],DATA[Prix],"") ->  | T73: =_xlfn.XLOOKUP(A73,DATA[Code de produit],DATA[Promo mensuelle],"") ->  | U73: =_xlfn.XLOOKUP(A73,DATA[Code de produit],DATA[Rabais promo],"") ->  | V73: =_xlfn.XLOOKUP(A73,DATA[Code de produit],DATA[PDS],"") ->  | W73: =_xlfn.XLOOKUP(A73,DATA[Code de produit],DATA[Classement des produits],"") -> 
A74: UF0870 | C74: =_xlfn.XLOOKUP(A74,DATA[Code de produit],DATA[Description],"") -> Sauce blanche pour pâte de première qualité, Alfredo | D74: =_xlfn.XLOOKUP(A74,DATA[Code de produit],DATA[CUP/unité],"") -> 810095660566 | E74: =_xlfn.XLOOKUP(A74,DATA[Code de produit],DATA[Format],"") -> 370ML | F74: =_xlfn.XLOOKUP(A74,DATA[Code de produit],DATA[Sélection],"") -> CS | G74: =_xlfn.XLOOKUP(A74,DATA[Code de produit],DATA[EMB.],"") -> 6 | H74: =_xlfn.XLOOKUP(A74,DATA[Code de produit],DATA[B],"") -> 0 | I74: =_xlfn.XLOOKUP(A74,DATA[Code de produit],DATA[C],"") -> 0 | J74: =_xlfn.XLOOKUP(A74,DATA[Code de produit],DATA[V],"") -> 0 | K74: =_xlfn.XLOOKUP(A74,DATA[Code de produit],DATA[SG],"") -> O | L74: =_xlfn.XLOOKUP(A74,DATA[Code de produit],DATA[SO],"") -> 0 | M74: =_xlfn.XLOOKUP(A74,DATA[Code de produit],DATA[H],"") -> 0 | N74: =_xlfn.XLOOKUP(A74,DATA[Code de produit],DATA[FC],"") -> 0 | O74: =_xlfn.XLOOKUP(A74,DATA[Code de produit],DATA[CC],"") -> 0 | P74: =_xlfn.XLOOKUP(A74,DATA[Code de produit],DATA[PC],"") -> 0 | Q74: =_xlfn.XLOOKUP(A74,DATA[Code de produit],DATA[Jours garantis],"") -> 328 | R74: =_xlfn.XLOOKUP(A74,DATA[Code de produit],DATA[Entreposage],"") -> SEC | S74: =_xlfn.XLOOKUP(A74,DATA[Code de produit],DATA[Prix],"") -> 42,83$ | T74: =_xlfn.XLOOKUP(A74,DATA[Code de produit],DATA[Promo mensuelle],"") -> 0 | U74: =_xlfn.XLOOKUP(A74,DATA[Code de produit],DATA[Rabais promo],"") -> 0 | V74: =_xlfn.XLOOKUP(A74,DATA[Code de produit],DATA[PDS],"") -> 11.99 | W74: =_xlfn.XLOOKUP(A74,DATA[Code de produit],DATA[Classement des produits],"") -> 1
A75: UF0696 | C75: =_xlfn.XLOOKUP(A75,DATA[Code de produit],DATA[Description],"") -> Sauce pour pâte de première qualité, Ail rôti | D75: =_xlfn.XLOOKUP(A75,DATA[Code de produit],DATA[CUP/unité],"") -> 810095660542 | E75: =_xlfn.XLOOKUP(A75,DATA[Code de produit],DATA[Format],"") -> 710ML | F75: =_xlfn.XLOOKUP(A75,DATA[Code de produit],DATA[Sélection],"") -> CS | G75: =_xlfn.XLOOKUP(A75,DATA[Code de produit],DATA[EMB.],"") -> 6 | H75: =_xlfn.XLOOKUP(A75,DATA[Code de produit],DATA[B],"") -> 0 | I75: =_xlfn.XLOOKUP(A75,DATA[Code de produit],DATA[C],"") -> 0 | J75: =_xlfn.XLOOKUP(A75,DATA[Code de produit],DATA[V],"") -> 0 | K75: =_xlfn.XLOOKUP(A75,DATA[Code de produit],DATA[SG],"") -> O | L75: =_xlfn.XLOOKUP(A75,DATA[Code de produit],DATA[SO],"") -> 0 | M75: =_xlfn.XLOOKUP(A75,DATA[Code de produit],DATA[H],"") -> 0 | N75: =_xlfn.XLOOKUP(A75,DATA[Code de produit],DATA[FC],"") -> 0 | O75: =_xlfn.XLOOKUP(A75,DATA[Code de produit],DATA[CC],"") -> 0 | P75: =_xlfn.XLOOKUP(A75,DATA[Code de produit],DATA[PC],"") -> 0 | Q75: =_xlfn.XLOOKUP(A75,DATA[Code de produit],DATA[Jours garantis],"") -> 328 | R75: =_xlfn.XLOOKUP(A75,DATA[Code de produit],DATA[Entreposage],"") -> SEC | S75: =_xlfn.XLOOKUP(A75,DATA[Code de produit],DATA[Prix],"") -> 42,83$ | T75: =_xlfn.XLOOKUP(A75,DATA[Code de produit],DATA[Promo mensuelle],"") -> 0 | U75: =_xlfn.XLOOKUP(A75,DATA[Code de produit],DATA[Rabais promo],"") -> 0 | V75: =_xlfn.XLOOKUP(A75,DATA[Code de produit],DATA[PDS],"") -> 11.99 | W75: =_xlfn.XLOOKUP(A75,DATA[Code de produit],DATA[Classement des produits],"") -> 3
A76: UF0719 | C76: =_xlfn.XLOOKUP(A76,DATA[Code de produit],DATA[Description],"") -> Sauce pour pâte de première qualité, Marinara | D76: =_xlfn.XLOOKUP(A76,DATA[Code de produit],DATA[CUP/unité],"") -> 810095660528 | E76: =_xlfn.XLOOKUP(A76,DATA[Code de produit],DATA[Format],"") -> 710ML | F76: =_xlfn.XLOOKUP(A76,DATA[Code de produit],DATA[Sélection],"") -> CS | G76: =_xlfn.XLOOKUP(A76,DATA[Code de produit],DATA[EMB.],"") -> 6 | H76: =_xlfn.XLOOKUP(A76,DATA[Code de produit],DATA[B],"") -> 0 | I76: =_xlfn.XLOOKUP(A76,DATA[Code de produit],DATA[C],"") -> 0 | J76: =_xlfn.XLOOKUP(A76,DATA[Code de produit],DATA[V],"") -> 0 | K76: =_xlfn.XLOOKUP(A76,DATA[Code de produit],DATA[SG],"") -> O | L76: =_xlfn.XLOOKUP(A76,DATA[Code de produit],DATA[SO],"") -> 0 | M76: =_xlfn.XLOOKUP(A76,DATA[Code de produit],DATA[H],"") -> 0 | N76: =_xlfn.XLOOKUP(A76,DATA[Code de produit],DATA[FC],"") -> 0 | O76: =_xlfn.XLOOKUP(A76,DATA[Code de produit],DATA[CC],"") -> 0 | P76: =_xlfn.XLOOKUP(A76,DATA[Code de produit],DATA[PC],"") -> 0 | Q76: =_xlfn.XLOOKUP(A76,DATA[Code de produit],DATA[Jours garantis],"") -> 328 | R76: =_xlfn.XLOOKUP(A76,DATA[Code de produit],DATA[Entreposage],"") -> SEC | S76: =_xlfn.XLOOKUP(A76,DATA[Code de produit],DATA[Prix],"") -> 42,83$ | T76: =_xlfn.XLOOKUP(A76,DATA[Code de produit],DATA[Promo mensuelle],"") -> 0 | U76: =_xlfn.XLOOKUP(A76,DATA[Code de produit],DATA[Rabais promo],"") -> 0 | V76: =_xlfn.XLOOKUP(A76,DATA[Code de produit],DATA[PDS],"") -> 11.99 | W76: =_xlfn.XLOOKUP(A76,DATA[Code de produit],DATA[Classement des produits],"") -> 2
A77: UF0689 | C77: =_xlfn.XLOOKUP(A77,DATA[Code de produit],DATA[Description],"") -> Sauce pour pâte de première qualité, Tomate et basilic | D77: =_xlfn.XLOOKUP(A77,DATA[Code de produit],DATA[CUP/unité],"") -> 810095660535 | E77: =_xlfn.XLOOKUP(A77,DATA[Code de produit],DATA[Format],"") -> 710ML | F77: =_xlfn.XLOOKUP(A77,DATA[Code de produit],DATA[Sélection],"") -> CS | G77: =_xlfn.XLOOKUP(A77,DATA[Code de produit],DATA[EMB.],"") -> 6 | H77: =_xlfn.XLOOKUP(A77,DATA[Code de produit],DATA[B],"") -> 0 | I77: =_xlfn.XLOOKUP(A77,DATA[Code de produit],DATA[C],"") -> 0 | J77: =_xlfn.XLOOKUP(A77,DATA[Code de produit],DATA[V],"") -> 0 | K77: =_xlfn.XLOOKUP(A77,DATA[Code de produit],DATA[SG],"") -> O | L77: =_xlfn.XLOOKUP(A77,DATA[Code de produit],DATA[SO],"") -> 0 | M77: =_xlfn.XLOOKUP(A77,DATA[Code de produit],DATA[H],"") -> 0 | N77: =_xlfn.XLOOKUP(A77,DATA[Code de produit],DATA[FC],"") -> 0 | O77: =_xlfn.XLOOKUP(A77,DATA[Code de produit],DATA[CC],"") -> 0 | P77: =_xlfn.XLOOKUP(A77,DATA[Code de produit],DATA[PC],"") -> 0 | Q77: =_xlfn.XLOOKUP(A77,DATA[Code de produit],DATA[Jours garantis],"") -> 328 | R77: =_xlfn.XLOOKUP(A77,DATA[Code de produit],DATA[Entreposage],"") -> SEC | S77: =_xlfn.XLOOKUP(A77,DATA[Code de produit],DATA[Prix],"") -> 42,83$ | T77: =_xlfn.XLOOKUP(A77,DATA[Code de produit],DATA[Promo mensuelle],"") -> 0 | U77: =_xlfn.XLOOKUP(A77,DATA[Code de produit],DATA[Rabais promo],"") -> 0 | V77: =_xlfn.XLOOKUP(A77,DATA[Code de produit],DATA[PDS],"") -> 11.99 | W77: =_xlfn.XLOOKUP(A77,DATA[Code de produit],DATA[Classement des produits],"") -> 1
A78: UF0702 | C78: =_xlfn.XLOOKUP(A78,DATA[Code de produit],DATA[Description],"") -> Sauce pour pâte de première qualité, Tradionnelle | D78: =_xlfn.XLOOKUP(A78,DATA[Code de produit],DATA[CUP/unité],"") -> 810095660559 | E78: =_xlfn.XLOOKUP(A78,DATA[Code de produit],DATA[Format],"") -> 710ML | F78: =_xlfn.XLOOKUP(A78,DATA[Code de produit],DATA[Sélection],"") -> CS | G78: =_xlfn.XLOOKUP(A78,DATA[Code de produit],DATA[EMB.],"") -> 6 | H78: =_xlfn.XLOOKUP(A78,DATA[Code de produit],DATA[B],"") -> 0 | I78: =_xlfn.XLOOKUP(A78,DATA[Code de produit],DATA[C],"") -> 0 | J78: =_xlfn.XLOOKUP(A78,DATA[Code de produit],DATA[V],"") -> 0 | K78: =_xlfn.XLOOKUP(A78,DATA[Code de produit],DATA[SG],"") -> O | L78: =_xlfn.XLOOKUP(A78,DATA[Code de produit],DATA[SO],"") -> 0 | M78: =_xlfn.XLOOKUP(A78,DATA[Code de produit],DATA[H],"") -> 0 | N78: =_xlfn.XLOOKUP(A78,DATA[Code de produit],DATA[FC],"") -> 0 | O78: =_xlfn.XLOOKUP(A78,DATA[Code de produit],DATA[CC],"") -> 0 | P78: =_xlfn.XLOOKUP(A78,DATA[Code de produit],DATA[PC],"") -> 0 | Q78: =_xlfn.XLOOKUP(A78,DATA[Code de produit],DATA[Jours garantis],"") -> 328 | R78: =_xlfn.XLOOKUP(A78,DATA[Code de produit],DATA[Entreposage],"") -> SEC | S78: =_xlfn.XLOOKUP(A78,DATA[Code de produit],DATA[Prix],"") -> 42,83$ | T78: =_xlfn.XLOOKUP(A78,DATA[Code de produit],DATA[Promo mensuelle],"") -> 0 | U78: =_xlfn.XLOOKUP(A78,DATA[Code de produit],DATA[Rabais promo],"") -> 0 | V78: =_xlfn.XLOOKUP(A78,DATA[Code de produit],DATA[PDS],"") -> 11.99 | W78: =_xlfn.XLOOKUP(A78,DATA[Code de produit],DATA[Classement des produits],"") -> 4
A79: BROYA | C79: =_xlfn.XLOOKUP(A79,DATA[Code de produit],DATA[Description],"") ->  | D79: =_xlfn.XLOOKUP(A79,DATA[Code de produit],DATA[CUP/unité],"") ->  | E79: =_xlfn.XLOOKUP(A79,DATA[Code de produit],DATA[Format],"") ->  | F79: =_xlfn.XLOOKUP(A79,DATA[Code de produit],DATA[Sélection],"") ->  | G79: =_xlfn.XLOOKUP(A79,DATA[Code de produit],DATA[EMB.],"") ->  | H79: =_xlfn.XLOOKUP(A79,DATA[Code de produit],DATA[B],"") ->  | I79: =_xlfn.XLOOKUP(A79,DATA[Code de produit],DATA[C],"") ->  | J79: =_xlfn.XLOOKUP(A79,DATA[Code de produit],DATA[V],"") ->  | K79: =_xlfn.XLOOKUP(A79,DATA[Code de produit],DATA[SG],"") ->  | L79: =_xlfn.XLOOKUP(A79,DATA[Code de produit],DATA[SO],"") ->  | M79: =_xlfn.XLOOKUP(A79,DATA[Code de produit],DATA[H],"") ->  | N79: =_xlfn.XLOOKUP(A79,DATA[Code de produit],DATA[FC],"") ->  | O79: =_xlfn.XLOOKUP(A79,DATA[Code de produit],DATA[CC],"") ->  | P79: =_xlfn.XLOOKUP(A79,DATA[Code de produit],DATA[PC],"") ->  | Q79: =_xlfn.XLOOKUP(A79,DATA[Code de produit],DATA[Jours garantis],"") ->  | R79: =_xlfn.XLOOKUP(A79,DATA[Code de produit],DATA[Entreposage],"") ->  | S79: =_xlfn.XLOOKUP(A79,DATA[Code de produit],DATA[Prix],"") ->  | T79: =_xlfn.XLOOKUP(A79,DATA[Code de produit],DATA[Promo mensuelle],"") ->  | U79: =_xlfn.XLOOKUP(A79,DATA[Code de produit],DATA[Rabais promo],"") ->  | V79: =_xlfn.XLOOKUP(A79,DATA[Code de produit],DATA[PDS],"") ->  | W79: =_xlfn.XLOOKUP(A79,DATA[Code de produit],DATA[Classement des produits],"") -> 
A80: (blank) | C80: =_xlfn.XLOOKUP(A80,DATA[Code de produit],DATA[Description],"") ->  | D80: =_xlfn.XLOOKUP(A80,DATA[Code de produit],DATA[CUP/unité],"") ->  | E80: =_xlfn.XLOOKUP(A80,DATA[Code de produit],DATA[Format],"") ->  | F80: =_xlfn.XLOOKUP(A80,DATA[Code de produit],DATA[Sélection],"") ->  | G80: =_xlfn.XLOOKUP(A80,DATA[Code de produit],DATA[EMB.],"") ->  | H80: =_xlfn.XLOOKUP(A80,DATA[Code de produit],DATA[B],"") ->  | I80: =_xlfn.XLOOKUP(A80,DATA[Code de produit],DATA[C],"") ->  | J80: =_xlfn.XLOOKUP(A80,DATA[Code de produit],DATA[V],"") ->  | K80: =_xlfn.XLOOKUP(A80,DATA[Code de produit],DATA[SG],"") ->  | L80: =_xlfn.XLOOKUP(A80,DATA[Code de produit],DATA[SO],"") ->  | M80: =_xlfn.XLOOKUP(A80,DATA[Code de produit],DATA[H],"") ->  | N80: =_xlfn.XLOOKUP(A80,DATA[Code de produit],DATA[FC],"") ->  | O80: =_xlfn.XLOOKUP(A80,DATA[Code de produit],DATA[CC],"") ->  | P80: =_xlfn.XLOOKUP(A80,DATA[Code de produit],DATA[PC],"") ->  | Q80: =_xlfn.XLOOKUP(A80,DATA[Code de produit],DATA[Jours garantis],"") ->  | R80: =_xlfn.XLOOKUP(A80,DATA[Code de produit],DATA[Entreposage],"") ->  | S80: =_xlfn.XLOOKUP(A80,DATA[Code de produit],DATA[Prix],"") ->  | T80: =_xlfn.XLOOKUP(A80,DATA[Code de produit],DATA[Promo mensuelle],"") ->  | U80: =_xlfn.XLOOKUP(A80,DATA[Code de produit],DATA[Rabais promo],"") ->  | V80: =_xlfn.XLOOKUP(A80,DATA[Code de produit],DATA[PDS],"") ->  | W80: =_xlfn.XLOOKUP(A80,DATA[Code de produit],DATA[Classement des produits],"") -> 
A81: BR7200 | C81: =_xlfn.XLOOKUP(A81,DATA[Code de produit],DATA[Description],"") -> Bouillon Au Chocolat | D81: =_xlfn.XLOOKUP(A81,DATA[Code de produit],DATA[CUP/unité],"") -> 628451797203 | E81: =_xlfn.XLOOKUP(A81,DATA[Code de produit],DATA[Format],"") -> 237ML | F81: =_xlfn.XLOOKUP(A81,DATA[Code de produit],DATA[Sélection],"") -> CS | G81: =_xlfn.XLOOKUP(A81,DATA[Code de produit],DATA[EMB.],"") -> 6 | H81: =_xlfn.XLOOKUP(A81,DATA[Code de produit],DATA[B],"") -> 0 | I81: =_xlfn.XLOOKUP(A81,DATA[Code de produit],DATA[C],"") -> 0 | J81: =_xlfn.XLOOKUP(A81,DATA[Code de produit],DATA[V],"") -> 0 | K81: =_xlfn.XLOOKUP(A81,DATA[Code de produit],DATA[SG],"") -> 0 | L81: =_xlfn.XLOOKUP(A81,DATA[Code de produit],DATA[SO],"") -> 0 | M81: =_xlfn.XLOOKUP(A81,DATA[Code de produit],DATA[H],"") -> 0 | N81: =_xlfn.XLOOKUP(A81,DATA[Code de produit],DATA[FC],"") -> 0 | O81: =_xlfn.XLOOKUP(A81,DATA[Code de produit],DATA[CC],"") -> O | P81: =_xlfn.XLOOKUP(A81,DATA[Code de produit],DATA[PC],"") -> O | Q81: =_xlfn.XLOOKUP(A81,DATA[Code de produit],DATA[Jours garantis],"") -> 109 | R81: =_xlfn.XLOOKUP(A81,DATA[Code de produit],DATA[Entreposage],"") -> SEC | S81: =_xlfn.XLOOKUP(A81,DATA[Code de produit],DATA[Prix],"") -> 40,08$ | T81: =_xlfn.XLOOKUP(A81,DATA[Code de produit],DATA[Promo mensuelle],"") -> Offre de janvier | U81: =_xlfn.XLOOKUP(A81,DATA[Code de produit],DATA[Rabais promo],"") -> ÉCONOMISEZ 15% | V81: =_xlfn.XLOOKUP(A81,DATA[Code de produit],DATA[PDS],"") -> 9.99 | W81: =_xlfn.XLOOKUP(A81,DATA[Code de produit],DATA[Classement des produits],"") -> 0
A82: Bouillon d'os | C82: =_xlfn.XLOOKUP(A82,DATA[Code de produit],DATA[Description],"") ->  | D82: =_xlfn.XLOOKUP(A82,DATA[Code de produit],DATA[CUP/unité],"") ->  | E82: =_xlfn.XLOOKUP(A82,DATA[Code de produit],DATA[Format],"") ->  | F82: =_xlfn.XLOOKUP(A82,DATA[Code de produit],DATA[Sélection],"") ->  | G82: =_xlfn.XLOOKUP(A82,DATA[Code de produit],DATA[EMB.],"") ->  | H82: =_xlfn.XLOOKUP(A82,DATA[Code de produit],DATA[B],"") ->  | I82: =_xlfn.XLOOKUP(A82,DATA[Code de produit],DATA[C],"") ->  | J82: =_xlfn.XLOOKUP(A82,DATA[Code de produit],DATA[V],"") ->  | K82: =_xlfn.XLOOKUP(A82,DATA[Code de produit],DATA[SG],"") ->  | L82: =_xlfn.XLOOKUP(A82,DATA[Code de produit],DATA[SO],"") ->  | M82: =_xlfn.XLOOKUP(A82,DATA[Code de produit],DATA[H],"") ->  | N82: =_xlfn.XLOOKUP(A82,DATA[Code de produit],DATA[FC],"") ->  | O82: =_xlfn.XLOOKUP(A82,DATA[Code de produit],DATA[CC],"") ->  | P82: =_xlfn.XLOOKUP(A82,DATA[Code de produit],DATA[PC],"") ->  | Q82: =_xlfn.XLOOKUP(A82,DATA[Code de produit],DATA[Jours garantis],"") ->  | R82: =_xlfn.XLOOKUP(A82,DATA[Code de produit],DATA[Entreposage],"") ->  | S82: =_xlfn.XLOOKUP(A82,DATA[Code de produit],DATA[Prix],"") ->  | T82: =_xlfn.XLOOKUP(A82,DATA[Code de produit],DATA[Promo mensuelle],"") ->  | U82: =_xlfn.XLOOKUP(A82,DATA[Code de produit],DATA[Rabais promo],"") ->  | V82: =_xlfn.XLOOKUP(A82,DATA[Code de produit],DATA[PDS],"") ->  | W82: =_xlfn.XLOOKUP(A82,DATA[Code de produit],DATA[Classement des produits],"") -> 
A83: BR7187 | C83: =_xlfn.XLOOKUP(A83,DATA[Code de produit],DATA[Description],"") -> Bouillon d'os de bœuf classique | D83: =_xlfn.XLOOKUP(A83,DATA[Code de produit],DATA[CUP/unité],"") -> 628451797180 | E83: =_xlfn.XLOOKUP(A83,DATA[Code de produit],DATA[Format],"") -> 237ML | F83: =_xlfn.XLOOKUP(A83,DATA[Code de produit],DATA[Sélection],"") -> CS | G83: =_xlfn.XLOOKUP(A83,DATA[Code de produit],DATA[EMB.],"") -> 6 | H83: =_xlfn.XLOOKUP(A83,DATA[Code de produit],DATA[B],"") -> 0 | I83: =_xlfn.XLOOKUP(A83,DATA[Code de produit],DATA[C],"") -> 0 | J83: =_xlfn.XLOOKUP(A83,DATA[Code de produit],DATA[V],"") -> 0 | K83: =_xlfn.XLOOKUP(A83,DATA[Code de produit],DATA[SG],"") -> 0 | L83: =_xlfn.XLOOKUP(A83,DATA[Code de produit],DATA[SO],"") -> 0 | M83: =_xlfn.XLOOKUP(A83,DATA[Code de produit],DATA[H],"") -> 0 | N83: =_xlfn.XLOOKUP(A83,DATA[Code de produit],DATA[FC],"") -> O | O83: =_xlfn.XLOOKUP(A83,DATA[Code de produit],DATA[CC],"") -> O | P83: =_xlfn.XLOOKUP(A83,DATA[Code de produit],DATA[PC],"") -> O | Q83: =_xlfn.XLOOKUP(A83,DATA[Code de produit],DATA[Jours garantis],"") -> 100 | R83: =_xlfn.XLOOKUP(A83,DATA[Code de produit],DATA[Entreposage],"") -> SEC | S83: =_xlfn.XLOOKUP(A83,DATA[Code de produit],DATA[Prix],"") -> 30,24$ | T83: =_xlfn.XLOOKUP(A83,DATA[Code de produit],DATA[Promo mensuelle],"") -> Offre de janvier | U83: =_xlfn.XLOOKUP(A83,DATA[Code de produit],DATA[Rabais promo],"") -> ÉCONOMISEZ 15% | V83: =_xlfn.XLOOKUP(A83,DATA[Code de produit],DATA[PDS],"") -> 7.99 | W83: =_xlfn.XLOOKUP(A83,DATA[Code de produit],DATA[Classement des produits],"") -> 0
A84: BR7170 | C84: =_xlfn.XLOOKUP(A84,DATA[Code de produit],DATA[Description],"") -> Bouillon d'os de poulet classique | D84: =_xlfn.XLOOKUP(A84,DATA[Code de produit],DATA[CUP/unité],"") -> 628451797173 | E84: =_xlfn.XLOOKUP(A84,DATA[Code de produit],DATA[Format],"") -> 237ML | F84: =_xlfn.XLOOKUP(A84,DATA[Code de produit],DATA[Sélection],"") -> CS | G84: =_xlfn.XLOOKUP(A84,DATA[Code de produit],DATA[EMB.],"") -> 6 | H84: =_xlfn.XLOOKUP(A84,DATA[Code de produit],DATA[B],"") -> O | I84: =_xlfn.XLOOKUP(A84,DATA[Code de produit],DATA[C],"") -> 0 | J84: =_xlfn.XLOOKUP(A84,DATA[Code de produit],DATA[V],"") -> 0 | K84: =_xlfn.XLOOKUP(A84,DATA[Code de produit],DATA[SG],"") -> 0 | L84: =_xlfn.XLOOKUP(A84,DATA[Code de produit],DATA[SO],"") -> 0 | M84: =_xlfn.XLOOKUP(A84,DATA[Code de produit],DATA[H],"") -> 0 | N84: =_xlfn.XLOOKUP(A84,DATA[Code de produit],DATA[FC],"") -> O | O84: =_xlfn.XLOOKUP(A84,DATA[Code de produit],DATA[CC],"") -> O | P84: =_xlfn.XLOOKUP(A84,DATA[Code de produit],DATA[PC],"") -> O | Q84: =_xlfn.XLOOKUP(A84,DATA[Code de produit],DATA[Jours garantis],"") -> 100 | R84: =_xlfn.XLOOKUP(A84,DATA[Code de produit],DATA[Entreposage],"") -> SEC | S84: =_xlfn.XLOOKUP(A84,DATA[Code de produit],DATA[Prix],"") -> 30,24$ | T84: =_xlfn.XLOOKUP(A84,DATA[Code de produit],DATA[Promo mensuelle],"") -> Offre de janvier | U84: =_xlfn.XLOOKUP(A84,DATA[Code de produit],DATA[Rabais promo],"") -> ÉCONOMISEZ 15% | V84: =_xlfn.XLOOKUP(A84,DATA[Code de produit],DATA[PDS],"") -> 7.99 | W84: =_xlfn.XLOOKUP(A84,DATA[Code de produit],DATA[Classement des produits],"") -> 0
A85: Bouillon d'os (en sachet) | C85: =_xlfn.XLOOKUP(A85,DATA[Code de produit],DATA[Description],"") ->  | D85: =_xlfn.XLOOKUP(A85,DATA[Code de produit],DATA[CUP/unité],"") ->  | E85: =_xlfn.XLOOKUP(A85,DATA[Code de produit],DATA[Format],"") ->  | F85: =_xlfn.XLOOKUP(A85,DATA[Code de produit],DATA[Sélection],"") ->  | G85: =_xlfn.XLOOKUP(A85,DATA[Code de produit],DATA[EMB.],"") ->  | H85: =_xlfn.XLOOKUP(A85,DATA[Code de produit],DATA[B],"") ->  | I85: =_xlfn.XLOOKUP(A85,DATA[Code de produit],DATA[C],"") ->  | J85: =_xlfn.XLOOKUP(A85,DATA[Code de produit],DATA[V],"") ->  | K85: =_xlfn.XLOOKUP(A85,DATA[Code de produit],DATA[SG],"") ->  | L85: =_xlfn.XLOOKUP(A85,DATA[Code de produit],DATA[SO],"") ->  | M85: =_xlfn.XLOOKUP(A85,DATA[Code de produit],DATA[H],"") ->  | N85: =_xlfn.XLOOKUP(A85,DATA[Code de produit],DATA[FC],"") ->  | O85: =_xlfn.XLOOKUP(A85,DATA[Code de produit],DATA[CC],"") ->  | P85: =_xlfn.XLOOKUP(A85,DATA[Code de produit],DATA[PC],"") ->  | Q85: =_xlfn.XLOOKUP(A85,DATA[Code de produit],DATA[Jours garantis],"") ->  | R85: =_xlfn.XLOOKUP(A85,DATA[Code de produit],DATA[Entreposage],"") ->  | S85: =_xlfn.XLOOKUP(A85,DATA[Code de produit],DATA[Prix],"") ->  | T85: =_xlfn.XLOOKUP(A85,DATA[Code de produit],DATA[Promo mensuelle],"") ->  | U85: =_xlfn.XLOOKUP(A85,DATA[Code de produit],DATA[Rabais promo],"") ->  | V85: =_xlfn.XLOOKUP(A85,DATA[Code de produit],DATA[PDS],"") ->  | W85: =_xlfn.XLOOKUP(A85,DATA[Code de produit],DATA[Classement des produits],"") -> 
A86: BR7149 | C86: =_xlfn.XLOOKUP(A86,DATA[Code de produit],DATA[Description],"") -> Bouillon d'os de bœuf, persil et cumin | D86: =_xlfn.XLOOKUP(A86,DATA[Code de produit],DATA[CUP/unité],"") -> 628451797142 | E86: =_xlfn.XLOOKUP(A86,DATA[Code de produit],DATA[Format],"") -> 500ML | F86: =_xlfn.XLOOKUP(A86,DATA[Code de produit],DATA[Sélection],"") -> CS | G86: =_xlfn.XLOOKUP(A86,DATA[Code de produit],DATA[EMB.],"") -> 8 | H86: =_xlfn.XLOOKUP(A86,DATA[Code de produit],DATA[B],"") -> 0 | I86: =_xlfn.XLOOKUP(A86,DATA[Code de produit],DATA[C],"") -> 0 | J86: =_xlfn.XLOOKUP(A86,DATA[Code de produit],DATA[V],"") -> 0 | K86: =_xlfn.XLOOKUP(A86,DATA[Code de produit],DATA[SG],"") -> O | L86: =_xlfn.XLOOKUP(A86,DATA[Code de produit],DATA[SO],"") -> O | M86: =_xlfn.XLOOKUP(A86,DATA[Code de produit],DATA[H],"") -> 0 | N86: =_xlfn.XLOOKUP(A86,DATA[Code de produit],DATA[FC],"") -> O | O86: =_xlfn.XLOOKUP(A86,DATA[Code de produit],DATA[CC],"") -> O | P86: =_xlfn.XLOOKUP(A86,DATA[Code de produit],DATA[PC],"") -> O | Q86: =_xlfn.XLOOKUP(A86,DATA[Code de produit],DATA[Jours garantis],"") -> 100 | R86: =_xlfn.XLOOKUP(A86,DATA[Code de produit],DATA[Entreposage],"") -> SEC | S86: =_xlfn.XLOOKUP(A86,DATA[Code de produit],DATA[Prix],"") -> 71,78$ | T86: =_xlfn.XLOOKUP(A86,DATA[Code de produit],DATA[Promo mensuelle],"") -> Offre de janvier | U86: =_xlfn.XLOOKUP(A86,DATA[Code de produit],DATA[Rabais promo],"") -> ÉCONOMISEZ 15% | V86: =_xlfn.XLOOKUP(A86,DATA[Code de produit],DATA[PDS],"") -> 11.99 | W86: =_xlfn.XLOOKUP(A86,DATA[Code de produit],DATA[Classement des produits],"") -> 2
A87: BR7163 | C87: =_xlfn.XLOOKUP(A87,DATA[Code de produit],DATA[Description],"") -> Bouillon d'os de bœuf, tomate et paprika | D87: =_xlfn.XLOOKUP(A87,DATA[Code de produit],DATA[CUP/unité],"") -> 628451797166 | E87: =_xlfn.XLOOKUP(A87,DATA[Code de produit],DATA[Format],"") -> 500ML | F87: =_xlfn.XLOOKUP(A87,DATA[Code de produit],DATA[Sélection],"") -> CS | G87: =_xlfn.XLOOKUP(A87,DATA[Code de produit],DATA[EMB.],"") -> 8 | H87: =_xlfn.XLOOKUP(A87,DATA[Code de produit],DATA[B],"") -> O | I87: =_xlfn.XLOOKUP(A87,DATA[Code de produit],DATA[C],"") -> 0 | J87: =_xlfn.XLOOKUP(A87,DATA[Code de produit],DATA[V],"") -> 0 | K87: =_xlfn.XLOOKUP(A87,DATA[Code de produit],DATA[SG],"") -> O | L87: =_xlfn.XLOOKUP(A87,DATA[Code de produit],DATA[SO],"") -> O | M87: =_xlfn.XLOOKUP(A87,DATA[Code de produit],DATA[H],"") -> 0 | N87: =_xlfn.XLOOKUP(A87,DATA[Code de produit],DATA[FC],"") -> O | O87: =_xlfn.XLOOKUP(A87,DATA[Code de produit],DATA[CC],"") -> O | P87: =_xlfn.XLOOKUP(A87,DATA[Code de produit],DATA[PC],"") -> O | Q87: =_xlfn.XLOOKUP(A87,DATA[Code de produit],DATA[Jours garantis],"") -> 100 | R87: =_xlfn.XLOOKUP(A87,DATA[Code de produit],DATA[Entreposage],"") -> SEC | S87: =_xlfn.XLOOKUP(A87,DATA[Code de produit],DATA[Prix],"") -> 71,78$ | T87: =_xlfn.XLOOKUP(A87,DATA[Code de produit],DATA[Promo mensuelle],"") -> Offre de janvier | U87: =_xlfn.XLOOKUP(A87,DATA[Code de produit],DATA[Rabais promo],"") -> ÉCONOMISEZ 15% | V87: =_xlfn.XLOOKUP(A87,DATA[Code de produit],DATA[PDS],"") -> 11.99 | W87: =_xlfn.XLOOKUP(A87,DATA[Code de produit],DATA[Classement des produits],"") -> 3
A88: BR7132 | C88: =_xlfn.XLOOKUP(A88,DATA[Code de produit],DATA[Description],"") -> Bouillon d'os de poulet, curcuma et gingembre | D88: =_xlfn.XLOOKUP(A88,DATA[Code de produit],DATA[CUP/unité],"") -> 628451797135 | E88: =_xlfn.XLOOKUP(A88,DATA[Code de produit],DATA[Format],"") -> 500ML | F88: =_xlfn.XLOOKUP(A88,DATA[Code de produit],DATA[Sélection],"") -> CS | G88: =_xlfn.XLOOKUP(A88,DATA[Code de produit],DATA[EMB.],"") -> 8 | H88: =_xlfn.XLOOKUP(A88,DATA[Code de produit],DATA[B],"") -> O | I88: =_xlfn.XLOOKUP(A88,DATA[Code de produit],DATA[C],"") -> 0 | J88: =_xlfn.XLOOKUP(A88,DATA[Code de produit],DATA[V],"") -> 0 | K88: =_xlfn.XLOOKUP(A88,DATA[Code de produit],DATA[SG],"") -> O | L88: =_xlfn.XLOOKUP(A88,DATA[Code de produit],DATA[SO],"") -> O | M88: =_xlfn.XLOOKUP(A88,DATA[Code de produit],DATA[H],"") -> 0 | N88: =_xlfn.XLOOKUP(A88,DATA[Code de produit],DATA[FC],"") -> O | O88: =_xlfn.XLOOKUP(A88,DATA[Code de produit],DATA[CC],"") -> O | P88: =_xlfn.XLOOKUP(A88,DATA[Code de produit],DATA[PC],"") -> O | Q88: =_xlfn.XLOOKUP(A88,DATA[Code de produit],DATA[Jours garantis],"") -> 100 | R88: =_xlfn.XLOOKUP(A88,DATA[Code de produit],DATA[Entreposage],"") -> SEC | S88: =_xlfn.XLOOKUP(A88,DATA[Code de produit],DATA[Prix],"") -> 71,78$ | T88: =_xlfn.XLOOKUP(A88,DATA[Code de produit],DATA[Promo mensuelle],"") -> Offre de janvier | U88: =_xlfn.XLOOKUP(A88,DATA[Code de produit],DATA[Rabais promo],"") -> ÉCONOMISEZ 15% | V88: =_xlfn.XLOOKUP(A88,DATA[Code de produit],DATA[PDS],"") -> 11.99 | W88: =_xlfn.XLOOKUP(A88,DATA[Code de produit],DATA[Classement des produits],"") -> 1
A89: BR7156 | C89: =_xlfn.XLOOKUP(A89,DATA[Code de produit],DATA[Description],"") -> Bouillon d'os de poulet, sriracha et piment chili | D89: =_xlfn.XLOOKUP(A89,DATA[Code de produit],DATA[CUP/unité],"") -> 628451797159 | E89: =_xlfn.XLOOKUP(A89,DATA[Code de produit],DATA[Format],"") -> 500ML | F89: =_xlfn.XLOOKUP(A89,DATA[Code de produit],DATA[Sélection],"") -> CS | G89: =_xlfn.XLOOKUP(A89,DATA[Code de produit],DATA[EMB.],"") -> 8 | H89: =_xlfn.XLOOKUP(A89,DATA[Code de produit],DATA[B],"") -> O | I89: =_xlfn.XLOOKUP(A89,DATA[Code de produit],DATA[C],"") -> 0 | J89: =_xlfn.XLOOKUP(A89,DATA[Code de produit],DATA[V],"") -> 0 | K89: =_xlfn.XLOOKUP(A89,DATA[Code de produit],DATA[SG],"") -> O | L89: =_xlfn.XLOOKUP(A89,DATA[Code de produit],DATA[SO],"") -> O | M89: =_xlfn.XLOOKUP(A89,DATA[Code de produit],DATA[H],"") -> 0 | N89: =_xlfn.XLOOKUP(A89,DATA[Code de produit],DATA[FC],"") -> O | O89: =_xlfn.XLOOKUP(A89,DATA[Code de produit],DATA[CC],"") -> O | P89: =_xlfn.XLOOKUP(A89,DATA[Code de produit],DATA[PC],"") -> O | Q89: =_xlfn.XLOOKUP(A89,DATA[Code de produit],DATA[Jours garantis],"") -> 100 | R89: =_xlfn.XLOOKUP(A89,DATA[Code de produit],DATA[Entreposage],"") -> SEC | S89: =_xlfn.XLOOKUP(A89,DATA[Code de produit],DATA[Prix],"") -> 71,78$ | T89: =_xlfn.XLOOKUP(A89,DATA[Code de produit],DATA[Promo mensuelle],"") -> Offre de janvier | U89: =_xlfn.XLOOKUP(A89,DATA[Code de produit],DATA[Rabais promo],"") -> ÉCONOMISEZ 15% | V89: =_xlfn.XLOOKUP(A89,DATA[Code de produit],DATA[PDS],"") -> 11.99 | W89: =_xlfn.XLOOKUP(A89,DATA[Code de produit],DATA[Classement des produits],"") -> 4
A90: Baume de suif | C90: =_xlfn.XLOOKUP(A90,DATA[Code de produit],DATA[Description],"") ->  | D90: =_xlfn.XLOOKUP(A90,DATA[Code de produit],DATA[CUP/unité],"") ->  | E90: =_xlfn.XLOOKUP(A90,DATA[Code de produit],DATA[Format],"") ->  | F90: =_xlfn.XLOOKUP(A90,DATA[Code de produit],DATA[Sélection],"") ->  | G90: =_xlfn.XLOOKUP(A90,DATA[Code de produit],DATA[EMB.],"") ->  | H90: =_xlfn.XLOOKUP(A90,DATA[Code de produit],DATA[B],"") ->  | I90: =_xlfn.XLOOKUP(A90,DATA[Code de produit],DATA[C],"") ->  | J90: =_xlfn.XLOOKUP(A90,DATA[Code de produit],DATA[V],"") ->  | K90: =_xlfn.XLOOKUP(A90,DATA[Code de produit],DATA[SG],"") ->  | L90: =_xlfn.XLOOKUP(A90,DATA[Code de produit],DATA[SO],"") ->  | M90: =_xlfn.XLOOKUP(A90,DATA[Code de produit],DATA[H],"") ->  | N90: =_xlfn.XLOOKUP(A90,DATA[Code de produit],DATA[FC],"") ->  | O90: =_xlfn.XLOOKUP(A90,DATA[Code de produit],DATA[CC],"") ->  | P90: =_xlfn.XLOOKUP(A90,DATA[Code de produit],DATA[PC],"") ->  | Q90: =_xlfn.XLOOKUP(A90,DATA[Code de produit],DATA[Jours garantis],"") ->  | R90: =_xlfn.XLOOKUP(A90,DATA[Code de produit],DATA[Entreposage],"") ->  | S90: =_xlfn.XLOOKUP(A90,DATA[Code de produit],DATA[Prix],"") ->  | T90: =_xlfn.XLOOKUP(A90,DATA[Code de produit],DATA[Promo mensuelle],"") ->  | U90: =_xlfn.XLOOKUP(A90,DATA[Code de produit],DATA[Rabais promo],"") ->  | V90: =_xlfn.XLOOKUP(A90,DATA[Code de produit],DATA[PDS],"") ->  | W90: =_xlfn.XLOOKUP(A90,DATA[Code de produit],DATA[Classement des produits],"") -> 
A91: BR7507 | C91: =_xlfn.XLOOKUP(A91,DATA[Code de produit],DATA[Description],"") -> Beaume de suif de première qualité | D91: =_xlfn.XLOOKUP(A91,DATA[Code de produit],DATA[CUP/unité],"") -> 628451797500 | E91: =_xlfn.XLOOKUP(A91,DATA[Code de produit],DATA[Format],"") -> 56G | F91: =_xlfn.XLOOKUP(A91,DATA[Code de produit],DATA[Sélection],"") -> CS | G91: =_xlfn.XLOOKUP(A91,DATA[Code de produit],DATA[EMB.],"") -> 6 | H91: =_xlfn.XLOOKUP(A91,DATA[Code de produit],DATA[B],"") -> 0 | I91: =_xlfn.XLOOKUP(A91,DATA[Code de produit],DATA[C],"") -> 0 | J91: =_xlfn.XLOOKUP(A91,DATA[Code de produit],DATA[V],"") -> 0 | K91: =_xlfn.XLOOKUP(A91,DATA[Code de produit],DATA[SG],"") -> 0 | L91: =_xlfn.XLOOKUP(A91,DATA[Code de produit],DATA[SO],"") -> 0 | M91: =_xlfn.XLOOKUP(A91,DATA[Code de produit],DATA[H],"") -> 0 | N91: =_xlfn.XLOOKUP(A91,DATA[Code de produit],DATA[FC],"") -> O | O91: =_xlfn.XLOOKUP(A91,DATA[Code de produit],DATA[CC],"") -> O | P91: =_xlfn.XLOOKUP(A91,DATA[Code de produit],DATA[PC],"") -> O | Q91: =_xlfn.XLOOKUP(A91,DATA[Code de produit],DATA[Jours garantis],"") -> 210 | R91: =_xlfn.XLOOKUP(A91,DATA[Code de produit],DATA[Entreposage],"") -> SEC | S91: =_xlfn.XLOOKUP(A91,DATA[Code de produit],DATA[Prix],"") -> 166,96$ | T91: =_xlfn.XLOOKUP(A91,DATA[Code de produit],DATA[Promo mensuelle],"") -> Offre de janvier | U91: =_xlfn.XLOOKUP(A91,DATA[Code de produit],DATA[Rabais promo],"") -> ÉCONOMISEZ 15% | V91: =_xlfn.XLOOKUP(A91,DATA[Code de produit],DATA[PDS],"") -> 44.99 | W91: =_xlfn.XLOOKUP(A91,DATA[Code de produit],DATA[Classement des produits],"") -> 0
A92: BUFF | C92: =_xlfn.XLOOKUP(A92,DATA[Code de produit],DATA[Description],"") ->  | D92: =_xlfn.XLOOKUP(A92,DATA[Code de produit],DATA[CUP/unité],"") ->  | E92: =_xlfn.XLOOKUP(A92,DATA[Code de produit],DATA[Format],"") ->  | F92: =_xlfn.XLOOKUP(A92,DATA[Code de produit],DATA[Sélection],"") ->  | G92: =_xlfn.XLOOKUP(A92,DATA[Code de produit],DATA[EMB.],"") ->  | H92: =_xlfn.XLOOKUP(A92,DATA[Code de produit],DATA[B],"") ->  | I92: =_xlfn.XLOOKUP(A92,DATA[Code de produit],DATA[C],"") ->  | J92: =_xlfn.XLOOKUP(A92,DATA[Code de produit],DATA[V],"") ->  | K92: =_xlfn.XLOOKUP(A92,DATA[Code de produit],DATA[SG],"") ->  | L92: =_xlfn.XLOOKUP(A92,DATA[Code de produit],DATA[SO],"") ->  | M92: =_xlfn.XLOOKUP(A92,DATA[Code de produit],DATA[H],"") ->  | N92: =_xlfn.XLOOKUP(A92,DATA[Code de produit],DATA[FC],"") ->  | O92: =_xlfn.XLOOKUP(A92,DATA[Code de produit],DATA[CC],"") ->  | P92: =_xlfn.XLOOKUP(A92,DATA[Code de produit],DATA[PC],"") ->  | Q92: =_xlfn.XLOOKUP(A92,DATA[Code de produit],DATA[Jours garantis],"") ->  | R92: =_xlfn.XLOOKUP(A92,DATA[Code de produit],DATA[Entreposage],"") ->  | S92: =_xlfn.XLOOKUP(A92,DATA[Code de produit],DATA[Prix],"") ->  | T92: =_xlfn.XLOOKUP(A92,DATA[Code de produit],DATA[Promo mensuelle],"") ->  | U92: =_xlfn.XLOOKUP(A92,DATA[Code de produit],DATA[Rabais promo],"") ->  | V92: =_xlfn.XLOOKUP(A92,DATA[Code de produit],DATA[PDS],"") ->  | W92: =_xlfn.XLOOKUP(A92,DATA[Code de produit],DATA[Classement des produits],"") -> 
A93: Collation de bison | C93: =_xlfn.XLOOKUP(A93,DATA[Code de produit],DATA[Description],"") ->  | D93: =_xlfn.XLOOKUP(A93,DATA[Code de produit],DATA[CUP/unité],"") ->  | E93: =_xlfn.XLOOKUP(A93,DATA[Code de produit],DATA[Format],"") ->  | F93: =_xlfn.XLOOKUP(A93,DATA[Code de produit],DATA[Sélection],"") ->  | G93: =_xlfn.XLOOKUP(A93,DATA[Code de produit],DATA[EMB.],"") ->  | H93: =_xlfn.XLOOKUP(A93,DATA[Code de produit],DATA[B],"") ->  | I93: =_xlfn.XLOOKUP(A93,DATA[Code de produit],DATA[C],"") ->  | J93: =_xlfn.XLOOKUP(A93,DATA[Code de produit],DATA[V],"") ->  | K93: =_xlfn.XLOOKUP(A93,DATA[Code de produit],DATA[SG],"") ->  | L93: =_xlfn.XLOOKUP(A93,DATA[Code de produit],DATA[SO],"") ->  | M93: =_xlfn.XLOOKUP(A93,DATA[Code de produit],DATA[H],"") ->  | N93: =_xlfn.XLOOKUP(A93,DATA[Code de produit],DATA[FC],"") ->  | O93: =_xlfn.XLOOKUP(A93,DATA[Code de produit],DATA[CC],"") ->  | P93: =_xlfn.XLOOKUP(A93,DATA[Code de produit],DATA[PC],"") ->  | Q93: =_xlfn.XLOOKUP(A93,DATA[Code de produit],DATA[Jours garantis],"") ->  | R93: =_xlfn.XLOOKUP(A93,DATA[Code de produit],DATA[Entreposage],"") ->  | S93: =_xlfn.XLOOKUP(A93,DATA[Code de produit],DATA[Prix],"") ->  | T93: =_xlfn.XLOOKUP(A93,DATA[Code de produit],DATA[Promo mensuelle],"") ->  | U93: =_xlfn.XLOOKUP(A93,DATA[Code de produit],DATA[Rabais promo],"") ->  | V93: =_xlfn.XLOOKUP(A93,DATA[Code de produit],DATA[PDS],"") ->  | W93: =_xlfn.XLOOKUP(A93,DATA[Code de produit],DATA[Classement des produits],"") -> 
A94: BUF0109 | C94: =_xlfn.XLOOKUP(A94,DATA[Code de produit],DATA[Description],"") -> Bâtonnets de bison - Fermentés et fumés à froid Emb. de 5 | D94: =_xlfn.XLOOKUP(A94,DATA[Code de produit],DATA[CUP/unité],"") -> 627987353587 | E94: =_xlfn.XLOOKUP(A94,DATA[Code de produit],DATA[Format],"") -> 125G | F94: =_xlfn.XLOOKUP(A94,DATA[Code de produit],DATA[Sélection],"") -> UN | G94: =_xlfn.XLOOKUP(A94,DATA[Code de produit],DATA[EMB.],"") -> 6 | H94: =_xlfn.XLOOKUP(A94,DATA[Code de produit],DATA[B],"") -> 0 | I94: =_xlfn.XLOOKUP(A94,DATA[Code de produit],DATA[C],"") -> 0 | J94: =_xlfn.XLOOKUP(A94,DATA[Code de produit],DATA[V],"") -> 0 | K94: =_xlfn.XLOOKUP(A94,DATA[Code de produit],DATA[SG],"") -> O | L94: =_xlfn.XLOOKUP(A94,DATA[Code de produit],DATA[SO],"") -> 0 | M94: =_xlfn.XLOOKUP(A94,DATA[Code de produit],DATA[H],"") -> 0 | N94: =_xlfn.XLOOKUP(A94,DATA[Code de produit],DATA[FC],"") -> O | O94: =_xlfn.XLOOKUP(A94,DATA[Code de produit],DATA[CC],"") -> O | P94: =_xlfn.XLOOKUP(A94,DATA[Code de produit],DATA[PC],"") -> O | Q94: =_xlfn.XLOOKUP(A94,DATA[Code de produit],DATA[Jours garantis],"") -> 109 | R94: =_xlfn.XLOOKUP(A94,DATA[Code de produit],DATA[Entreposage],"") -> SEC | S94: =_xlfn.XLOOKUP(A94,DATA[Code de produit],DATA[Prix],"") -> 59,31$ | T94: =_xlfn.XLOOKUP(A94,DATA[Code de produit],DATA[Promo mensuelle],"") -> 0 | U94: =_xlfn.XLOOKUP(A94,DATA[Code de produit],DATA[Rabais promo],"") -> 0 | V94: =_xlfn.XLOOKUP(A94,DATA[Code de produit],DATA[PDS],"") -> 12.99 | W94: =_xlfn.XLOOKUP(A94,DATA[Code de produit],DATA[Classement des produits],"") -> 0
A95: BUF0110 | C95: =_xlfn.XLOOKUP(A95,DATA[Code de produit],DATA[Description],"") -> Bâtonnets de bison chipotle - Fermenté et fumé à froid Emb. de 5 | D95: =_xlfn.XLOOKUP(A95,DATA[Code de produit],DATA[CUP/unité],"") -> 627987353624 | E95: =_xlfn.XLOOKUP(A95,DATA[Code de produit],DATA[Format],"") -> 125G | F95: =_xlfn.XLOOKUP(A95,DATA[Code de produit],DATA[Sélection],"") -> UN | G95: =_xlfn.XLOOKUP(A95,DATA[Code de produit],DATA[EMB.],"") -> 6 | H95: =_xlfn.XLOOKUP(A95,DATA[Code de produit],DATA[B],"") -> 0 | I95: =_xlfn.XLOOKUP(A95,DATA[Code de produit],DATA[C],"") -> 0 | J95: =_xlfn.XLOOKUP(A95,DATA[Code de produit],DATA[V],"") -> 0 | K95: =_xlfn.XLOOKUP(A95,DATA[Code de produit],DATA[SG],"") -> O | L95: =_xlfn.XLOOKUP(A95,DATA[Code de produit],DATA[SO],"") -> 0 | M95: =_xlfn.XLOOKUP(A95,DATA[Code de produit],DATA[H],"") -> 0 | N95: =_xlfn.XLOOKUP(A95,DATA[Code de produit],DATA[FC],"") -> O | O95: =_xlfn.XLOOKUP(A95,DATA[Code de produit],DATA[CC],"") -> O | P95: =_xlfn.XLOOKUP(A95,DATA[Code de produit],DATA[PC],"") -> O | Q95: =_xlfn.XLOOKUP(A95,DATA[Code de produit],DATA[Jours garantis],"") -> 109 | R95: =_xlfn.XLOOKUP(A95,DATA[Code de produit],DATA[Entreposage],"") -> SEC | S95: =_xlfn.XLOOKUP(A95,DATA[Code de produit],DATA[Prix],"") -> 59,31$ | T95: =_xlfn.XLOOKUP(A95,DATA[Code de produit],DATA[Promo mensuelle],"") -> 0 | U95: =_xlfn.XLOOKUP(A95,DATA[Code de produit],DATA[Rabais promo],"") -> 0 | V95: =_xlfn.XLOOKUP(A95,DATA[Code de produit],DATA[PDS],"") -> 12.99 | W95: =_xlfn.XLOOKUP(A95,DATA[Code de produit],DATA[Classement des produits],"") -> 0
A96: BUF0107 | C96: =_xlfn.XLOOKUP(A96,DATA[Code de produit],DATA[Description],"") -> Bâtonnets de bison - Fermentés et fumés à froid Emb. de 2 | D96: =_xlfn.XLOOKUP(A96,DATA[Code de produit],DATA[CUP/unité],"") -> 627987353556 | E96: =_xlfn.XLOOKUP(A96,DATA[Code de produit],DATA[Format],"") -> 50G | F96: =_xlfn.XLOOKUP(A96,DATA[Code de produit],DATA[Sélection],"") -> UN | G96: =_xlfn.XLOOKUP(A96,DATA[Code de produit],DATA[EMB.],"") -> 12 | H96: =_xlfn.XLOOKUP(A96,DATA[Code de produit],DATA[B],"") -> 0 | I96: =_xlfn.XLOOKUP(A96,DATA[Code de produit],DATA[C],"") -> 0 | J96: =_xlfn.XLOOKUP(A96,DATA[Code de produit],DATA[V],"") -> 0 | K96: =_xlfn.XLOOKUP(A96,DATA[Code de produit],DATA[SG],"") -> O | L96: =_xlfn.XLOOKUP(A96,DATA[Code de produit],DATA[SO],"") -> 0 | M96: =_xlfn.XLOOKUP(A96,DATA[Code de produit],DATA[H],"") -> 0 | N96: =_xlfn.XLOOKUP(A96,DATA[Code de produit],DATA[FC],"") -> O | O96: =_xlfn.XLOOKUP(A96,DATA[Code de produit],DATA[CC],"") -> O | P96: =_xlfn.XLOOKUP(A96,DATA[Code de produit],DATA[PC],"") -> O | Q96: =_xlfn.XLOOKUP(A96,DATA[Code de produit],DATA[Jours garantis],"") -> 109 | R96: =_xlfn.XLOOKUP(A96,DATA[Code de produit],DATA[Entreposage],"") -> SEC | S96: =_xlfn.XLOOKUP(A96,DATA[Code de produit],DATA[Prix],"") -> 52,50$ | T96: =_xlfn.XLOOKUP(A96,DATA[Code de produit],DATA[Promo mensuelle],"") -> 0 | U96: =_xlfn.XLOOKUP(A96,DATA[Code de produit],DATA[Rabais promo],"") -> 0 | V96: =_xlfn.XLOOKUP(A96,DATA[Code de produit],DATA[PDS],"") -> 5.99 | W96: =_xlfn.XLOOKUP(A96,DATA[Code de produit],DATA[Classement des produits],"") -> 0
A97: BUF0108 | C97: =_xlfn.XLOOKUP(A97,DATA[Code de produit],DATA[Description],"") -> Bâtonnets de bison chipotle - Fermenté et fumé à froid Emb. de 2 | D97: =_xlfn.XLOOKUP(A97,DATA[Code de produit],DATA[CUP/unité],"") -> 627987353617 | E97: =_xlfn.XLOOKUP(A97,DATA[Code de produit],DATA[Format],"") -> 50G | F97: =_xlfn.XLOOKUP(A97,DATA[Code de produit],DATA[Sélection],"") -> UN | G97: =_xlfn.XLOOKUP(A97,DATA[Code de produit],DATA[EMB.],"") -> 12 | H97: =_xlfn.XLOOKUP(A97,DATA[Code de produit],DATA[B],"") -> 0 | I97: =_xlfn.XLOOKUP(A97,DATA[Code de produit],DATA[C],"") -> 0 | J97: =_xlfn.XLOOKUP(A97,DATA[Code de produit],DATA[V],"") -> 0 | K97: =_xlfn.XLOOKUP(A97,DATA[Code de produit],DATA[SG],"") -> O | L97: =_xlfn.XLOOKUP(A97,DATA[Code de produit],DATA[SO],"") -> 0 | M97: =_xlfn.XLOOKUP(A97,DATA[Code de produit],DATA[H],"") -> 0 | N97: =_xlfn.XLOOKUP(A97,DATA[Code de produit],DATA[FC],"") -> O | O97: =_xlfn.XLOOKUP(A97,DATA[Code de produit],DATA[CC],"") -> O | P97: =_xlfn.XLOOKUP(A97,DATA[Code de produit],DATA[PC],"") -> O | Q97: =_xlfn.XLOOKUP(A97,DATA[Code de produit],DATA[Jours garantis],"") -> 109 | R97: =_xlfn.XLOOKUP(A97,DATA[Code de produit],DATA[Entreposage],"") -> SEC | S97: =_xlfn.XLOOKUP(A97,DATA[Code de produit],DATA[Prix],"") -> 52,50$ | T97: =_xlfn.XLOOKUP(A97,DATA[Code de produit],DATA[Promo mensuelle],"") -> 0 | U97: =_xlfn.XLOOKUP(A97,DATA[Code de produit],DATA[Rabais promo],"") -> 0 | V97: =_xlfn.XLOOKUP(A97,DATA[Code de produit],DATA[PDS],"") -> 5.99 | W97: =_xlfn.XLOOKUP(A97,DATA[Code de produit],DATA[Classement des produits],"") -> 0
A98: CAPE HERB & SPICE | C98: =_xlfn.XLOOKUP(A98,DATA[Code de produit],DATA[Description],"") ->  | D98: =_xlfn.XLOOKUP(A98,DATA[Code de produit],DATA[CUP/unité],"") ->  | E98: =_xlfn.XLOOKUP(A98,DATA[Code de produit],DATA[Format],"") ->  | F98: =_xlfn.XLOOKUP(A98,DATA[Code de produit],DATA[Sélection],"") ->  | G98: =_xlfn.XLOOKUP(A98,DATA[Code de produit],DATA[EMB.],"") ->  | H98: =_xlfn.XLOOKUP(A98,DATA[Code de produit],DATA[B],"") ->  | I98: =_xlfn.XLOOKUP(A98,DATA[Code de produit],DATA[C],"") ->  | J98: =_xlfn.XLOOKUP(A98,DATA[Code de produit],DATA[V],"") ->  | K98: =_xlfn.XLOOKUP(A98,DATA[Code de produit],DATA[SG],"") ->  | L98: =_xlfn.XLOOKUP(A98,DATA[Code de produit],DATA[SO],"") ->  | M98: =_xlfn.XLOOKUP(A98,DATA[Code de produit],DATA[H],"") ->  | N98: =_xlfn.XLOOKUP(A98,DATA[Code de produit],DATA[FC],"") ->  | O98: =_xlfn.XLOOKUP(A98,DATA[Code de produit],DATA[CC],"") ->  | P98: =_xlfn.XLOOKUP(A98,DATA[Code de produit],DATA[PC],"") ->  | Q98: =_xlfn.XLOOKUP(A98,DATA[Code de produit],DATA[Jours garantis],"") ->  | R98: =_xlfn.XLOOKUP(A98,DATA[Code de produit],DATA[Entreposage],"") ->  | S98: =_xlfn.XLOOKUP(A98,DATA[Code de produit],DATA[Prix],"") ->  | T98: =_xlfn.XLOOKUP(A98,DATA[Code de produit],DATA[Promo mensuelle],"") ->  | U98: =_xlfn.XLOOKUP(A98,DATA[Code de produit],DATA[Rabais promo],"") ->  | V98: =_xlfn.XLOOKUP(A98,DATA[Code de produit],DATA[PDS],"") ->  | W98: =_xlfn.XLOOKUP(A98,DATA[Code de produit],DATA[Classement des produits],"") -> 
A99: Épices à badigeonner | C99: =_xlfn.XLOOKUP(A99,DATA[Code de produit],DATA[Description],"") ->  | D99: =_xlfn.XLOOKUP(A99,DATA[Code de produit],DATA[CUP/unité],"") ->  | E99: =_xlfn.XLOOKUP(A99,DATA[Code de produit],DATA[Format],"") ->  | F99: =_xlfn.XLOOKUP(A99,DATA[Code de produit],DATA[Sélection],"") ->  | G99: =_xlfn.XLOOKUP(A99,DATA[Code de produit],DATA[EMB.],"") ->  | H99: =_xlfn.XLOOKUP(A99,DATA[Code de produit],DATA[B],"") ->  | I99: =_xlfn.XLOOKUP(A99,DATA[Code de produit],DATA[C],"") ->  | J99: =_xlfn.XLOOKUP(A99,DATA[Code de produit],DATA[V],"") ->  | K99: =_xlfn.XLOOKUP(A99,DATA[Code de produit],DATA[SG],"") ->  | L99: =_xlfn.XLOOKUP(A99,DATA[Code de produit],DATA[SO],"") ->  | M99: =_xlfn.XLOOKUP(A99,DATA[Code de produit],DATA[H],"") ->  | N99: =_xlfn.XLOOKUP(A99,DATA[Code de produit],DATA[FC],"") ->  | O99: =_xlfn.XLOOKUP(A99,DATA[Code de produit],DATA[CC],"") ->  | P99: =_xlfn.XLOOKUP(A99,DATA[Code de produit],DATA[PC],"") ->  | Q99: =_xlfn.XLOOKUP(A99,DATA[Code de produit],DATA[Jours garantis],"") ->  | R99: =_xlfn.XLOOKUP(A99,DATA[Code de produit],DATA[Entreposage],"") ->  | S99: =_xlfn.XLOOKUP(A99,DATA[Code de produit],DATA[Prix],"") ->  | T99: =_xlfn.XLOOKUP(A99,DATA[Code de produit],DATA[Promo mensuelle],"") ->  | U99: =_xlfn.XLOOKUP(A99,DATA[Code de produit],DATA[Rabais promo],"") ->  | V99: =_xlfn.XLOOKUP(A99,DATA[Code de produit],DATA[PDS],"") ->  | W99: =_xlfn.XLOOKUP(A99,DATA[Code de produit],DATA[Classement des produits],"") -> 
A100: CHS0707 | C100: =_xlfn.XLOOKUP(A100,DATA[Code de produit],DATA[Description],"") -> Assaisonnement Herbes et citron à la grecque | D100: =_xlfn.XLOOKUP(A100,DATA[Code de produit],DATA[CUP/unité],"") -> 6006507007454 | E100: =_xlfn.XLOOKUP(A100,DATA[Code de produit],DATA[Format],"") -> 100G | F100: =_xlfn.XLOOKUP(A100,DATA[Code de produit],DATA[Sélection],"") -> CS | G100: =_xlfn.XLOOKUP(A100,DATA[Code de produit],DATA[EMB.],"") -> 6 | H100: =_xlfn.XLOOKUP(A100,DATA[Code de produit],DATA[B],"") -> 0 | I100: =_xlfn.XLOOKUP(A100,DATA[Code de produit],DATA[C],"") -> O | J100: =_xlfn.XLOOKUP(A100,DATA[Code de produit],DATA[V],"") -> 0 | K100: =_xlfn.XLOOKUP(A100,DATA[Code de produit],DATA[SG],"") -> 0 | L100: =_xlfn.XLOOKUP(A100,DATA[Code de produit],DATA[SO],"") -> 0 | M100: =_xlfn.XLOOKUP(A100,DATA[Code de produit],DATA[H],"") -> 0 | N100: =_xlfn.XLOOKUP(A100,DATA[Code de produit],DATA[FC],"") -> 0 | O100: =_xlfn.XLOOKUP(A100,DATA[Code de produit],DATA[CC],"") -> 0 | P100: =_xlfn.XLOOKUP(A100,DATA[Code de produit],DATA[PC],"") -> 0 | Q100: =_xlfn.XLOOKUP(A100,DATA[Code de produit],DATA[Jours garantis],"") -> 72 | R100: =_xlfn.XLOOKUP(A100,DATA[Code de produit],DATA[Entreposage],"") -> SEC | S100: =_xlfn.XLOOKUP(A100,DATA[Code de produit],DATA[Prix],"") -> 40,41$ | T100: =_xlfn.XLOOKUP(A100,DATA[Code de produit],DATA[Promo mensuelle],"") -> 0 | U100: =_xlfn.XLOOKUP(A100,DATA[Code de produit],DATA[Rabais promo],"") -> 0 | V100: =_xlfn.XLOOKUP(A100,DATA[Code de produit],DATA[PDS],"") -> 9.19 | W100: =_xlfn.XLOOKUP(A100,DATA[Code de produit],DATA[Classement des produits],"") -> 26
A101: CHS0704 | C101: =_xlfn.XLOOKUP(A101,DATA[Code de produit],DATA[Description],"") -> Assaisonnement à badigeonner Cajun de Louisiane | D101: =_xlfn.XLOOKUP(A101,DATA[Code de produit],DATA[CUP/unité],"") -> 670071002618 | E101: =_xlfn.XLOOKUP(A101,DATA[Code de produit],DATA[Format],"") -> 100G | F101: =_xlfn.XLOOKUP(A101,DATA[Code de produit],DATA[Sélection],"") -> CS | G101: =_xlfn.XLOOKUP(A101,DATA[Code de produit],DATA[EMB.],"") -> 6 | H101: =_xlfn.XLOOKUP(A101,DATA[Code de produit],DATA[B],"") -> 0 | I101: =_xlfn.XLOOKUP(A101,DATA[Code de produit],DATA[C],"") -> O | J101: =_xlfn.XLOOKUP(A101,DATA[Code de produit],DATA[V],"") -> 0 | K101: =_xlfn.XLOOKUP(A101,DATA[Code de produit],DATA[SG],"") -> 0 | L101: =_xlfn.XLOOKUP(A101,DATA[Code de produit],DATA[SO],"") -> 0 | M101: =_xlfn.XLOOKUP(A101,DATA[Code de produit],DATA[H],"") -> 0 | N101: =_xlfn.XLOOKUP(A101,DATA[Code de produit],DATA[FC],"") -> 0 | O101: =_xlfn.XLOOKUP(A101,DATA[Code de produit],DATA[CC],"") -> 0 | P101: =_xlfn.XLOOKUP(A101,DATA[Code de produit],DATA[PC],"") -> 0 | Q101: =_xlfn.XLOOKUP(A101,DATA[Code de produit],DATA[Jours garantis],"") -> 72 | R101: =_xlfn.XLOOKUP(A101,DATA[Code de produit],DATA[Entreposage],"") -> SEC | S101: =_xlfn.XLOOKUP(A101,DATA[Code de produit],DATA[Prix],"") -> 40,23$ | T101: =_xlfn.XLOOKUP(A101,DATA[Code de produit],DATA[Promo mensuelle],"") -> 0 | U101: =_xlfn.XLOOKUP(A101,DATA[Code de produit],DATA[Rabais promo],"") -> 0 | V101: =_xlfn.XLOOKUP(A101,DATA[Code de produit],DATA[PDS],"") -> 9.19 | W101: =_xlfn.XLOOKUP(A101,DATA[Code de produit],DATA[Classement des produits],"") -> 12
A102: CHS0706 | C102: =_xlfn.XLOOKUP(A102,DATA[Code de produit],DATA[Description],"") -> Assaisonnement à badigeonner Jerk des Antilles | D102: =_xlfn.XLOOKUP(A102,DATA[Code de produit],DATA[CUP/unité],"") -> 670071003776 | E102: =_xlfn.XLOOKUP(A102,DATA[Code de produit],DATA[Format],"") -> 100G | F102: =_xlfn.XLOOKUP(A102,DATA[Code de produit],DATA[Sélection],"") -> CS | G102: =_xlfn.XLOOKUP(A102,DATA[Code de produit],DATA[EMB.],"") -> 6 | H102: =_xlfn.XLOOKUP(A102,DATA[Code de produit],DATA[B],"") -> 0 | I102: =_xlfn.XLOOKUP(A102,DATA[Code de produit],DATA[C],"") -> O | J102: =_xlfn.XLOOKUP(A102,DATA[Code de produit],DATA[V],"") -> 0 | K102: =_xlfn.XLOOKUP(A102,DATA[Code de produit],DATA[SG],"") -> 0 | L102: =_xlfn.XLOOKUP(A102,DATA[Code de produit],DATA[SO],"") -> 0 | M102: =_xlfn.XLOOKUP(A102,DATA[Code de produit],DATA[H],"") -> 0 | N102: =_xlfn.XLOOKUP(A102,DATA[Code de produit],DATA[FC],"") -> 0 | O102: =_xlfn.XLOOKUP(A102,DATA[Code de produit],DATA[CC],"") -> 0 | P102: =_xlfn.XLOOKUP(A102,DATA[Code de produit],DATA[PC],"") -> 0 | Q102: =_xlfn.XLOOKUP(A102,DATA[Code de produit],DATA[Jours garantis],"") -> 72 | R102: =_xlfn.XLOOKUP(A102,DATA[Code de produit],DATA[Entreposage],"") -> SEC | S102: =_xlfn.XLOOKUP(A102,DATA[Code de produit],DATA[Prix],"") -> 40,38$ | T102: =_xlfn.XLOOKUP(A102,DATA[Code de produit],DATA[Promo mensuelle],"") -> 0 | U102: =_xlfn.XLOOKUP(A102,DATA[Code de produit],DATA[Rabais promo],"") -> 0 | V102: =_xlfn.XLOOKUP(A102,DATA[Code de produit],DATA[PDS],"") -> 9.19 | W102: =_xlfn.XLOOKUP(A102,DATA[Code de produit],DATA[Classement des produits],"") -> 19
A103: CHS0702 | C103: =_xlfn.XLOOKUP(A103,DATA[Code de produit],DATA[Description],"") -> Assaisonnement à badigeonner Peri Peri du Portugal | D103: =_xlfn.XLOOKUP(A103,DATA[Code de produit],DATA[CUP/unité],"") -> 670071002595 | E103: =_xlfn.XLOOKUP(A103,DATA[Code de produit],DATA[Format],"") -> 100G | F103: =_xlfn.XLOOKUP(A103,DATA[Code de produit],DATA[Sélection],"") -> CS | G103: =_xlfn.XLOOKUP(A103,DATA[Code de produit],DATA[EMB.],"") -> 6 | H103: =_xlfn.XLOOKUP(A103,DATA[Code de produit],DATA[B],"") -> 0 | I103: =_xlfn.XLOOKUP(A103,DATA[Code de produit],DATA[C],"") -> O | J103: =_xlfn.XLOOKUP(A103,DATA[Code de produit],DATA[V],"") -> 0 | K103: =_xlfn.XLOOKUP(A103,DATA[Code de produit],DATA[SG],"") -> 0 | L103: =_xlfn.XLOOKUP(A103,DATA[Code de produit],DATA[SO],"") -> 0 | M103: =_xlfn.XLOOKUP(A103,DATA[Code de produit],DATA[H],"") -> 0 | N103: =_xlfn.XLOOKUP(A103,DATA[Code de produit],DATA[FC],"") -> 0 | O103: =_xlfn.XLOOKUP(A103,DATA[Code de produit],DATA[CC],"") -> 0 | P103: =_xlfn.XLOOKUP(A103,DATA[Code de produit],DATA[PC],"") -> 0 | Q103: =_xlfn.XLOOKUP(A103,DATA[Code de produit],DATA[Jours garantis],"") -> 72 | R103: =_xlfn.XLOOKUP(A103,DATA[Code de produit],DATA[Entreposage],"") -> SEC | S103: =_xlfn.XLOOKUP(A103,DATA[Code de produit],DATA[Prix],"") -> 40,27$ | T103: =_xlfn.XLOOKUP(A103,DATA[Code de produit],DATA[Promo mensuelle],"") -> 0 | U103: =_xlfn.XLOOKUP(A103,DATA[Code de produit],DATA[Rabais promo],"") -> 0 | V103: =_xlfn.XLOOKUP(A103,DATA[Code de produit],DATA[PDS],"") -> 9.19 | W103: =_xlfn.XLOOKUP(A103,DATA[Code de produit],DATA[Classement des produits],"") -> 13
A104: CHS0701 | C104: =_xlfn.XLOOKUP(A104,DATA[Code de produit],DATA[Description],"") -> Assaisonnement à badigeonner Rôti méditérranéen | D104: =_xlfn.XLOOKUP(A104,DATA[Code de produit],DATA[CUP/unité],"") -> 670071002588 | E104: =_xlfn.XLOOKUP(A104,DATA[Code de produit],DATA[Format],"") -> 100G | F104: =_xlfn.XLOOKUP(A104,DATA[Code de produit],DATA[Sélection],"") -> CS | G104: =_xlfn.XLOOKUP(A104,DATA[Code de produit],DATA[EMB.],"") -> 6 | H104: =_xlfn.XLOOKUP(A104,DATA[Code de produit],DATA[B],"") -> 0 | I104: =_xlfn.XLOOKUP(A104,DATA[Code de produit],DATA[C],"") -> O | J104: =_xlfn.XLOOKUP(A104,DATA[Code de produit],DATA[V],"") -> 0 | K104: =_xlfn.XLOOKUP(A104,DATA[Code de produit],DATA[SG],"") -> 0 | L104: =_xlfn.XLOOKUP(A104,DATA[Code de produit],DATA[SO],"") -> 0 | M104: =_xlfn.XLOOKUP(A104,DATA[Code de produit],DATA[H],"") -> 0 | N104: =_xlfn.XLOOKUP(A104,DATA[Code de produit],DATA[FC],"") -> 0 | O104: =_xlfn.XLOOKUP(A104,DATA[Code de produit],DATA[CC],"") -> 0 | P104: =_xlfn.XLOOKUP(A104,DATA[Code de produit],DATA[PC],"") -> 0 | Q104: =_xlfn.XLOOKUP(A104,DATA[Code de produit],DATA[Jours garantis],"") -> 72 | R104: =_xlfn.XLOOKUP(A104,DATA[Code de produit],DATA[Entreposage],"") -> SEC | S104: =_xlfn.XLOOKUP(A104,DATA[Code de produit],DATA[Prix],"") -> 40,27$ | T104: =_xlfn.XLOOKUP(A104,DATA[Code de produit],DATA[Promo mensuelle],"") -> 0 | U104: =_xlfn.XLOOKUP(A104,DATA[Code de produit],DATA[Rabais promo],"") -> 0 | V104: =_xlfn.XLOOKUP(A104,DATA[Code de produit],DATA[PDS],"") -> 9.19 | W104: =_xlfn.XLOOKUP(A104,DATA[Code de produit],DATA[Classement des produits],"") -> 17
A105: CHS0703 | C105: =_xlfn.XLOOKUP(A105,DATA[Code de produit],DATA[Description],"") -> Assaisonnement à badigeonner Texan | D105: =_xlfn.XLOOKUP(A105,DATA[Code de produit],DATA[CUP/unité],"") -> 670071002601 | E105: =_xlfn.XLOOKUP(A105,DATA[Code de produit],DATA[Format],"") -> 100G | F105: =_xlfn.XLOOKUP(A105,DATA[Code de produit],DATA[Sélection],"") -> CS | G105: =_xlfn.XLOOKUP(A105,DATA[Code de produit],DATA[EMB.],"") -> 6 | H105: =_xlfn.XLOOKUP(A105,DATA[Code de produit],DATA[B],"") -> 0 | I105: =_xlfn.XLOOKUP(A105,DATA[Code de produit],DATA[C],"") -> O | J105: =_xlfn.XLOOKUP(A105,DATA[Code de produit],DATA[V],"") -> 0 | K105: =_xlfn.XLOOKUP(A105,DATA[Code de produit],DATA[SG],"") -> 0 | L105: =_xlfn.XLOOKUP(A105,DATA[Code de produit],DATA[SO],"") -> 0 | M105: =_xlfn.XLOOKUP(A105,DATA[Code de produit],DATA[H],"") -> 0 | N105: =_xlfn.XLOOKUP(A105,DATA[Code de produit],DATA[FC],"") -> 0 | O105: =_xlfn.XLOOKUP(A105,DATA[Code de produit],DATA[CC],"") -> 0 | P105: =_xlfn.XLOOKUP(A105,DATA[Code de produit],DATA[PC],"") -> 0 | Q105: =_xlfn.XLOOKUP(A105,DATA[Code de produit],DATA[Jours garantis],"") -> 72 | R105: =_xlfn.XLOOKUP(A105,DATA[Code de produit],DATA[Entreposage],"") -> SEC | S105: =_xlfn.XLOOKUP(A105,DATA[Code de produit],DATA[Prix],"") -> 40,28$ | T105: =_xlfn.XLOOKUP(A105,DATA[Code de produit],DATA[Promo mensuelle],"") -> 0 | U105: =_xlfn.XLOOKUP(A105,DATA[Code de produit],DATA[Rabais promo],"") -> 0 | V105: =_xlfn.XLOOKUP(A105,DATA[Code de produit],DATA[PDS],"") -> 9.19 | W105: =_xlfn.XLOOKUP(A105,DATA[Code de produit],DATA[Classement des produits],"") -> 8
A106: Mélange d'épices | C106: =_xlfn.XLOOKUP(A106,DATA[Code de produit],DATA[Description],"") ->  | D106: =_xlfn.XLOOKUP(A106,DATA[Code de produit],DATA[CUP/unité],"") ->  | E106: =_xlfn.XLOOKUP(A106,DATA[Code de produit],DATA[Format],"") ->  | F106: =_xlfn.XLOOKUP(A106,DATA[Code de produit],DATA[Sélection],"") ->  | G106: =_xlfn.XLOOKUP(A106,DATA[Code de produit],DATA[EMB.],"") ->  | H106: =_xlfn.XLOOKUP(A106,DATA[Code de produit],DATA[B],"") ->  | I106: =_xlfn.XLOOKUP(A106,DATA[Code de produit],DATA[C],"") ->  | J106: =_xlfn.XLOOKUP(A106,DATA[Code de produit],DATA[V],"") ->  | K106: =_xlfn.XLOOKUP(A106,DATA[Code de produit],DATA[SG],"") ->  | L106: =_xlfn.XLOOKUP(A106,DATA[Code de produit],DATA[SO],"") ->  | M106: =_xlfn.XLOOKUP(A106,DATA[Code de produit],DATA[H],"") ->  | N106: =_xlfn.XLOOKUP(A106,DATA[Code de produit],DATA[FC],"") ->  | O106: =_xlfn.XLOOKUP(A106,DATA[Code de produit],DATA[CC],"") ->  | P106: =_xlfn.XLOOKUP(A106,DATA[Code de produit],DATA[PC],"") ->  | Q106: =_xlfn.XLOOKUP(A106,DATA[Code de produit],DATA[Jours garantis],"") ->  | R106: =_xlfn.XLOOKUP(A106,DATA[Code de produit],DATA[Entreposage],"") ->  | S106: =_xlfn.XLOOKUP(A106,DATA[Code de produit],DATA[Prix],"") ->  | T106: =_xlfn.XLOOKUP(A106,DATA[Code de produit],DATA[Promo mensuelle],"") ->  | U106: =_xlfn.XLOOKUP(A106,DATA[Code de produit],DATA[Rabais promo],"") ->  | V106: =_xlfn.XLOOKUP(A106,DATA[Code de produit],DATA[PDS],"") ->  | W106: =_xlfn.XLOOKUP(A106,DATA[Code de produit],DATA[Classement des produits],"") -> 
A107: CHS0201 | C107: =_xlfn.XLOOKUP(A107,DATA[Code de produit],DATA[Description],"") -> Cari madras | D107: =_xlfn.XLOOKUP(A107,DATA[Code de produit],DATA[CUP/unité],"") -> 670071003783 | E107: =_xlfn.XLOOKUP(A107,DATA[Code de produit],DATA[Format],"") -> 100G | F107: =_xlfn.XLOOKUP(A107,DATA[Code de produit],DATA[Sélection],"") -> CS | G107: =_xlfn.XLOOKUP(A107,DATA[Code de produit],DATA[EMB.],"") -> 6 | H107: =_xlfn.XLOOKUP(A107,DATA[Code de produit],DATA[B],"") -> 0 | I107: =_xlfn.XLOOKUP(A107,DATA[Code de produit],DATA[C],"") -> O | J107: =_xlfn.XLOOKUP(A107,DATA[Code de produit],DATA[V],"") -> 0 | K107: =_xlfn.XLOOKUP(A107,DATA[Code de produit],DATA[SG],"") -> 0 | L107: =_xlfn.XLOOKUP(A107,DATA[Code de produit],DATA[SO],"") -> 0 | M107: =_xlfn.XLOOKUP(A107,DATA[Code de produit],DATA[H],"") -> 0 | N107: =_xlfn.XLOOKUP(A107,DATA[Code de produit],DATA[FC],"") -> 0 | O107: =_xlfn.XLOOKUP(A107,DATA[Code de produit],DATA[CC],"") -> 0 | P107: =_xlfn.XLOOKUP(A107,DATA[Code de produit],DATA[PC],"") -> 0 | Q107: =_xlfn.XLOOKUP(A107,DATA[Code de produit],DATA[Jours garantis],"") -> 72 | R107: =_xlfn.XLOOKUP(A107,DATA[Code de produit],DATA[Entreposage],"") -> SEC | S107: =_xlfn.XLOOKUP(A107,DATA[Code de produit],DATA[Prix],"") -> 40,36$ | T107: =_xlfn.XLOOKUP(A107,DATA[Code de produit],DATA[Promo mensuelle],"") -> 0 | U107: =_xlfn.XLOOKUP(A107,DATA[Code de produit],DATA[Rabais promo],"") -> 0 | V107: =_xlfn.XLOOKUP(A107,DATA[Code de produit],DATA[PDS],"") -> 9.19 | W107: =_xlfn.XLOOKUP(A107,DATA[Code de produit],DATA[Classement des produits],"") -> 33
A108: CHS0203 | C108: =_xlfn.XLOOKUP(A108,DATA[Code de produit],DATA[Description],"") -> Tikka Tandoori | D108: =_xlfn.XLOOKUP(A108,DATA[Code de produit],DATA[CUP/unité],"") -> 670071003806 | E108: =_xlfn.XLOOKUP(A108,DATA[Code de produit],DATA[Format],"") -> 100G | F108: =_xlfn.XLOOKUP(A108,DATA[Code de produit],DATA[Sélection],"") -> CS | G108: =_xlfn.XLOOKUP(A108,DATA[Code de produit],DATA[EMB.],"") -> 6 | H108: =_xlfn.XLOOKUP(A108,DATA[Code de produit],DATA[B],"") -> 0 | I108: =_xlfn.XLOOKUP(A108,DATA[Code de produit],DATA[C],"") -> O | J108: =_xlfn.XLOOKUP(A108,DATA[Code de produit],DATA[V],"") -> 0 | K108: =_xlfn.XLOOKUP(A108,DATA[Code de produit],DATA[SG],"") -> 0 | L108: =_xlfn.XLOOKUP(A108,DATA[Code de produit],DATA[SO],"") -> 0 | M108: =_xlfn.XLOOKUP(A108,DATA[Code de produit],DATA[H],"") -> 0 | N108: =_xlfn.XLOOKUP(A108,DATA[Code de produit],DATA[FC],"") -> 0 | O108: =_xlfn.XLOOKUP(A108,DATA[Code de produit],DATA[CC],"") -> 0 | P108: =_xlfn.XLOOKUP(A108,DATA[Code de produit],DATA[PC],"") -> 0 | Q108: =_xlfn.XLOOKUP(A108,DATA[Code de produit],DATA[Jours garantis],"") -> 72 | R108: =_xlfn.XLOOKUP(A108,DATA[Code de produit],DATA[Entreposage],"") -> SEC | S108: =_xlfn.XLOOKUP(A108,DATA[Code de produit],DATA[Prix],"") -> 40,41$ | T108: =_xlfn.XLOOKUP(A108,DATA[Code de produit],DATA[Promo mensuelle],"") -> 0 | U108: =_xlfn.XLOOKUP(A108,DATA[Code de produit],DATA[Rabais promo],"") -> 0 | V108: =_xlfn.XLOOKUP(A108,DATA[Code de produit],DATA[PDS],"") -> 9.19 | W108: =_xlfn.XLOOKUP(A108,DATA[Code de produit],DATA[Classement des produits],"") -> 35
A109: CHS0101 | C109: =_xlfn.XLOOKUP(A109,DATA[Code de produit],DATA[Description],"") -> Boîtier Esprit chili | D109: =_xlfn.XLOOKUP(A109,DATA[Code de produit],DATA[CUP/unité],"") -> 670071003851 | E109: =_xlfn.XLOOKUP(A109,DATA[Code de produit],DATA[Format],"") -> 75G | F109: =_xlfn.XLOOKUP(A109,DATA[Code de produit],DATA[Sélection],"") -> CS | G109: =_xlfn.XLOOKUP(A109,DATA[Code de produit],DATA[EMB.],"") -> 6 | H109: =_xlfn.XLOOKUP(A109,DATA[Code de produit],DATA[B],"") -> 0 | I109: =_xlfn.XLOOKUP(A109,DATA[Code de produit],DATA[C],"") -> O | J109: =_xlfn.XLOOKUP(A109,DATA[Code de produit],DATA[V],"") -> 0 | K109: =_xlfn.XLOOKUP(A109,DATA[Code de produit],DATA[SG],"") -> 0 | L109: =_xlfn.XLOOKUP(A109,DATA[Code de produit],DATA[SO],"") -> 0 | M109: =_xlfn.XLOOKUP(A109,DATA[Code de produit],DATA[H],"") -> 0 | N109: =_xlfn.XLOOKUP(A109,DATA[Code de produit],DATA[FC],"") -> 0 | O109: =_xlfn.XLOOKUP(A109,DATA[Code de produit],DATA[CC],"") -> 0 | P109: =_xlfn.XLOOKUP(A109,DATA[Code de produit],DATA[PC],"") -> 0 | Q109: =_xlfn.XLOOKUP(A109,DATA[Code de produit],DATA[Jours garantis],"") -> 72 | R109: =_xlfn.XLOOKUP(A109,DATA[Code de produit],DATA[Entreposage],"") -> SEC | S109: =_xlfn.XLOOKUP(A109,DATA[Code de produit],DATA[Prix],"") -> 40,14$ | T109: =_xlfn.XLOOKUP(A109,DATA[Code de produit],DATA[Promo mensuelle],"") -> 0 | U109: =_xlfn.XLOOKUP(A109,DATA[Code de produit],DATA[Rabais promo],"") -> 0 | V109: =_xlfn.XLOOKUP(A109,DATA[Code de produit],DATA[PDS],"") -> 9.19 | W109: =_xlfn.XLOOKUP(A109,DATA[Code de produit],DATA[Classement des produits],"") -> 24
A110: CHS0103 | C110: =_xlfn.XLOOKUP(A110,DATA[Code de produit],DATA[Description],"") -> Boîtier Piment chipolte | D110: =_xlfn.XLOOKUP(A110,DATA[Code de produit],DATA[CUP/unité],"") -> 670071003875 | E110: =_xlfn.XLOOKUP(A110,DATA[Code de produit],DATA[Format],"") -> 80G | F110: =_xlfn.XLOOKUP(A110,DATA[Code de produit],DATA[Sélection],"") -> CS | G110: =_xlfn.XLOOKUP(A110,DATA[Code de produit],DATA[EMB.],"") -> 6 | H110: =_xlfn.XLOOKUP(A110,DATA[Code de produit],DATA[B],"") -> 0 | I110: =_xlfn.XLOOKUP(A110,DATA[Code de produit],DATA[C],"") -> O | J110: =_xlfn.XLOOKUP(A110,DATA[Code de produit],DATA[V],"") -> 0 | K110: =_xlfn.XLOOKUP(A110,DATA[Code de produit],DATA[SG],"") -> 0 | L110: =_xlfn.XLOOKUP(A110,DATA[Code de produit],DATA[SO],"") -> 0 | M110: =_xlfn.XLOOKUP(A110,DATA[Code de produit],DATA[H],"") -> 0 | N110: =_xlfn.XLOOKUP(A110,DATA[Code de produit],DATA[FC],"") -> 0 | O110: =_xlfn.XLOOKUP(A110,DATA[Code de produit],DATA[CC],"") -> 0 | P110: =_xlfn.XLOOKUP(A110,DATA[Code de produit],DATA[PC],"") -> 0 | Q110: =_xlfn.XLOOKUP(A110,DATA[Code de produit],DATA[Jours garantis],"") -> 72 | R110: =_xlfn.XLOOKUP(A110,DATA[Code de produit],DATA[Entreposage],"") -> SEC | S110: =_xlfn.XLOOKUP(A110,DATA[Code de produit],DATA[Prix],"") -> 40,14$ | T110: =_xlfn.XLOOKUP(A110,DATA[Code de produit],DATA[Promo mensuelle],"") -> 0 | U110: =_xlfn.XLOOKUP(A110,DATA[Code de produit],DATA[Rabais promo],"") -> 0 | V110: =_xlfn.XLOOKUP(A110,DATA[Code de produit],DATA[PDS],"") -> 9.19 | W110: =_xlfn.XLOOKUP(A110,DATA[Code de produit],DATA[Classement des produits],"") -> 25
A111: CHS0104 | C111: =_xlfn.XLOOKUP(A111,DATA[Code de produit],DATA[Description],"") -> Boîtier Piment pili-pili | D111: =_xlfn.XLOOKUP(A111,DATA[Code de produit],DATA[CUP/unité],"") -> 670071003882 | E111: =_xlfn.XLOOKUP(A111,DATA[Code de produit],DATA[Format],"") -> 80G | F111: =_xlfn.XLOOKUP(A111,DATA[Code de produit],DATA[Sélection],"") -> CS | G111: =_xlfn.XLOOKUP(A111,DATA[Code de produit],DATA[EMB.],"") -> 6 | H111: =_xlfn.XLOOKUP(A111,DATA[Code de produit],DATA[B],"") -> 0 | I111: =_xlfn.XLOOKUP(A111,DATA[Code de produit],DATA[C],"") -> O | J111: =_xlfn.XLOOKUP(A111,DATA[Code de produit],DATA[V],"") -> 0 | K111: =_xlfn.XLOOKUP(A111,DATA[Code de produit],DATA[SG],"") -> 0 | L111: =_xlfn.XLOOKUP(A111,DATA[Code de produit],DATA[SO],"") -> 0 | M111: =_xlfn.XLOOKUP(A111,DATA[Code de produit],DATA[H],"") -> 0 | N111: =_xlfn.XLOOKUP(A111,DATA[Code de produit],DATA[FC],"") -> 0 | O111: =_xlfn.XLOOKUP(A111,DATA[Code de produit],DATA[CC],"") -> 0 | P111: =_xlfn.XLOOKUP(A111,DATA[Code de produit],DATA[PC],"") -> 0 | Q111: =_xlfn.XLOOKUP(A111,DATA[Code de produit],DATA[Jours garantis],"") -> 72 | R111: =_xlfn.XLOOKUP(A111,DATA[Code de produit],DATA[Entreposage],"") -> SEC | S111: =_xlfn.XLOOKUP(A111,DATA[Code de produit],DATA[Prix],"") -> 40,14$ | T111: =_xlfn.XLOOKUP(A111,DATA[Code de produit],DATA[Promo mensuelle],"") -> 0 | U111: =_xlfn.XLOOKUP(A111,DATA[Code de produit],DATA[Rabais promo],"") -> 0 | V111: =_xlfn.XLOOKUP(A111,DATA[Code de produit],DATA[PDS],"") -> 9.19 | W111: =_xlfn.XLOOKUP(A111,DATA[Code de produit],DATA[Classement des produits],"") -> 26
A112: Moulin régulier | C112: =_xlfn.XLOOKUP(A112,DATA[Code de produit],DATA[Description],"") ->  | D112: =_xlfn.XLOOKUP(A112,DATA[Code de produit],DATA[CUP/unité],"") ->  | E112: =_xlfn.XLOOKUP(A112,DATA[Code de produit],DATA[Format],"") ->  | F112: =_xlfn.XLOOKUP(A112,DATA[Code de produit],DATA[Sélection],"") ->  | G112: =_xlfn.XLOOKUP(A112,DATA[Code de produit],DATA[EMB.],"") ->  | H112: =_xlfn.XLOOKUP(A112,DATA[Code de produit],DATA[B],"") ->  | I112: =_xlfn.XLOOKUP(A112,DATA[Code de produit],DATA[C],"") ->  | J112: =_xlfn.XLOOKUP(A112,DATA[Code de produit],DATA[V],"") ->  | K112: =_xlfn.XLOOKUP(A112,DATA[Code de produit],DATA[SG],"") ->  | L112: =_xlfn.XLOOKUP(A112,DATA[Code de produit],DATA[SO],"") ->  | M112: =_xlfn.XLOOKUP(A112,DATA[Code de produit],DATA[H],"") ->  | N112: =_xlfn.XLOOKUP(A112,DATA[Code de produit],DATA[FC],"") ->  | O112: =_xlfn.XLOOKUP(A112,DATA[Code de produit],DATA[CC],"") ->  | P112: =_xlfn.XLOOKUP(A112,DATA[Code de produit],DATA[PC],"") ->  | Q112: =_xlfn.XLOOKUP(A112,DATA[Code de produit],DATA[Jours garantis],"") ->  | R112: =_xlfn.XLOOKUP(A112,DATA[Code de produit],DATA[Entreposage],"") ->  | S112: =_xlfn.XLOOKUP(A112,DATA[Code de produit],DATA[Prix],"") ->  | T112: =_xlfn.XLOOKUP(A112,DATA[Code de produit],DATA[Promo mensuelle],"") ->  | U112: =_xlfn.XLOOKUP(A112,DATA[Code de produit],DATA[Rabais promo],"") ->  | V112: =_xlfn.XLOOKUP(A112,DATA[Code de produit],DATA[PDS],"") ->  | W112: =_xlfn.XLOOKUP(A112,DATA[Code de produit],DATA[Classement des produits],"") -> 
A113: CHS0804 | C113: =_xlfn.XLOOKUP(A113,DATA[Code de produit],DATA[Description],"") -> Moulin sel marin de l'Atlantique | D113: =_xlfn.XLOOKUP(A113,DATA[Code de produit],DATA[CUP/unité],"") -> 670071001826 | E113: =_xlfn.XLOOKUP(A113,DATA[Code de produit],DATA[Format],"") -> 105G | F113: =_xlfn.XLOOKUP(A113,DATA[Code de produit],DATA[Sélection],"") -> CS | G113: =_xlfn.XLOOKUP(A113,DATA[Code de produit],DATA[EMB.],"") -> 6 | H113: =_xlfn.XLOOKUP(A113,DATA[Code de produit],DATA[B],"") -> 0 | I113: =_xlfn.XLOOKUP(A113,DATA[Code de produit],DATA[C],"") -> O | J113: =_xlfn.XLOOKUP(A113,DATA[Code de produit],DATA[V],"") -> 0 | K113: =_xlfn.XLOOKUP(A113,DATA[Code de produit],DATA[SG],"") -> 0 | L113: =_xlfn.XLOOKUP(A113,DATA[Code de produit],DATA[SO],"") -> 0 | M113: =_xlfn.XLOOKUP(A113,DATA[Code de produit],DATA[H],"") -> 0 | N113: =_xlfn.XLOOKUP(A113,DATA[Code de produit],DATA[FC],"") -> 0 | O113: =_xlfn.XLOOKUP(A113,DATA[Code de produit],DATA[CC],"") -> 0 | P113: =_xlfn.XLOOKUP(A113,DATA[Code de produit],DATA[PC],"") -> 0 | Q113: =_xlfn.XLOOKUP(A113,DATA[Code de produit],DATA[Jours garantis],"") -> 72 | R113: =_xlfn.XLOOKUP(A113,DATA[Code de produit],DATA[Entreposage],"") -> SEC | S113: =_xlfn.XLOOKUP(A113,DATA[Code de produit],DATA[Prix],"") -> 29,43$ | T113: =_xlfn.XLOOKUP(A113,DATA[Code de produit],DATA[Promo mensuelle],"") -> 0 | U113: =_xlfn.XLOOKUP(A113,DATA[Code de produit],DATA[Rabais promo],"") -> 0 | V113: =_xlfn.XLOOKUP(A113,DATA[Code de produit],DATA[PDS],"") -> 7.29 | W113: =_xlfn.XLOOKUP(A113,DATA[Code de produit],DATA[Classement des produits],"") -> 5
A114: CHS0813 | C114: =_xlfn.XLOOKUP(A114,DATA[Code de produit],DATA[Description],"") -> Moulin sel de l'Himalaya | D114: =_xlfn.XLOOKUP(A114,DATA[Code de produit],DATA[CUP/unité],"") -> 670071002434 | E114: =_xlfn.XLOOKUP(A114,DATA[Code de produit],DATA[Format],"") -> 130G | F114: =_xlfn.XLOOKUP(A114,DATA[Code de produit],DATA[Sélection],"") -> CS | G114: =_xlfn.XLOOKUP(A114,DATA[Code de produit],DATA[EMB.],"") -> 6 | H114: =_xlfn.XLOOKUP(A114,DATA[Code de produit],DATA[B],"") -> 0 | I114: =_xlfn.XLOOKUP(A114,DATA[Code de produit],DATA[C],"") -> O | J114: =_xlfn.XLOOKUP(A114,DATA[Code de produit],DATA[V],"") -> 0 | K114: =_xlfn.XLOOKUP(A114,DATA[Code de produit],DATA[SG],"") -> 0 | L114: =_xlfn.XLOOKUP(A114,DATA[Code de produit],DATA[SO],"") -> 0 | M114: =_xlfn.XLOOKUP(A114,DATA[Code de produit],DATA[H],"") -> 0 | N114: =_xlfn.XLOOKUP(A114,DATA[Code de produit],DATA[FC],"") -> 0 | O114: =_xlfn.XLOOKUP(A114,DATA[Code de produit],DATA[CC],"") -> 0 | P114: =_xlfn.XLOOKUP(A114,DATA[Code de produit],DATA[PC],"") -> 0 | Q114: =_xlfn.XLOOKUP(A114,DATA[Code de produit],DATA[Jours garantis],"") -> 72 | R114: =_xlfn.XLOOKUP(A114,DATA[Code de produit],DATA[Entreposage],"") -> SEC | S114: =_xlfn.XLOOKUP(A114,DATA[Code de produit],DATA[Prix],"") -> 29,43$ | T114: =_xlfn.XLOOKUP(A114,DATA[Code de produit],DATA[Promo mensuelle],"") -> 0 | U114: =_xlfn.XLOOKUP(A114,DATA[Code de produit],DATA[Rabais promo],"") -> 0 | V114: =_xlfn.XLOOKUP(A114,DATA[Code de produit],DATA[PDS],"") -> 7.29 | W114: =_xlfn.XLOOKUP(A114,DATA[Code de produit],DATA[Classement des produits],"") -> 1
A115: CHS0817 | C115: =_xlfn.XLOOKUP(A115,DATA[Code de produit],DATA[Description],"") -> Moulin assaisonnement italien | D115: =_xlfn.XLOOKUP(A115,DATA[Code de produit],DATA[CUP/unité],"") -> 670071001871 | E115: =_xlfn.XLOOKUP(A115,DATA[Code de produit],DATA[Format],"") -> 46G | F115: =_xlfn.XLOOKUP(A115,DATA[Code de produit],DATA[Sélection],"") -> CS | G115: =_xlfn.XLOOKUP(A115,DATA[Code de produit],DATA[EMB.],"") -> 6 | H115: =_xlfn.XLOOKUP(A115,DATA[Code de produit],DATA[B],"") -> 0 | I115: =_xlfn.XLOOKUP(A115,DATA[Code de produit],DATA[C],"") -> O | J115: =_xlfn.XLOOKUP(A115,DATA[Code de produit],DATA[V],"") -> 0 | K115: =_xlfn.XLOOKUP(A115,DATA[Code de produit],DATA[SG],"") -> 0 | L115: =_xlfn.XLOOKUP(A115,DATA[Code de produit],DATA[SO],"") -> 0 | M115: =_xlfn.XLOOKUP(A115,DATA[Code de produit],DATA[H],"") -> 0 | N115: =_xlfn.XLOOKUP(A115,DATA[Code de produit],DATA[FC],"") -> 0 | O115: =_xlfn.XLOOKUP(A115,DATA[Code de produit],DATA[CC],"") -> 0 | P115: =_xlfn.XLOOKUP(A115,DATA[Code de produit],DATA[PC],"") -> 0 | Q115: =_xlfn.XLOOKUP(A115,DATA[Code de produit],DATA[Jours garantis],"") -> 72 | R115: =_xlfn.XLOOKUP(A115,DATA[Code de produit],DATA[Entreposage],"") -> SEC | S115: =_xlfn.XLOOKUP(A115,DATA[Code de produit],DATA[Prix],"") -> 31,67$ | T115: =_xlfn.XLOOKUP(A115,DATA[Code de produit],DATA[Promo mensuelle],"") -> 0 | U115: =_xlfn.XLOOKUP(A115,DATA[Code de produit],DATA[Rabais promo],"") -> 0 | V115: =_xlfn.XLOOKUP(A115,DATA[Code de produit],DATA[PDS],"") -> 7.29 | W115: =_xlfn.XLOOKUP(A115,DATA[Code de produit],DATA[Classement des produits],"") -> 21
A116: CHS0802 | C116: =_xlfn.XLOOKUP(A116,DATA[Code de produit],DATA[Description],"") -> Moulin assaisonnement tout usage | D116: =_xlfn.XLOOKUP(A116,DATA[Code de produit],DATA[CUP/unité],"") -> 670071001857 | E116: =_xlfn.XLOOKUP(A116,DATA[Code de produit],DATA[Format],"") -> 55G | F116: =_xlfn.XLOOKUP(A116,DATA[Code de produit],DATA[Sélection],"") -> CS | G116: =_xlfn.XLOOKUP(A116,DATA[Code de produit],DATA[EMB.],"") -> 6 | H116: =_xlfn.XLOOKUP(A116,DATA[Code de produit],DATA[B],"") -> 0 | I116: =_xlfn.XLOOKUP(A116,DATA[Code de produit],DATA[C],"") -> O | J116: =_xlfn.XLOOKUP(A116,DATA[Code de produit],DATA[V],"") -> 0 | K116: =_xlfn.XLOOKUP(A116,DATA[Code de produit],DATA[SG],"") -> 0 | L116: =_xlfn.XLOOKUP(A116,DATA[Code de produit],DATA[SO],"") -> 0 | M116: =_xlfn.XLOOKUP(A116,DATA[Code de produit],DATA[H],"") -> 0 | N116: =_xlfn.XLOOKUP(A116,DATA[Code de produit],DATA[FC],"") -> 0 | O116: =_xlfn.XLOOKUP(A116,DATA[Code de produit],DATA[CC],"") -> 0 | P116: =_xlfn.XLOOKUP(A116,DATA[Code de produit],DATA[PC],"") -> 0 | Q116: =_xlfn.XLOOKUP(A116,DATA[Code de produit],DATA[Jours garantis],"") -> 72 | R116: =_xlfn.XLOOKUP(A116,DATA[Code de produit],DATA[Entreposage],"") -> SEC | S116: =_xlfn.XLOOKUP(A116,DATA[Code de produit],DATA[Prix],"") -> 31,98$ | T116: =_xlfn.XLOOKUP(A116,DATA[Code de produit],DATA[Promo mensuelle],"") -> 0 | U116: =_xlfn.XLOOKUP(A116,DATA[Code de produit],DATA[Rabais promo],"") -> 0 | V116: =_xlfn.XLOOKUP(A116,DATA[Code de produit],DATA[PDS],"") -> 7.29 | W116: =_xlfn.XLOOKUP(A116,DATA[Code de produit],DATA[Classement des produits],"") -> 15
A117: CHS0801 | C117: =_xlfn.XLOOKUP(A117,DATA[Code de produit],DATA[Description],"") -> Moulin poivre noir extra puissant | D117: =_xlfn.XLOOKUP(A117,DATA[Code de produit],DATA[CUP/unité],"") -> 670071001772 | E117: =_xlfn.XLOOKUP(A117,DATA[Code de produit],DATA[Format],"") -> 55G | F117: =_xlfn.XLOOKUP(A117,DATA[Code de produit],DATA[Sélection],"") -> CS | G117: =_xlfn.XLOOKUP(A117,DATA[Code de produit],DATA[EMB.],"") -> 6 | H117: =_xlfn.XLOOKUP(A117,DATA[Code de produit],DATA[B],"") -> 0 | I117: =_xlfn.XLOOKUP(A117,DATA[Code de produit],DATA[C],"") -> O | J117: =_xlfn.XLOOKUP(A117,DATA[Code de produit],DATA[V],"") -> 0 | K117: =_xlfn.XLOOKUP(A117,DATA[Code de produit],DATA[SG],"") -> 0 | L117: =_xlfn.XLOOKUP(A117,DATA[Code de produit],DATA[SO],"") -> 0 | M117: =_xlfn.XLOOKUP(A117,DATA[Code de produit],DATA[H],"") -> 0 | N117: =_xlfn.XLOOKUP(A117,DATA[Code de produit],DATA[FC],"") -> 0 | O117: =_xlfn.XLOOKUP(A117,DATA[Code de produit],DATA[CC],"") -> 0 | P117: =_xlfn.XLOOKUP(A117,DATA[Code de produit],DATA[PC],"") -> 0 | Q117: =_xlfn.XLOOKUP(A117,DATA[Code de produit],DATA[Jours garantis],"") -> 72 | R117: =_xlfn.XLOOKUP(A117,DATA[Code de produit],DATA[Entreposage],"") -> SEC | S117: =_xlfn.XLOOKUP(A117,DATA[Code de produit],DATA[Prix],"") -> 29,43$ | T117: =_xlfn.XLOOKUP(A117,DATA[Code de produit],DATA[Promo mensuelle],"") -> 0 | U117: =_xlfn.XLOOKUP(A117,DATA[Code de produit],DATA[Rabais promo],"") -> 0 | V117: =_xlfn.XLOOKUP(A117,DATA[Code de produit],DATA[PDS],"") -> 7.29 | W117: =_xlfn.XLOOKUP(A117,DATA[Code de produit],DATA[Classement des produits],"") -> 3
A118: CHS0805 | C118: =_xlfn.XLOOKUP(A118,DATA[Code de produit],DATA[Description],"") -> Moulin grains de poivre arc-en-ciel | D118: =_xlfn.XLOOKUP(A118,DATA[Code de produit],DATA[CUP/unité],"") -> 670071001901 | E118: =_xlfn.XLOOKUP(A118,DATA[Code de produit],DATA[Format],"") -> 56G | F118: =_xlfn.XLOOKUP(A118,DATA[Code de produit],DATA[Sélection],"") -> CS | G118: =_xlfn.XLOOKUP(A118,DATA[Code de produit],DATA[EMB.],"") -> 6 | H118: =_xlfn.XLOOKUP(A118,DATA[Code de produit],DATA[B],"") -> 0 | I118: =_xlfn.XLOOKUP(A118,DATA[Code de produit],DATA[C],"") -> O | J118: =_xlfn.XLOOKUP(A118,DATA[Code de produit],DATA[V],"") -> 0 | K118: =_xlfn.XLOOKUP(A118,DATA[Code de produit],DATA[SG],"") -> 0 | L118: =_xlfn.XLOOKUP(A118,DATA[Code de produit],DATA[SO],"") -> 0 | M118: =_xlfn.XLOOKUP(A118,DATA[Code de produit],DATA[H],"") -> 0 | N118: =_xlfn.XLOOKUP(A118,DATA[Code de produit],DATA[FC],"") -> 0 | O118: =_xlfn.XLOOKUP(A118,DATA[Code de produit],DATA[CC],"") -> 0 | P118: =_xlfn.XLOOKUP(A118,DATA[Code de produit],DATA[PC],"") -> 0 | Q118: =_xlfn.XLOOKUP(A118,DATA[Code de produit],DATA[Jours garantis],"") -> 72 | R118: =_xlfn.XLOOKUP(A118,DATA[Code de produit],DATA[Entreposage],"") -> SEC | S118: =_xlfn.XLOOKUP(A118,DATA[Code de produit],DATA[Prix],"") -> 29,43$ | T118: =_xlfn.XLOOKUP(A118,DATA[Code de produit],DATA[Promo mensuelle],"") -> 0 | U118: =_xlfn.XLOOKUP(A118,DATA[Code de produit],DATA[Rabais promo],"") -> 0 | V118: =_xlfn.XLOOKUP(A118,DATA[Code de produit],DATA[PDS],"") -> 7.29 | W118: =_xlfn.XLOOKUP(A118,DATA[Code de produit],DATA[Classement des produits],"") -> 4
A119: CHS0806 | C119: =_xlfn.XLOOKUP(A119,DATA[Code de produit],DATA[Description],"") -> Moulin assaissonnement pour poisson | D119: =_xlfn.XLOOKUP(A119,DATA[Code de produit],DATA[CUP/unité],"") -> 670071001802 | E119: =_xlfn.XLOOKUP(A119,DATA[Code de produit],DATA[Format],"") -> 60G | F119: =_xlfn.XLOOKUP(A119,DATA[Code de produit],DATA[Sélection],"") -> CS | G119: =_xlfn.XLOOKUP(A119,DATA[Code de produit],DATA[EMB.],"") -> 6 | H119: =_xlfn.XLOOKUP(A119,DATA[Code de produit],DATA[B],"") -> 0 | I119: =_xlfn.XLOOKUP(A119,DATA[Code de produit],DATA[C],"") -> O | J119: =_xlfn.XLOOKUP(A119,DATA[Code de produit],DATA[V],"") -> 0 | K119: =_xlfn.XLOOKUP(A119,DATA[Code de produit],DATA[SG],"") -> 0 | L119: =_xlfn.XLOOKUP(A119,DATA[Code de produit],DATA[SO],"") -> 0 | M119: =_xlfn.XLOOKUP(A119,DATA[Code de produit],DATA[H],"") -> 0 | N119: =_xlfn.XLOOKUP(A119,DATA[Code de produit],DATA[FC],"") -> 0 | O119: =_xlfn.XLOOKUP(A119,DATA[Code de produit],DATA[CC],"") -> 0 | P119: =_xlfn.XLOOKUP(A119,DATA[Code de produit],DATA[PC],"") -> 0 | Q119: =_xlfn.XLOOKUP(A119,DATA[Code de produit],DATA[Jours garantis],"") -> 72 | R119: =_xlfn.XLOOKUP(A119,DATA[Code de produit],DATA[Entreposage],"") -> SEC | S119: =_xlfn.XLOOKUP(A119,DATA[Code de produit],DATA[Prix],"") -> 31,67$ | T119: =_xlfn.XLOOKUP(A119,DATA[Code de produit],DATA[Promo mensuelle],"") -> 0 | U119: =_xlfn.XLOOKUP(A119,DATA[Code de produit],DATA[Rabais promo],"") -> 0 | V119: =_xlfn.XLOOKUP(A119,DATA[Code de produit],DATA[PDS],"") -> 7.29 | W119: =_xlfn.XLOOKUP(A119,DATA[Code de produit],DATA[Classement des produits],"") -> 11
A120: CHS0808 | C120: =_xlfn.XLOOKUP(A120,DATA[Code de produit],DATA[Description],"") -> Moulin assaissonnement pour poulet | D120: =_xlfn.XLOOKUP(A120,DATA[Code de produit],DATA[CUP/unité],"") -> 670071001796 | E120: =_xlfn.XLOOKUP(A120,DATA[Code de produit],DATA[Format],"") -> 61G | F120: =_xlfn.XLOOKUP(A120,DATA[Code de produit],DATA[Sélection],"") -> CS | G120: =_xlfn.XLOOKUP(A120,DATA[Code de produit],DATA[EMB.],"") -> 6 | H120: =_xlfn.XLOOKUP(A120,DATA[Code de produit],DATA[B],"") -> 0 | I120: =_xlfn.XLOOKUP(A120,DATA[Code de produit],DATA[C],"") -> O | J120: =_xlfn.XLOOKUP(A120,DATA[Code de produit],DATA[V],"") -> 0 | K120: =_xlfn.XLOOKUP(A120,DATA[Code de produit],DATA[SG],"") -> 0 | L120: =_xlfn.XLOOKUP(A120,DATA[Code de produit],DATA[SO],"") -> 0 | M120: =_xlfn.XLOOKUP(A120,DATA[Code de produit],DATA[H],"") -> 0 | N120: =_xlfn.XLOOKUP(A120,DATA[Code de produit],DATA[FC],"") -> 0 | O120: =_xlfn.XLOOKUP(A120,DATA[Code de produit],DATA[CC],"") -> 0 | P120: =_xlfn.XLOOKUP(A120,DATA[Code de produit],DATA[PC],"") -> 0 | Q120: =_xlfn.XLOOKUP(A120,DATA[Code de produit],DATA[Jours garantis],"") -> 72 | R120: =_xlfn.XLOOKUP(A120,DATA[Code de produit],DATA[Entreposage],"") -> SEC | S120: =_xlfn.XLOOKUP(A120,DATA[Code de produit],DATA[Prix],"") -> 29,43$ | T120: =_xlfn.XLOOKUP(A120,DATA[Code de produit],DATA[Promo mensuelle],"") -> 0 | U120: =_xlfn.XLOOKUP(A120,DATA[Code de produit],DATA[Rabais promo],"") -> 0 | V120: =_xlfn.XLOOKUP(A120,DATA[Code de produit],DATA[PDS],"") -> 7.29 | W120: =_xlfn.XLOOKUP(A120,DATA[Code de produit],DATA[Classement des produits],"") -> 16
A121: CHS0809 | C121: =_xlfn.XLOOKUP(A121,DATA[Code de produit],DATA[Description],"") -> Moulin assaisonnement au poivre et citron | D121: =_xlfn.XLOOKUP(A121,DATA[Code de produit],DATA[CUP/unité],"") -> 670071001758 | E121: =_xlfn.XLOOKUP(A121,DATA[Code de produit],DATA[Format],"") -> 64G | F121: =_xlfn.XLOOKUP(A121,DATA[Code de produit],DATA[Sélection],"") -> CS | G121: =_xlfn.XLOOKUP(A121,DATA[Code de produit],DATA[EMB.],"") -> 6 | H121: =_xlfn.XLOOKUP(A121,DATA[Code de produit],DATA[B],"") -> 0 | I121: =_xlfn.XLOOKUP(A121,DATA[Code de produit],DATA[C],"") -> O | J121: =_xlfn.XLOOKUP(A121,DATA[Code de produit],DATA[V],"") -> 0 | K121: =_xlfn.XLOOKUP(A121,DATA[Code de produit],DATA[SG],"") -> 0 | L121: =_xlfn.XLOOKUP(A121,DATA[Code de produit],DATA[SO],"") -> 0 | M121: =_xlfn.XLOOKUP(A121,DATA[Code de produit],DATA[H],"") -> 0 | N121: =_xlfn.XLOOKUP(A121,DATA[Code de produit],DATA[FC],"") -> 0 | O121: =_xlfn.XLOOKUP(A121,DATA[Code de produit],DATA[CC],"") -> 0 | P121: =_xlfn.XLOOKUP(A121,DATA[Code de produit],DATA[PC],"") -> 0 | Q121: =_xlfn.XLOOKUP(A121,DATA[Code de produit],DATA[Jours garantis],"") -> 72 | R121: =_xlfn.XLOOKUP(A121,DATA[Code de produit],DATA[Entreposage],"") -> SEC | S121: =_xlfn.XLOOKUP(A121,DATA[Code de produit],DATA[Prix],"") -> 31,69$ | T121: =_xlfn.XLOOKUP(A121,DATA[Code de produit],DATA[Promo mensuelle],"") -> 0 | U121: =_xlfn.XLOOKUP(A121,DATA[Code de produit],DATA[Rabais promo],"") -> 0 | V121: =_xlfn.XLOOKUP(A121,DATA[Code de produit],DATA[PDS],"") -> 7.29 | W121: =_xlfn.XLOOKUP(A121,DATA[Code de produit],DATA[Classement des produits],"") -> 9
A122: CHS0811 | C122: =_xlfn.XLOOKUP(A122,DATA[Code de produit],DATA[Description],"") -> Moulin assaisonnement ail et herbes | D122: =_xlfn.XLOOKUP(A122,DATA[Code de produit],DATA[CUP/unité],"") -> 670071002533 | E122: =_xlfn.XLOOKUP(A122,DATA[Code de produit],DATA[Format],"") -> 65G | F122: =_xlfn.XLOOKUP(A122,DATA[Code de produit],DATA[Sélection],"") -> CS | G122: =_xlfn.XLOOKUP(A122,DATA[Code de produit],DATA[EMB.],"") -> 6 | H122: =_xlfn.XLOOKUP(A122,DATA[Code de produit],DATA[B],"") -> 0 | I122: =_xlfn.XLOOKUP(A122,DATA[Code de produit],DATA[C],"") -> O | J122: =_xlfn.XLOOKUP(A122,DATA[Code de produit],DATA[V],"") -> 0 | K122: =_xlfn.XLOOKUP(A122,DATA[Code de produit],DATA[SG],"") -> 0 | L122: =_xlfn.XLOOKUP(A122,DATA[Code de produit],DATA[SO],"") -> 0 | M122: =_xlfn.XLOOKUP(A122,DATA[Code de produit],DATA[H],"") -> 0 | N122: =_xlfn.XLOOKUP(A122,DATA[Code de produit],DATA[FC],"") -> 0 | O122: =_xlfn.XLOOKUP(A122,DATA[Code de produit],DATA[CC],"") -> 0 | P122: =_xlfn.XLOOKUP(A122,DATA[Code de produit],DATA[PC],"") -> 0 | Q122: =_xlfn.XLOOKUP(A122,DATA[Code de produit],DATA[Jours garantis],"") -> 72 | R122: =_xlfn.XLOOKUP(A122,DATA[Code de produit],DATA[Entreposage],"") -> SEC | S122: =_xlfn.XLOOKUP(A122,DATA[Code de produit],DATA[Prix],"") -> 31,70$ | T122: =_xlfn.XLOOKUP(A122,DATA[Code de produit],DATA[Promo mensuelle],"") -> 0 | U122: =_xlfn.XLOOKUP(A122,DATA[Code de produit],DATA[Rabais promo],"") -> 0 | V122: =_xlfn.XLOOKUP(A122,DATA[Code de produit],DATA[PDS],"") -> 7.29 | W122: =_xlfn.XLOOKUP(A122,DATA[Code de produit],DATA[Classement des produits],"") -> 10
A123: CHS0807 | C123: =_xlfn.XLOOKUP(A123,DATA[Code de produit],DATA[Description],"") -> Moulin assaisonnement aux herbes salées | D123: =_xlfn.XLOOKUP(A123,DATA[Code de produit],DATA[CUP/unité],"") -> 670071001918 | E123: =_xlfn.XLOOKUP(A123,DATA[Code de produit],DATA[Format],"") -> 80G | F123: =_xlfn.XLOOKUP(A123,DATA[Code de produit],DATA[Sélection],"") -> CS | G123: =_xlfn.XLOOKUP(A123,DATA[Code de produit],DATA[EMB.],"") -> 6 | H123: =_xlfn.XLOOKUP(A123,DATA[Code de produit],DATA[B],"") -> 0 | I123: =_xlfn.XLOOKUP(A123,DATA[Code de produit],DATA[C],"") -> O | J123: =_xlfn.XLOOKUP(A123,DATA[Code de produit],DATA[V],"") -> 0 | K123: =_xlfn.XLOOKUP(A123,DATA[Code de produit],DATA[SG],"") -> 0 | L123: =_xlfn.XLOOKUP(A123,DATA[Code de produit],DATA[SO],"") -> 0 | M123: =_xlfn.XLOOKUP(A123,DATA[Code de produit],DATA[H],"") -> 0 | N123: =_xlfn.XLOOKUP(A123,DATA[Code de produit],DATA[FC],"") -> 0 | O123: =_xlfn.XLOOKUP(A123,DATA[Code de produit],DATA[CC],"") -> 0 | P123: =_xlfn.XLOOKUP(A123,DATA[Code de produit],DATA[PC],"") -> 0 | Q123: =_xlfn.XLOOKUP(A123,DATA[Code de produit],DATA[Jours garantis],"") -> 72 | R123: =_xlfn.XLOOKUP(A123,DATA[Code de produit],DATA[Entreposage],"") -> SEC | S123: =_xlfn.XLOOKUP(A123,DATA[Code de produit],DATA[Prix],"") -> 31,67$ | T123: =_xlfn.XLOOKUP(A123,DATA[Code de produit],DATA[Promo mensuelle],"") -> 0 | U123: =_xlfn.XLOOKUP(A123,DATA[Code de produit],DATA[Rabais promo],"") -> 0 | V123: =_xlfn.XLOOKUP(A123,DATA[Code de produit],DATA[PDS],"") -> 7.29 | W123: =_xlfn.XLOOKUP(A123,DATA[Code de produit],DATA[Classement des produits],"") -> 18
A124: Moulin géant | C124: =_xlfn.XLOOKUP(A124,DATA[Code de produit],DATA[Description],"") ->  | D124: =_xlfn.XLOOKUP(A124,DATA[Code de produit],DATA[CUP/unité],"") ->  | E124: =_xlfn.XLOOKUP(A124,DATA[Code de produit],DATA[Format],"") ->  | F124: =_xlfn.XLOOKUP(A124,DATA[Code de produit],DATA[Sélection],"") ->  | G124: =_xlfn.XLOOKUP(A124,DATA[Code de produit],DATA[EMB.],"") ->  | H124: =_xlfn.XLOOKUP(A124,DATA[Code de produit],DATA[B],"") ->  | I124: =_xlfn.XLOOKUP(A124,DATA[Code de produit],DATA[C],"") ->  | J124: =_xlfn.XLOOKUP(A124,DATA[Code de produit],DATA[V],"") ->  | K124: =_xlfn.XLOOKUP(A124,DATA[Code de produit],DATA[SG],"") ->  | L124: =_xlfn.XLOOKUP(A124,DATA[Code de produit],DATA[SO],"") ->  | M124: =_xlfn.XLOOKUP(A124,DATA[Code de produit],DATA[H],"") ->  | N124: =_xlfn.XLOOKUP(A124,DATA[Code de produit],DATA[FC],"") ->  | O124: =_xlfn.XLOOKUP(A124,DATA[Code de produit],DATA[CC],"") ->  | P124: =_xlfn.XLOOKUP(A124,DATA[Code de produit],DATA[PC],"") ->  | Q124: =_xlfn.XLOOKUP(A124,DATA[Code de produit],DATA[Jours garantis],"") ->  | R124: =_xlfn.XLOOKUP(A124,DATA[Code de produit],DATA[Entreposage],"") ->  | S124: =_xlfn.XLOOKUP(A124,DATA[Code de produit],DATA[Prix],"") ->  | T124: =_xlfn.XLOOKUP(A124,DATA[Code de produit],DATA[Promo mensuelle],"") ->  | U124: =_xlfn.XLOOKUP(A124,DATA[Code de produit],DATA[Rabais promo],"") ->  | V124: =_xlfn.XLOOKUP(A124,DATA[Code de produit],DATA[PDS],"") ->  | W124: =_xlfn.XLOOKUP(A124,DATA[Code de produit],DATA[Classement des produits],"") -> 
A125: CHS0309 | C125: =_xlfn.XLOOKUP(A125,DATA[Code de produit],DATA[Description],"") -> Moulin géant grains de poivre arc-en-ciel | D125: =_xlfn.XLOOKUP(A125,DATA[Code de produit],DATA[CUP/unité],"") -> 670071002410 | E125: =_xlfn.XLOOKUP(A125,DATA[Code de produit],DATA[Format],"") -> 175G | F125: =_xlfn.XLOOKUP(A125,DATA[Code de produit],DATA[Sélection],"") -> CS | G125: =_xlfn.XLOOKUP(A125,DATA[Code de produit],DATA[EMB.],"") -> 6 | H125: =_xlfn.XLOOKUP(A125,DATA[Code de produit],DATA[B],"") -> 0 | I125: =_xlfn.XLOOKUP(A125,DATA[Code de produit],DATA[C],"") -> O | J125: =_xlfn.XLOOKUP(A125,DATA[Code de produit],DATA[V],"") -> 0 | K125: =_xlfn.XLOOKUP(A125,DATA[Code de produit],DATA[SG],"") -> 0 | L125: =_xlfn.XLOOKUP(A125,DATA[Code de produit],DATA[SO],"") -> 0 | M125: =_xlfn.XLOOKUP(A125,DATA[Code de produit],DATA[H],"") -> 0 | N125: =_xlfn.XLOOKUP(A125,DATA[Code de produit],DATA[FC],"") -> 0 | O125: =_xlfn.XLOOKUP(A125,DATA[Code de produit],DATA[CC],"") -> 0 | P125: =_xlfn.XLOOKUP(A125,DATA[Code de produit],DATA[PC],"") -> 0 | Q125: =_xlfn.XLOOKUP(A125,DATA[Code de produit],DATA[Jours garantis],"") -> 72 | R125: =_xlfn.XLOOKUP(A125,DATA[Code de produit],DATA[Entreposage],"") -> SEC | S125: =_xlfn.XLOOKUP(A125,DATA[Code de produit],DATA[Prix],"") -> 71,87$ | T125: =_xlfn.XLOOKUP(A125,DATA[Code de produit],DATA[Promo mensuelle],"") -> 0 | U125: =_xlfn.XLOOKUP(A125,DATA[Code de produit],DATA[Rabais promo],"") -> 0 | V125: =_xlfn.XLOOKUP(A125,DATA[Code de produit],DATA[PDS],"") -> 17.89 | W125: =_xlfn.XLOOKUP(A125,DATA[Code de produit],DATA[Classement des produits],"") -> 14
A126: CHS0313 | C126: =_xlfn.XLOOKUP(A126,DATA[Code de produit],DATA[Description],"") -> Moulin géant grains de poivre noir | D126: =_xlfn.XLOOKUP(A126,DATA[Code de produit],DATA[CUP/unité],"") -> 670071002144 | E126: =_xlfn.XLOOKUP(A126,DATA[Code de produit],DATA[Format],"") -> 180G | F126: =_xlfn.XLOOKUP(A126,DATA[Code de produit],DATA[Sélection],"") -> CS | G126: =_xlfn.XLOOKUP(A126,DATA[Code de produit],DATA[EMB.],"") -> 6 | H126: =_xlfn.XLOOKUP(A126,DATA[Code de produit],DATA[B],"") -> 0 | I126: =_xlfn.XLOOKUP(A126,DATA[Code de produit],DATA[C],"") -> O | J126: =_xlfn.XLOOKUP(A126,DATA[Code de produit],DATA[V],"") -> 0 | K126: =_xlfn.XLOOKUP(A126,DATA[Code de produit],DATA[SG],"") -> 0 | L126: =_xlfn.XLOOKUP(A126,DATA[Code de produit],DATA[SO],"") -> 0 | M126: =_xlfn.XLOOKUP(A126,DATA[Code de produit],DATA[H],"") -> 0 | N126: =_xlfn.XLOOKUP(A126,DATA[Code de produit],DATA[FC],"") -> 0 | O126: =_xlfn.XLOOKUP(A126,DATA[Code de produit],DATA[CC],"") -> 0 | P126: =_xlfn.XLOOKUP(A126,DATA[Code de produit],DATA[PC],"") -> 0 | Q126: =_xlfn.XLOOKUP(A126,DATA[Code de produit],DATA[Jours garantis],"") -> 72 | R126: =_xlfn.XLOOKUP(A126,DATA[Code de produit],DATA[Entreposage],"") -> SEC | S126: =_xlfn.XLOOKUP(A126,DATA[Code de produit],DATA[Prix],"") -> 71,87$ | T126: =_xlfn.XLOOKUP(A126,DATA[Code de produit],DATA[Promo mensuelle],"") -> 0 | U126: =_xlfn.XLOOKUP(A126,DATA[Code de produit],DATA[Rabais promo],"") -> 0 | V126: =_xlfn.XLOOKUP(A126,DATA[Code de produit],DATA[PDS],"") -> 17.89 | W126: =_xlfn.XLOOKUP(A126,DATA[Code de produit],DATA[Classement des produits],"") -> 7
A127: CHS0311 | C127: =_xlfn.XLOOKUP(A127,DATA[Code de produit],DATA[Description],"") -> Moulin géant sel assaisonné | D127: =_xlfn.XLOOKUP(A127,DATA[Code de produit],DATA[CUP/unité],"") -> 670071003479 | E127: =_xlfn.XLOOKUP(A127,DATA[Code de produit],DATA[Format],"") -> 240G | F127: =_xlfn.XLOOKUP(A127,DATA[Code de produit],DATA[Sélection],"") -> CS | G127: =_xlfn.XLOOKUP(A127,DATA[Code de produit],DATA[EMB.],"") -> 6 | H127: =_xlfn.XLOOKUP(A127,DATA[Code de produit],DATA[B],"") -> 0 | I127: =_xlfn.XLOOKUP(A127,DATA[Code de produit],DATA[C],"") -> O | J127: =_xlfn.XLOOKUP(A127,DATA[Code de produit],DATA[V],"") -> 0 | K127: =_xlfn.XLOOKUP(A127,DATA[Code de produit],DATA[SG],"") -> 0 | L127: =_xlfn.XLOOKUP(A127,DATA[Code de produit],DATA[SO],"") -> 0 | M127: =_xlfn.XLOOKUP(A127,DATA[Code de produit],DATA[H],"") -> 0 | N127: =_xlfn.XLOOKUP(A127,DATA[Code de produit],DATA[FC],"") -> 0 | O127: =_xlfn.XLOOKUP(A127,DATA[Code de produit],DATA[CC],"") -> 0 | P127: =_xlfn.XLOOKUP(A127,DATA[Code de produit],DATA[PC],"") -> 0 | Q127: =_xlfn.XLOOKUP(A127,DATA[Code de produit],DATA[Jours garantis],"") -> 72 | R127: =_xlfn.XLOOKUP(A127,DATA[Code de produit],DATA[Entreposage],"") -> SEC | S127: =_xlfn.XLOOKUP(A127,DATA[Code de produit],DATA[Prix],"") -> 47,70$ | T127: =_xlfn.XLOOKUP(A127,DATA[Code de produit],DATA[Promo mensuelle],"") -> 0 | U127: =_xlfn.XLOOKUP(A127,DATA[Code de produit],DATA[Rabais promo],"") -> 0 | V127: =_xlfn.XLOOKUP(A127,DATA[Code de produit],DATA[PDS],"") -> 11.89 | W127: =_xlfn.XLOOKUP(A127,DATA[Code de produit],DATA[Classement des produits],"") -> 20
A128: CHS0310 | C128: =_xlfn.XLOOKUP(A128,DATA[Code de produit],DATA[Description],"") -> Moulin géant sel de mer de l'Atlantique | D128: =_xlfn.XLOOKUP(A128,DATA[Code de produit],DATA[CUP/unité],"") -> 670071002137 | E128: =_xlfn.XLOOKUP(A128,DATA[Code de produit],DATA[Format],"") -> 360G | F128: =_xlfn.XLOOKUP(A128,DATA[Code de produit],DATA[Sélection],"") -> CS | G128: =_xlfn.XLOOKUP(A128,DATA[Code de produit],DATA[EMB.],"") -> 6 | H128: =_xlfn.XLOOKUP(A128,DATA[Code de produit],DATA[B],"") -> 0 | I128: =_xlfn.XLOOKUP(A128,DATA[Code de produit],DATA[C],"") -> O | J128: =_xlfn.XLOOKUP(A128,DATA[Code de produit],DATA[V],"") -> 0 | K128: =_xlfn.XLOOKUP(A128,DATA[Code de produit],DATA[SG],"") -> 0 | L128: =_xlfn.XLOOKUP(A128,DATA[Code de produit],DATA[SO],"") -> 0 | M128: =_xlfn.XLOOKUP(A128,DATA[Code de produit],DATA[H],"") -> 0 | N128: =_xlfn.XLOOKUP(A128,DATA[Code de produit],DATA[FC],"") -> 0 | O128: =_xlfn.XLOOKUP(A128,DATA[Code de produit],DATA[CC],"") -> 0 | P128: =_xlfn.XLOOKUP(A128,DATA[Code de produit],DATA[PC],"") -> 0 | Q128: =_xlfn.XLOOKUP(A128,DATA[Code de produit],DATA[Jours garantis],"") -> 72 | R128: =_xlfn.XLOOKUP(A128,DATA[Code de produit],DATA[Entreposage],"") -> SEC | S128: =_xlfn.XLOOKUP(A128,DATA[Code de produit],DATA[Prix],"") -> 47,70$ | T128: =_xlfn.XLOOKUP(A128,DATA[Code de produit],DATA[Promo mensuelle],"") -> 0 | U128: =_xlfn.XLOOKUP(A128,DATA[Code de produit],DATA[Rabais promo],"") -> 0 | V128: =_xlfn.XLOOKUP(A128,DATA[Code de produit],DATA[PDS],"") -> 11.89 | W128: =_xlfn.XLOOKUP(A128,DATA[Code de produit],DATA[Classement des produits],"") -> 6
A129: CHS0312 | C129: =_xlfn.XLOOKUP(A129,DATA[Code de produit],DATA[Description],"") -> Moulin géant sel rose de l'Himalaya | D129: =_xlfn.XLOOKUP(A129,DATA[Code de produit],DATA[CUP/unité],"") -> 670071002403 | E129: =_xlfn.XLOOKUP(A129,DATA[Code de produit],DATA[Format],"") -> 390G | F129: =_xlfn.XLOOKUP(A129,DATA[Code de produit],DATA[Sélection],"") -> CS | G129: =_xlfn.XLOOKUP(A129,DATA[Code de produit],DATA[EMB.],"") -> 6 | H129: =_xlfn.XLOOKUP(A129,DATA[Code de produit],DATA[B],"") -> 0 | I129: =_xlfn.XLOOKUP(A129,DATA[Code de produit],DATA[C],"") -> O | J129: =_xlfn.XLOOKUP(A129,DATA[Code de produit],DATA[V],"") -> 0 | K129: =_xlfn.XLOOKUP(A129,DATA[Code de produit],DATA[SG],"") -> 0 | L129: =_xlfn.XLOOKUP(A129,DATA[Code de produit],DATA[SO],"") -> 0 | M129: =_xlfn.XLOOKUP(A129,DATA[Code de produit],DATA[H],"") -> 0 | N129: =_xlfn.XLOOKUP(A129,DATA[Code de produit],DATA[FC],"") -> 0 | O129: =_xlfn.XLOOKUP(A129,DATA[Code de produit],DATA[CC],"") -> 0 | P129: =_xlfn.XLOOKUP(A129,DATA[Code de produit],DATA[PC],"") -> 0 | Q129: =_xlfn.XLOOKUP(A129,DATA[Code de produit],DATA[Jours garantis],"") -> 72 | R129: =_xlfn.XLOOKUP(A129,DATA[Code de produit],DATA[Entreposage],"") -> SEC | S129: =_xlfn.XLOOKUP(A129,DATA[Code de produit],DATA[Prix],"") -> 47,70$ | T129: =_xlfn.XLOOKUP(A129,DATA[Code de produit],DATA[Promo mensuelle],"") -> 0 | U129: =_xlfn.XLOOKUP(A129,DATA[Code de produit],DATA[Rabais promo],"") -> 0 | V129: =_xlfn.XLOOKUP(A129,DATA[Code de produit],DATA[PDS],"") -> 11.89 | W129: =_xlfn.XLOOKUP(A129,DATA[Code de produit],DATA[Classement des produits],"") -> 2
A130: Moulin avec recharge | C130: =_xlfn.XLOOKUP(A130,DATA[Code de produit],DATA[Description],"") ->  | D130: =_xlfn.XLOOKUP(A130,DATA[Code de produit],DATA[CUP/unité],"") ->  | E130: =_xlfn.XLOOKUP(A130,DATA[Code de produit],DATA[Format],"") ->  | F130: =_xlfn.XLOOKUP(A130,DATA[Code de produit],DATA[Sélection],"") ->  | G130: =_xlfn.XLOOKUP(A130,DATA[Code de produit],DATA[EMB.],"") ->  | H130: =_xlfn.XLOOKUP(A130,DATA[Code de produit],DATA[B],"") ->  | I130: =_xlfn.XLOOKUP(A130,DATA[Code de produit],DATA[C],"") ->  | J130: =_xlfn.XLOOKUP(A130,DATA[Code de produit],DATA[V],"") ->  | K130: =_xlfn.XLOOKUP(A130,DATA[Code de produit],DATA[SG],"") ->  | L130: =_xlfn.XLOOKUP(A130,DATA[Code de produit],DATA[SO],"") ->  | M130: =_xlfn.XLOOKUP(A130,DATA[Code de produit],DATA[H],"") ->  | N130: =_xlfn.XLOOKUP(A130,DATA[Code de produit],DATA[FC],"") ->  | O130: =_xlfn.XLOOKUP(A130,DATA[Code de produit],DATA[CC],"") ->  | P130: =_xlfn.XLOOKUP(A130,DATA[Code de produit],DATA[PC],"") ->  | Q130: =_xlfn.XLOOKUP(A130,DATA[Code de produit],DATA[Jours garantis],"") ->  | R130: =_xlfn.XLOOKUP(A130,DATA[Code de produit],DATA[Entreposage],"") ->  | S130: =_xlfn.XLOOKUP(A130,DATA[Code de produit],DATA[Prix],"") ->  | T130: =_xlfn.XLOOKUP(A130,DATA[Code de produit],DATA[Promo mensuelle],"") ->  | U130: =_xlfn.XLOOKUP(A130,DATA[Code de produit],DATA[Rabais promo],"") ->  | V130: =_xlfn.XLOOKUP(A130,DATA[Code de produit],DATA[PDS],"") ->  | W130: =_xlfn.XLOOKUP(A130,DATA[Code de produit],DATA[Classement des produits],"") -> 
A131: CHS8021 | C131: =_xlfn.XLOOKUP(A131,DATA[Code de produit],DATA[Description],"") -> Sel de mer avec moulin en céramique et recharge | D131: =_xlfn.XLOOKUP(A131,DATA[Code de produit],DATA[CUP/unité],"") -> 6006507008024 | E131: =_xlfn.XLOOKUP(A131,DATA[Code de produit],DATA[Format],"") -> 605G | F131: =_xlfn.XLOOKUP(A131,DATA[Code de produit],DATA[Sélection],"") -> CS | G131: =_xlfn.XLOOKUP(A131,DATA[Code de produit],DATA[EMB.],"") -> 6 | H131: =_xlfn.XLOOKUP(A131,DATA[Code de produit],DATA[B],"") -> 0 | I131: =_xlfn.XLOOKUP(A131,DATA[Code de produit],DATA[C],"") -> O | J131: =_xlfn.XLOOKUP(A131,DATA[Code de produit],DATA[V],"") -> 0 | K131: =_xlfn.XLOOKUP(A131,DATA[Code de produit],DATA[SG],"") -> 0 | L131: =_xlfn.XLOOKUP(A131,DATA[Code de produit],DATA[SO],"") -> O | M131: =_xlfn.XLOOKUP(A131,DATA[Code de produit],DATA[H],"") -> O | N131: =_xlfn.XLOOKUP(A131,DATA[Code de produit],DATA[FC],"") -> 0 | O131: =_xlfn.XLOOKUP(A131,DATA[Code de produit],DATA[CC],"") -> 0 | P131: =_xlfn.XLOOKUP(A131,DATA[Code de produit],DATA[PC],"") -> 0 | Q131: =_xlfn.XLOOKUP(A131,DATA[Code de produit],DATA[Jours garantis],"") -> 72 | R131: =_xlfn.XLOOKUP(A131,DATA[Code de produit],DATA[Entreposage],"") -> SEC | S131: =_xlfn.XLOOKUP(A131,DATA[Code de produit],DATA[Prix],"") -> 38,19$ | T131: =_xlfn.XLOOKUP(A131,DATA[Code de produit],DATA[Promo mensuelle],"") -> 0 | U131: =_xlfn.XLOOKUP(A131,DATA[Code de produit],DATA[Rabais promo],"") -> 0 | V131: =_xlfn.XLOOKUP(A131,DATA[Code de produit],DATA[PDS],"") -> 9.99 | W131: =_xlfn.XLOOKUP(A131,DATA[Code de produit],DATA[Classement des produits],"") -> 0
A132: CASA BONITA | C132: =_xlfn.XLOOKUP(A132,DATA[Code de produit],DATA[Description],"") ->  | D132: =_xlfn.XLOOKUP(A132,DATA[Code de produit],DATA[CUP/unité],"") ->  | E132: =_xlfn.XLOOKUP(A132,DATA[Code de produit],DATA[Format],"") ->  | F132: =_xlfn.XLOOKUP(A132,DATA[Code de produit],DATA[Sélection],"") ->  | G132: =_xlfn.XLOOKUP(A132,DATA[Code de produit],DATA[EMB.],"") ->  | H132: =_xlfn.XLOOKUP(A132,DATA[Code de produit],DATA[B],"") ->  | I132: =_xlfn.XLOOKUP(A132,DATA[Code de produit],DATA[C],"") ->  | J132: =_xlfn.XLOOKUP(A132,DATA[Code de produit],DATA[V],"") ->  | K132: =_xlfn.XLOOKUP(A132,DATA[Code de produit],DATA[SG],"") ->  | L132: =_xlfn.XLOOKUP(A132,DATA[Code de produit],DATA[SO],"") ->  | M132: =_xlfn.XLOOKUP(A132,DATA[Code de produit],DATA[H],"") ->  | N132: =_xlfn.XLOOKUP(A132,DATA[Code de produit],DATA[FC],"") ->  | O132: =_xlfn.XLOOKUP(A132,DATA[Code de produit],DATA[CC],"") ->  | P132: =_xlfn.XLOOKUP(A132,DATA[Code de produit],DATA[PC],"") ->  | Q132: =_xlfn.XLOOKUP(A132,DATA[Code de produit],DATA[Jours garantis],"") ->  | R132: =_xlfn.XLOOKUP(A132,DATA[Code de produit],DATA[Entreposage],"") ->  | S132: =_xlfn.XLOOKUP(A132,DATA[Code de produit],DATA[Prix],"") ->  | T132: =_xlfn.XLOOKUP(A132,DATA[Code de produit],DATA[Promo mensuelle],"") ->  | U132: =_xlfn.XLOOKUP(A132,DATA[Code de produit],DATA[Rabais promo],"") ->  | V132: =_xlfn.XLOOKUP(A132,DATA[Code de produit],DATA[PDS],"") ->  | W132: =_xlfn.XLOOKUP(A132,DATA[Code de produit],DATA[Classement des produits],"") -> 
A133: (blank) | C133: =_xlfn.XLOOKUP(A133,DATA[Code de produit],DATA[Description],"") ->  | D133: =_xlfn.XLOOKUP(A133,DATA[Code de produit],DATA[CUP/unité],"") ->  | E133: =_xlfn.XLOOKUP(A133,DATA[Code de produit],DATA[Format],"") ->  | F133: =_xlfn.XLOOKUP(A133,DATA[Code de produit],DATA[Sélection],"") ->  | G133: =_xlfn.XLOOKUP(A133,DATA[Code de produit],DATA[EMB.],"") ->  | H133: =_xlfn.XLOOKUP(A133,DATA[Code de produit],DATA[B],"") ->  | I133: =_xlfn.XLOOKUP(A133,DATA[Code de produit],DATA[C],"") ->  | J133: =_xlfn.XLOOKUP(A133,DATA[Code de produit],DATA[V],"") ->  | K133: =_xlfn.XLOOKUP(A133,DATA[Code de produit],DATA[SG],"") ->  | L133: =_xlfn.XLOOKUP(A133,DATA[Code de produit],DATA[SO],"") ->  | M133: =_xlfn.XLOOKUP(A133,DATA[Code de produit],DATA[H],"") ->  | N133: =_xlfn.XLOOKUP(A133,DATA[Code de produit],DATA[FC],"") ->  | O133: =_xlfn.XLOOKUP(A133,DATA[Code de produit],DATA[CC],"") ->  | P133: =_xlfn.XLOOKUP(A133,DATA[Code de produit],DATA[PC],"") ->  | Q133: =_xlfn.XLOOKUP(A133,DATA[Code de produit],DATA[Jours garantis],"") ->  | R133: =_xlfn.XLOOKUP(A133,DATA[Code de produit],DATA[Entreposage],"") ->  | S133: =_xlfn.XLOOKUP(A133,DATA[Code de produit],DATA[Prix],"") ->  | T133: =_xlfn.XLOOKUP(A133,DATA[Code de produit],DATA[Promo mensuelle],"") ->  | U133: =_xlfn.XLOOKUP(A133,DATA[Code de produit],DATA[Rabais promo],"") ->  | V133: =_xlfn.XLOOKUP(A133,DATA[Code de produit],DATA[PDS],"") ->  | W133: =_xlfn.XLOOKUP(A133,DATA[Code de produit],DATA[Classement des produits],"") -> 
A134: CAS0207 | C134: =_xlfn.XLOOKUP(A134,DATA[Code de produit],DATA[Description],"") -> Tortilla de maïs bleu de | D134: =_xlfn.XLOOKUP(A134,DATA[Code de produit],DATA[CUP/unité],"") -> 627843861065 | E134: =_xlfn.XLOOKUP(A134,DATA[Code de produit],DATA[Format],"") -> 250G | F134: =_xlfn.XLOOKUP(A134,DATA[Code de produit],DATA[Sélection],"") -> CS | G134: =_xlfn.XLOOKUP(A134,DATA[Code de produit],DATA[EMB.],"") -> 18 | H134: =_xlfn.XLOOKUP(A134,DATA[Code de produit],DATA[B],"") -> O | I134: =_xlfn.XLOOKUP(A134,DATA[Code de produit],DATA[C],"") -> 0 | J134: =_xlfn.XLOOKUP(A134,DATA[Code de produit],DATA[V],"") -> 0 | K134: =_xlfn.XLOOKUP(A134,DATA[Code de produit],DATA[SG],"") -> 0 | L134: =_xlfn.XLOOKUP(A134,DATA[Code de produit],DATA[SO],"") -> O | M134: =_xlfn.XLOOKUP(A134,DATA[Code de produit],DATA[H],"") -> 0 | N134: =_xlfn.XLOOKUP(A134,DATA[Code de produit],DATA[FC],"") -> 0 | O134: =_xlfn.XLOOKUP(A134,DATA[Code de produit],DATA[CC],"") -> O | P134: =_xlfn.XLOOKUP(A134,DATA[Code de produit],DATA[PC],"") -> O | Q134: =_xlfn.XLOOKUP(A134,DATA[Code de produit],DATA[Jours garantis],"") -> 54 | R134: =_xlfn.XLOOKUP(A134,DATA[Code de produit],DATA[Entreposage],"") -> SEC | S134: =_xlfn.XLOOKUP(A134,DATA[Code de produit],DATA[Prix],"") -> 68,60$ | T134: =_xlfn.XLOOKUP(A134,DATA[Code de produit],DATA[Promo mensuelle],"") -> 0 | U134: =_xlfn.XLOOKUP(A134,DATA[Code de produit],DATA[Rabais promo],"") -> 0 | V134: =_xlfn.XLOOKUP(A134,DATA[Code de produit],DATA[PDS],"") -> 5 | W134: =_xlfn.XLOOKUP(A134,DATA[Code de produit],DATA[Classement des produits],"") -> 0
A135: CAS0205 | C135: =_xlfn.XLOOKUP(A135,DATA[Code de produit],DATA[Description],"") -> Tortilla de maïs blanc Casa Bonita | D135: =_xlfn.XLOOKUP(A135,DATA[Code de produit],DATA[CUP/unité],"") -> 627843861041 | E135: =_xlfn.XLOOKUP(A135,DATA[Code de produit],DATA[Format],"") -> 450G | F135: =_xlfn.XLOOKUP(A135,DATA[Code de produit],DATA[Sélection],"") -> CS | G135: =_xlfn.XLOOKUP(A135,DATA[Code de produit],DATA[EMB.],"") -> 12 | H135: =_xlfn.XLOOKUP(A135,DATA[Code de produit],DATA[B],"") -> O | I135: =_xlfn.XLOOKUP(A135,DATA[Code de produit],DATA[C],"") -> 0 | J135: =_xlfn.XLOOKUP(A135,DATA[Code de produit],DATA[V],"") -> 0 | K135: =_xlfn.XLOOKUP(A135,DATA[Code de produit],DATA[SG],"") -> 0 | L135: =_xlfn.XLOOKUP(A135,DATA[Code de produit],DATA[SO],"") -> O | M135: =_xlfn.XLOOKUP(A135,DATA[Code de produit],DATA[H],"") -> 0 | N135: =_xlfn.XLOOKUP(A135,DATA[Code de produit],DATA[FC],"") -> 0 | O135: =_xlfn.XLOOKUP(A135,DATA[Code de produit],DATA[CC],"") -> O | P135: =_xlfn.XLOOKUP(A135,DATA[Code de produit],DATA[PC],"") -> O | Q135: =_xlfn.XLOOKUP(A135,DATA[Code de produit],DATA[Jours garantis],"") -> 54 | R135: =_xlfn.XLOOKUP(A135,DATA[Code de produit],DATA[Entreposage],"") -> SEC | S135: =_xlfn.XLOOKUP(A135,DATA[Code de produit],DATA[Prix],"") -> 46,04$ | T135: =_xlfn.XLOOKUP(A135,DATA[Code de produit],DATA[Promo mensuelle],"") -> 0 | U135: =_xlfn.XLOOKUP(A135,DATA[Code de produit],DATA[Rabais promo],"") -> 0 | V135: =_xlfn.XLOOKUP(A135,DATA[Code de produit],DATA[PDS],"") -> 5.29 | W135: =_xlfn.XLOOKUP(A135,DATA[Code de produit],DATA[Classement des produits],"") -> 0
A136: CAS0206 | C136: =_xlfn.XLOOKUP(A136,DATA[Code de produit],DATA[Description],"") -> Tortilla de maïs jaune | D136: =_xlfn.XLOOKUP(A136,DATA[Code de produit],DATA[CUP/unité],"") -> 627843861072 | E136: =_xlfn.XLOOKUP(A136,DATA[Code de produit],DATA[Format],"") -> 450G | F136: =_xlfn.XLOOKUP(A136,DATA[Code de produit],DATA[Sélection],"") -> CS | G136: =_xlfn.XLOOKUP(A136,DATA[Code de produit],DATA[EMB.],"") -> 12 | H136: =_xlfn.XLOOKUP(A136,DATA[Code de produit],DATA[B],"") -> O | I136: =_xlfn.XLOOKUP(A136,DATA[Code de produit],DATA[C],"") -> 0 | J136: =_xlfn.XLOOKUP(A136,DATA[Code de produit],DATA[V],"") -> 0 | K136: =_xlfn.XLOOKUP(A136,DATA[Code de produit],DATA[SG],"") -> 0 | L136: =_xlfn.XLOOKUP(A136,DATA[Code de produit],DATA[SO],"") -> O | M136: =_xlfn.XLOOKUP(A136,DATA[Code de produit],DATA[H],"") -> 0 | N136: =_xlfn.XLOOKUP(A136,DATA[Code de produit],DATA[FC],"") -> 0 | O136: =_xlfn.XLOOKUP(A136,DATA[Code de produit],DATA[CC],"") -> O | P136: =_xlfn.XLOOKUP(A136,DATA[Code de produit],DATA[PC],"") -> O | Q136: =_xlfn.XLOOKUP(A136,DATA[Code de produit],DATA[Jours garantis],"") -> 54 | R136: =_xlfn.XLOOKUP(A136,DATA[Code de produit],DATA[Entreposage],"") -> SEC | S136: =_xlfn.XLOOKUP(A136,DATA[Code de produit],DATA[Prix],"") -> 46,04$ | T136: =_xlfn.XLOOKUP(A136,DATA[Code de produit],DATA[Promo mensuelle],"") -> 0 | U136: =_xlfn.XLOOKUP(A136,DATA[Code de produit],DATA[Rabais promo],"") -> 0 | V136: =_xlfn.XLOOKUP(A136,DATA[Code de produit],DATA[PDS],"") -> 5.29 | W136: =_xlfn.XLOOKUP(A136,DATA[Code de produit],DATA[Classement des produits],"") -> 0
A137: Tajin | C137: =_xlfn.XLOOKUP(A137,DATA[Code de produit],DATA[Description],"") ->  | D137: =_xlfn.XLOOKUP(A137,DATA[Code de produit],DATA[CUP/unité],"") ->  | E137: =_xlfn.XLOOKUP(A137,DATA[Code de produit],DATA[Format],"") ->  | F137: =_xlfn.XLOOKUP(A137,DATA[Code de produit],DATA[Sélection],"") ->  | G137: =_xlfn.XLOOKUP(A137,DATA[Code de produit],DATA[EMB.],"") ->  | H137: =_xlfn.XLOOKUP(A137,DATA[Code de produit],DATA[B],"") ->  | I137: =_xlfn.XLOOKUP(A137,DATA[Code de produit],DATA[C],"") ->  | J137: =_xlfn.XLOOKUP(A137,DATA[Code de produit],DATA[V],"") ->  | K137: =_xlfn.XLOOKUP(A137,DATA[Code de produit],DATA[SG],"") ->  | L137: =_xlfn.XLOOKUP(A137,DATA[Code de produit],DATA[SO],"") ->  | M137: =_xlfn.XLOOKUP(A137,DATA[Code de produit],DATA[H],"") ->  | N137: =_xlfn.XLOOKUP(A137,DATA[Code de produit],DATA[FC],"") ->  | O137: =_xlfn.XLOOKUP(A137,DATA[Code de produit],DATA[CC],"") ->  | P137: =_xlfn.XLOOKUP(A137,DATA[Code de produit],DATA[PC],"") ->  | Q137: =_xlfn.XLOOKUP(A137,DATA[Code de produit],DATA[Jours garantis],"") ->  | R137: =_xlfn.XLOOKUP(A137,DATA[Code de produit],DATA[Entreposage],"") ->  | S137: =_xlfn.XLOOKUP(A137,DATA[Code de produit],DATA[Prix],"") ->  | T137: =_xlfn.XLOOKUP(A137,DATA[Code de produit],DATA[Promo mensuelle],"") ->  | U137: =_xlfn.XLOOKUP(A137,DATA[Code de produit],DATA[Rabais promo],"") ->  | V137: =_xlfn.XLOOKUP(A137,DATA[Code de produit],DATA[PDS],"") ->  | W137: =_xlfn.XLOOKUP(A137,DATA[Code de produit],DATA[Classement des produits],"") -> 
A138: CAS0301 | C138: =_xlfn.XLOOKUP(A138,DATA[Code de produit],DATA[Description],"") -> Tajin, Lime | D138: =_xlfn.XLOOKUP(A138,DATA[Code de produit],DATA[CUP/unité],"") -> 633148100013 | E138: =_xlfn.XLOOKUP(A138,DATA[Code de produit],DATA[Format],"") -> 142G | F138: =_xlfn.XLOOKUP(A138,DATA[Code de produit],DATA[Sélection],"") -> CS | G138: =_xlfn.XLOOKUP(A138,DATA[Code de produit],DATA[EMB.],"") -> 12 | H138: =_xlfn.XLOOKUP(A138,DATA[Code de produit],DATA[B],"") -> 0 | I138: =_xlfn.XLOOKUP(A138,DATA[Code de produit],DATA[C],"") -> O | J138: =_xlfn.XLOOKUP(A138,DATA[Code de produit],DATA[V],"") -> O | K138: =_xlfn.XLOOKUP(A138,DATA[Code de produit],DATA[SG],"") -> 0 | L138: =_xlfn.XLOOKUP(A138,DATA[Code de produit],DATA[SO],"") -> 0 | M138: =_xlfn.XLOOKUP(A138,DATA[Code de produit],DATA[H],"") -> 0 | N138: =_xlfn.XLOOKUP(A138,DATA[Code de produit],DATA[FC],"") -> 0 | O138: =_xlfn.XLOOKUP(A138,DATA[Code de produit],DATA[CC],"") -> O | P138: =_xlfn.XLOOKUP(A138,DATA[Code de produit],DATA[PC],"") -> 0 | Q138: =_xlfn.XLOOKUP(A138,DATA[Code de produit],DATA[Jours garantis],"") -> 168 | R138: =_xlfn.XLOOKUP(A138,DATA[Code de produit],DATA[Entreposage],"") -> SEC | S138: =_xlfn.XLOOKUP(A138,DATA[Code de produit],DATA[Prix],"") -> 65,00$ | T138: =_xlfn.XLOOKUP(A138,DATA[Code de produit],DATA[Promo mensuelle],"") -> 0 | U138: =_xlfn.XLOOKUP(A138,DATA[Code de produit],DATA[Rabais promo],"") -> 0 | V138: =_xlfn.XLOOKUP(A138,DATA[Code de produit],DATA[PDS],"") -> 5.99 | W138: =_xlfn.XLOOKUP(A138,DATA[Code de produit],DATA[Classement des produits],"") -> 2
A139: CAS0504 | C139: =_xlfn.XLOOKUP(A139,DATA[Code de produit],DATA[Description],"") -> Tajin Liquide Chamoy | D139: =_xlfn.XLOOKUP(A139,DATA[Code de produit],DATA[CUP/unité],"") -> 633148104028 | E139: =_xlfn.XLOOKUP(A139,DATA[Code de produit],DATA[Format],"") -> 455ML | F139: =_xlfn.XLOOKUP(A139,DATA[Code de produit],DATA[Sélection],"") -> CS | G139: =_xlfn.XLOOKUP(A139,DATA[Code de produit],DATA[EMB.],"") -> 12 | H139: =_xlfn.XLOOKUP(A139,DATA[Code de produit],DATA[B],"") -> 0 | I139: =_xlfn.XLOOKUP(A139,DATA[Code de produit],DATA[C],"") -> O | J139: =_xlfn.XLOOKUP(A139,DATA[Code de produit],DATA[V],"") -> O | K139: =_xlfn.XLOOKUP(A139,DATA[Code de produit],DATA[SG],"") -> 0 | L139: =_xlfn.XLOOKUP(A139,DATA[Code de produit],DATA[SO],"") -> 0 | M139: =_xlfn.XLOOKUP(A139,DATA[Code de produit],DATA[H],"") -> 0 | N139: =_xlfn.XLOOKUP(A139,DATA[Code de produit],DATA[FC],"") -> 0 | O139: =_xlfn.XLOOKUP(A139,DATA[Code de produit],DATA[CC],"") -> O | P139: =_xlfn.XLOOKUP(A139,DATA[Code de produit],DATA[PC],"") -> 0 | Q139: =_xlfn.XLOOKUP(A139,DATA[Code de produit],DATA[Jours garantis],"") -> 108 | R139: =_xlfn.XLOOKUP(A139,DATA[Code de produit],DATA[Entreposage],"") -> SEC | S139: =_xlfn.XLOOKUP(A139,DATA[Code de produit],DATA[Prix],"") -> 79,12$ | T139: =_xlfn.XLOOKUP(A139,DATA[Code de produit],DATA[Promo mensuelle],"") -> 0 | U139: =_xlfn.XLOOKUP(A139,DATA[Code de produit],DATA[Rabais promo],"") -> 0 | V139: =_xlfn.XLOOKUP(A139,DATA[Code de produit],DATA[PDS],"") -> 7.29 | W139: =_xlfn.XLOOKUP(A139,DATA[Code de produit],DATA[Classement des produits],"") -> 9
A140: CAS0503 | C140: =_xlfn.XLOOKUP(A140,DATA[Code de produit],DATA[Description],"") -> Tajin Liquide Classique | D140: =_xlfn.XLOOKUP(A140,DATA[Code de produit],DATA[CUP/unité],"") -> 633148104035 | E140: =_xlfn.XLOOKUP(A140,DATA[Code de produit],DATA[Format],"") -> 455ML | F140: =_xlfn.XLOOKUP(A140,DATA[Code de produit],DATA[Sélection],"") -> CS | G140: =_xlfn.XLOOKUP(A140,DATA[Code de produit],DATA[EMB.],"") -> 12 | H140: =_xlfn.XLOOKUP(A140,DATA[Code de produit],DATA[B],"") -> 0 | I140: =_xlfn.XLOOKUP(A140,DATA[Code de produit],DATA[C],"") -> O | J140: =_xlfn.XLOOKUP(A140,DATA[Code de produit],DATA[V],"") -> O | K140: =_xlfn.XLOOKUP(A140,DATA[Code de produit],DATA[SG],"") -> 0 | L140: =_xlfn.XLOOKUP(A140,DATA[Code de produit],DATA[SO],"") -> 0 | M140: =_xlfn.XLOOKUP(A140,DATA[Code de produit],DATA[H],"") -> 0 | N140: =_xlfn.XLOOKUP(A140,DATA[Code de produit],DATA[FC],"") -> 0 | O140: =_xlfn.XLOOKUP(A140,DATA[Code de produit],DATA[CC],"") -> O | P140: =_xlfn.XLOOKUP(A140,DATA[Code de produit],DATA[PC],"") -> 0 | Q140: =_xlfn.XLOOKUP(A140,DATA[Code de produit],DATA[Jours garantis],"") -> 108 | R140: =_xlfn.XLOOKUP(A140,DATA[Code de produit],DATA[Entreposage],"") -> SEC | S140: =_xlfn.XLOOKUP(A140,DATA[Code de produit],DATA[Prix],"") -> 79,12$ | T140: =_xlfn.XLOOKUP(A140,DATA[Code de produit],DATA[Promo mensuelle],"") -> 0 | U140: =_xlfn.XLOOKUP(A140,DATA[Code de produit],DATA[Rabais promo],"") -> 0 | V140: =_xlfn.XLOOKUP(A140,DATA[Code de produit],DATA[PDS],"") -> 7.29 | W140: =_xlfn.XLOOKUP(A140,DATA[Code de produit],DATA[Classement des produits],"") -> 10
A141: CAS0302 | C141: =_xlfn.XLOOKUP(A141,DATA[Code de produit],DATA[Description],"") -> Tajin, Habenero | D141: =_xlfn.XLOOKUP(A141,DATA[Code de produit],DATA[CUP/unité],"") -> 633148104547 | E141: =_xlfn.XLOOKUP(A141,DATA[Code de produit],DATA[Format],"") -> 45G | F141: =_xlfn.XLOOKUP(A141,DATA[Code de produit],DATA[Sélection],"") -> CS | G141: =_xlfn.XLOOKUP(A141,DATA[Code de produit],DATA[EMB.],"") -> 24 | H141: =_xlfn.XLOOKUP(A141,DATA[Code de produit],DATA[B],"") -> 0 | I141: =_xlfn.XLOOKUP(A141,DATA[Code de produit],DATA[C],"") -> O | J141: =_xlfn.XLOOKUP(A141,DATA[Code de produit],DATA[V],"") -> O | K141: =_xlfn.XLOOKUP(A141,DATA[Code de produit],DATA[SG],"") -> 0 | L141: =_xlfn.XLOOKUP(A141,DATA[Code de produit],DATA[SO],"") -> 0 | M141: =_xlfn.XLOOKUP(A141,DATA[Code de produit],DATA[H],"") -> 0 | N141: =_xlfn.XLOOKUP(A141,DATA[Code de produit],DATA[FC],"") -> 0 | O141: =_xlfn.XLOOKUP(A141,DATA[Code de produit],DATA[CC],"") -> O | P141: =_xlfn.XLOOKUP(A141,DATA[Code de produit],DATA[PC],"") -> 0 | Q141: =_xlfn.XLOOKUP(A141,DATA[Code de produit],DATA[Jours garantis],"") -> 168 | R141: =_xlfn.XLOOKUP(A141,DATA[Code de produit],DATA[Entreposage],"") -> SEC | S141: =_xlfn.XLOOKUP(A141,DATA[Code de produit],DATA[Prix],"") -> 124,60$ | T141: =_xlfn.XLOOKUP(A141,DATA[Code de produit],DATA[Promo mensuelle],"") -> 0 | U141: =_xlfn.XLOOKUP(A141,DATA[Code de produit],DATA[Rabais promo],"") -> 0 | V141: =_xlfn.XLOOKUP(A141,DATA[Code de produit],DATA[PDS],"") -> 5.69 | W141: =_xlfn.XLOOKUP(A141,DATA[Code de produit],DATA[Classement des produits],"") -> 11
A142: Tortillas souples | C142: =_xlfn.XLOOKUP(A142,DATA[Code de produit],DATA[Description],"") ->  | D142: =_xlfn.XLOOKUP(A142,DATA[Code de produit],DATA[CUP/unité],"") ->  | E142: =_xlfn.XLOOKUP(A142,DATA[Code de produit],DATA[Format],"") ->  | F142: =_xlfn.XLOOKUP(A142,DATA[Code de produit],DATA[Sélection],"") ->  | G142: =_xlfn.XLOOKUP(A142,DATA[Code de produit],DATA[EMB.],"") ->  | H142: =_xlfn.XLOOKUP(A142,DATA[Code de produit],DATA[B],"") ->  | I142: =_xlfn.XLOOKUP(A142,DATA[Code de produit],DATA[C],"") ->  | J142: =_xlfn.XLOOKUP(A142,DATA[Code de produit],DATA[V],"") ->  | K142: =_xlfn.XLOOKUP(A142,DATA[Code de produit],DATA[SG],"") ->  | L142: =_xlfn.XLOOKUP(A142,DATA[Code de produit],DATA[SO],"") ->  | M142: =_xlfn.XLOOKUP(A142,DATA[Code de produit],DATA[H],"") ->  | N142: =_xlfn.XLOOKUP(A142,DATA[Code de produit],DATA[FC],"") ->  | O142: =_xlfn.XLOOKUP(A142,DATA[Code de produit],DATA[CC],"") ->  | P142: =_xlfn.XLOOKUP(A142,DATA[Code de produit],DATA[PC],"") ->  | Q142: =_xlfn.XLOOKUP(A142,DATA[Code de produit],DATA[Jours garantis],"") ->  | R142: =_xlfn.XLOOKUP(A142,DATA[Code de produit],DATA[Entreposage],"") ->  | S142: =_xlfn.XLOOKUP(A142,DATA[Code de produit],DATA[Prix],"") ->  | T142: =_xlfn.XLOOKUP(A142,DATA[Code de produit],DATA[Promo mensuelle],"") ->  | U142: =_xlfn.XLOOKUP(A142,DATA[Code de produit],DATA[Rabais promo],"") ->  | V142: =_xlfn.XLOOKUP(A142,DATA[Code de produit],DATA[PDS],"") ->  | W142: =_xlfn.XLOOKUP(A142,DATA[Code de produit],DATA[Classement des produits],"") -> 
A143: CAS0204 | C143: =_xlfn.XLOOKUP(A143,DATA[Code de produit],DATA[Description],"") -> Tortillas souples au maïs bleu | D143: =_xlfn.XLOOKUP(A143,DATA[Code de produit],DATA[CUP/unité],"") -> 627843861065 | E143: =_xlfn.XLOOKUP(A143,DATA[Code de produit],DATA[Format],"") -> 250G | F143: =_xlfn.XLOOKUP(A143,DATA[Code de produit],DATA[Sélection],"") -> CS | G143: =_xlfn.XLOOKUP(A143,DATA[Code de produit],DATA[EMB.],"") -> 18 | H143: =_xlfn.XLOOKUP(A143,DATA[Code de produit],DATA[B],"") -> 0 | I143: =_xlfn.XLOOKUP(A143,DATA[Code de produit],DATA[C],"") -> 0 | J143: =_xlfn.XLOOKUP(A143,DATA[Code de produit],DATA[V],"") -> O | K143: =_xlfn.XLOOKUP(A143,DATA[Code de produit],DATA[SG],"") -> 0 | L143: =_xlfn.XLOOKUP(A143,DATA[Code de produit],DATA[SO],"") -> 0 | M143: =_xlfn.XLOOKUP(A143,DATA[Code de produit],DATA[H],"") -> 0 | N143: =_xlfn.XLOOKUP(A143,DATA[Code de produit],DATA[FC],"") -> O | O143: =_xlfn.XLOOKUP(A143,DATA[Code de produit],DATA[CC],"") -> O | P143: =_xlfn.XLOOKUP(A143,DATA[Code de produit],DATA[PC],"") -> O | Q143: =_xlfn.XLOOKUP(A143,DATA[Code de produit],DATA[Jours garantis],"") -> 55 | R143: =_xlfn.XLOOKUP(A143,DATA[Code de produit],DATA[Entreposage],"") -> SEC | S143: =_xlfn.XLOOKUP(A143,DATA[Code de produit],DATA[Prix],"") -> 68,39$ | T143: =_xlfn.XLOOKUP(A143,DATA[Code de produit],DATA[Promo mensuelle],"") -> 0 | U143: =_xlfn.XLOOKUP(A143,DATA[Code de produit],DATA[Rabais promo],"") -> 0 | V143: =_xlfn.XLOOKUP(A143,DATA[Code de produit],DATA[PDS],"") -> 5.29 | W143: =_xlfn.XLOOKUP(A143,DATA[Code de produit],DATA[Classement des produits],"") -> 7
A144: CAS0202 | C144: =_xlfn.XLOOKUP(A144,DATA[Code de produit],DATA[Description],"") -> Tortillas souples au maïs blanc | D144: =_xlfn.XLOOKUP(A144,DATA[Code de produit],DATA[CUP/unité],"") -> 627843861041 | E144: =_xlfn.XLOOKUP(A144,DATA[Code de produit],DATA[Format],"") -> 450G | F144: =_xlfn.XLOOKUP(A144,DATA[Code de produit],DATA[Sélection],"") -> CS | G144: =_xlfn.XLOOKUP(A144,DATA[Code de produit],DATA[EMB.],"") -> 18 | H144: =_xlfn.XLOOKUP(A144,DATA[Code de produit],DATA[B],"") -> 0 | I144: =_xlfn.XLOOKUP(A144,DATA[Code de produit],DATA[C],"") -> 0 | J144: =_xlfn.XLOOKUP(A144,DATA[Code de produit],DATA[V],"") -> O | K144: =_xlfn.XLOOKUP(A144,DATA[Code de produit],DATA[SG],"") -> 0 | L144: =_xlfn.XLOOKUP(A144,DATA[Code de produit],DATA[SO],"") -> 0 | M144: =_xlfn.XLOOKUP(A144,DATA[Code de produit],DATA[H],"") -> 0 | N144: =_xlfn.XLOOKUP(A144,DATA[Code de produit],DATA[FC],"") -> O | O144: =_xlfn.XLOOKUP(A144,DATA[Code de produit],DATA[CC],"") -> O | P144: =_xlfn.XLOOKUP(A144,DATA[Code de produit],DATA[PC],"") -> O | Q144: =_xlfn.XLOOKUP(A144,DATA[Code de produit],DATA[Jours garantis],"") -> 55 | R144: =_xlfn.XLOOKUP(A144,DATA[Code de produit],DATA[Entreposage],"") -> SEC | S144: =_xlfn.XLOOKUP(A144,DATA[Code de produit],DATA[Prix],"") -> 68,39$ | T144: =_xlfn.XLOOKUP(A144,DATA[Code de produit],DATA[Promo mensuelle],"") -> 0 | U144: =_xlfn.XLOOKUP(A144,DATA[Code de produit],DATA[Rabais promo],"") -> 0 | V144: =_xlfn.XLOOKUP(A144,DATA[Code de produit],DATA[PDS],"") -> 5.29 | W144: =_xlfn.XLOOKUP(A144,DATA[Code de produit],DATA[Classement des produits],"") -> 5
A145: CAS0203 | C145: =_xlfn.XLOOKUP(A145,DATA[Code de produit],DATA[Description],"") -> Tortillas souples au maïs jaune | D145: =_xlfn.XLOOKUP(A145,DATA[Code de produit],DATA[CUP/unité],"") -> 627843861072 | E145: =_xlfn.XLOOKUP(A145,DATA[Code de produit],DATA[Format],"") -> 450G | F145: =_xlfn.XLOOKUP(A145,DATA[Code de produit],DATA[Sélection],"") -> CS | G145: =_xlfn.XLOOKUP(A145,DATA[Code de produit],DATA[EMB.],"") -> 18 | H145: =_xlfn.XLOOKUP(A145,DATA[Code de produit],DATA[B],"") -> 0 | I145: =_xlfn.XLOOKUP(A145,DATA[Code de produit],DATA[C],"") -> 0 | J145: =_xlfn.XLOOKUP(A145,DATA[Code de produit],DATA[V],"") -> O | K145: =_xlfn.XLOOKUP(A145,DATA[Code de produit],DATA[SG],"") -> 0 | L145: =_xlfn.XLOOKUP(A145,DATA[Code de produit],DATA[SO],"") -> 0 | M145: =_xlfn.XLOOKUP(A145,DATA[Code de produit],DATA[H],"") -> 0 | N145: =_xlfn.XLOOKUP(A145,DATA[Code de produit],DATA[FC],"") -> O | O145: =_xlfn.XLOOKUP(A145,DATA[Code de produit],DATA[CC],"") -> O | P145: =_xlfn.XLOOKUP(A145,DATA[Code de produit],DATA[PC],"") -> O | Q145: =_xlfn.XLOOKUP(A145,DATA[Code de produit],DATA[Jours garantis],"") -> 55 | R145: =_xlfn.XLOOKUP(A145,DATA[Code de produit],DATA[Entreposage],"") -> SEC | S145: =_xlfn.XLOOKUP(A145,DATA[Code de produit],DATA[Prix],"") -> 68,39$ | T145: =_xlfn.XLOOKUP(A145,DATA[Code de produit],DATA[Promo mensuelle],"") -> 0 | U145: =_xlfn.XLOOKUP(A145,DATA[Code de produit],DATA[Rabais promo],"") -> 0 | V145: =_xlfn.XLOOKUP(A145,DATA[Code de produit],DATA[PDS],"") -> 5.29 | W145: =_xlfn.XLOOKUP(A145,DATA[Code de produit],DATA[Classement des produits],"") -> 4
A146: Croustilles de maïs | C146: =_xlfn.XLOOKUP(A146,DATA[Code de produit],DATA[Description],"") ->  | D146: =_xlfn.XLOOKUP(A146,DATA[Code de produit],DATA[CUP/unité],"") ->  | E146: =_xlfn.XLOOKUP(A146,DATA[Code de produit],DATA[Format],"") ->  | F146: =_xlfn.XLOOKUP(A146,DATA[Code de produit],DATA[Sélection],"") ->  | G146: =_xlfn.XLOOKUP(A146,DATA[Code de produit],DATA[EMB.],"") ->  | H146: =_xlfn.XLOOKUP(A146,DATA[Code de produit],DATA[B],"") ->  | I146: =_xlfn.XLOOKUP(A146,DATA[Code de produit],DATA[C],"") ->  | J146: =_xlfn.XLOOKUP(A146,DATA[Code de produit],DATA[V],"") ->  | K146: =_xlfn.XLOOKUP(A146,DATA[Code de produit],DATA[SG],"") ->  | L146: =_xlfn.XLOOKUP(A146,DATA[Code de produit],DATA[SO],"") ->  | M146: =_xlfn.XLOOKUP(A146,DATA[Code de produit],DATA[H],"") ->  | N146: =_xlfn.XLOOKUP(A146,DATA[Code de produit],DATA[FC],"") ->  | O146: =_xlfn.XLOOKUP(A146,DATA[Code de produit],DATA[CC],"") ->  | P146: =_xlfn.XLOOKUP(A146,DATA[Code de produit],DATA[PC],"") ->  | Q146: =_xlfn.XLOOKUP(A146,DATA[Code de produit],DATA[Jours garantis],"") ->  | R146: =_xlfn.XLOOKUP(A146,DATA[Code de produit],DATA[Entreposage],"") ->  | S146: =_xlfn.XLOOKUP(A146,DATA[Code de produit],DATA[Prix],"") ->  | T146: =_xlfn.XLOOKUP(A146,DATA[Code de produit],DATA[Promo mensuelle],"") ->  | U146: =_xlfn.XLOOKUP(A146,DATA[Code de produit],DATA[Rabais promo],"") ->  | V146: =_xlfn.XLOOKUP(A146,DATA[Code de produit],DATA[PDS],"") ->  | W146: =_xlfn.XLOOKUP(A146,DATA[Code de produit],DATA[Classement des produits],"") -> 
A147: CAS0104 | C147: =_xlfn.XLOOKUP(A147,DATA[Code de produit],DATA[Description],"") -> Croustille au chipotle fumé | D147: =_xlfn.XLOOKUP(A147,DATA[Code de produit],DATA[CUP/unité],"") -> 627843861089 | E147: =_xlfn.XLOOKUP(A147,DATA[Code de produit],DATA[Format],"") -> 300G | F147: =_xlfn.XLOOKUP(A147,DATA[Code de produit],DATA[Sélection],"") -> CS | G147: =_xlfn.XLOOKUP(A147,DATA[Code de produit],DATA[EMB.],"") -> 6 | H147: =_xlfn.XLOOKUP(A147,DATA[Code de produit],DATA[B],"") -> 0 | I147: =_xlfn.XLOOKUP(A147,DATA[Code de produit],DATA[C],"") -> 0 | J147: =_xlfn.XLOOKUP(A147,DATA[Code de produit],DATA[V],"") -> 0 | K147: =_xlfn.XLOOKUP(A147,DATA[Code de produit],DATA[SG],"") -> 0 | L147: =_xlfn.XLOOKUP(A147,DATA[Code de produit],DATA[SO],"") -> 0 | M147: =_xlfn.XLOOKUP(A147,DATA[Code de produit],DATA[H],"") -> 0 | N147: =_xlfn.XLOOKUP(A147,DATA[Code de produit],DATA[FC],"") -> 0 | O147: =_xlfn.XLOOKUP(A147,DATA[Code de produit],DATA[CC],"") -> O | P147: =_xlfn.XLOOKUP(A147,DATA[Code de produit],DATA[PC],"") -> 0 | Q147: =_xlfn.XLOOKUP(A147,DATA[Code de produit],DATA[Jours garantis],"") -> 55 | R147: =_xlfn.XLOOKUP(A147,DATA[Code de produit],DATA[Entreposage],"") -> SEC | S147: =_xlfn.XLOOKUP(A147,DATA[Code de produit],DATA[Prix],"") -> 26,57$ | T147: =_xlfn.XLOOKUP(A147,DATA[Code de produit],DATA[Promo mensuelle],"") -> 0 | U147: =_xlfn.XLOOKUP(A147,DATA[Code de produit],DATA[Rabais promo],"") -> 0 | V147: =_xlfn.XLOOKUP(A147,DATA[Code de produit],DATA[PDS],"") -> 6.29 | W147: =_xlfn.XLOOKUP(A147,DATA[Code de produit],DATA[Classement des produits],"") -> 8
A148: CAS0103 | C148: =_xlfn.XLOOKUP(A148,DATA[Code de produit],DATA[Description],"") -> Croustilles de tortilla avec Tajin | D148: =_xlfn.XLOOKUP(A148,DATA[Code de produit],DATA[CUP/unité],"") -> 627843861096 | E148: =_xlfn.XLOOKUP(A148,DATA[Code de produit],DATA[Format],"") -> 300G | F148: =_xlfn.XLOOKUP(A148,DATA[Code de produit],DATA[Sélection],"") -> CS | G148: =_xlfn.XLOOKUP(A148,DATA[Code de produit],DATA[EMB.],"") -> 6 | H148: =_xlfn.XLOOKUP(A148,DATA[Code de produit],DATA[B],"") -> 0 | I148: =_xlfn.XLOOKUP(A148,DATA[Code de produit],DATA[C],"") -> 0 | J148: =_xlfn.XLOOKUP(A148,DATA[Code de produit],DATA[V],"") -> O | K148: =_xlfn.XLOOKUP(A148,DATA[Code de produit],DATA[SG],"") -> 0 | L148: =_xlfn.XLOOKUP(A148,DATA[Code de produit],DATA[SO],"") -> 0 | M148: =_xlfn.XLOOKUP(A148,DATA[Code de produit],DATA[H],"") -> 0 | N148: =_xlfn.XLOOKUP(A148,DATA[Code de produit],DATA[FC],"") -> O | O148: =_xlfn.XLOOKUP(A148,DATA[Code de produit],DATA[CC],"") -> O | P148: =_xlfn.XLOOKUP(A148,DATA[Code de produit],DATA[PC],"") -> O | Q148: =_xlfn.XLOOKUP(A148,DATA[Code de produit],DATA[Jours garantis],"") -> 55 | R148: =_xlfn.XLOOKUP(A148,DATA[Code de produit],DATA[Entreposage],"") -> SEC | S148: =_xlfn.XLOOKUP(A148,DATA[Code de produit],DATA[Prix],"") -> 26,57$ | T148: =_xlfn.XLOOKUP(A148,DATA[Code de produit],DATA[Promo mensuelle],"") -> 0 | U148: =_xlfn.XLOOKUP(A148,DATA[Code de produit],DATA[Rabais promo],"") -> 0 | V148: =_xlfn.XLOOKUP(A148,DATA[Code de produit],DATA[PDS],"") -> 6.29 | W148: =_xlfn.XLOOKUP(A148,DATA[Code de produit],DATA[Classement des produits],"") -> 3
A149: CAS0101 | C149: =_xlfn.XLOOKUP(A149,DATA[Code de produit],DATA[Description],"") -> Tortillas de maïs style Cantina | D149: =_xlfn.XLOOKUP(A149,DATA[Code de produit],DATA[CUP/unité],"") -> 627843861058 | E149: =_xlfn.XLOOKUP(A149,DATA[Code de produit],DATA[Format],"") -> 300G | F149: =_xlfn.XLOOKUP(A149,DATA[Code de produit],DATA[Sélection],"") -> CS | G149: =_xlfn.XLOOKUP(A149,DATA[Code de produit],DATA[EMB.],"") -> 6 | H149: =_xlfn.XLOOKUP(A149,DATA[Code de produit],DATA[B],"") -> O | I149: =_xlfn.XLOOKUP(A149,DATA[Code de produit],DATA[C],"") -> 0 | J149: =_xlfn.XLOOKUP(A149,DATA[Code de produit],DATA[V],"") -> O | K149: =_xlfn.XLOOKUP(A149,DATA[Code de produit],DATA[SG],"") -> O | L149: =_xlfn.XLOOKUP(A149,DATA[Code de produit],DATA[SO],"") -> 0 | M149: =_xlfn.XLOOKUP(A149,DATA[Code de produit],DATA[H],"") -> 0 | N149: =_xlfn.XLOOKUP(A149,DATA[Code de produit],DATA[FC],"") -> O | O149: =_xlfn.XLOOKUP(A149,DATA[Code de produit],DATA[CC],"") -> O | P149: =_xlfn.XLOOKUP(A149,DATA[Code de produit],DATA[PC],"") -> O | Q149: =_xlfn.XLOOKUP(A149,DATA[Code de produit],DATA[Jours garantis],"") -> 55 | R149: =_xlfn.XLOOKUP(A149,DATA[Code de produit],DATA[Entreposage],"") -> SEC | S149: =_xlfn.XLOOKUP(A149,DATA[Code de produit],DATA[Prix],"") -> 23,57$ | T149: =_xlfn.XLOOKUP(A149,DATA[Code de produit],DATA[Promo mensuelle],"") -> 0 | U149: =_xlfn.XLOOKUP(A149,DATA[Code de produit],DATA[Rabais promo],"") -> 0 | V149: =_xlfn.XLOOKUP(A149,DATA[Code de produit],DATA[PDS],"") -> 5.29 | W149: =_xlfn.XLOOKUP(A149,DATA[Code de produit],DATA[Classement des produits],"") -> 1
A150: Salsa | C150: =_xlfn.XLOOKUP(A150,DATA[Code de produit],DATA[Description],"") ->  | D150: =_xlfn.XLOOKUP(A150,DATA[Code de produit],DATA[CUP/unité],"") ->  | E150: =_xlfn.XLOOKUP(A150,DATA[Code de produit],DATA[Format],"") ->  | F150: =_xlfn.XLOOKUP(A150,DATA[Code de produit],DATA[Sélection],"") ->  | G150: =_xlfn.XLOOKUP(A150,DATA[Code de produit],DATA[EMB.],"") ->  | H150: =_xlfn.XLOOKUP(A150,DATA[Code de produit],DATA[B],"") ->  | I150: =_xlfn.XLOOKUP(A150,DATA[Code de produit],DATA[C],"") ->  | J150: =_xlfn.XLOOKUP(A150,DATA[Code de produit],DATA[V],"") ->  | K150: =_xlfn.XLOOKUP(A150,DATA[Code de produit],DATA[SG],"") ->  | L150: =_xlfn.XLOOKUP(A150,DATA[Code de produit],DATA[SO],"") ->  | M150: =_xlfn.XLOOKUP(A150,DATA[Code de produit],DATA[H],"") ->  | N150: =_xlfn.XLOOKUP(A150,DATA[Code de produit],DATA[FC],"") ->  | O150: =_xlfn.XLOOKUP(A150,DATA[Code de produit],DATA[CC],"") ->  | P150: =_xlfn.XLOOKUP(A150,DATA[Code de produit],DATA[PC],"") ->  | Q150: =_xlfn.XLOOKUP(A150,DATA[Code de produit],DATA[Jours garantis],"") ->  | R150: =_xlfn.XLOOKUP(A150,DATA[Code de produit],DATA[Entreposage],"") ->  | S150: =_xlfn.XLOOKUP(A150,DATA[Code de produit],DATA[Prix],"") ->  | T150: =_xlfn.XLOOKUP(A150,DATA[Code de produit],DATA[Promo mensuelle],"") ->  | U150: =_xlfn.XLOOKUP(A150,DATA[Code de produit],DATA[Rabais promo],"") ->  | V150: =_xlfn.XLOOKUP(A150,DATA[Code de produit],DATA[PDS],"") ->  | W150: =_xlfn.XLOOKUP(A150,DATA[Code de produit],DATA[Classement des produits],"") -> 
A151: CAS0403 | C151: =_xlfn.XLOOKUP(A151,DATA[Code de produit],DATA[Description],"") -> Salsa aux piments chipotles rôtis sur le feu | D151: =_xlfn.XLOOKUP(A151,DATA[Code de produit],DATA[CUP/unité],"") -> 627843861119 | E151: =_xlfn.XLOOKUP(A151,DATA[Code de produit],DATA[Format],"") -> 300ML | F151: =_xlfn.XLOOKUP(A151,DATA[Code de produit],DATA[Sélection],"") -> CS | G151: =_xlfn.XLOOKUP(A151,DATA[Code de produit],DATA[EMB.],"") -> 6 | H151: =_xlfn.XLOOKUP(A151,DATA[Code de produit],DATA[B],"") -> 0 | I151: =_xlfn.XLOOKUP(A151,DATA[Code de produit],DATA[C],"") -> 0 | J151: =_xlfn.XLOOKUP(A151,DATA[Code de produit],DATA[V],"") -> O | K151: =_xlfn.XLOOKUP(A151,DATA[Code de produit],DATA[SG],"") -> 0 | L151: =_xlfn.XLOOKUP(A151,DATA[Code de produit],DATA[SO],"") -> 0 | M151: =_xlfn.XLOOKUP(A151,DATA[Code de produit],DATA[H],"") -> 0 | N151: =_xlfn.XLOOKUP(A151,DATA[Code de produit],DATA[FC],"") -> 0 | O151: =_xlfn.XLOOKUP(A151,DATA[Code de produit],DATA[CC],"") -> O | P151: =_xlfn.XLOOKUP(A151,DATA[Code de produit],DATA[PC],"") -> 0 | Q151: =_xlfn.XLOOKUP(A151,DATA[Code de produit],DATA[Jours garantis],"") -> 216 | R151: =_xlfn.XLOOKUP(A151,DATA[Code de produit],DATA[Entreposage],"") -> SEC | S151: =_xlfn.XLOOKUP(A151,DATA[Code de produit],DATA[Prix],"") -> 25,90$ | T151: =_xlfn.XLOOKUP(A151,DATA[Code de produit],DATA[Promo mensuelle],"") -> 0 | U151: =_xlfn.XLOOKUP(A151,DATA[Code de produit],DATA[Rabais promo],"") -> 0 | V151: =_xlfn.XLOOKUP(A151,DATA[Code de produit],DATA[PDS],"") -> 5.99 | W151: =_xlfn.XLOOKUP(A151,DATA[Code de produit],DATA[Classement des produits],"") -> 12
A152: CAS0401 | C152: =_xlfn.XLOOKUP(A152,DATA[Code de produit],DATA[Description],"") -> Salsa aux piments habaneros rôtis sur le feu | D152: =_xlfn.XLOOKUP(A152,DATA[Code de produit],DATA[CUP/unité],"") -> 627843861126 | E152: =_xlfn.XLOOKUP(A152,DATA[Code de produit],DATA[Format],"") -> 300ML | F152: =_xlfn.XLOOKUP(A152,DATA[Code de produit],DATA[Sélection],"") -> CS | G152: =_xlfn.XLOOKUP(A152,DATA[Code de produit],DATA[EMB.],"") -> 6 | H152: =_xlfn.XLOOKUP(A152,DATA[Code de produit],DATA[B],"") -> 0 | I152: =_xlfn.XLOOKUP(A152,DATA[Code de produit],DATA[C],"") -> 0 | J152: =_xlfn.XLOOKUP(A152,DATA[Code de produit],DATA[V],"") -> O | K152: =_xlfn.XLOOKUP(A152,DATA[Code de produit],DATA[SG],"") -> 0 | L152: =_xlfn.XLOOKUP(A152,DATA[Code de produit],DATA[SO],"") -> 0 | M152: =_xlfn.XLOOKUP(A152,DATA[Code de produit],DATA[H],"") -> 0 | N152: =_xlfn.XLOOKUP(A152,DATA[Code de produit],DATA[FC],"") -> 0 | O152: =_xlfn.XLOOKUP(A152,DATA[Code de produit],DATA[CC],"") -> O | P152: =_xlfn.XLOOKUP(A152,DATA[Code de produit],DATA[PC],"") -> 0 | Q152: =_xlfn.XLOOKUP(A152,DATA[Code de produit],DATA[Jours garantis],"") -> 216 | R152: =_xlfn.XLOOKUP(A152,DATA[Code de produit],DATA[Entreposage],"") -> SEC | S152: =_xlfn.XLOOKUP(A152,DATA[Code de produit],DATA[Prix],"") -> 25,90$ | T152: =_xlfn.XLOOKUP(A152,DATA[Code de produit],DATA[Promo mensuelle],"") -> 0 | U152: =_xlfn.XLOOKUP(A152,DATA[Code de produit],DATA[Rabais promo],"") -> 0 | V152: =_xlfn.XLOOKUP(A152,DATA[Code de produit],DATA[PDS],"") -> 5.99 | W152: =_xlfn.XLOOKUP(A152,DATA[Code de produit],DATA[Classement des produits],"") -> 14
A153: CAS0402 | C153: =_xlfn.XLOOKUP(A153,DATA[Code de produit],DATA[Description],"") -> Salsa aux piments jalapenos rôtis sur le feu | D153: =_xlfn.XLOOKUP(A153,DATA[Code de produit],DATA[CUP/unité],"") -> 627843861133 | E153: =_xlfn.XLOOKUP(A153,DATA[Code de produit],DATA[Format],"") -> 300ML | F153: =_xlfn.XLOOKUP(A153,DATA[Code de produit],DATA[Sélection],"") -> CS | G153: =_xlfn.XLOOKUP(A153,DATA[Code de produit],DATA[EMB.],"") -> 6 | H153: =_xlfn.XLOOKUP(A153,DATA[Code de produit],DATA[B],"") -> 0 | I153: =_xlfn.XLOOKUP(A153,DATA[Code de produit],DATA[C],"") -> 0 | J153: =_xlfn.XLOOKUP(A153,DATA[Code de produit],DATA[V],"") -> O | K153: =_xlfn.XLOOKUP(A153,DATA[Code de produit],DATA[SG],"") -> 0 | L153: =_xlfn.XLOOKUP(A153,DATA[Code de produit],DATA[SO],"") -> 0 | M153: =_xlfn.XLOOKUP(A153,DATA[Code de produit],DATA[H],"") -> 0 | N153: =_xlfn.XLOOKUP(A153,DATA[Code de produit],DATA[FC],"") -> 0 | O153: =_xlfn.XLOOKUP(A153,DATA[Code de produit],DATA[CC],"") -> O | P153: =_xlfn.XLOOKUP(A153,DATA[Code de produit],DATA[PC],"") -> 0 | Q153: =_xlfn.XLOOKUP(A153,DATA[Code de produit],DATA[Jours garantis],"") -> 216 | R153: =_xlfn.XLOOKUP(A153,DATA[Code de produit],DATA[Entreposage],"") -> SEC | S153: =_xlfn.XLOOKUP(A153,DATA[Code de produit],DATA[Prix],"") -> 25,90$ | T153: =_xlfn.XLOOKUP(A153,DATA[Code de produit],DATA[Promo mensuelle],"") -> 0 | U153: =_xlfn.XLOOKUP(A153,DATA[Code de produit],DATA[Rabais promo],"") -> 0 | V153: =_xlfn.XLOOKUP(A153,DATA[Code de produit],DATA[PDS],"") -> 5.99 | W153: =_xlfn.XLOOKUP(A153,DATA[Code de produit],DATA[Classement des produits],"") -> 13
A154: CAS0107 | C154: =_xlfn.XLOOKUP(A154,DATA[Code de produit],DATA[Description],"") -> Salsa au fromage blanc et aux jalapeno | D154: =_xlfn.XLOOKUP(A154,DATA[Code de produit],DATA[CUP/unité],"") -> 628250868012 | E154: =_xlfn.XLOOKUP(A154,DATA[Code de produit],DATA[Format],"") -> 425G | F154: =_xlfn.XLOOKUP(A154,DATA[Code de produit],DATA[Sélection],"") -> CS | G154: =_xlfn.XLOOKUP(A154,DATA[Code de produit],DATA[EMB.],"") -> 6 | H154: =_xlfn.XLOOKUP(A154,DATA[Code de produit],DATA[B],"") -> 0 | I154: =_xlfn.XLOOKUP(A154,DATA[Code de produit],DATA[C],"") -> 0 | J154: =_xlfn.XLOOKUP(A154,DATA[Code de produit],DATA[V],"") -> 0 | K154: =_xlfn.XLOOKUP(A154,DATA[Code de produit],DATA[SG],"") -> O | L154: =_xlfn.XLOOKUP(A154,DATA[Code de produit],DATA[SO],"") -> 0 | M154: =_xlfn.XLOOKUP(A154,DATA[Code de produit],DATA[H],"") -> 0 | N154: =_xlfn.XLOOKUP(A154,DATA[Code de produit],DATA[FC],"") -> 0 | O154: =_xlfn.XLOOKUP(A154,DATA[Code de produit],DATA[CC],"") -> O | P154: =_xlfn.XLOOKUP(A154,DATA[Code de produit],DATA[PC],"") -> 0 | Q154: =_xlfn.XLOOKUP(A154,DATA[Code de produit],DATA[Jours garantis],"") -> 164 | R154: =_xlfn.XLOOKUP(A154,DATA[Code de produit],DATA[Entreposage],"") -> SEC | S154: =_xlfn.XLOOKUP(A154,DATA[Code de produit],DATA[Prix],"") -> 36,40$ | T154: =_xlfn.XLOOKUP(A154,DATA[Code de produit],DATA[Promo mensuelle],"") -> 0 | U154: =_xlfn.XLOOKUP(A154,DATA[Code de produit],DATA[Rabais promo],"") -> 0 | V154: =_xlfn.XLOOKUP(A154,DATA[Code de produit],DATA[PDS],"") -> 9.29 | W154: =_xlfn.XLOOKUP(A154,DATA[Code de produit],DATA[Classement des produits],"") -> 0
A155: CAS0106 | C155: =_xlfn.XLOOKUP(A155,DATA[Code de produit],DATA[Description],"") -> Salsa au fromage jaune et aux piments chipolte | D155: =_xlfn.XLOOKUP(A155,DATA[Code de produit],DATA[CUP/unité],"") -> 628250868005 | E155: =_xlfn.XLOOKUP(A155,DATA[Code de produit],DATA[Format],"") -> 425G | F155: =_xlfn.XLOOKUP(A155,DATA[Code de produit],DATA[Sélection],"") -> CS | G155: =_xlfn.XLOOKUP(A155,DATA[Code de produit],DATA[EMB.],"") -> 6 | H155: =_xlfn.XLOOKUP(A155,DATA[Code de produit],DATA[B],"") -> 0 | I155: =_xlfn.XLOOKUP(A155,DATA[Code de produit],DATA[C],"") -> 0 | J155: =_xlfn.XLOOKUP(A155,DATA[Code de produit],DATA[V],"") -> 0 | K155: =_xlfn.XLOOKUP(A155,DATA[Code de produit],DATA[SG],"") -> O | L155: =_xlfn.XLOOKUP(A155,DATA[Code de produit],DATA[SO],"") -> 0 | M155: =_xlfn.XLOOKUP(A155,DATA[Code de produit],DATA[H],"") -> 0 | N155: =_xlfn.XLOOKUP(A155,DATA[Code de produit],DATA[FC],"") -> 0 | O155: =_xlfn.XLOOKUP(A155,DATA[Code de produit],DATA[CC],"") -> O | P155: =_xlfn.XLOOKUP(A155,DATA[Code de produit],DATA[PC],"") -> 0 | Q155: =_xlfn.XLOOKUP(A155,DATA[Code de produit],DATA[Jours garantis],"") -> 164 | R155: =_xlfn.XLOOKUP(A155,DATA[Code de produit],DATA[Entreposage],"") -> SEC | S155: =_xlfn.XLOOKUP(A155,DATA[Code de produit],DATA[Prix],"") -> 36,40$ | T155: =_xlfn.XLOOKUP(A155,DATA[Code de produit],DATA[Promo mensuelle],"") -> 0 | U155: =_xlfn.XLOOKUP(A155,DATA[Code de produit],DATA[Rabais promo],"") -> 0 | V155: =_xlfn.XLOOKUP(A155,DATA[Code de produit],DATA[PDS],"") -> 9.29 | W155: =_xlfn.XLOOKUP(A155,DATA[Code de produit],DATA[Classement des produits],"") -> 0
A156: Assaissonements | C156: =_xlfn.XLOOKUP(A156,DATA[Code de produit],DATA[Description],"") ->  | D156: =_xlfn.XLOOKUP(A156,DATA[Code de produit],DATA[CUP/unité],"") ->  | E156: =_xlfn.XLOOKUP(A156,DATA[Code de produit],DATA[Format],"") ->  | F156: =_xlfn.XLOOKUP(A156,DATA[Code de produit],DATA[Sélection],"") ->  | G156: =_xlfn.XLOOKUP(A156,DATA[Code de produit],DATA[EMB.],"") ->  | H156: =_xlfn.XLOOKUP(A156,DATA[Code de produit],DATA[B],"") ->  | I156: =_xlfn.XLOOKUP(A156,DATA[Code de produit],DATA[C],"") ->  | J156: =_xlfn.XLOOKUP(A156,DATA[Code de produit],DATA[V],"") ->  | K156: =_xlfn.XLOOKUP(A156,DATA[Code de produit],DATA[SG],"") ->  | L156: =_xlfn.XLOOKUP(A156,DATA[Code de produit],DATA[SO],"") ->  | M156: =_xlfn.XLOOKUP(A156,DATA[Code de produit],DATA[H],"") ->  | N156: =_xlfn.XLOOKUP(A156,DATA[Code de produit],DATA[FC],"") ->  | O156: =_xlfn.XLOOKUP(A156,DATA[Code de produit],DATA[CC],"") ->  | P156: =_xlfn.XLOOKUP(A156,DATA[Code de produit],DATA[PC],"") ->  | Q156: =_xlfn.XLOOKUP(A156,DATA[Code de produit],DATA[Jours garantis],"") ->  | R156: =_xlfn.XLOOKUP(A156,DATA[Code de produit],DATA[Entreposage],"") ->  | S156: =_xlfn.XLOOKUP(A156,DATA[Code de produit],DATA[Prix],"") ->  | T156: =_xlfn.XLOOKUP(A156,DATA[Code de produit],DATA[Promo mensuelle],"") ->  | U156: =_xlfn.XLOOKUP(A156,DATA[Code de produit],DATA[Rabais promo],"") ->  | V156: =_xlfn.XLOOKUP(A156,DATA[Code de produit],DATA[PDS],"") ->  | W156: =_xlfn.XLOOKUP(A156,DATA[Code de produit],DATA[Classement des produits],"") -> 
A157: CAS0303 | C157: =_xlfn.XLOOKUP(A157,DATA[Code de produit],DATA[Description],"") -> Assaisonnements Al Pastor pour tacos | D157: =_xlfn.XLOOKUP(A157,DATA[Code de produit],DATA[CUP/unité],"") -> 628250868043 | E157: =_xlfn.XLOOKUP(A157,DATA[Code de produit],DATA[Format],"") -> 30G | F157: =_xlfn.XLOOKUP(A157,DATA[Code de produit],DATA[Sélection],"") -> CS | G157: =_xlfn.XLOOKUP(A157,DATA[Code de produit],DATA[EMB.],"") -> 12 | H157: =_xlfn.XLOOKUP(A157,DATA[Code de produit],DATA[B],"") -> 0 | I157: =_xlfn.XLOOKUP(A157,DATA[Code de produit],DATA[C],"") -> 0 | J157: =_xlfn.XLOOKUP(A157,DATA[Code de produit],DATA[V],"") -> O | K157: =_xlfn.XLOOKUP(A157,DATA[Code de produit],DATA[SG],"") -> O | L157: =_xlfn.XLOOKUP(A157,DATA[Code de produit],DATA[SO],"") -> O | M157: =_xlfn.XLOOKUP(A157,DATA[Code de produit],DATA[H],"") -> 0 | N157: =_xlfn.XLOOKUP(A157,DATA[Code de produit],DATA[FC],"") -> 0 | O157: =_xlfn.XLOOKUP(A157,DATA[Code de produit],DATA[CC],"") -> 0 | P157: =_xlfn.XLOOKUP(A157,DATA[Code de produit],DATA[PC],"") -> 0 | Q157: =_xlfn.XLOOKUP(A157,DATA[Code de produit],DATA[Jours garantis],"") -> 720 | R157: =_xlfn.XLOOKUP(A157,DATA[Code de produit],DATA[Entreposage],"") -> SEC | S157: =_xlfn.XLOOKUP(A157,DATA[Code de produit],DATA[Prix],"") -> 17,14$ | T157: =_xlfn.XLOOKUP(A157,DATA[Code de produit],DATA[Promo mensuelle],"") -> 0 | U157: =_xlfn.XLOOKUP(A157,DATA[Code de produit],DATA[Rabais promo],"") -> 0 | V157: =_xlfn.XLOOKUP(A157,DATA[Code de produit],DATA[PDS],"") -> 2.35 | W157: =_xlfn.XLOOKUP(A157,DATA[Code de produit],DATA[Classement des produits],"") -> 0
A158: CAS0306 | C158: =_xlfn.XLOOKUP(A158,DATA[Code de produit],DATA[Description],"") -> Assaisonnements Barbacoa pour tacos | D158: =_xlfn.XLOOKUP(A158,DATA[Code de produit],DATA[CUP/unité],"") -> 628250868036 | E158: =_xlfn.XLOOKUP(A158,DATA[Code de produit],DATA[Format],"") -> 30G | F158: =_xlfn.XLOOKUP(A158,DATA[Code de produit],DATA[Sélection],"") -> CS | G158: =_xlfn.XLOOKUP(A158,DATA[Code de produit],DATA[EMB.],"") -> 12 | H158: =_xlfn.XLOOKUP(A158,DATA[Code de produit],DATA[B],"") -> 0 | I158: =_xlfn.XLOOKUP(A158,DATA[Code de produit],DATA[C],"") -> 0 | J158: =_xlfn.XLOOKUP(A158,DATA[Code de produit],DATA[V],"") -> O | K158: =_xlfn.XLOOKUP(A158,DATA[Code de produit],DATA[SG],"") -> O | L158: =_xlfn.XLOOKUP(A158,DATA[Code de produit],DATA[SO],"") -> O | M158: =_xlfn.XLOOKUP(A158,DATA[Code de produit],DATA[H],"") -> 0 | N158: =_xlfn.XLOOKUP(A158,DATA[Code de produit],DATA[FC],"") -> 0 | O158: =_xlfn.XLOOKUP(A158,DATA[Code de produit],DATA[CC],"") -> 0 | P158: =_xlfn.XLOOKUP(A158,DATA[Code de produit],DATA[PC],"") -> 0 | Q158: =_xlfn.XLOOKUP(A158,DATA[Code de produit],DATA[Jours garantis],"") -> 720 | R158: =_xlfn.XLOOKUP(A158,DATA[Code de produit],DATA[Entreposage],"") -> SEC | S158: =_xlfn.XLOOKUP(A158,DATA[Code de produit],DATA[Prix],"") -> 17,14$ | T158: =_xlfn.XLOOKUP(A158,DATA[Code de produit],DATA[Promo mensuelle],"") -> 0 | U158: =_xlfn.XLOOKUP(A158,DATA[Code de produit],DATA[Rabais promo],"") -> 0 | V158: =_xlfn.XLOOKUP(A158,DATA[Code de produit],DATA[PDS],"") -> 2.35 | W158: =_xlfn.XLOOKUP(A158,DATA[Code de produit],DATA[Classement des produits],"") -> 0
A159: CAS0304 | C159: =_xlfn.XLOOKUP(A159,DATA[Code de produit],DATA[Description],"") -> Assaisonnements Carne asada pour tacos | D159: =_xlfn.XLOOKUP(A159,DATA[Code de produit],DATA[CUP/unité],"") -> 628250868081 | E159: =_xlfn.XLOOKUP(A159,DATA[Code de produit],DATA[Format],"") -> 30G | F159: =_xlfn.XLOOKUP(A159,DATA[Code de produit],DATA[Sélection],"") -> CS | G159: =_xlfn.XLOOKUP(A159,DATA[Code de produit],DATA[EMB.],"") -> 12 | H159: =_xlfn.XLOOKUP(A159,DATA[Code de produit],DATA[B],"") -> 0 | I159: =_xlfn.XLOOKUP(A159,DATA[Code de produit],DATA[C],"") -> 0 | J159: =_xlfn.XLOOKUP(A159,DATA[Code de produit],DATA[V],"") -> O | K159: =_xlfn.XLOOKUP(A159,DATA[Code de produit],DATA[SG],"") -> O | L159: =_xlfn.XLOOKUP(A159,DATA[Code de produit],DATA[SO],"") -> O | M159: =_xlfn.XLOOKUP(A159,DATA[Code de produit],DATA[H],"") -> 0 | N159: =_xlfn.XLOOKUP(A159,DATA[Code de produit],DATA[FC],"") -> 0 | O159: =_xlfn.XLOOKUP(A159,DATA[Code de produit],DATA[CC],"") -> 0 | P159: =_xlfn.XLOOKUP(A159,DATA[Code de produit],DATA[PC],"") -> 0 | Q159: =_xlfn.XLOOKUP(A159,DATA[Code de produit],DATA[Jours garantis],"") -> 720 | R159: =_xlfn.XLOOKUP(A159,DATA[Code de produit],DATA[Entreposage],"") -> SEC | S159: =_xlfn.XLOOKUP(A159,DATA[Code de produit],DATA[Prix],"") -> 17,14$ | T159: =_xlfn.XLOOKUP(A159,DATA[Code de produit],DATA[Promo mensuelle],"") -> 0 | U159: =_xlfn.XLOOKUP(A159,DATA[Code de produit],DATA[Rabais promo],"") -> 0 | V159: =_xlfn.XLOOKUP(A159,DATA[Code de produit],DATA[PDS],"") -> 2.35 | W159: =_xlfn.XLOOKUP(A159,DATA[Code de produit],DATA[Classement des produits],"") -> 0
